Workbook

Sheet Velkomst

Sheet Tabel 1 ØJ
A1: Tabel 1. Forsikrede medlemmer
A3: Østjylland
C5: Mænd | E5: Kvinder | G5: I alt
A7: Civ. ing. | C7: 3182 | E7: 1047 | G7: 4229
A8: Diplom ing. | C8: 5812 | E8: 1229 | G8: 7041
A9: Cand. Scient. Tek. | C9: 1811 | E9: 1200 | G9: 3011
A10: MA. Hum. | C10: 2667 | E10: 5625 | G10: 8292
A11: MA. Nat. | C11: 1604 | E11: 1306 | G11: 2910
A12: MA. Ph.d. | C12: 331 | E12: 254 | G12: 585
A13: MA. Samf. | C13: 174 | E13: 574 | G13: 748
A14: Øvrige Mag. | C14: 210 | E14: 366 | G14: 576
A15: Agronom | C15: 186 | E15: 156 | G15: 342
A16: Landsk. Arkt. | C16: 11 | E16: 29 | G16: 40
A17: Hortonom | C17: 12 | E17: 16 | G17: 28
A18: Forstkand. | C18: 42 | E18: 12 | G18: 54
A19: Jordbrugsakad. | C19: 251 | E19: 213 | G19: 464
A20: Mejeriing. | C20: 56 | E20: 28 | G20: 84
A21: Levn.m.kand. | C21: 2 | E21: 26 | G21: 28
A22: Dyrlæge | C22: 47 | E22: 190 | G22: 237
A23: Farmaceut | C23: 71 | E23: 256 | G23: 327
A24: Læge | C24: 806 | E24: 1835 | G24: 2641
A25: Tandlæge | C25: 70 | E25: 412 | G25: 482
A26: Arkitekt | C26: 720 | E26: 852 | G26: 1572
A27: Landinspek. | C27: 98 | E27: 38 | G27: 136
A28: Bibliotekar | C28: 75 | E28: 279 | G28: 354
A29: Musikudd. | C29: 71 | E29: 77 | G29: 148
A30: Teolog | C30: 126 | E30: 205 | G30: 331
A31: Psykolog | C31: 315 | E31: 1607 | G31: 1922
A32: Jurist | C32: 832 | E32: 1515 | G32: 2347
A33: Økonom | C33: 925 | E33: 520 | G33: 1445
A34: Samf. Adm. | C34: 1382 | E34: 1863 | G34: 3245
A35: Cand. Merc. | C35: 3603 | E35: 3267 | G35: 6870
A36: HA | C36: 583 | E36: 521 | G36: 1104
A37: HD | C37: 471 | E37: 393 | G37: 864
A38: Komm. og Sprog | C38: 169 | E38: 1126 | G38: 1295
A39: Bygningskonst. | C39: 1919 | E39: 318 | G39: 2237
A40: Cand. IT. | C40: 502 | E40: 448 | G40: 950
A41: Bac. Samf. | C41: 98 | E41: 100 | G41: 198
A42: Bac. Hum. | C42: 316 | E42: 523 | G42: 839
A43: Bac. Nat. | C43: 485 | E43: 172 | G43: 657
A44: Andre | C44: 1618 | E44: 1521 | G44: 3139
A46: Total | C46: 31402 | E46: 29906 | G46: 61308
A48: Ingeniører i alt | C48: 8994 | E48: 2276 | G48: 11270
A49: Magistre i alt | C49: 4986 | E49: 8125 | G49: 13111
A50: DJØF'ere i alt | C50: 7325 | E50: 7686 | G50: 15011
A57: Horsens
C59: Mænd | E59: Kvinder | G59: I alt
A61: Civ. ing. | C61: 218 | E61: 84 | G61: 302
A62: Diplom ing. | C62: 721 | E62: 231 | G62: 952
A63: Cand. Scient. Tek. | C63: 81 | E63: 60 | G63: 141
A64: MA. Hum. | C64: 122 | E64: 274 | G64: 396
A65: MA. Nat. | C65: 62 | E65: 74 | G65: 136
A66: MA. Ph.d. | C66: 5 | E66: 5 | G66: 10
A67: MA. Samf. | C67: 8 | E67: 24 | G67: 32
A68: Øvrige Mag. | C68: 17 | E68: 12 | G68: 29
A69: Agronom | C69: 21 | E69: 16 | G69: 37
A70: Landsk. Arkt. | C70: 1 | E70: 1 | G70: 2
A71: Hortonom | C71: 0 | E71: 1 | G71: 1
A72: Forstkand. | C72: 6 | E72: 0 | G72: 6
A73: Jordbrugsakad. | C73: 28 | E73: 18 | G73: 46
A74: Mejeriing. | C74: 5 | E74: 1 | G74: 6
A75: Levn.m.kand. | C75: 0 | E75: 1 | G75: 1
A76: Dyrlæge | C76: 5 | E76: 17 | G76: 22
A77: Farmaceut | C77: 6 | E77: 17 | G77: 23
A78: Læge | C78: 25 | E78: 67 | G78: 92
A79: Tandlæge | C79: 5 | E79: 19 | G79: 24
A80: Arkitekt | C80: 34 | E80: 34 | G80: 68
A81: Landinspek. | C81: 14 | E81: 6 | G81: 20
A82: Bibliotekar | C82: 6 | E82: 28 | G82: 34
A83: Musikudd. | C83: 3 | E83: 5 | G83: 8
A84: Teolog | C84: 9 | E84: 7 | G84: 16
A85: Psykolog | C85: 16 | E85: 76 | G85: 92
A86: Jurist | C86: 45 | E86: 102 | G86: 147
A87: Økonom | C87: 31 | E87: 34 | G87: 65
A88: Samf. Adm. | C88: 77 | E88: 98 | G88: 175
A89: Cand. Merc. | C89: 213 | E89: 247 | G89: 460
A90: HA | C90: 52 | E90: 46 | G90: 98
A91: HD | C91: 38 | E91: 25 | G91: 63
A92: Komm. og Sprog | C92: 10 | E92: 72 | G92: 82
A93: Bygningskonst. | C93: 384 | E93: 81 | G93: 465
A94: Cand. IT. | C94: 19 | E94: 19 | G94: 38
A95: Bac. Samf. | C95: 9 | E95: 6 | G95: 15
A96: Bac. Hum. | C96: 12 | E96: 28 | G96: 40
A97: Bac. Nat. | C97: 96 | E97: 22 | G97: 118
A98: Andre | C98: 142 | E98: 102 | G98: 244
A100: Total | C100: 2518 | E100: 1942 | G100: 4460
A102: Ingeniører i alt | C102: 939 | E102: 315 | G102: 1254
A103: Magistre i alt | C103: 214 | E103: 389 | G103: 603
A104: DJØF'ere i alt | C104: 418 | E104: 527 | G104: 945
A111: Syddjurs
C113: Mænd | E113: Kvinder | G113: I alt
A115: Civ. ing. | C115: 63 | E115: 87 | G115: 150
A116: Diplom ing. | C116: 0 | E116: 0 | G116: 0
A117: Cand. Scient. Tek. | C117: 202 | E117: 231 | G117: 433
A118: MA. Hum. | C118: 34 | E118: 71 | G118: 105
A119: MA. Nat. | C119: 75 | E119: 254 | G119: 329
A120: MA. Ph.d. | C120: 71 | E120: 116 | G120: 187
A121: MA. Samf. | C121: 12 | E121: 23 | G121: 35
A122: Øvrige Mag. | C122: 3 | E122: 22 | G122: 25
A123: Agronom | C123: 7 | E123: 22 | G123: 29
A124: Landsk. Arkt. | C124: 15 | E124: 28 | G124: 43
A125: Hortonom | C125: 0 | E125: 4 | G125: 4
A126: Forstkand. | C126: 2 | E126: 4 | G126: 6
A127: Jordbrugsakad. | C127: 24 | E127: 58 | G127: 82
A128: Mejeriing. | C128: 2 | E128: 3 | G128: 5
A129: Levn.m.kand. | C129: 0 | E129: 0 | G129: 0
A130: Dyrlæge | C130: 3 | E130: 10 | G130: 13
A131: Farmaceut | C131: 2 | E131: 9 | G131: 11
A132: Læge | C132: 13 | E132: 50 | G132: 63
A133: Tandlæge | C133: 2 | E133: 17 | G133: 19
A134: Arkitekt | C134: 27 | E134: 75 | G134: 102
A135: Landinspek. | C135: 2 | E135: 5 | G135: 7
A136: Bibliotekar | C136: 2 | E136: 14 | G136: 16
A137: Musikudd. | C137: 4 | E137: 7 | G137: 11
A138: Teolog | C138: 4 | E138: 20 | G138: 24
A139: Psykolog | C139: 10 | E139: 68 | G139: 78
A140: Jurist | C140: 16 | E140: 53 | G140: 69
A141: Økonom | C141: 17 | E141: 27 | G141: 44
A142: Samf. Adm. | C142: 24 | E142: 71 | G142: 95
A143: Cand. Merc. | C143: 63 | E143: 125 | G143: 188
A144: HA | C144: 14 | E144: 38 | G144: 52
A145: HD | C145: 12 | E145: 25 | G145: 37
A146: Komm. og Sprog | C146: 4 | E146: 41 | G146: 45
A147: Bygningskonst. | C147: 61 | E147: 74 | G147: 135
A148: Cand. IT. | C148: 14 | E148: 22 | G148: 36
A149: Bac. Samf. | C149: 1 | E149: 1 | G149: 2
A150: Bac. Hum. | C150: 11 | E150: 18 | G150: 29
A151: Bac. Nat. | C151: 10 | E151: 15 | G151: 25
A152: Andre | C152: 53 | E152: 103 | G152: 156
A154: Total | C154: 855 | E154: 1753 | G154: 2608
A156: Ingeniører i alt | C156: 63 | E156: 87 | G156: 150
A157: Magistre i alt | C157: 195 | E157: 486 | G157: 681
A158: DJØF'ere i alt | C158: 134 | E158: 314 | G158: 448
A165: Norddjurs
C167: Mænd | E167: Kvinder | G167: I alt
A169: Civ. ing. | C169: 16 | E169: 25 | G169: 41
A170: Diplom ing. | C170: 74 | E170: 96 | G170: 170
A171: Cand. Scient. Tek. | C171: 12 | E171: 18 | G171: 30
A172: MA. Hum. | C172: 25 | E172: 77 | G172: 102
A173: MA. Nat. | C173: 18 | E173: 31 | G173: 49
A174: MA. Ph.d. | C174: 4 | E174: 7 | G174: 11
A175: MA. Samf. | C175: 1 | E175: 2 | G175: 3
A176: Øvrige Mag. | C176: 1 | E176: 5 | G176: 6
A177: Agronom | C177: 4 | E177: 8 | G177: 12
A178: Landsk. Arkt. | C178: 0 | E178: 0 | G178: 0
A179: Hortonom | C179: 1 | E179: 1 | G179: 2
A180: Forstkand. | C180: 2 | E180: 2 | G180: 4
A181: Jordbrugsakad. | C181: 7 | E181: 11 | G181: 18
A182: Mejeriing. | C182: 0 | E182: 0 | G182: 0
A183: Levn.m.kand. | C183: 0 | E183: 2 | G183: 2
A184: Dyrlæge | C184: 0 | E184: 7 | G184: 7
A185: Farmaceut | C185: 2 | E185: 3 | G185: 5
A186: Læge | C186: 2 | E186: 4 | G186: 6
A187: Tandlæge | C187: 0 | E187: 4 | G187: 4
A188: Arkitekt | C188: 4 | E188: 9 | G188: 13
A189: Landinspek. | C189: 2 | E189: 2 | G189: 4
A190: Bibliotekar | C190: 1 | E190: 6 | G190: 7
A191: Musikudd. | C191: 2 | E191: 3 | G191: 5
A192: Teolog | C192: 5 | E192: 12 | G192: 17
A193: Psykolog | C193: 1 | E193: 14 | G193: 15
A194: Jurist | C194: 4 | E194: 9 | G194: 13
A195: Økonom | C195: 4 | E195: 6 | G195: 10
A196: Samf. Adm. | C196: 13 | E196: 20 | G196: 33
A197: Cand. Merc. | C197: 20 | E197: 40 | G197: 60
A198: HA | C198: 8 | E198: 15 | G198: 23
A199: HD | C199: 8 | E199: 11 | G199: 19
A200: Komm. og Sprog | C200: 1 | E200: 12 | G200: 13
A201: Bygningskonst. | C201: 30 | E201: 33 | G201: 63
A202: Cand. IT. | C202: 1 | E202: 2 | G202: 3
A203: Bac. Samf. | C203: 1 | E203: 3 | G203: 4
A204: Bac. Hum. | C204: 3 | E204: 10 | G204: 13
A205: Bac. Nat. | C205: 1 | E205: 3 | G205: 4
A206: Andre | C206: 25 | E206: 38 | G206: 63
A208: Total | C208: 296 | E208: 540 | G208: 836
A210: Ingeniører i alt | C210: 90 | E210: 121 | G210: 211
A211: Magistre i alt | C211: 49 | E211: 122 | G211: 171
A212: DJØF'ere i alt | C212: 49 | E212: 90 | G212: 139
A219: Favrskov
C221: Mænd | E221: Kvinder | G221: I alt
A223: Civ. ing. | C223: 215 | E223: 66 | G223: 281
A224: Diplom ing. | C224: 361 | E224: 62 | G224: 423
A225: Cand. Scient. Tek. | C225: 69 | E225: 65 | G225: 134
A226: MA. Hum. | C226: 88 | E226: 249 | G226: 337
A227: MA. Nat. | C227: 97 | E227: 79 | G227: 176
A228: MA. Ph.d. | C228: 11 | E228: 8 | G228: 19
A229: MA. Samf. | C229: 6 | E229: 13 | G229: 19
A230: Øvrige Mag. | C230: 9 | E230: 13 | G230: 22
A231: Agronom | C231: 29 | E231: 21 | G231: 50
A232: Landsk. Arkt. | C232: 1 | E232: 2 | G232: 3
A233: Hortonom | C233: 2 | E233: 2 | G233: 4
A234: Forstkand. | C234: 5 | E234: 1 | G234: 6
A235: Jordbrugsakad. | C235: 37 | E235: 26 | G235: 63
A236: Mejeriing. | C236: 3 | E236: 1 | G236: 4
A237: Levn.m.kand. | C237: 0 | E237: 1 | G237: 1
A238: Dyrlæge | C238: 2 | E238: 20 | G238: 22
A239: Farmaceut | C239: 1 | E239: 9 | G239: 10
A240: Læge | C240: 34 | E240: 87 | G240: 121
A241: Tandlæge | C241: 3 | E241: 19 | G241: 22
A242: Arkitekt | C242: 14 | E242: 21 | G242: 35
A243: Landinspek. | C243: 10 | E243: 2 | G243: 12
... 330 more rows

Sheet Tabel 2 ØJ
A1: Tabel 2. Antal bruttoledighedsberørte og gennemsnitlig antal ledige brutto
A3: Østjylland
C5: Mænd | F5: Kvinder | I5: I alt
C6: Ledigheds- berørte | D6: Gns. brutto- ledighed | F6: Ledigheds- berørte | G6: Gns. brutto- ledighed | I6: Ledigheds- berørte | J6: Gns. brutto- ledighed
A9: Civ. ing. | C9: 89 | D9: 77.96856484 | F9: 52 | G9: 45.65271627 | I9: 141 | J9: 123.6212811
A10: Diplom ing. | C10: 199 | D10: 177.168964 | F10: 57 | G10: 51.3353708 | I10: 256 | J10: 228.5043348
A11: Cand. Scient. Tek. | C11: 138 | D11: 117.9960082 | F11: 110 | G11: 94.00361754 | I11: 248 | J11: 211.9996258
A12: MA. Hum. | C12: 397 | D12: 344.0522672 | F12: 772 | G12: 667.6155429 | I12: 1169 | J12: 1011.66781
A13: MA. Nat. | C13: 58 | D13: 52.71190669 | F13: 60 | G13: 49.55279736 | I13: 118 | J13: 102.264704
A14: MA. Ph.d. | C14: 17 | D14: 15.57225722 | F14: 16 | G14: 14.48699557 | I14: 33 | J14: 30.05925279
A15: MA. Samf. | C15: 48 | D15: 41.88423876 | F15: 87 | G15: 74.66974365 | I15: 135 | J15: 116.5539824
A16: Øvrige Mag. | C16: 23 | D16: 19.88336556 | F16: 51 | G16: 44.45768103 | I16: 74 | J16: 64.34104659
A17: Agronom | C17: 3 | D17: 2.968252978 | F17: 8 | G17: 6.936942556 | I17: 11 | J17: 9.905195534
A18: Landsk. Arkt. | C18: 0 | D18: 0 | F18: 1 | G18: 0.9998128859 | I18: 1 | J18: 0.9998128859
A19: Hortonom | C19: 0 | D19: 0 | F19: 0 | G19: 0 | I19: 0 | J19: 0
A20: Forstkand. | C20: 2 | D20: 1.999625772 | F20: 0 | G20: 0 | I20: 2 | J20: 1.999625772
A21: Jordbrugsakad. | C21: 5 | D21: 4.96787875 | F21: 9 | G21: 7.936755442 | I21: 14 | J21: 12.90463419
A22: Mejeriing. | C22: 3 | D22: 2.068234267 | F22: 0 | G22: 0 | I22: 3 | J22: 2.068234267
A23: Levn.m.kand. | C23: 0 | D23: 0 | F23: 1 | G23: 0.1228715774 | I23: 1 | J23: 0.1228715774
A24: Dyrlæge | C24: 0 | D24: 0 | F24: 0 | G24: 0 | I24: 0 | J24: 0
A25: Farmaceut | C25: 4 | D25: 3.953096738 | F25: 12 | G25: 10.13659328 | I25: 16 | J25: 14.08969001
A26: Læge | C26: 14 | D26: 12.0283166 | F26: 39 | G26: 35.85729433 | I26: 53 | J26: 47.88561093
A27: Tandlæge | C27: 1 | D27: 0.9998128859 | F27: 8 | G27: 3.368677103 | I27: 9 | J27: 4.368489989
A28: Arkitekt | C28: 49 | D28: 43.93438533 | F28: 83 | G28: 73.38302252 | I28: 132 | J28: 117.3174078
A29: Landinspek. | C29: 0 | D29: 0 | F29: 1 | G29: 0.1228715774 | I29: 1 | J29: 0.1228715774
A30: Bibliotekar | C30: 3 | D30: 2.487993513 | F30: 16 | G30: 14.35414458 | I30: 19 | J30: 16.84213809
A31: Musikudd. | C31: 4 | D31: 3.268882929 | F31: 6 | G31: 4.524418387 | I31: 10 | J31: 7.793301316
A32: Teolog | C32: 12 | D32: 9.724942306 | F32: 12 | G32: 9.923283228 | I32: 24 | J32: 19.64822553
A33: Psykolog | C33: 18 | D33: 15.5024013 | F33: 109 | G33: 90.98234891 | I33: 127 | J33: 106.4847502
A34: Jurist | C34: 25 | D34: 23.27262521 | F34: 35 | G34: 31.1151999 | I34: 60 | J34: 54.38782511
A35: Økonom | C35: 27 | D35: 25.5392004 | F35: 12 | G35: 10.90001871 | I35: 39 | J35: 36.43921911
A36: Samf. Adm. | C36: 96 | D36: 86.05189297 | F36: 154 | G36: 130.8875444 | I36: 250 | J36: 216.9394374
A37: Cand. Merc. | C37: 147 | D37: 135.8298509 | F37: 149 | G37: 136.3450384 | I37: 296 | J37: 272.1748893
A38: HA | C38: 50 | D38: 44.05600948 | F38: 46 | G38: 41.61167592 | I38: 96 | J38: 85.6676854
A39: HD | C39: 23 | D39: 20.59439905 | F39: 24 | G39: 21.3216491 | I39: 47 | J39: 41.91604815
A40: Komm. og Sprog | C40: 25 | D40: 21.11457619 | F40: 87 | G40: 74.95977047 | I40: 112 | J40: 96.07434666
A41: Bygningskonst. | C41: 103 | D41: 86.87032994 | F41: 34 | G41: 30.62053265 | I41: 137 | J41: 117.4908626
A42: Cand. IT. | C42: 32 | D42: 28.66275806 | F42: 40 | G42: 32.71128298 | I42: 72 | J42: 61.37404104
A43: Bac. Samf. | C43: 10 | D43: 9.905195534 | F43: 13 | G43: 11.03224599 | I43: 23 | J43: 20.93744153
A44: Bac. Hum. | C44: 60 | D44: 53.20526414 | F44: 137 | G44: 115.7699744 | I44: 197 | J44: 168.9752386
A45: Bac. Nat. | C45: 71 | D45: 62.44308613 | F45: 33 | G45: 29.7018649 | I45: 104 | J45: 92.14495104
A46: Andre | C46: 111 | D46: 96.38183746 | F46: 173 | G46: 155.8310984 | I46: 284 | J46: 252.2129358
A48: Total | C48: 1862 | D48: 1640.100543 | F48: 2438 | G48: 2115.294642 | I48: 4300 | J48: 3755.395185
A50: Ingeniører i alt | C50: 288 | D50: 255.1375288 | F50: 109 | G50: 96.98808707 | I50: 397 | J50: 352.1256159
A51: Magistre i alt | C51: 543 | D51: 474.1040354 | F51: 986 | G51: 850.7827606 | I51: 1529 | J51: 1324.886796
A52: DJØF'ere i alt | C52: 345 | D52: 314.749579 | F52: 396 | G52: 350.8594773 | I52: 741 | J52: 665.6090563
A57: Horsens
C59: Mænd | F59: Kvinder | I59: I alt
C60: Ledigheds- berørte | D60: Gns. brutto- ledighed | F60: Ledigheds- berørte | G60: Gns. brutto- ledighed | I60: Ledigheds- berørte | J60: Gns. brutto- ledighed
A63: Civ. ing. | C63: 4 | D63: 3.999251544 | F63: 6 | G63: 5.537329258 | I63: 10 | J63: 9.536580802
A64: Diplom ing. | C64: 16 | D64: 15.70074222 | F64: 15 | G64: 14.2817938 | I64: 31 | J64: 29.98253602
A65: Cand. Scient. Tek. | C65: 3 | D65: 2.569699994 | F65: 3 | G65: 2.307116572 | I65: 6 | J65: 4.876816566
A66: MA. Hum. | C66: 12 | D66: 9.376286409 | F66: 25 | G66: 23.37117196 | I66: 37 | J66: 32.74745837
A67: MA. Nat. | C67: 0 | D67: 0 | F67: 1 | G67: 0.5008420133 | I67: 1 | J67: 0.5008420133
A68: MA. Ph.d. | C68: 0 | D68: 0 | F68: 0 | G68: 0 | I68: 0 | J68: 0
A69: MA. Samf. | C69: 0 | D69: 0 | F69: 2 | G69: 1.999625772 | I69: 2 | J69: 1.999625772
A70: Øvrige Mag. | C70: 3 | D70: 2.612736232 | F70: 0 | G70: 0 | I70: 3 | J70: 2.612736232
A71: Agronom | C71: 2 | D71: 1.968440092 | F71: 1 | G71: 0.9075032745 | I71: 3 | J71: 2.875943367
A72: Landsk. Arkt. | C72: 0 | D72: 0 | F72: 0 | G72: 0 | I72: 0 | J72: 0
A73: Hortonom | C73: 0 | D73: 0 | F73: 0 | G73: 0 | I73: 0 | J73: 0
A74: Forstkand. | C74: 0 | D74: 0 | F74: 0 | G74: 0 | I74: 0 | J74: 0
A75: Jordbrugsakad. | C75: 2 | D75: 1.968440092 | F75: 1 | G75: 0.9075032745 | I75: 3 | J75: 2.875943367
A76: Mejeriing. | C76: 0 | D76: 0 | F76: 0 | G76: 0 | I76: 0 | J76: 0
A77: Levn.m.kand. | C77: 0 | D77: 0 | F77: 0 | G77: 0 | I77: 0 | J77: 0
A78: Dyrlæge | C78: 0 | D78: 0 | F78: 0 | G78: 0 | I78: 0 | J78: 0
A79: Farmaceut | C79: 1 | D79: 0.9536580802 | F79: 2 | G79: 1.999625772 | I79: 3 | J79: 2.953283852
A80: Læge | C80: 0 | D80: 0 | F80: 2 | G80: 1.871764486 | I80: 2 | J80: 1.871764486
A81: Tandlæge | C81: 0 | D81: 0 | F81: 0 | G81: 0 | I81: 0 | J81: 0
A82: Arkitekt | C82: 1 | D82: 0.9998128859 | F82: 0 | G82: 0 | I82: 1 | J82: 0.9998128859
A83: Landinspek. | C83: 0 | D83: 0 | F83: 0 | G83: 0 | I83: 0 | J83: 0
A84: Bibliotekar | C84: 0 | D84: 0 | F84: 0 | G84: 0 | I84: 0 | J84: 0
A85: Musikudd. | C85: 1 | D85: 0.9998128859 | F85: 0 | G85: 0 | I85: 1 | J85: 0.9998128859
A86: Teolog | C86: 0 | D86: 0 | F86: 0 | G86: 0 | I86: 0 | J86: 0
A87: Psykolog | C87: 1 | D87: 0.9998128859 | F87: 6 | G87: 5.537329258 | I87: 7 | J87: 6.537142144
A88: Jurist | C88: 1 | D88: 0.09542817938 | F88: 0 | G88: 0 | I88: 1 | J88: 0.09542817938
A89: Økonom | C89: 0 | D89: 0 | F89: 0 | G89: 0 | I89: 0 | J89: 0
A90: Samf. Adm. | C90: 4 | D90: 3.676167904 | F90: 11 | G90: 9.76548369 | I90: 15 | J90: 13.44165159
A91: Cand. Merc. | C91: 8 | D91: 7.906193476 | F91: 12 | G91: 11.37029876 | I91: 20 | J91: 19.27649223
A92: HA | C92: 6 | D92: 4.803218362 | F92: 7 | G92: 6.767916173 | I92: 13 | J92: 11.57113454
A93: HD | C93: 3 | D93: 2.999438658 | F93: 1 | G93: 0.9998128859 | I93: 4 | J93: 3.999251544
A94: Komm. og Sprog | C94: 2 | D94: 1.999625772 | F94: 2 | G94: 1.768851743 | I94: 4 | J94: 3.768477515
A95: Bygningskonst. | C95: 17 | D95: 13.61897337 | F95: 13 | G95: 11.32676355 | I95: 30 | J95: 24.94573692
A96: Cand. IT. | C96: 2 | D96: 1.857419073 | F96: 3 | G96: 1.498783758 | I96: 5 | J96: 3.356202832
A97: Bac. Samf. | C97: 1 | D97: 0.9998128859 | F97: 1 | G97: 0.3536456059 | I97: 2 | J97: 1.353458492
A98: Bac. Hum. | C98: 1 | D98: 0.9998128859 | F98: 6 | G98: 4.970997318 | I98: 7 | J98: 5.970810204
A99: Bac. Nat. | C99: 21 | D99: 19.15362066 | F99: 5 | G99: 4.99906443 | I99: 26 | J99: 24.15268509
A100: Andre | C100: 11 | D100: 8.815567891 | F100: 17 | G100: 15.45437535 | I100: 28 | J100: 24.26994324
A102: Total | C102: 121 | D102: 107.1055323 | F102: 141 | G102: 127.5900954 | I102: 262 | J102: 234.6956278
A104: Ingeniører i alt | C104: 20 | D104: 19.69999376 | F104: 21 | G104: 19.81912306 | I104: 41 | J104: 39.51911682
A105: Magistre i alt | C105: 15 | D105: 11.98902264 | F105: 28 | G105: 25.87163974 | I105: 43 | J105: 37.86066238
A106: DJØF'ere i alt | C106: 19 | D106: 16.48100792 | F106: 30 | G106: 27.90369862 | I106: 49 | J106: 44.38470654
A111: Syddjurs
C113: Mænd | F113: Kvinder | I113: I alt
C114: Ledigheds- berørte | D114: Gns. brutto- ledighed | F114: Ledigheds- berørte | G114: Gns. brutto- ledighed | I114: Ledigheds- berørte | J114: Gns. brutto- ledighed
A117: Civ. ing. | C117: 2 | D117: 1.999625772 | F117: 1 | G117: 0.8151936631 | I117: 3 | J117: 2.814819435
A118: Diplom ing. | C118: 4 | D118: 3.049335745 | F118: 1 | G118: 0.9998128859 | I118: 5 | J118: 4.049148631
A119: Cand. Scient. Tek. | C119: 2 | D119: 1.999625772 | F119: 4 | G119: 3.712967006 | I119: 6 | J119: 5.712592777
A120: MA. Hum. | C120: 8 | D120: 7.458990831 | F120: 19 | G120: 14.77140897 | I120: 27 | J120: 22.2303998
A121: MA. Nat. | C121: 3 | D121: 2.907129046 | F121: 3 | G121: 2.631447639 | I121: 6 | J121: 5.538576686
A122: MA. Ph.d. | C122: 1 | D122: 0.9998128859 | F122: 0 | G122: 0 | I122: 1 | J122: 0.9998128859
A123: MA. Samf. | C123: 1 | D123: 0.9998128859 | F123: 4 | G123: 3.247676667 | I123: 5 | J123: 4.247489553
A124: Øvrige Mag. | C124: 1 | D124: 0.5070791493 | F124: 3 | G124: 2.410653028 | I124: 4 | J124: 2.917732177
A125: Agronom | C125: 0 | D125: 0 | F125: 0 | G125: 0 | I125: 0 | J125: 0
A126: Landsk. Arkt. | C126: 0 | D126: 0 | F126: 0 | G126: 0 | I126: 0 | J126: 0
A127: Hortonom | C127: 0 | D127: 0 | F127: 0 | G127: 0 | I127: 0 | J127: 0
A128: Forstkand. | C128: 1 | D128: 0.9998128859 | F128: 0 | G128: 0 | I128: 1 | J128: 0.9998128859
A129: Jordbrugsakad. | C129: 1 | D129: 0.9998128859 | F129: 0 | G129: 0 | I129: 1 | J129: 0.9998128859
A130: Mejeriing. | C130: 0 | D130: 0 | F130: 0 | G130: 0 | I130: 0 | J130: 0
A131: Levn.m.kand. | C131: 0 | D131: 0 | F131: 0 | G131: 0 | I131: 0 | J131: 0
A132: Dyrlæge | C132: 0 | D132: 0 | F132: 0 | G132: 0 | I132: 0 | J132: 0
A133: Farmaceut | C133: 0 | D133: 0 | F133: 0 | G133: 0 | I133: 0 | J133: 0
A134: Læge | C134: 0 | D134: 0 | F134: 0 | G134: 0 | I134: 0 | J134: 0
A135: Tandlæge | C135: 0 | D135: 0 | F135: 0 | G135: 0 | I135: 0 | J135: 0
A136: Arkitekt | C136: 1 | D136: 0.8613484688 | F136: 5 | G136: 4.99906443 | I136: 6 | J136: 5.860412898
A137: Landinspek. | C137: 0 | D137: 0 | F137: 0 | G137: 0 | I137: 0 | J137: 0
A138: Bibliotekar | C138: 0 | D138: 0 | F138: 1 | G138: 0.9436786628 | I138: 1 | J138: 0.9436786628
A139: Musikudd. | C139: 0 | D139: 0 | F139: 0 | G139: 0 | I139: 0 | J139: 0
A140: Teolog | C140: 0 | D140: 0 | F140: 1 | G140: 0.9998128859 | I140: 1 | J140: 0.9998128859
A141: Psykolog | C141: 1 | D141: 0.9998128859 | F141: 1 | G141: 0.7690388574 | I141: 2 | J141: 1.768851743
A142: Jurist | C142: 0 | D142: 0 | F142: 0 | G142: 0 | I142: 0 | J142: 0
A143: Økonom | C143: 2 | D143: 1.999625772 | F143: 0 | G143: 0 | I143: 2 | J143: 1.999625772
A144: Samf. Adm. | C144: 3 | D144: 2.107528223 | F144: 5 | G144: 4.102164286 | I144: 8 | J144: 6.209692509
A145: Cand. Merc. | C145: 5 | D145: 4.299257781 | F145: 2 | G145: 1.110210191 | I145: 7 | J145: 5.409467972
A146: HA | C146: 1 | D146: 0.9998128859 | F146: 2 | G146: 1.546185991 | I146: 3 | J146: 2.545998877
A147: HD | C147: 1 | D147: 0.9998128859 | F147: 0 | G147: 0 | I147: 1 | J147: 0.9998128859
A148: Komm. og Sprog | C148: 1 | D148: 0.9998128859 | F148: 3 | G148: 2.122497349 | I148: 4 | J148: 3.122310235
A149: Bygningskonst. | C149: 1 | D149: 1 | F149: 0 | G149: 0 | I149: 1 | J149: 1
A150: Cand. IT. | C150: 2 | D150: 1.500654899 | F150: 0 | G150: 0 | I150: 2 | J150: 1.500654899
A151: Bac. Samf. | C151: 0 | D151: 0 | F151: 0 | G151: 0 | I151: 0 | J151: 0
A152: Bac. Hum. | C152: 1 | D152: 0.9998128859 | F152: 3 | G152: 2.908376474 | I152: 4 | J152: 3.908189359
A153: Bac. Nat. | C153: 0 | D153: 0 | F153: 0 | G153: 0 | I153: 0 | J153: 0
A154: Andre | C154: 6 | D154: 5.426308239 | F154: 4 | G154: 2.64017963 | I154: 10 | J154: 8.066487869
A156: Total | C156: 48 | D156: 43.11501279 | F156: 62 | G156: 50.73036861 | I156: 110 | J156: 93.8453814
A158: Ingeniører i alt | C158: 6 | D158: 5.048961517 | F158: 2 | G158: 1.815006549 | I158: 8 | J158: 6.863968066
A159: Magistre i alt | C159: 14 | D159: 12.8728248 | F159: 29 | G159: 23.0611863 | I159: 43 | J159: 35.9340111
A160: DJØF'ere i alt | C160: 11 | D160: 9.406224662 | F160: 9 | G160: 6.758560469 | I160: 20 | J160: 16.16478513
A165: Norddjurs
C167: Mænd | F167: Kvinder | I167: I alt
C168: Ledigheds- berørte | D168: Gns. brutto- ledighed | F168: Ledigheds- berørte | G168: Gns. brutto- ledighed | I168: Ledigheds- berørte | J168: Gns. brutto- ledighed
A171: Civ. ing. | C171: 0 | D171: 0 | F171: 0 | G171: 0 | I171: 0 | J171: 0
A172: Diplom ing. | C172: 1 | D172: 0.9998128859 | F172: 0 | G172: 0 | I172: 1 | J172: 0.9998128859
A173: Cand. Scient. Tek. | C173: 1 | D173: 0.2370111645 | F173: 1 | G173: 0.9075032745 | I173: 2 | J173: 1.144514439
A174: MA. Hum. | C174: 2 | D174: 1.729557787 | F174: 2 | G174: 0.9948231772 | I174: 4 | J174: 2.724380964
A175: MA. Nat. | C175: 1 | D175: 0.9998128859 | F175: 2 | G175: 1.342855361 | I175: 3 | J175: 2.342668247
A176: MA. Ph.d. | C176: 1 | D176: 0.9998128859 | F176: 0 | G176: 0 | I176: 1 | J176: 0.9998128859
A177: MA. Samf. | C177: 0 | D177: 0 | F177: 0 | G177: 0 | I177: 0 | J177: 0
A178: Øvrige Mag. | C178: 0 | D178: 0 | F178: 1 | G178: 0.9998128859 | I178: 1 | J178: 0.9998128859
A179: Agronom | C179: 0 | D179: 0 | F179: 0 | G179: 0 | I179: 0 | J179: 0
A180: Landsk. Arkt. | C180: 0 | D180: 0 | F180: 0 | G180: 0 | I180: 0 | J180: 0
A181: Hortonom | C181: 0 | D181: 0 | F181: 0 | G181: 0 | I181: 0 | J181: 0
A182: Forstkand. | C182: 0 | D182: 0 | F182: 0 | G182: 0 | I182: 0 | J182: 0
A183: Jordbrugsakad. | C183: 0 | D183: 0 | F183: 0 | G183: 0 | I183: 0 | J183: 0
A184: Mejeriing. | C184: 0 | D184: 0 | F184: 0 | G184: 0 | I184: 0 | J184: 0
A185: Levn.m.kand. | C185: 0 | D185: 0 | F185: 0 | G185: 0 | I185: 0 | J185: 0
A186: Dyrlæge | C186: 0 | D186: 0 | F186: 0 | G186: 0 | I186: 0 | J186: 0
A187: Farmaceut | C187: 0 | D187: 0 | F187: 0 | G187: 0 | I187: 0 | J187: 0
A188: Læge | C188: 0 | D188: 0 | F188: 0 | G188: 0 | I188: 0 | J188: 0
A189: Tandlæge | C189: 0 | D189: 0 | F189: 0 | G189: 0 | I189: 0 | J189: 0
A190: Arkitekt | C190: 0 | D190: 0 | F190: 1 | G190: 0.9000187114 | I190: 1 | J190: 0.9000187114
A191: Landinspek. | C191: 0 | D191: 0 | F191: 0 | G191: 0 | I191: 0 | J191: 0
A192: Bibliotekar | C192: 0 | D192: 0 | F192: 0 | G192: 0 | I192: 0 | J192: 0
A193: Musikudd. | C193: 0 | D193: 0 | F193: 0 | G193: 0 | I193: 0 | J193: 0
A194: Teolog | C194: 0 | D194: 0 | F194: 1 | G194: 0.9075032745 | I194: 1 | J194: 0.9075032745
A195: Psykolog | C195: 0 | D195: 0 | F195: 2 | G195: 1.999625772 | I195: 2 | J195: 1.999625772
A196: Jurist | C196: 0 | D196: 0 | F196: 0 | G196: 0 | I196: 0 | J196: 0
A197: Økonom | C197: 0 | D197: 0 | F197: 0 | G197: 0 | I197: 0 | J197: 0
A198: Samf. Adm. | C198: 1 | D198: 0.2182997568 | F198: 0 | G198: 0 | I198: 1 | J198: 0.2182997568
A199: Cand. Merc. | C199: 1 | D199: 0.99357575 | F199: 0 | G199: 0 | I199: 1 | J199: 0.99357575
A200: HA | C200: 0 | D200: 0 | F200: 0 | G200: 0 | I200: 0 | J200: 0
A201: HD | C201: 0 | D201: 0 | F201: 0 | G201: 0 | I201: 0 | J201: 0
A202: Komm. og Sprog | C202: 0 | D202: 0 | F202: 0 | G202: 0 | I202: 0 | J202: 0
A203: Bygningskonst. | C203: 2 | D203: 1.29832221 | F203: 0 | G203: 0 | I203: 2 | J203: 1.29832221
A204: Cand. IT. | C204: 0 | D204: 0 | F204: 0 | G204: 0 | I204: 0 | J204: 0
A205: Bac. Samf. | C205: 0 | D205: 0 | F205: 0 | G205: 0 | I205: 0 | J205: 0
A206: Bac. Hum. | C206: 1 | D206: 0.9998128859 | F206: 2 | G206: 1.949728685 | I206: 3 | J206: 2.949541571
A207: Bac. Nat. | C207: 0 | D207: 0 | F207: 0 | G207: 0 | I207: 0 | J207: 0
A208: Andre | C208: 2 | D208: 1.949728685 | F208: 2 | G208: 1.999625772 | I208: 4 | J208: 3.949354456
A210: Total | C210: 13 | D210: 10.4257469 | F210: 14 | G210: 12.00149691 | I210: 27 | J210: 22.42724381
A212: Ingeniører i alt | C212: 1 | D212: 0.9998128859 | F212: 0 | G212: 0 | I212: 1 | J212: 0.9998128859
A213: Magistre i alt | C213: 4 | D213: 3.729183559 | F213: 5 | G213: 3.337491424 | I213: 9 | J213: 7.066674983
A214: DJØF'ere i alt | C214: 2 | D214: 1.211875507 | F214: 0 | G214: 0 | I214: 2 | J214: 1.211875507
A219: Favrskov
C221: Mænd | F221: Kvinder | I221: I alt
C222: Ledigheds- berørte | D222: Gns. brutto- ledighed | F222: Ledigheds- berørte | G222: Gns. brutto- ledighed | I222: Ledigheds- berørte | J222: Gns. brutto- ledighed
A225: Civ. ing. | C225: 0 | D225: 0 | F225: 3 | G225: 2.566581426 | I225: 3 | J225: 2.566581426
A226: Diplom ing. | C226: 5 | D226: 4.124617975 | F226: 2 | G226: 1.812511695 | I226: 7 | J226: 5.93712967
A227: Cand. Scient. Tek. | C227: 3 | D227: 2.676355018 | F227: 3 | G227: 2.260961766 | I227: 6 | J227: 4.937316784
A228: MA. Hum. | C228: 5 | D228: 4.19322647 | F228: 22 | G228: 19.14738352 | I228: 27 | J228: 23.34060999
A229: MA. Nat. | C229: 0 | D229: 0 | F229: 2 | G229: 1.750140336 | I229: 2 | J229: 1.750140336
A230: MA. Ph.d. | C230: 1 | D230: 0.9998128859 | F230: 2 | G230: 1.999625772 | I230: 3 | J230: 2.999438658
A231: MA. Samf. | C231: 1 | D231: 0.9998128859 | F231: 1 | G231: 0.2151811888 | I231: 2 | J231: 1.214994075
A232: Øvrige Mag. | C232: 0 | D232: 0 | F232: 2 | G232: 1.850558224 | I232: 2 | J232: 1.850558224
A233: Agronom | C233: 0 | D233: 0 | F233: 0 | G233: 0 | I233: 0 | J233: 0
A234: Landsk. Arkt. | C234: 0 | D234: 0 | F234: 0 | G234: 0 | I234: 0 | J234: 0
A235: Hortonom | C235: 0 | D235: 0 | F235: 0 | G235: 0 | I235: 0 | J235: 0
A236: Forstkand. | C236: 0 | D236: 0 | F236: 0 | G236: 0 | I236: 0 | J236: 0
A237: Jordbrugsakad. | C237: 0 | D237: 0 | F237: 0 | G237: 0 | I237: 0 | J237: 0
A238: Mejeriing. | C238: 0 | D238: 0 | F238: 0 | G238: 0 | I238: 0 | J238: 0
A239: Levn.m.kand. | C239: 0 | D239: 0 | F239: 0 | G239: 0 | I239: 0 | J239: 0
A240: Dyrlæge | C240: 0 | D240: 0 | F240: 0 | G240: 0 | I240: 0 | J240: 0
... 341 more rows

Sheet Tabel 3 ØJ
A1: Tabel 3. Ledige i procent af forsikrede
A3: Østjylland
C5: Mænd | F5: Kvinder | I5: I alt
C6: Ledigheds- berørte | D6: Gns. brutto- ledighed | F6: Ledigheds- berørte | G6: Gns. brutto- ledighed | I6: Ledigheds- berørte | J6: Gns. brutto- ledighed
A9: Civ. ing. | C9: =IF(OR('Tabel 1 ØJ'!C7<5,'Tabel 2 ØJ'!C9<0.5),"-",IFERROR('Tabel 2 ØJ'!C9/'Tabel 1 ØJ'!C7*100,"-")) -> 2.79698303 | D9: =IF(OR('Tabel 1 ØJ'!C7<5,'Tabel 2 ØJ'!D9<0.5),"-",IFERROR('Tabel 2 ØJ'!D9/'Tabel 1 ØJ'!C7*100,"-")) -> 2.450300592 | F9: =IF(OR('Tabel 1 ØJ'!E7<5,'Tabel 2 ØJ'!F9<0.5),"-",IFERROR('Tabel 2 ØJ'!F9/'Tabel 1 ØJ'!E7*100,"-")) -> 4.966571156 | G9: =IF(OR('Tabel 1 ØJ'!E7<5,'Tabel 2 ØJ'!G9<0.5),"-",IFERROR('Tabel 2 ØJ'!G9/'Tabel 1 ØJ'!E7*100,"-")) -> 4.360335843 | I9: =IF(OR('Tabel 1 ØJ'!G7<5,'Tabel 2 ØJ'!I9<0.5),"-",IFERROR('Tabel 2 ØJ'!I9/'Tabel 1 ØJ'!G7*100,"-")) -> 3.334121542 | J9: =IF(OR('Tabel 1 ØJ'!G7<5,'Tabel 2 ØJ'!J9<0.5),"-",IFERROR('Tabel 2 ØJ'!J9/'Tabel 1 ØJ'!G7*100,"-")) -> 2.923179974
A10: Diplom ing. | C10: =IF(OR('Tabel 1 ØJ'!C8<5,'Tabel 2 ØJ'!C10<0.5),"-",IFERROR('Tabel 2 ØJ'!C10/'Tabel 1 ØJ'!C8*100,"-")) -> 3.423950447 | D10: =IF(OR('Tabel 1 ØJ'!C8<5,'Tabel 2 ØJ'!D10<0.5),"-",IFERROR('Tabel 2 ØJ'!D10/'Tabel 1 ØJ'!C8*100,"-")) -> 3.04833042 | F10: =IF(OR('Tabel 1 ØJ'!E8<5,'Tabel 2 ØJ'!F10<0.5),"-",IFERROR('Tabel 2 ØJ'!F10/'Tabel 1 ØJ'!E8*100,"-")) -> 4.637917006 | G10: =IF(OR('Tabel 1 ØJ'!E8<5,'Tabel 2 ØJ'!G10<0.5),"-",IFERROR('Tabel 2 ØJ'!G10/'Tabel 1 ØJ'!E8*100,"-")) -> 4.17700332 | I10: =IF(OR('Tabel 1 ØJ'!G8<5,'Tabel 2 ØJ'!I10<0.5),"-",IFERROR('Tabel 2 ØJ'!I10/'Tabel 1 ØJ'!G8*100,"-")) -> 3.635847181 | J10: =IF(OR('Tabel 1 ØJ'!G8<5,'Tabel 2 ØJ'!J10<0.5),"-",IFERROR('Tabel 2 ØJ'!J10/'Tabel 1 ØJ'!G8*100,"-")) -> 3.245339225
A11: Cand. Scient. Tek. | C11: =IF(OR('Tabel 1 ØJ'!C9<5,'Tabel 2 ØJ'!C11<0.5),"-",IFERROR('Tabel 2 ØJ'!C11/'Tabel 1 ØJ'!C9*100,"-")) -> 7.620099393 | D11: =IF(OR('Tabel 1 ØJ'!C9<5,'Tabel 2 ØJ'!D11<0.5),"-",IFERROR('Tabel 2 ØJ'!D11/'Tabel 1 ØJ'!C9*100,"-")) -> 6.515516744 | F11: =IF(OR('Tabel 1 ØJ'!E9<5,'Tabel 2 ØJ'!F11<0.5),"-",IFERROR('Tabel 2 ØJ'!F11/'Tabel 1 ØJ'!E9*100,"-")) -> 9.166666667 | G11: =IF(OR('Tabel 1 ØJ'!E9<5,'Tabel 2 ØJ'!G11<0.5),"-",IFERROR('Tabel 2 ØJ'!G11/'Tabel 1 ØJ'!E9*100,"-")) -> 7.833634795 | I11: =IF(OR('Tabel 1 ØJ'!G9<5,'Tabel 2 ØJ'!I11<0.5),"-",IFERROR('Tabel 2 ØJ'!I11/'Tabel 1 ØJ'!G9*100,"-")) -> 8.23646629 | J11: =IF(OR('Tabel 1 ØJ'!G9<5,'Tabel 2 ØJ'!J11<0.5),"-",IFERROR('Tabel 2 ØJ'!J11/'Tabel 1 ØJ'!G9*100,"-")) -> 7.040837787
A12: MA. Hum. | C12: =IF(OR('Tabel 1 ØJ'!C10<5,'Tabel 2 ØJ'!C12<0.5),"-",IFERROR('Tabel 2 ØJ'!C12/'Tabel 1 ØJ'!C10*100,"-")) -> 14.8856393 | D12: =IF(OR('Tabel 1 ØJ'!C10<5,'Tabel 2 ØJ'!D12<0.5),"-",IFERROR('Tabel 2 ØJ'!D12/'Tabel 1 ØJ'!C10*100,"-")) -> 12.90034748 | F12: =IF(OR('Tabel 1 ØJ'!E10<5,'Tabel 2 ØJ'!F12<0.5),"-",IFERROR('Tabel 2 ØJ'!F12/'Tabel 1 ØJ'!E10*100,"-")) -> 13.72444444 | G12: =IF(OR('Tabel 1 ØJ'!E10<5,'Tabel 2 ØJ'!G12<0.5),"-",IFERROR('Tabel 2 ØJ'!G12/'Tabel 1 ØJ'!E10*100,"-")) -> 11.86872076 | I12: =IF(OR('Tabel 1 ØJ'!G10<5,'Tabel 2 ØJ'!I12<0.5),"-",IFERROR('Tabel 2 ØJ'!I12/'Tabel 1 ØJ'!G10*100,"-")) -> 14.09792571 | J12: =IF(OR('Tabel 1 ØJ'!G10<5,'Tabel 2 ØJ'!J12<0.5),"-",IFERROR('Tabel 2 ØJ'!J12/'Tabel 1 ØJ'!G10*100,"-")) -> 12.20052834
A13: MA. Nat. | C13: =IF(OR('Tabel 1 ØJ'!C11<5,'Tabel 2 ØJ'!C13<0.5),"-",IFERROR('Tabel 2 ØJ'!C13/'Tabel 1 ØJ'!C11*100,"-")) -> 3.6159601 | D13: =IF(OR('Tabel 1 ØJ'!C11<5,'Tabel 2 ØJ'!D13<0.5),"-",IFERROR('Tabel 2 ØJ'!D13/'Tabel 1 ØJ'!C11*100,"-")) -> 3.286278472 | F13: =IF(OR('Tabel 1 ØJ'!E11<5,'Tabel 2 ØJ'!F13<0.5),"-",IFERROR('Tabel 2 ØJ'!F13/'Tabel 1 ØJ'!E11*100,"-")) -> 4.594180704 | G13: =IF(OR('Tabel 1 ØJ'!E11<5,'Tabel 2 ØJ'!G13<0.5),"-",IFERROR('Tabel 2 ØJ'!G13/'Tabel 1 ØJ'!E11*100,"-")) -> 3.794241758 | I13: =IF(OR('Tabel 1 ØJ'!G11<5,'Tabel 2 ØJ'!I13<0.5),"-",IFERROR('Tabel 2 ØJ'!I13/'Tabel 1 ØJ'!G11*100,"-")) -> 4.054982818 | J13: =IF(OR('Tabel 1 ØJ'!G11<5,'Tabel 2 ØJ'!J13<0.5),"-",IFERROR('Tabel 2 ØJ'!J13/'Tabel 1 ØJ'!G11*100,"-")) -> 3.514250998
A14: MA. Ph.d. | C14: =IF(OR('Tabel 1 ØJ'!C12<5,'Tabel 2 ØJ'!C14<0.5),"-",IFERROR('Tabel 2 ØJ'!C14/'Tabel 1 ØJ'!C12*100,"-")) -> 5.135951662 | D14: =IF(OR('Tabel 1 ØJ'!C12<5,'Tabel 2 ØJ'!D14<0.5),"-",IFERROR('Tabel 2 ØJ'!D14/'Tabel 1 ØJ'!C12*100,"-")) -> 4.704609432 | F14: =IF(OR('Tabel 1 ØJ'!E12<5,'Tabel 2 ØJ'!F14<0.5),"-",IFERROR('Tabel 2 ØJ'!F14/'Tabel 1 ØJ'!E12*100,"-")) -> 6.299212598 | G14: =IF(OR('Tabel 1 ØJ'!E12<5,'Tabel 2 ØJ'!G14<0.5),"-",IFERROR('Tabel 2 ØJ'!G14/'Tabel 1 ØJ'!E12*100,"-")) -> 5.703541564 | I14: =IF(OR('Tabel 1 ØJ'!G12<5,'Tabel 2 ØJ'!I14<0.5),"-",IFERROR('Tabel 2 ØJ'!I14/'Tabel 1 ØJ'!G12*100,"-")) -> 5.641025641 | J14: =IF(OR('Tabel 1 ØJ'!G12<5,'Tabel 2 ØJ'!J14<0.5),"-",IFERROR('Tabel 2 ØJ'!J14/'Tabel 1 ØJ'!G12*100,"-")) -> 5.13833381
A15: MA. Samf. | C15: =IF(OR('Tabel 1 ØJ'!C13<5,'Tabel 2 ØJ'!C15<0.5),"-",IFERROR('Tabel 2 ØJ'!C15/'Tabel 1 ØJ'!C13*100,"-")) -> 27.5862069 | D15: =IF(OR('Tabel 1 ØJ'!C13<5,'Tabel 2 ØJ'!D15<0.5),"-",IFERROR('Tabel 2 ØJ'!D15/'Tabel 1 ØJ'!C13*100,"-")) -> 24.07140158 | F15: =IF(OR('Tabel 1 ØJ'!E13<5,'Tabel 2 ØJ'!F15<0.5),"-",IFERROR('Tabel 2 ØJ'!F15/'Tabel 1 ØJ'!E13*100,"-")) -> 15.15679443 | G15: =IF(OR('Tabel 1 ØJ'!E13<5,'Tabel 2 ØJ'!G15<0.5),"-",IFERROR('Tabel 2 ØJ'!G15/'Tabel 1 ØJ'!E13*100,"-")) -> 13.00866614 | I15: =IF(OR('Tabel 1 ØJ'!G13<5,'Tabel 2 ØJ'!I15<0.5),"-",IFERROR('Tabel 2 ØJ'!I15/'Tabel 1 ØJ'!G13*100,"-")) -> 18.04812834 | J15: =IF(OR('Tabel 1 ØJ'!G13<5,'Tabel 2 ØJ'!J15<0.5),"-",IFERROR('Tabel 2 ØJ'!J15/'Tabel 1 ØJ'!G13*100,"-")) -> 15.58208321
A16: Øvrige Mag. | C16: =IF(OR('Tabel 1 ØJ'!C14<5,'Tabel 2 ØJ'!C16<0.5),"-",IFERROR('Tabel 2 ØJ'!C16/'Tabel 1 ØJ'!C14*100,"-")) -> 10.95238095 | D16: =IF(OR('Tabel 1 ØJ'!C14<5,'Tabel 2 ØJ'!D16<0.5),"-",IFERROR('Tabel 2 ØJ'!D16/'Tabel 1 ØJ'!C14*100,"-")) -> 9.468269314 | F16: =IF(OR('Tabel 1 ØJ'!E14<5,'Tabel 2 ØJ'!F16<0.5),"-",IFERROR('Tabel 2 ØJ'!F16/'Tabel 1 ØJ'!E14*100,"-")) -> 13.93442623 | G16: =IF(OR('Tabel 1 ØJ'!E14<5,'Tabel 2 ØJ'!G16<0.5),"-",IFERROR('Tabel 2 ØJ'!G16/'Tabel 1 ØJ'!E14*100,"-")) -> 12.14690739 | I16: =IF(OR('Tabel 1 ØJ'!G14<5,'Tabel 2 ØJ'!I16<0.5),"-",IFERROR('Tabel 2 ØJ'!I16/'Tabel 1 ØJ'!G14*100,"-")) -> 12.84722222 | J16: =IF(OR('Tabel 1 ØJ'!G14<5,'Tabel 2 ØJ'!J16<0.5),"-",IFERROR('Tabel 2 ØJ'!J16/'Tabel 1 ØJ'!G14*100,"-")) -> 11.17032059
A17: Agronom | C17: =IF(OR('Tabel 1 ØJ'!C15<5,'Tabel 2 ØJ'!C17<0.5),"-",IFERROR('Tabel 2 ØJ'!C17/'Tabel 1 ØJ'!C15*100,"-")) -> 1.612903226 | D17: =IF(OR('Tabel 1 ØJ'!C15<5,'Tabel 2 ØJ'!D17<0.5),"-",IFERROR('Tabel 2 ØJ'!D17/'Tabel 1 ØJ'!C15*100,"-")) -> 1.595834935 | F17: =IF(OR('Tabel 1 ØJ'!E15<5,'Tabel 2 ØJ'!F17<0.5),"-",IFERROR('Tabel 2 ØJ'!F17/'Tabel 1 ØJ'!E15*100,"-")) -> 5.128205128 | G17: =IF(OR('Tabel 1 ØJ'!E15<5,'Tabel 2 ØJ'!G17<0.5),"-",IFERROR('Tabel 2 ØJ'!G17/'Tabel 1 ØJ'!E15*100,"-")) -> 4.446758049 | I17: =IF(OR('Tabel 1 ØJ'!G15<5,'Tabel 2 ØJ'!I17<0.5),"-",IFERROR('Tabel 2 ØJ'!I17/'Tabel 1 ØJ'!G15*100,"-")) -> 3.216374269 | J17: =IF(OR('Tabel 1 ØJ'!G15<5,'Tabel 2 ØJ'!J17<0.5),"-",IFERROR('Tabel 2 ØJ'!J17/'Tabel 1 ØJ'!G15*100,"-")) -> 2.896256004
A18: Landsk. Arkt. | C18: =IF(OR('Tabel 1 ØJ'!C16<5,'Tabel 2 ØJ'!C18<0.5),"-",IFERROR('Tabel 2 ØJ'!C18/'Tabel 1 ØJ'!C16*100,"-")) -> - | D18: =IF(OR('Tabel 1 ØJ'!C16<5,'Tabel 2 ØJ'!D18<0.5),"-",IFERROR('Tabel 2 ØJ'!D18/'Tabel 1 ØJ'!C16*100,"-")) -> - | F18: =IF(OR('Tabel 1 ØJ'!E16<5,'Tabel 2 ØJ'!F18<0.5),"-",IFERROR('Tabel 2 ØJ'!F18/'Tabel 1 ØJ'!E16*100,"-")) -> 3.448275862 | G18: =IF(OR('Tabel 1 ØJ'!E16<5,'Tabel 2 ØJ'!G18<0.5),"-",IFERROR('Tabel 2 ØJ'!G18/'Tabel 1 ØJ'!E16*100,"-")) -> 3.447630641 | I18: =IF(OR('Tabel 1 ØJ'!G16<5,'Tabel 2 ØJ'!I18<0.5),"-",IFERROR('Tabel 2 ØJ'!I18/'Tabel 1 ØJ'!G16*100,"-")) -> 2.5 | J18: =IF(OR('Tabel 1 ØJ'!G16<5,'Tabel 2 ØJ'!J18<0.5),"-",IFERROR('Tabel 2 ØJ'!J18/'Tabel 1 ØJ'!G16*100,"-")) -> 2.499532215
A19: Hortonom | C19: =IF(OR('Tabel 1 ØJ'!C17<5,'Tabel 2 ØJ'!C19<0.5),"-",IFERROR('Tabel 2 ØJ'!C19/'Tabel 1 ØJ'!C17*100,"-")) -> - | D19: =IF(OR('Tabel 1 ØJ'!C17<5,'Tabel 2 ØJ'!D19<0.5),"-",IFERROR('Tabel 2 ØJ'!D19/'Tabel 1 ØJ'!C17*100,"-")) -> - | F19: =IF(OR('Tabel 1 ØJ'!E17<5,'Tabel 2 ØJ'!F19<0.5),"-",IFERROR('Tabel 2 ØJ'!F19/'Tabel 1 ØJ'!E17*100,"-")) -> - | G19: =IF(OR('Tabel 1 ØJ'!E17<5,'Tabel 2 ØJ'!G19<0.5),"-",IFERROR('Tabel 2 ØJ'!G19/'Tabel 1 ØJ'!E17*100,"-")) -> - | I19: =IF(OR('Tabel 1 ØJ'!G17<5,'Tabel 2 ØJ'!I19<0.5),"-",IFERROR('Tabel 2 ØJ'!I19/'Tabel 1 ØJ'!G17*100,"-")) -> - | J19: =IF(OR('Tabel 1 ØJ'!G17<5,'Tabel 2 ØJ'!J19<0.5),"-",IFERROR('Tabel 2 ØJ'!J19/'Tabel 1 ØJ'!G17*100,"-")) -> -
A20: Forstkand. | C20: =IF(OR('Tabel 1 ØJ'!C18<5,'Tabel 2 ØJ'!C20<0.5),"-",IFERROR('Tabel 2 ØJ'!C20/'Tabel 1 ØJ'!C18*100,"-")) -> 4.761904762 | D20: =IF(OR('Tabel 1 ØJ'!C18<5,'Tabel 2 ØJ'!D20<0.5),"-",IFERROR('Tabel 2 ØJ'!D20/'Tabel 1 ØJ'!C18*100,"-")) -> 4.761013742 | F20: =IF(OR('Tabel 1 ØJ'!E18<5,'Tabel 2 ØJ'!F20<0.5),"-",IFERROR('Tabel 2 ØJ'!F20/'Tabel 1 ØJ'!E18*100,"-")) -> - | G20: =IF(OR('Tabel 1 ØJ'!E18<5,'Tabel 2 ØJ'!G20<0.5),"-",IFERROR('Tabel 2 ØJ'!G20/'Tabel 1 ØJ'!E18*100,"-")) -> - | I20: =IF(OR('Tabel 1 ØJ'!G18<5,'Tabel 2 ØJ'!I20<0.5),"-",IFERROR('Tabel 2 ØJ'!I20/'Tabel 1 ØJ'!G18*100,"-")) -> 3.703703704 | J20: =IF(OR('Tabel 1 ØJ'!G18<5,'Tabel 2 ØJ'!J20<0.5),"-",IFERROR('Tabel 2 ØJ'!J20/'Tabel 1 ØJ'!G18*100,"-")) -> 3.703010689
A21: Jordbrugsakad. | C21: =IF(OR('Tabel 1 ØJ'!C19<5,'Tabel 2 ØJ'!C21<0.5),"-",IFERROR('Tabel 2 ØJ'!C21/'Tabel 1 ØJ'!C19*100,"-")) -> 1.992031873 | D21: =IF(OR('Tabel 1 ØJ'!C19<5,'Tabel 2 ØJ'!D21<0.5),"-",IFERROR('Tabel 2 ØJ'!D21/'Tabel 1 ØJ'!C19*100,"-")) -> 1.979234562 | F21: =IF(OR('Tabel 1 ØJ'!E19<5,'Tabel 2 ØJ'!F21<0.5),"-",IFERROR('Tabel 2 ØJ'!F21/'Tabel 1 ØJ'!E19*100,"-")) -> 4.225352113 | G21: =IF(OR('Tabel 1 ØJ'!E19<5,'Tabel 2 ØJ'!G21<0.5),"-",IFERROR('Tabel 2 ØJ'!G21/'Tabel 1 ØJ'!E19*100,"-")) -> 3.726176264 | I21: =IF(OR('Tabel 1 ØJ'!G19<5,'Tabel 2 ØJ'!I21<0.5),"-",IFERROR('Tabel 2 ØJ'!I21/'Tabel 1 ØJ'!G19*100,"-")) -> 3.017241379 | J21: =IF(OR('Tabel 1 ØJ'!G19<5,'Tabel 2 ØJ'!J21<0.5),"-",IFERROR('Tabel 2 ØJ'!J21/'Tabel 1 ØJ'!G19*100,"-")) -> 2.781171162
A22: Mejeriing. | C22: =IF(OR('Tabel 1 ØJ'!C20<5,'Tabel 2 ØJ'!C22<0.5),"-",IFERROR('Tabel 2 ØJ'!C22/'Tabel 1 ØJ'!C20*100,"-")) -> 5.357142857 | D22: =IF(OR('Tabel 1 ØJ'!C20<5,'Tabel 2 ØJ'!D22<0.5),"-",IFERROR('Tabel 2 ØJ'!D22/'Tabel 1 ØJ'!C20*100,"-")) -> 3.693275476 | F22: =IF(OR('Tabel 1 ØJ'!E20<5,'Tabel 2 ØJ'!F22<0.5),"-",IFERROR('Tabel 2 ØJ'!F22/'Tabel 1 ØJ'!E20*100,"-")) -> - | G22: =IF(OR('Tabel 1 ØJ'!E20<5,'Tabel 2 ØJ'!G22<0.5),"-",IFERROR('Tabel 2 ØJ'!G22/'Tabel 1 ØJ'!E20*100,"-")) -> - | I22: =IF(OR('Tabel 1 ØJ'!G20<5,'Tabel 2 ØJ'!I22<0.5),"-",IFERROR('Tabel 2 ØJ'!I22/'Tabel 1 ØJ'!G20*100,"-")) -> 3.571428571 | J22: =IF(OR('Tabel 1 ØJ'!G20<5,'Tabel 2 ØJ'!J22<0.5),"-",IFERROR('Tabel 2 ØJ'!J22/'Tabel 1 ØJ'!G20*100,"-")) -> 2.462183651
A23: Levn.m.kand. | C23: =IF(OR('Tabel 1 ØJ'!C21<5,'Tabel 2 ØJ'!C23<0.5),"-",IFERROR('Tabel 2 ØJ'!C23/'Tabel 1 ØJ'!C21*100,"-")) -> - | D23: =IF(OR('Tabel 1 ØJ'!C21<5,'Tabel 2 ØJ'!D23<0.5),"-",IFERROR('Tabel 2 ØJ'!D23/'Tabel 1 ØJ'!C21*100,"-")) -> - | F23: =IF(OR('Tabel 1 ØJ'!E21<5,'Tabel 2 ØJ'!F23<0.5),"-",IFERROR('Tabel 2 ØJ'!F23/'Tabel 1 ØJ'!E21*100,"-")) -> 3.846153846 | G23: =IF(OR('Tabel 1 ØJ'!E21<5,'Tabel 2 ØJ'!G23<0.5),"-",IFERROR('Tabel 2 ØJ'!G23/'Tabel 1 ØJ'!E21*100,"-")) -> - | I23: =IF(OR('Tabel 1 ØJ'!G21<5,'Tabel 2 ØJ'!I23<0.5),"-",IFERROR('Tabel 2 ØJ'!I23/'Tabel 1 ØJ'!G21*100,"-")) -> 3.571428571 | J23: =IF(OR('Tabel 1 ØJ'!G21<5,'Tabel 2 ØJ'!J23<0.5),"-",IFERROR('Tabel 2 ØJ'!J23/'Tabel 1 ØJ'!G21*100,"-")) -> -
A24: Dyrlæge | C24: =IF(OR('Tabel 1 ØJ'!C22<5,'Tabel 2 ØJ'!C24<0.5),"-",IFERROR('Tabel 2 ØJ'!C24/'Tabel 1 ØJ'!C22*100,"-")) -> - | D24: =IF(OR('Tabel 1 ØJ'!C22<5,'Tabel 2 ØJ'!D24<0.5),"-",IFERROR('Tabel 2 ØJ'!D24/'Tabel 1 ØJ'!C22*100,"-")) -> - | F24: =IF(OR('Tabel 1 ØJ'!E22<5,'Tabel 2 ØJ'!F24<0.5),"-",IFERROR('Tabel 2 ØJ'!F24/'Tabel 1 ØJ'!E22*100,"-")) -> - | G24: =IF(OR('Tabel 1 ØJ'!E22<5,'Tabel 2 ØJ'!G24<0.5),"-",IFERROR('Tabel 2 ØJ'!G24/'Tabel 1 ØJ'!E22*100,"-")) -> - | I24: =IF(OR('Tabel 1 ØJ'!G22<5,'Tabel 2 ØJ'!I24<0.5),"-",IFERROR('Tabel 2 ØJ'!I24/'Tabel 1 ØJ'!G22*100,"-")) -> - | J24: =IF(OR('Tabel 1 ØJ'!G22<5,'Tabel 2 ØJ'!J24<0.5),"-",IFERROR('Tabel 2 ØJ'!J24/'Tabel 1 ØJ'!G22*100,"-")) -> -
A25: Farmaceut | C25: =IF(OR('Tabel 1 ØJ'!C23<5,'Tabel 2 ØJ'!C25<0.5),"-",IFERROR('Tabel 2 ØJ'!C25/'Tabel 1 ØJ'!C23*100,"-")) -> 5.633802817 | D25: =IF(OR('Tabel 1 ØJ'!C23<5,'Tabel 2 ØJ'!D25<0.5),"-",IFERROR('Tabel 2 ØJ'!D25/'Tabel 1 ØJ'!C23*100,"-")) -> 5.567741884 | F25: =IF(OR('Tabel 1 ØJ'!E23<5,'Tabel 2 ØJ'!F25<0.5),"-",IFERROR('Tabel 2 ØJ'!F25/'Tabel 1 ØJ'!E23*100,"-")) -> 4.6875 | G25: =IF(OR('Tabel 1 ØJ'!E23<5,'Tabel 2 ØJ'!G25<0.5),"-",IFERROR('Tabel 2 ØJ'!G25/'Tabel 1 ØJ'!E23*100,"-")) -> 3.959606749 | I25: =IF(OR('Tabel 1 ØJ'!G23<5,'Tabel 2 ØJ'!I25<0.5),"-",IFERROR('Tabel 2 ØJ'!I25/'Tabel 1 ØJ'!G23*100,"-")) -> 4.892966361 | J25: =IF(OR('Tabel 1 ØJ'!G23<5,'Tabel 2 ØJ'!J25<0.5),"-",IFERROR('Tabel 2 ØJ'!J25/'Tabel 1 ØJ'!G23*100,"-")) -> 4.308773705
A26: Læge | C26: =IF(OR('Tabel 1 ØJ'!C24<5,'Tabel 2 ØJ'!C26<0.5),"-",IFERROR('Tabel 2 ØJ'!C26/'Tabel 1 ØJ'!C24*100,"-")) -> 1.736972705 | D26: =IF(OR('Tabel 1 ØJ'!C24<5,'Tabel 2 ØJ'!D26<0.5),"-",IFERROR('Tabel 2 ØJ'!D26/'Tabel 1 ØJ'!C24*100,"-")) -> 1.492346972 | F26: =IF(OR('Tabel 1 ØJ'!E24<5,'Tabel 2 ØJ'!F26<0.5),"-",IFERROR('Tabel 2 ØJ'!F26/'Tabel 1 ØJ'!E24*100,"-")) -> 2.125340599 | G26: =IF(OR('Tabel 1 ØJ'!E24<5,'Tabel 2 ØJ'!G26<0.5),"-",IFERROR('Tabel 2 ØJ'!G26/'Tabel 1 ØJ'!E24*100,"-")) -> 1.954075985 | I26: =IF(OR('Tabel 1 ØJ'!G24<5,'Tabel 2 ØJ'!I26<0.5),"-",IFERROR('Tabel 2 ØJ'!I26/'Tabel 1 ØJ'!G24*100,"-")) -> 2.0068156 | J26: =IF(OR('Tabel 1 ØJ'!G24<5,'Tabel 2 ØJ'!J26<0.5),"-",IFERROR('Tabel 2 ØJ'!J26/'Tabel 1 ØJ'!G24*100,"-")) -> 1.813162095
A27: Tandlæge | C27: =IF(OR('Tabel 1 ØJ'!C25<5,'Tabel 2 ØJ'!C27<0.5),"-",IFERROR('Tabel 2 ØJ'!C27/'Tabel 1 ØJ'!C25*100,"-")) -> 1.428571429 | D27: =IF(OR('Tabel 1 ØJ'!C25<5,'Tabel 2 ØJ'!D27<0.5),"-",IFERROR('Tabel 2 ØJ'!D27/'Tabel 1 ØJ'!C25*100,"-")) -> 1.428304123 | F27: =IF(OR('Tabel 1 ØJ'!E25<5,'Tabel 2 ØJ'!F27<0.5),"-",IFERROR('Tabel 2 ØJ'!F27/'Tabel 1 ØJ'!E25*100,"-")) -> 1.941747573 | G27: =IF(OR('Tabel 1 ØJ'!E25<5,'Tabel 2 ØJ'!G27<0.5),"-",IFERROR('Tabel 2 ØJ'!G27/'Tabel 1 ØJ'!E25*100,"-")) -> 0.8176400737 | I27: =IF(OR('Tabel 1 ØJ'!G25<5,'Tabel 2 ØJ'!I27<0.5),"-",IFERROR('Tabel 2 ØJ'!I27/'Tabel 1 ØJ'!G25*100,"-")) -> 1.867219917 | J27: =IF(OR('Tabel 1 ØJ'!G25<5,'Tabel 2 ØJ'!J27<0.5),"-",IFERROR('Tabel 2 ØJ'!J27/'Tabel 1 ØJ'!G25*100,"-")) -> 0.9063257239
A28: Arkitekt | C28: =IF(OR('Tabel 1 ØJ'!C26<5,'Tabel 2 ØJ'!C28<0.5),"-",IFERROR('Tabel 2 ØJ'!C28/'Tabel 1 ØJ'!C26*100,"-")) -> 6.805555556 | D28: =IF(OR('Tabel 1 ØJ'!C26<5,'Tabel 2 ØJ'!D28<0.5),"-",IFERROR('Tabel 2 ØJ'!D28/'Tabel 1 ØJ'!C26*100,"-")) -> 6.101997963 | F28: =IF(OR('Tabel 1 ØJ'!E26<5,'Tabel 2 ØJ'!F28<0.5),"-",IFERROR('Tabel 2 ØJ'!F28/'Tabel 1 ØJ'!E26*100,"-")) -> 9.741784038 | G28: =IF(OR('Tabel 1 ØJ'!E26<5,'Tabel 2 ØJ'!G28<0.5),"-",IFERROR('Tabel 2 ØJ'!G28/'Tabel 1 ØJ'!E26*100,"-")) -> 8.613030812 | I28: =IF(OR('Tabel 1 ØJ'!G26<5,'Tabel 2 ØJ'!I28<0.5),"-",IFERROR('Tabel 2 ØJ'!I28/'Tabel 1 ØJ'!G26*100,"-")) -> 8.396946565 | J28: =IF(OR('Tabel 1 ØJ'!G26<5,'Tabel 2 ØJ'!J28<0.5),"-",IFERROR('Tabel 2 ØJ'!J28/'Tabel 1 ØJ'!G26*100,"-")) -> 7.46293943
A29: Landinspek. | C29: =IF(OR('Tabel 1 ØJ'!C27<5,'Tabel 2 ØJ'!C29<0.5),"-",IFERROR('Tabel 2 ØJ'!C29/'Tabel 1 ØJ'!C27*100,"-")) -> - | D29: =IF(OR('Tabel 1 ØJ'!C27<5,'Tabel 2 ØJ'!D29<0.5),"-",IFERROR('Tabel 2 ØJ'!D29/'Tabel 1 ØJ'!C27*100,"-")) -> - | F29: =IF(OR('Tabel 1 ØJ'!E27<5,'Tabel 2 ØJ'!F29<0.5),"-",IFERROR('Tabel 2 ØJ'!F29/'Tabel 1 ØJ'!E27*100,"-")) -> 2.631578947 | G29: =IF(OR('Tabel 1 ØJ'!E27<5,'Tabel 2 ØJ'!G29<0.5),"-",IFERROR('Tabel 2 ØJ'!G29/'Tabel 1 ØJ'!E27*100,"-")) -> - | I29: =IF(OR('Tabel 1 ØJ'!G27<5,'Tabel 2 ØJ'!I29<0.5),"-",IFERROR('Tabel 2 ØJ'!I29/'Tabel 1 ØJ'!G27*100,"-")) -> 0.7352941176 | J29: =IF(OR('Tabel 1 ØJ'!G27<5,'Tabel 2 ØJ'!J29<0.5),"-",IFERROR('Tabel 2 ØJ'!J29/'Tabel 1 ØJ'!G27*100,"-")) -> -
A30: Bibliotekar | C30: =IF(OR('Tabel 1 ØJ'!C28<5,'Tabel 2 ØJ'!C30<0.5),"-",IFERROR('Tabel 2 ØJ'!C30/'Tabel 1 ØJ'!C28*100,"-")) -> 4 | D30: =IF(OR('Tabel 1 ØJ'!C28<5,'Tabel 2 ØJ'!D30<0.5),"-",IFERROR('Tabel 2 ØJ'!D30/'Tabel 1 ØJ'!C28*100,"-")) -> 3.317324685 | F30: =IF(OR('Tabel 1 ØJ'!E28<5,'Tabel 2 ØJ'!F30<0.5),"-",IFERROR('Tabel 2 ØJ'!F30/'Tabel 1 ØJ'!E28*100,"-")) -> 5.734767025 | G30: =IF(OR('Tabel 1 ØJ'!E28<5,'Tabel 2 ØJ'!G30<0.5),"-",IFERROR('Tabel 2 ØJ'!G30/'Tabel 1 ØJ'!E28*100,"-")) -> 5.144854687 | I30: =IF(OR('Tabel 1 ØJ'!G28<5,'Tabel 2 ØJ'!I30<0.5),"-",IFERROR('Tabel 2 ØJ'!I30/'Tabel 1 ØJ'!G28*100,"-")) -> 5.367231638 | J30: =IF(OR('Tabel 1 ØJ'!G28<5,'Tabel 2 ØJ'!J30<0.5),"-",IFERROR('Tabel 2 ØJ'!J30/'Tabel 1 ØJ'!G28*100,"-")) -> 4.757666127
A31: Musikudd. | C31: =IF(OR('Tabel 1 ØJ'!C29<5,'Tabel 2 ØJ'!C31<0.5),"-",IFERROR('Tabel 2 ØJ'!C31/'Tabel 1 ØJ'!C29*100,"-")) -> 5.633802817 | D31: =IF(OR('Tabel 1 ØJ'!C29<5,'Tabel 2 ØJ'!D31<0.5),"-",IFERROR('Tabel 2 ØJ'!D31/'Tabel 1 ØJ'!C29*100,"-")) -> 4.604060463 | F31: =IF(OR('Tabel 1 ØJ'!E29<5,'Tabel 2 ØJ'!F31<0.5),"-",IFERROR('Tabel 2 ØJ'!F31/'Tabel 1 ØJ'!E29*100,"-")) -> 7.792207792 | G31: =IF(OR('Tabel 1 ØJ'!E29<5,'Tabel 2 ØJ'!G31<0.5),"-",IFERROR('Tabel 2 ØJ'!G31/'Tabel 1 ØJ'!E29*100,"-")) -> 5.875868035 | I31: =IF(OR('Tabel 1 ØJ'!G29<5,'Tabel 2 ØJ'!I31<0.5),"-",IFERROR('Tabel 2 ØJ'!I31/'Tabel 1 ØJ'!G29*100,"-")) -> 6.756756757 | J31: =IF(OR('Tabel 1 ØJ'!G29<5,'Tabel 2 ØJ'!J31<0.5),"-",IFERROR('Tabel 2 ØJ'!J31/'Tabel 1 ØJ'!G29*100,"-")) -> 5.265744132
A32: Teolog | C32: =IF(OR('Tabel 1 ØJ'!C30<5,'Tabel 2 ØJ'!C32<0.5),"-",IFERROR('Tabel 2 ØJ'!C32/'Tabel 1 ØJ'!C30*100,"-")) -> 9.523809524 | D32: =IF(OR('Tabel 1 ØJ'!C30<5,'Tabel 2 ØJ'!D32<0.5),"-",IFERROR('Tabel 2 ØJ'!D32/'Tabel 1 ØJ'!C30*100,"-")) -> 7.71820818 | F32: =IF(OR('Tabel 1 ØJ'!E30<5,'Tabel 2 ØJ'!F32<0.5),"-",IFERROR('Tabel 2 ØJ'!F32/'Tabel 1 ØJ'!E30*100,"-")) -> 5.853658537 | G32: =IF(OR('Tabel 1 ØJ'!E30<5,'Tabel 2 ØJ'!G32<0.5),"-",IFERROR('Tabel 2 ØJ'!G32/'Tabel 1 ØJ'!E30*100,"-")) -> 4.840625965 | I32: =IF(OR('Tabel 1 ØJ'!G30<5,'Tabel 2 ØJ'!I32<0.5),"-",IFERROR('Tabel 2 ØJ'!I32/'Tabel 1 ØJ'!G30*100,"-")) -> 7.250755287 | J32: =IF(OR('Tabel 1 ØJ'!G30<5,'Tabel 2 ØJ'!J32<0.5),"-",IFERROR('Tabel 2 ØJ'!J32/'Tabel 1 ØJ'!G30*100,"-")) -> 5.936019799
A33: Psykolog | C33: =IF(OR('Tabel 1 ØJ'!C31<5,'Tabel 2 ØJ'!C33<0.5),"-",IFERROR('Tabel 2 ØJ'!C33/'Tabel 1 ØJ'!C31*100,"-")) -> 5.714285714 | D33: =IF(OR('Tabel 1 ØJ'!C31<5,'Tabel 2 ØJ'!D33<0.5),"-",IFERROR('Tabel 2 ØJ'!D33/'Tabel 1 ØJ'!C31*100,"-")) -> 4.921397237 | F33: =IF(OR('Tabel 1 ØJ'!E31<5,'Tabel 2 ØJ'!F33<0.5),"-",IFERROR('Tabel 2 ØJ'!F33/'Tabel 1 ØJ'!E31*100,"-")) -> 6.78282514 | G33: =IF(OR('Tabel 1 ØJ'!E31<5,'Tabel 2 ØJ'!G33<0.5),"-",IFERROR('Tabel 2 ØJ'!G33/'Tabel 1 ØJ'!E31*100,"-")) -> 5.661627188 | I33: =IF(OR('Tabel 1 ØJ'!G31<5,'Tabel 2 ØJ'!I33<0.5),"-",IFERROR('Tabel 2 ØJ'!I33/'Tabel 1 ØJ'!G31*100,"-")) -> 6.607700312 | J33: =IF(OR('Tabel 1 ØJ'!G31<5,'Tabel 2 ØJ'!J33<0.5),"-",IFERROR('Tabel 2 ØJ'!J33/'Tabel 1 ØJ'!G31*100,"-")) -> 5.540309584
A34: Jurist | C34: =IF(OR('Tabel 1 ØJ'!C32<5,'Tabel 2 ØJ'!C34<0.5),"-",IFERROR('Tabel 2 ØJ'!C34/'Tabel 1 ØJ'!C32*100,"-")) -> 3.004807692 | D34: =IF(OR('Tabel 1 ØJ'!C32<5,'Tabel 2 ØJ'!D34<0.5),"-",IFERROR('Tabel 2 ØJ'!D34/'Tabel 1 ØJ'!C32*100,"-")) -> 2.79719053 | F34: =IF(OR('Tabel 1 ØJ'!E32<5,'Tabel 2 ØJ'!F34<0.5),"-",IFERROR('Tabel 2 ØJ'!F34/'Tabel 1 ØJ'!E32*100,"-")) -> 2.310231023 | G34: =IF(OR('Tabel 1 ØJ'!E32<5,'Tabel 2 ØJ'!G34<0.5),"-",IFERROR('Tabel 2 ØJ'!G34/'Tabel 1 ØJ'!E32*100,"-")) -> 2.053808574 | I34: =IF(OR('Tabel 1 ØJ'!G32<5,'Tabel 2 ØJ'!I34<0.5),"-",IFERROR('Tabel 2 ØJ'!I34/'Tabel 1 ØJ'!G32*100,"-")) -> 2.556455049 | J34: =IF(OR('Tabel 1 ØJ'!G32<5,'Tabel 2 ØJ'!J34<0.5),"-",IFERROR('Tabel 2 ØJ'!J34/'Tabel 1 ØJ'!G32*100,"-")) -> 2.317333835
A35: Økonom | C35: =IF(OR('Tabel 1 ØJ'!C33<5,'Tabel 2 ØJ'!C35<0.5),"-",IFERROR('Tabel 2 ØJ'!C35/'Tabel 1 ØJ'!C33*100,"-")) -> 2.918918919 | D35: =IF(OR('Tabel 1 ØJ'!C33<5,'Tabel 2 ØJ'!D35<0.5),"-",IFERROR('Tabel 2 ØJ'!D35/'Tabel 1 ØJ'!C33*100,"-")) -> 2.760994638 | F35: =IF(OR('Tabel 1 ØJ'!E33<5,'Tabel 2 ØJ'!F35<0.5),"-",IFERROR('Tabel 2 ØJ'!F35/'Tabel 1 ØJ'!E33*100,"-")) -> 2.307692308 | G35: =IF(OR('Tabel 1 ØJ'!E33<5,'Tabel 2 ØJ'!G35<0.5),"-",IFERROR('Tabel 2 ØJ'!G35/'Tabel 1 ØJ'!E33*100,"-")) -> 2.096157445 | I35: =IF(OR('Tabel 1 ØJ'!G33<5,'Tabel 2 ØJ'!I35<0.5),"-",IFERROR('Tabel 2 ØJ'!I35/'Tabel 1 ØJ'!G33*100,"-")) -> 2.698961938 | J35: =IF(OR('Tabel 1 ØJ'!G33<5,'Tabel 2 ØJ'!J35<0.5),"-",IFERROR('Tabel 2 ØJ'!J35/'Tabel 1 ØJ'!G33*100,"-")) -> 2.521745267
A36: Samf. Adm. | C36: =IF(OR('Tabel 1 ØJ'!C34<5,'Tabel 2 ØJ'!C36<0.5),"-",IFERROR('Tabel 2 ØJ'!C36/'Tabel 1 ØJ'!C34*100,"-")) -> 6.946454414 | D36: =IF(OR('Tabel 1 ØJ'!C34<5,'Tabel 2 ØJ'!D36<0.5),"-",IFERROR('Tabel 2 ØJ'!D36/'Tabel 1 ØJ'!C34*100,"-")) -> 6.226620331 | F36: =IF(OR('Tabel 1 ØJ'!E34<5,'Tabel 2 ØJ'!F36<0.5),"-",IFERROR('Tabel 2 ØJ'!F36/'Tabel 1 ØJ'!E34*100,"-")) -> 8.266237252 | G36: =IF(OR('Tabel 1 ØJ'!E34<5,'Tabel 2 ØJ'!G36<0.5),"-",IFERROR('Tabel 2 ØJ'!G36/'Tabel 1 ØJ'!E34*100,"-")) -> 7.025633089 | I36: =IF(OR('Tabel 1 ØJ'!G34<5,'Tabel 2 ØJ'!I36<0.5),"-",IFERROR('Tabel 2 ØJ'!I36/'Tabel 1 ØJ'!G34*100,"-")) -> 7.704160247 | J36: =IF(OR('Tabel 1 ØJ'!G34<5,'Tabel 2 ØJ'!J36<0.5),"-",IFERROR('Tabel 2 ØJ'!J36/'Tabel 1 ØJ'!G34*100,"-")) -> 6.685344758
A37: Cand. Merc. | C37: =IF(OR('Tabel 1 ØJ'!C35<5,'Tabel 2 ØJ'!C37<0.5),"-",IFERROR('Tabel 2 ØJ'!C37/'Tabel 1 ØJ'!C35*100,"-")) -> 4.079933389 | D37: =IF(OR('Tabel 1 ØJ'!C35<5,'Tabel 2 ØJ'!D37<0.5),"-",IFERROR('Tabel 2 ØJ'!D37/'Tabel 1 ØJ'!C35*100,"-")) -> 3.769909823 | F37: =IF(OR('Tabel 1 ØJ'!E35<5,'Tabel 2 ØJ'!F37<0.5),"-",IFERROR('Tabel 2 ØJ'!F37/'Tabel 1 ØJ'!E35*100,"-")) -> 4.560759106 | G37: =IF(OR('Tabel 1 ØJ'!E35<5,'Tabel 2 ØJ'!G37<0.5),"-",IFERROR('Tabel 2 ØJ'!G37/'Tabel 1 ØJ'!E35*100,"-")) -> 4.173401848 | I37: =IF(OR('Tabel 1 ØJ'!G35<5,'Tabel 2 ØJ'!I37<0.5),"-",IFERROR('Tabel 2 ØJ'!I37/'Tabel 1 ØJ'!G35*100,"-")) -> 4.308588064 | J37: =IF(OR('Tabel 1 ØJ'!G35<5,'Tabel 2 ØJ'!J37<0.5),"-",IFERROR('Tabel 2 ØJ'!J37/'Tabel 1 ØJ'!G35*100,"-")) -> 3.961788782
A38: HA | C38: =IF(OR('Tabel 1 ØJ'!C36<5,'Tabel 2 ØJ'!C38<0.5),"-",IFERROR('Tabel 2 ØJ'!C38/'Tabel 1 ØJ'!C36*100,"-")) -> 8.576329331 | D38: =IF(OR('Tabel 1 ØJ'!C36<5,'Tabel 2 ØJ'!D38<0.5),"-",IFERROR('Tabel 2 ØJ'!D38/'Tabel 1 ØJ'!C36*100,"-")) -> 7.556776926 | F38: =IF(OR('Tabel 1 ØJ'!E36<5,'Tabel 2 ØJ'!F38<0.5),"-",IFERROR('Tabel 2 ØJ'!F38/'Tabel 1 ØJ'!E36*100,"-")) -> 8.829174664 | G38: =IF(OR('Tabel 1 ØJ'!E36<5,'Tabel 2 ØJ'!G38<0.5),"-",IFERROR('Tabel 2 ØJ'!G38/'Tabel 1 ØJ'!E36*100,"-")) -> 7.986885973 | I38: =IF(OR('Tabel 1 ØJ'!G36<5,'Tabel 2 ØJ'!I38<0.5),"-",IFERROR('Tabel 2 ØJ'!I38/'Tabel 1 ØJ'!G36*100,"-")) -> 8.695652174 | J38: =IF(OR('Tabel 1 ØJ'!G36<5,'Tabel 2 ØJ'!J38<0.5),"-",IFERROR('Tabel 2 ØJ'!J38/'Tabel 1 ØJ'!G36*100,"-")) -> 7.759754112
A39: HD | C39: =IF(OR('Tabel 1 ØJ'!C37<5,'Tabel 2 ØJ'!C39<0.5),"-",IFERROR('Tabel 2 ØJ'!C39/'Tabel 1 ØJ'!C37*100,"-")) -> 4.883227176 | D39: =IF(OR('Tabel 1 ØJ'!C37<5,'Tabel 2 ØJ'!D39<0.5),"-",IFERROR('Tabel 2 ØJ'!D39/'Tabel 1 ØJ'!C37*100,"-")) -> 4.372483875 | F39: =IF(OR('Tabel 1 ØJ'!E37<5,'Tabel 2 ØJ'!F39<0.5),"-",IFERROR('Tabel 2 ØJ'!F39/'Tabel 1 ØJ'!E37*100,"-")) -> 6.106870229 | G39: =IF(OR('Tabel 1 ØJ'!E37<5,'Tabel 2 ØJ'!G39<0.5),"-",IFERROR('Tabel 2 ØJ'!G39/'Tabel 1 ØJ'!E37*100,"-")) -> 5.425356005 | I39: =IF(OR('Tabel 1 ØJ'!G37<5,'Tabel 2 ØJ'!I39<0.5),"-",IFERROR('Tabel 2 ØJ'!I39/'Tabel 1 ØJ'!G37*100,"-")) -> 5.439814815 | J39: =IF(OR('Tabel 1 ØJ'!G37<5,'Tabel 2 ØJ'!J39<0.5),"-",IFERROR('Tabel 2 ØJ'!J39/'Tabel 1 ØJ'!G37*100,"-")) -> 4.851394462
A40: Komm. og Sprog | C40: =IF(OR('Tabel 1 ØJ'!C38<5,'Tabel 2 ØJ'!C40<0.5),"-",IFERROR('Tabel 2 ØJ'!C40/'Tabel 1 ØJ'!C38*100,"-")) -> 14.79289941 | D40: =IF(OR('Tabel 1 ØJ'!C38<5,'Tabel 2 ØJ'!D40<0.5),"-",IFERROR('Tabel 2 ØJ'!D40/'Tabel 1 ØJ'!C38*100,"-")) -> 12.49383206 | F40: =IF(OR('Tabel 1 ØJ'!E38<5,'Tabel 2 ØJ'!F40<0.5),"-",IFERROR('Tabel 2 ØJ'!F40/'Tabel 1 ØJ'!E38*100,"-")) -> 7.726465364 | G40: =IF(OR('Tabel 1 ØJ'!E38<5,'Tabel 2 ØJ'!G40<0.5),"-",IFERROR('Tabel 2 ØJ'!G40/'Tabel 1 ØJ'!E38*100,"-")) -> 6.657173221 | I40: =IF(OR('Tabel 1 ØJ'!G38<5,'Tabel 2 ØJ'!I40<0.5),"-",IFERROR('Tabel 2 ØJ'!I40/'Tabel 1 ØJ'!G38*100,"-")) -> 8.648648649 | J40: =IF(OR('Tabel 1 ØJ'!G38<5,'Tabel 2 ØJ'!J40<0.5),"-",IFERROR('Tabel 2 ØJ'!J40/'Tabel 1 ØJ'!G38*100,"-")) -> 7.418868468
A41: Bygningskonst. | C41: =IF(OR('Tabel 1 ØJ'!C39<5,'Tabel 2 ØJ'!C41<0.5),"-",IFERROR('Tabel 2 ØJ'!C41/'Tabel 1 ØJ'!C39*100,"-")) -> 5.367378843 | D41: =IF(OR('Tabel 1 ØJ'!C39<5,'Tabel 2 ØJ'!D41<0.5),"-",IFERROR('Tabel 2 ØJ'!D41/'Tabel 1 ØJ'!C39*100,"-")) -> 4.526854088 | F41: =IF(OR('Tabel 1 ØJ'!E39<5,'Tabel 2 ØJ'!F41<0.5),"-",IFERROR('Tabel 2 ØJ'!F41/'Tabel 1 ØJ'!E39*100,"-")) -> 10.6918239 | G41: =IF(OR('Tabel 1 ØJ'!E39<5,'Tabel 2 ØJ'!G41<0.5),"-",IFERROR('Tabel 2 ØJ'!G41/'Tabel 1 ØJ'!E39*100,"-")) -> 9.629098318 | I41: =IF(OR('Tabel 1 ØJ'!G39<5,'Tabel 2 ØJ'!I41<0.5),"-",IFERROR('Tabel 2 ØJ'!I41/'Tabel 1 ØJ'!G39*100,"-")) -> 6.124273581 | J41: =IF(OR('Tabel 1 ØJ'!G39<5,'Tabel 2 ØJ'!J41<0.5),"-",IFERROR('Tabel 2 ØJ'!J41/'Tabel 1 ØJ'!G39*100,"-")) -> 5.25216194
A42: Cand. IT. | C42: =IF(OR('Tabel 1 ØJ'!C40<5,'Tabel 2 ØJ'!C42<0.5),"-",IFERROR('Tabel 2 ØJ'!C42/'Tabel 1 ØJ'!C40*100,"-")) -> 6.374501992 | D42: =IF(OR('Tabel 1 ØJ'!C40<5,'Tabel 2 ØJ'!D42<0.5),"-",IFERROR('Tabel 2 ØJ'!D42/'Tabel 1 ØJ'!C40*100,"-")) -> 5.709712761 | F42: =IF(OR('Tabel 1 ØJ'!E40<5,'Tabel 2 ØJ'!F42<0.5),"-",IFERROR('Tabel 2 ØJ'!F42/'Tabel 1 ØJ'!E40*100,"-")) -> 8.928571429 | G42: =IF(OR('Tabel 1 ØJ'!E40<5,'Tabel 2 ØJ'!G42<0.5),"-",IFERROR('Tabel 2 ØJ'!G42/'Tabel 1 ØJ'!E40*100,"-")) -> 7.301625665 | I42: =IF(OR('Tabel 1 ØJ'!G40<5,'Tabel 2 ØJ'!I42<0.5),"-",IFERROR('Tabel 2 ØJ'!I42/'Tabel 1 ØJ'!G40*100,"-")) -> 7.578947368 | J42: =IF(OR('Tabel 1 ØJ'!G40<5,'Tabel 2 ØJ'!J42<0.5),"-",IFERROR('Tabel 2 ØJ'!J42/'Tabel 1 ØJ'!G40*100,"-")) -> 6.460425373
A43: Bac. Samf. | C43: =IF(OR('Tabel 1 ØJ'!C41<5,'Tabel 2 ØJ'!C43<0.5),"-",IFERROR('Tabel 2 ØJ'!C43/'Tabel 1 ØJ'!C41*100,"-")) -> 10.20408163 | D43: =IF(OR('Tabel 1 ØJ'!C41<5,'Tabel 2 ØJ'!D43<0.5),"-",IFERROR('Tabel 2 ØJ'!D43/'Tabel 1 ØJ'!C41*100,"-")) -> 10.10734238 | F43: =IF(OR('Tabel 1 ØJ'!E41<5,'Tabel 2 ØJ'!F43<0.5),"-",IFERROR('Tabel 2 ØJ'!F43/'Tabel 1 ØJ'!E41*100,"-")) -> 13 | G43: =IF(OR('Tabel 1 ØJ'!E41<5,'Tabel 2 ØJ'!G43<0.5),"-",IFERROR('Tabel 2 ØJ'!G43/'Tabel 1 ØJ'!E41*100,"-")) -> 11.03224599 | I43: =IF(OR('Tabel 1 ØJ'!G41<5,'Tabel 2 ØJ'!I43<0.5),"-",IFERROR('Tabel 2 ØJ'!I43/'Tabel 1 ØJ'!G41*100,"-")) -> 11.61616162 | J43: =IF(OR('Tabel 1 ØJ'!G41<5,'Tabel 2 ØJ'!J43<0.5),"-",IFERROR('Tabel 2 ØJ'!J43/'Tabel 1 ØJ'!G41*100,"-")) -> 10.57446542
A44: Bac. Hum. | C44: =IF(OR('Tabel 1 ØJ'!C42<5,'Tabel 2 ØJ'!C44<0.5),"-",IFERROR('Tabel 2 ØJ'!C44/'Tabel 1 ØJ'!C42*100,"-")) -> 18.98734177 | D44: =IF(OR('Tabel 1 ØJ'!C42<5,'Tabel 2 ØJ'!D44<0.5),"-",IFERROR('Tabel 2 ØJ'!D44/'Tabel 1 ØJ'!C42*100,"-")) -> 16.83710891 | F44: =IF(OR('Tabel 1 ØJ'!E42<5,'Tabel 2 ØJ'!F44<0.5),"-",IFERROR('Tabel 2 ØJ'!F44/'Tabel 1 ØJ'!E42*100,"-")) -> 26.19502868 | G44: =IF(OR('Tabel 1 ØJ'!E42<5,'Tabel 2 ØJ'!G44<0.5),"-",IFERROR('Tabel 2 ØJ'!G44/'Tabel 1 ØJ'!E42*100,"-")) -> 22.13575037 | I44: =IF(OR('Tabel 1 ØJ'!G42<5,'Tabel 2 ØJ'!I44<0.5),"-",IFERROR('Tabel 2 ØJ'!I44/'Tabel 1 ØJ'!G42*100,"-")) -> 23.48033373 | J44: =IF(OR('Tabel 1 ØJ'!G42<5,'Tabel 2 ØJ'!J44<0.5),"-",IFERROR('Tabel 2 ØJ'!J44/'Tabel 1 ØJ'!G42*100,"-")) -> 20.14007611
A45: Bac. Nat. | C45: =IF(OR('Tabel 1 ØJ'!C43<5,'Tabel 2 ØJ'!C45<0.5),"-",IFERROR('Tabel 2 ØJ'!C45/'Tabel 1 ØJ'!C43*100,"-")) -> 14.63917526 | D45: =IF(OR('Tabel 1 ØJ'!C43<5,'Tabel 2 ØJ'!D45<0.5),"-",IFERROR('Tabel 2 ØJ'!D45/'Tabel 1 ØJ'!C43*100,"-")) -> 12.87486312 | F45: =IF(OR('Tabel 1 ØJ'!E43<5,'Tabel 2 ØJ'!F45<0.5),"-",IFERROR('Tabel 2 ØJ'!F45/'Tabel 1 ØJ'!E43*100,"-")) -> 19.18604651 | G45: =IF(OR('Tabel 1 ØJ'!E43<5,'Tabel 2 ØJ'!G45<0.5),"-",IFERROR('Tabel 2 ØJ'!G45/'Tabel 1 ØJ'!E43*100,"-")) -> 17.26852611 | I45: =IF(OR('Tabel 1 ØJ'!G43<5,'Tabel 2 ØJ'!I45<0.5),"-",IFERROR('Tabel 2 ØJ'!I45/'Tabel 1 ØJ'!G43*100,"-")) -> 15.82952816 | J45: =IF(OR('Tabel 1 ØJ'!G43<5,'Tabel 2 ØJ'!J45<0.5),"-",IFERROR('Tabel 2 ØJ'!J45/'Tabel 1 ØJ'!G43*100,"-")) -> 14.0251067
A46: Andre | C46: =IF(OR('Tabel 1 ØJ'!C44<5,'Tabel 2 ØJ'!C46<0.5),"-",IFERROR('Tabel 2 ØJ'!C46/'Tabel 1 ØJ'!C44*100,"-")) -> 6.860321384 | D46: =IF(OR('Tabel 1 ØJ'!C44<5,'Tabel 2 ØJ'!D46<0.5),"-",IFERROR('Tabel 2 ØJ'!D46/'Tabel 1 ØJ'!C44*100,"-")) -> 5.956850276 | F46: =IF(OR('Tabel 1 ØJ'!E44<5,'Tabel 2 ØJ'!F46<0.5),"-",IFERROR('Tabel 2 ØJ'!F46/'Tabel 1 ØJ'!E44*100,"-")) -> 11.37409599 | G46: =IF(OR('Tabel 1 ØJ'!E44<5,'Tabel 2 ØJ'!G46<0.5),"-",IFERROR('Tabel 2 ØJ'!G46/'Tabel 1 ØJ'!E44*100,"-")) -> 10.24530561 | I46: =IF(OR('Tabel 1 ØJ'!G44<5,'Tabel 2 ØJ'!I46<0.5),"-",IFERROR('Tabel 2 ØJ'!I46/'Tabel 1 ØJ'!G44*100,"-")) -> 9.047467346 | J46: =IF(OR('Tabel 1 ØJ'!G44<5,'Tabel 2 ØJ'!J46<0.5),"-",IFERROR('Tabel 2 ØJ'!J46/'Tabel 1 ØJ'!G44*100,"-")) -> 8.034817962
A48: Total | C48: =IF(OR('Tabel 1 ØJ'!C46<5,'Tabel 2 ØJ'!C48<0.5),"-",IFERROR('Tabel 2 ØJ'!C48/'Tabel 1 ØJ'!C46*100,"-")) -> 5.929558627 | D48: =IF(OR('Tabel 1 ØJ'!C46<5,'Tabel 2 ØJ'!D48<0.5),"-",IFERROR('Tabel 2 ØJ'!D48/'Tabel 1 ØJ'!C46*100,"-")) -> 5.222917466 | F48: =IF(OR('Tabel 1 ØJ'!E46<5,'Tabel 2 ØJ'!F48<0.5),"-",IFERROR('Tabel 2 ØJ'!F48/'Tabel 1 ØJ'!E46*100,"-")) -> 8.152210259 | G48: =IF(OR('Tabel 1 ØJ'!E46<5,'Tabel 2 ØJ'!G48<0.5),"-",IFERROR('Tabel 2 ØJ'!G48/'Tabel 1 ØJ'!E46*100,"-")) -> 7.073144661 | I48: =IF(OR('Tabel 1 ØJ'!G46<5,'Tabel 2 ØJ'!I48<0.5),"-",IFERROR('Tabel 2 ØJ'!I48/'Tabel 1 ØJ'!G46*100,"-")) -> 7.013766556 | J48: =IF(OR('Tabel 1 ØJ'!G46<5,'Tabel 2 ØJ'!J48<0.5),"-",IFERROR('Tabel 2 ØJ'!J48/'Tabel 1 ØJ'!G46*100,"-")) -> 6.125457012
A50: Ingeniører i alt | C50: =IF(OR('Tabel 1 ØJ'!C48<5,'Tabel 2 ØJ'!C50<0.5),"-",IFERROR('Tabel 2 ØJ'!C50/'Tabel 1 ØJ'!C48*100,"-")) -> 3.202134757 | D50: =IF(OR('Tabel 1 ØJ'!C48<5,'Tabel 2 ØJ'!D50<0.5),"-",IFERROR('Tabel 2 ØJ'!D50/'Tabel 1 ØJ'!C48*100,"-")) -> 2.8367526 | F50: =IF(OR('Tabel 1 ØJ'!E48<5,'Tabel 2 ØJ'!F50<0.5),"-",IFERROR('Tabel 2 ØJ'!F50/'Tabel 1 ØJ'!E48*100,"-")) -> 4.789103691 | G50: =IF(OR('Tabel 1 ØJ'!E48<5,'Tabel 2 ØJ'!G50<0.5),"-",IFERROR('Tabel 2 ØJ'!G50/'Tabel 1 ØJ'!E48*100,"-")) -> 4.261339502 | I50: =IF(OR('Tabel 1 ØJ'!G48<5,'Tabel 2 ØJ'!I50<0.5),"-",IFERROR('Tabel 2 ØJ'!I50/'Tabel 1 ØJ'!G48*100,"-")) -> 3.522626442 | J50: =IF(OR('Tabel 1 ØJ'!G48<5,'Tabel 2 ØJ'!J50<0.5),"-",IFERROR('Tabel 2 ØJ'!J50/'Tabel 1 ØJ'!G48*100,"-")) -> 3.124450895
A51: Magistre i alt | C51: =IF(OR('Tabel 1 ØJ'!C49<5,'Tabel 2 ØJ'!C51<0.5),"-",IFERROR('Tabel 2 ØJ'!C51/'Tabel 1 ØJ'!C49*100,"-")) -> 10.89049338 | D51: =IF(OR('Tabel 1 ØJ'!C49<5,'Tabel 2 ØJ'!D51<0.5),"-",IFERROR('Tabel 2 ØJ'!D51/'Tabel 1 ØJ'!C49*100,"-")) -> 9.508705083 | F51: =IF(OR('Tabel 1 ØJ'!E49<5,'Tabel 2 ØJ'!F51<0.5),"-",IFERROR('Tabel 2 ØJ'!F51/'Tabel 1 ØJ'!E49*100,"-")) -> 12.13538462 | G51: =IF(OR('Tabel 1 ØJ'!E49<5,'Tabel 2 ØJ'!G51<0.5),"-",IFERROR('Tabel 2 ØJ'!G51/'Tabel 1 ØJ'!E49*100,"-")) -> 10.47117244 | I51: =IF(OR('Tabel 1 ØJ'!G49<5,'Tabel 2 ØJ'!I51<0.5),"-",IFERROR('Tabel 2 ØJ'!I51/'Tabel 1 ØJ'!G49*100,"-")) -> 11.66196324 | J51: =IF(OR('Tabel 1 ØJ'!G49<5,'Tabel 2 ØJ'!J51<0.5),"-",IFERROR('Tabel 2 ØJ'!J51/'Tabel 1 ØJ'!G49*100,"-")) -> 10.10515442
A52: DJØF'ere i alt | C52: =IF(OR('Tabel 1 ØJ'!C50<5,'Tabel 2 ØJ'!C52<0.5),"-",IFERROR('Tabel 2 ØJ'!C52/'Tabel 1 ØJ'!C50*100,"-")) -> 4.709897611 | D52: =IF(OR('Tabel 1 ØJ'!C50<5,'Tabel 2 ØJ'!D52<0.5),"-",IFERROR('Tabel 2 ØJ'!D52/'Tabel 1 ØJ'!C50*100,"-")) -> 4.29692258 | F52: =IF(OR('Tabel 1 ØJ'!E50<5,'Tabel 2 ØJ'!F52<0.5),"-",IFERROR('Tabel 2 ØJ'!F52/'Tabel 1 ØJ'!E50*100,"-")) -> 5.152224824 | G52: =IF(OR('Tabel 1 ØJ'!E50<5,'Tabel 2 ØJ'!G52<0.5),"-",IFERROR('Tabel 2 ØJ'!G52/'Tabel 1 ØJ'!E50*100,"-")) -> 4.564916437 | I52: =IF(OR('Tabel 1 ØJ'!G50<5,'Tabel 2 ØJ'!I52<0.5),"-",IFERROR('Tabel 2 ØJ'!I52/'Tabel 1 ØJ'!G50*100,"-")) -> 4.936379988 | J52: =IF(OR('Tabel 1 ØJ'!G50<5,'Tabel 2 ØJ'!J52<0.5),"-",IFERROR('Tabel 2 ØJ'!J52/'Tabel 1 ØJ'!G50*100,"-")) -> 4.434142005
A57: Horsens
C59: Mænd | F59: Kvinder | I59: I alt
C60: Ledigheds- berørte | D60: Gns. brutto- ledighed | F60: Ledigheds- berørte | G60: Gns. brutto- ledighed | I60: Ledigheds- berørte | J60: Gns. brutto- ledighed
A63: Civ. ing. | C63: =IF(OR('Tabel 1 ØJ'!C61<5,'Tabel 2 ØJ'!C63<0.5),"-",IFERROR('Tabel 2 ØJ'!C63/'Tabel 1 ØJ'!C61*100,"-")) -> 1.834862385 | D63: =IF(OR('Tabel 1 ØJ'!C61<5,'Tabel 2 ØJ'!D63<0.5),"-",IFERROR('Tabel 2 ØJ'!D63/'Tabel 1 ØJ'!C61*100,"-")) -> 1.834519057 | F63: =IF(OR('Tabel 1 ØJ'!E61<5,'Tabel 2 ØJ'!F63<0.5),"-",IFERROR('Tabel 2 ØJ'!F63/'Tabel 1 ØJ'!E61*100,"-")) -> 7.142857143 | G63: =IF(OR('Tabel 1 ØJ'!E61<5,'Tabel 2 ØJ'!G63<0.5),"-",IFERROR('Tabel 2 ØJ'!G63/'Tabel 1 ØJ'!E61*100,"-")) -> 6.592058641 | I63: =IF(OR('Tabel 1 ØJ'!G61<5,'Tabel 2 ØJ'!I63<0.5),"-",IFERROR('Tabel 2 ØJ'!I63/'Tabel 1 ØJ'!G61*100,"-")) -> 3.311258278 | J63: =IF(OR('Tabel 1 ØJ'!G61<5,'Tabel 2 ØJ'!J63<0.5),"-",IFERROR('Tabel 2 ØJ'!J63/'Tabel 1 ØJ'!G61*100,"-")) -> 3.157808213
A64: Diplom ing. | C64: =IF(OR('Tabel 1 ØJ'!C62<5,'Tabel 2 ØJ'!C64<0.5),"-",IFERROR('Tabel 2 ØJ'!C64/'Tabel 1 ØJ'!C62*100,"-")) -> 2.219140083 | D64: =IF(OR('Tabel 1 ØJ'!C62<5,'Tabel 2 ØJ'!D64<0.5),"-",IFERROR('Tabel 2 ØJ'!D64/'Tabel 1 ØJ'!C62*100,"-")) -> 2.17763415 | F64: =IF(OR('Tabel 1 ØJ'!E62<5,'Tabel 2 ØJ'!F64<0.5),"-",IFERROR('Tabel 2 ØJ'!F64/'Tabel 1 ØJ'!E62*100,"-")) -> 6.493506494 | G64: =IF(OR('Tabel 1 ØJ'!E62<5,'Tabel 2 ØJ'!G64<0.5),"-",IFERROR('Tabel 2 ØJ'!G64/'Tabel 1 ØJ'!E62*100,"-")) -> 6.182594719 | I64: =IF(OR('Tabel 1 ØJ'!G62<5,'Tabel 2 ØJ'!I64<0.5),"-",IFERROR('Tabel 2 ØJ'!I64/'Tabel 1 ØJ'!G62*100,"-")) -> 3.256302521 | J64: =IF(OR('Tabel 1 ØJ'!G62<5,'Tabel 2 ØJ'!J64<0.5),"-",IFERROR('Tabel 2 ØJ'!J64/'Tabel 1 ØJ'!G62*100,"-")) -> 3.149426052
A65: Cand. Scient. Tek. | C65: =IF(OR('Tabel 1 ØJ'!C63<5,'Tabel 2 ØJ'!C65<0.5),"-",IFERROR('Tabel 2 ØJ'!C65/'Tabel 1 ØJ'!C63*100,"-")) -> 3.703703704 | D65: =IF(OR('Tabel 1 ØJ'!C63<5,'Tabel 2 ØJ'!D65<0.5),"-",IFERROR('Tabel 2 ØJ'!D65/'Tabel 1 ØJ'!C63*100,"-")) -> 3.172469128 | F65: =IF(OR('Tabel 1 ØJ'!E63<5,'Tabel 2 ØJ'!F65<0.5),"-",IFERROR('Tabel 2 ØJ'!F65/'Tabel 1 ØJ'!E63*100,"-")) -> 5 | G65: =IF(OR('Tabel 1 ØJ'!E63<5,'Tabel 2 ØJ'!G65<0.5),"-",IFERROR('Tabel 2 ØJ'!G65/'Tabel 1 ØJ'!E63*100,"-")) -> 3.845194287 | I65: =IF(OR('Tabel 1 ØJ'!G63<5,'Tabel 2 ØJ'!I65<0.5),"-",IFERROR('Tabel 2 ØJ'!I65/'Tabel 1 ØJ'!G63*100,"-")) -> 4.255319149 | J65: =IF(OR('Tabel 1 ØJ'!G63<5,'Tabel 2 ØJ'!J65<0.5),"-",IFERROR('Tabel 2 ØJ'!J65/'Tabel 1 ØJ'!G63*100,"-")) -> 3.458735153
A66: MA. Hum. | C66: =IF(OR('Tabel 1 ØJ'!C64<5,'Tabel 2 ØJ'!C66<0.5),"-",IFERROR('Tabel 2 ØJ'!C66/'Tabel 1 ØJ'!C64*100,"-")) -> 9.836065574 | D66: =IF(OR('Tabel 1 ØJ'!C64<5,'Tabel 2 ØJ'!D66<0.5),"-",IFERROR('Tabel 2 ØJ'!D66/'Tabel 1 ØJ'!C64*100,"-")) -> 7.685480663 | F66: =IF(OR('Tabel 1 ØJ'!E64<5,'Tabel 2 ØJ'!F66<0.5),"-",IFERROR('Tabel 2 ØJ'!F66/'Tabel 1 ØJ'!E64*100,"-")) -> 9.124087591 | G66: =IF(OR('Tabel 1 ØJ'!E64<5,'Tabel 2 ØJ'!G66<0.5),"-",IFERROR('Tabel 2 ØJ'!G66/'Tabel 1 ØJ'!E64*100,"-")) -> 8.529624802 | I66: =IF(OR('Tabel 1 ØJ'!G64<5,'Tabel 2 ØJ'!I66<0.5),"-",IFERROR('Tabel 2 ØJ'!I66/'Tabel 1 ØJ'!G64*100,"-")) -> 9.343434343 | J66: =IF(OR('Tabel 1 ØJ'!G64<5,'Tabel 2 ØJ'!J66<0.5),"-",IFERROR('Tabel 2 ØJ'!J66/'Tabel 1 ØJ'!G64*100,"-")) -> 8.269560194
A67: MA. Nat. | C67: =IF(OR('Tabel 1 ØJ'!C65<5,'Tabel 2 ØJ'!C67<0.5),"-",IFERROR('Tabel 2 ØJ'!C67/'Tabel 1 ØJ'!C65*100,"-")) -> - | D67: =IF(OR('Tabel 1 ØJ'!C65<5,'Tabel 2 ØJ'!D67<0.5),"-",IFERROR('Tabel 2 ØJ'!D67/'Tabel 1 ØJ'!C65*100,"-")) -> - | F67: =IF(OR('Tabel 1 ØJ'!E65<5,'Tabel 2 ØJ'!F67<0.5),"-",IFERROR('Tabel 2 ØJ'!F67/'Tabel 1 ØJ'!E65*100,"-")) -> 1.351351351 | G67: =IF(OR('Tabel 1 ØJ'!E65<5,'Tabel 2 ØJ'!G67<0.5),"-",IFERROR('Tabel 2 ØJ'!G67/'Tabel 1 ØJ'!E65*100,"-")) -> 0.6768135316 | I67: =IF(OR('Tabel 1 ØJ'!G65<5,'Tabel 2 ØJ'!I67<0.5),"-",IFERROR('Tabel 2 ØJ'!I67/'Tabel 1 ØJ'!G65*100,"-")) -> 0.7352941176 | J67: =IF(OR('Tabel 1 ØJ'!G65<5,'Tabel 2 ØJ'!J67<0.5),"-",IFERROR('Tabel 2 ØJ'!J67/'Tabel 1 ØJ'!G65*100,"-")) -> 0.3682661863
A68: MA. Ph.d. | C68: =IF(OR('Tabel 1 ØJ'!C66<5,'Tabel 2 ØJ'!C68<0.5),"-",IFERROR('Tabel 2 ØJ'!C68/'Tabel 1 ØJ'!C66*100,"-")) -> - | D68: =IF(OR('Tabel 1 ØJ'!C66<5,'Tabel 2 ØJ'!D68<0.5),"-",IFERROR('Tabel 2 ØJ'!D68/'Tabel 1 ØJ'!C66*100,"-")) -> - | F68: =IF(OR('Tabel 1 ØJ'!E66<5,'Tabel 2 ØJ'!F68<0.5),"-",IFERROR('Tabel 2 ØJ'!F68/'Tabel 1 ØJ'!E66*100,"-")) -> - | G68: =IF(OR('Tabel 1 ØJ'!E66<5,'Tabel 2 ØJ'!G68<0.5),"-",IFERROR('Tabel 2 ØJ'!G68/'Tabel 1 ØJ'!E66*100,"-")) -> - | I68: =IF(OR('Tabel 1 ØJ'!G66<5,'Tabel 2 ØJ'!I68<0.5),"-",IFERROR('Tabel 2 ØJ'!I68/'Tabel 1 ØJ'!G66*100,"-")) -> - | J68: =IF(OR('Tabel 1 ØJ'!G66<5,'Tabel 2 ØJ'!J68<0.5),"-",IFERROR('Tabel 2 ØJ'!J68/'Tabel 1 ØJ'!G66*100,"-")) -> -
A69: MA. Samf. | C69: =IF(OR('Tabel 1 ØJ'!C67<5,'Tabel 2 ØJ'!C69<0.5),"-",IFERROR('Tabel 2 ØJ'!C69/'Tabel 1 ØJ'!C67*100,"-")) -> - | D69: =IF(OR('Tabel 1 ØJ'!C67<5,'Tabel 2 ØJ'!D69<0.5),"-",IFERROR('Tabel 2 ØJ'!D69/'Tabel 1 ØJ'!C67*100,"-")) -> - | F69: =IF(OR('Tabel 1 ØJ'!E67<5,'Tabel 2 ØJ'!F69<0.5),"-",IFERROR('Tabel 2 ØJ'!F69/'Tabel 1 ØJ'!E67*100,"-")) -> 8.333333333 | G69: =IF(OR('Tabel 1 ØJ'!E67<5,'Tabel 2 ØJ'!G69<0.5),"-",IFERROR('Tabel 2 ØJ'!G69/'Tabel 1 ØJ'!E67*100,"-")) -> 8.331774049 | I69: =IF(OR('Tabel 1 ØJ'!G67<5,'Tabel 2 ØJ'!I69<0.5),"-",IFERROR('Tabel 2 ØJ'!I69/'Tabel 1 ØJ'!G67*100,"-")) -> 6.25 | J69: =IF(OR('Tabel 1 ØJ'!G67<5,'Tabel 2 ØJ'!J69<0.5),"-",IFERROR('Tabel 2 ØJ'!J69/'Tabel 1 ØJ'!G67*100,"-")) -> 6.248830537
A70: Øvrige Mag. | C70: =IF(OR('Tabel 1 ØJ'!C68<5,'Tabel 2 ØJ'!C70<0.5),"-",IFERROR('Tabel 2 ØJ'!C70/'Tabel 1 ØJ'!C68*100,"-")) -> 17.64705882 | D70: =IF(OR('Tabel 1 ØJ'!C68<5,'Tabel 2 ØJ'!D70<0.5),"-",IFERROR('Tabel 2 ØJ'!D70/'Tabel 1 ØJ'!C68*100,"-")) -> 15.36903666 | F70: =IF(OR('Tabel 1 ØJ'!E68<5,'Tabel 2 ØJ'!F70<0.5),"-",IFERROR('Tabel 2 ØJ'!F70/'Tabel 1 ØJ'!E68*100,"-")) -> - | G70: =IF(OR('Tabel 1 ØJ'!E68<5,'Tabel 2 ØJ'!G70<0.5),"-",IFERROR('Tabel 2 ØJ'!G70/'Tabel 1 ØJ'!E68*100,"-")) -> - | I70: =IF(OR('Tabel 1 ØJ'!G68<5,'Tabel 2 ØJ'!I70<0.5),"-",IFERROR('Tabel 2 ØJ'!I70/'Tabel 1 ØJ'!G68*100,"-")) -> 10.34482759 | J70: =IF(OR('Tabel 1 ØJ'!G68<5,'Tabel 2 ØJ'!J70<0.5),"-",IFERROR('Tabel 2 ØJ'!J70/'Tabel 1 ØJ'!G68*100,"-")) -> 9.009435281
A71: Agronom | C71: =IF(OR('Tabel 1 ØJ'!C69<5,'Tabel 2 ØJ'!C71<0.5),"-",IFERROR('Tabel 2 ØJ'!C71/'Tabel 1 ØJ'!C69*100,"-")) -> 9.523809524 | D71: =IF(OR('Tabel 1 ØJ'!C69<5,'Tabel 2 ØJ'!D71<0.5),"-",IFERROR('Tabel 2 ØJ'!D71/'Tabel 1 ØJ'!C69*100,"-")) -> 9.373524249 | F71: =IF(OR('Tabel 1 ØJ'!E69<5,'Tabel 2 ØJ'!F71<0.5),"-",IFERROR('Tabel 2 ØJ'!F71/'Tabel 1 ØJ'!E69*100,"-")) -> 6.25 | G71: =IF(OR('Tabel 1 ØJ'!E69<5,'Tabel 2 ØJ'!G71<0.5),"-",IFERROR('Tabel 2 ØJ'!G71/'Tabel 1 ØJ'!E69*100,"-")) -> 5.671895466 | I71: =IF(OR('Tabel 1 ØJ'!G69<5,'Tabel 2 ØJ'!I71<0.5),"-",IFERROR('Tabel 2 ØJ'!I71/'Tabel 1 ØJ'!G69*100,"-")) -> 8.108108108 | J71: =IF(OR('Tabel 1 ØJ'!G69<5,'Tabel 2 ØJ'!J71<0.5),"-",IFERROR('Tabel 2 ØJ'!J71/'Tabel 1 ØJ'!G69*100,"-")) -> 7.77281991
A72: Landsk. Arkt. | C72: =IF(OR('Tabel 1 ØJ'!C70<5,'Tabel 2 ØJ'!C72<0.5),"-",IFERROR('Tabel 2 ØJ'!C72/'Tabel 1 ØJ'!C70*100,"-")) -> - | D72: =IF(OR('Tabel 1 ØJ'!C70<5,'Tabel 2 ØJ'!D72<0.5),"-",IFERROR('Tabel 2 ØJ'!D72/'Tabel 1 ØJ'!C70*100,"-")) -> - | F72: =IF(OR('Tabel 1 ØJ'!E70<5,'Tabel 2 ØJ'!F72<0.5),"-",IFERROR('Tabel 2 ØJ'!F72/'Tabel 1 ØJ'!E70*100,"-")) -> - | G72: =IF(OR('Tabel 1 ØJ'!E70<5,'Tabel 2 ØJ'!G72<0.5),"-",IFERROR('Tabel 2 ØJ'!G72/'Tabel 1 ØJ'!E70*100,"-")) -> - | I72: =IF(OR('Tabel 1 ØJ'!G70<5,'Tabel 2 ØJ'!I72<0.5),"-",IFERROR('Tabel 2 ØJ'!I72/'Tabel 1 ØJ'!G70*100,"-")) -> - | J72: =IF(OR('Tabel 1 ØJ'!G70<5,'Tabel 2 ØJ'!J72<0.5),"-",IFERROR('Tabel 2 ØJ'!J72/'Tabel 1 ØJ'!G70*100,"-")) -> -
A73: Hortonom | C73: =IF(OR('Tabel 1 ØJ'!C71<5,'Tabel 2 ØJ'!C73<0.5),"-",IFERROR('Tabel 2 ØJ'!C73/'Tabel 1 ØJ'!C71*100,"-")) -> - | D73: =IF(OR('Tabel 1 ØJ'!C71<5,'Tabel 2 ØJ'!D73<0.5),"-",IFERROR('Tabel 2 ØJ'!D73/'Tabel 1 ØJ'!C71*100,"-")) -> - | F73: =IF(OR('Tabel 1 ØJ'!E71<5,'Tabel 2 ØJ'!F73<0.5),"-",IFERROR('Tabel 2 ØJ'!F73/'Tabel 1 ØJ'!E71*100,"-")) -> - | G73: =IF(OR('Tabel 1 ØJ'!E71<5,'Tabel 2 ØJ'!G73<0.5),"-",IFERROR('Tabel 2 ØJ'!G73/'Tabel 1 ØJ'!E71*100,"-")) -> - | I73: =IF(OR('Tabel 1 ØJ'!G71<5,'Tabel 2 ØJ'!I73<0.5),"-",IFERROR('Tabel 2 ØJ'!I73/'Tabel 1 ØJ'!G71*100,"-")) -> - | J73: =IF(OR('Tabel 1 ØJ'!G71<5,'Tabel 2 ØJ'!J73<0.5),"-",IFERROR('Tabel 2 ØJ'!J73/'Tabel 1 ØJ'!G71*100,"-")) -> -
A74: Forstkand. | C74: =IF(OR('Tabel 1 ØJ'!C72<5,'Tabel 2 ØJ'!C74<0.5),"-",IFERROR('Tabel 2 ØJ'!C74/'Tabel 1 ØJ'!C72*100,"-")) -> - | D74: =IF(OR('Tabel 1 ØJ'!C72<5,'Tabel 2 ØJ'!D74<0.5),"-",IFERROR('Tabel 2 ØJ'!D74/'Tabel 1 ØJ'!C72*100,"-")) -> - | F74: =IF(OR('Tabel 1 ØJ'!E72<5,'Tabel 2 ØJ'!F74<0.5),"-",IFERROR('Tabel 2 ØJ'!F74/'Tabel 1 ØJ'!E72*100,"-")) -> - | G74: =IF(OR('Tabel 1 ØJ'!E72<5,'Tabel 2 ØJ'!G74<0.5),"-",IFERROR('Tabel 2 ØJ'!G74/'Tabel 1 ØJ'!E72*100,"-")) -> - | I74: =IF(OR('Tabel 1 ØJ'!G72<5,'Tabel 2 ØJ'!I74<0.5),"-",IFERROR('Tabel 2 ØJ'!I74/'Tabel 1 ØJ'!G72*100,"-")) -> - | J74: =IF(OR('Tabel 1 ØJ'!G72<5,'Tabel 2 ØJ'!J74<0.5),"-",IFERROR('Tabel 2 ØJ'!J74/'Tabel 1 ØJ'!G72*100,"-")) -> -
A75: Jordbrugsakad. | C75: =IF(OR('Tabel 1 ØJ'!C73<5,'Tabel 2 ØJ'!C75<0.5),"-",IFERROR('Tabel 2 ØJ'!C75/'Tabel 1 ØJ'!C73*100,"-")) -> 7.142857143 | D75: =IF(OR('Tabel 1 ØJ'!C73<5,'Tabel 2 ØJ'!D75<0.5),"-",IFERROR('Tabel 2 ØJ'!D75/'Tabel 1 ØJ'!C73*100,"-")) -> 7.030143187 | F75: =IF(OR('Tabel 1 ØJ'!E73<5,'Tabel 2 ØJ'!F75<0.5),"-",IFERROR('Tabel 2 ØJ'!F75/'Tabel 1 ØJ'!E73*100,"-")) -> 5.555555556 | G75: =IF(OR('Tabel 1 ØJ'!E73<5,'Tabel 2 ØJ'!G75<0.5),"-",IFERROR('Tabel 2 ØJ'!G75/'Tabel 1 ØJ'!E73*100,"-")) -> 5.041684858 | I75: =IF(OR('Tabel 1 ØJ'!G73<5,'Tabel 2 ØJ'!I75<0.5),"-",IFERROR('Tabel 2 ØJ'!I75/'Tabel 1 ØJ'!G73*100,"-")) -> 6.52173913 | J75: =IF(OR('Tabel 1 ØJ'!G73<5,'Tabel 2 ØJ'!J75<0.5),"-",IFERROR('Tabel 2 ØJ'!J75/'Tabel 1 ØJ'!G73*100,"-")) -> 6.252050797
A76: Mejeriing. | C76: =IF(OR('Tabel 1 ØJ'!C74<5,'Tabel 2 ØJ'!C76<0.5),"-",IFERROR('Tabel 2 ØJ'!C76/'Tabel 1 ØJ'!C74*100,"-")) -> - | D76: =IF(OR('Tabel 1 ØJ'!C74<5,'Tabel 2 ØJ'!D76<0.5),"-",IFERROR('Tabel 2 ØJ'!D76/'Tabel 1 ØJ'!C74*100,"-")) -> - | F76: =IF(OR('Tabel 1 ØJ'!E74<5,'Tabel 2 ØJ'!F76<0.5),"-",IFERROR('Tabel 2 ØJ'!F76/'Tabel 1 ØJ'!E74*100,"-")) -> - | G76: =IF(OR('Tabel 1 ØJ'!E74<5,'Tabel 2 ØJ'!G76<0.5),"-",IFERROR('Tabel 2 ØJ'!G76/'Tabel 1 ØJ'!E74*100,"-")) -> - | I76: =IF(OR('Tabel 1 ØJ'!G74<5,'Tabel 2 ØJ'!I76<0.5),"-",IFERROR('Tabel 2 ØJ'!I76/'Tabel 1 ØJ'!G74*100,"-")) -> - | J76: =IF(OR('Tabel 1 ØJ'!G74<5,'Tabel 2 ØJ'!J76<0.5),"-",IFERROR('Tabel 2 ØJ'!J76/'Tabel 1 ØJ'!G74*100,"-")) -> -
A77: Levn.m.kand. | C77: =IF(OR('Tabel 1 ØJ'!C75<5,'Tabel 2 ØJ'!C77<0.5),"-",IFERROR('Tabel 2 ØJ'!C77/'Tabel 1 ØJ'!C75*100,"-")) -> - | D77: =IF(OR('Tabel 1 ØJ'!C75<5,'Tabel 2 ØJ'!D77<0.5),"-",IFERROR('Tabel 2 ØJ'!D77/'Tabel 1 ØJ'!C75*100,"-")) -> - | F77: =IF(OR('Tabel 1 ØJ'!E75<5,'Tabel 2 ØJ'!F77<0.5),"-",IFERROR('Tabel 2 ØJ'!F77/'Tabel 1 ØJ'!E75*100,"-")) -> - | G77: =IF(OR('Tabel 1 ØJ'!E75<5,'Tabel 2 ØJ'!G77<0.5),"-",IFERROR('Tabel 2 ØJ'!G77/'Tabel 1 ØJ'!E75*100,"-")) -> - | I77: =IF(OR('Tabel 1 ØJ'!G75<5,'Tabel 2 ØJ'!I77<0.5),"-",IFERROR('Tabel 2 ØJ'!I77/'Tabel 1 ØJ'!G75*100,"-")) -> - | J77: =IF(OR('Tabel 1 ØJ'!G75<5,'Tabel 2 ØJ'!J77<0.5),"-",IFERROR('Tabel 2 ØJ'!J77/'Tabel 1 ØJ'!G75*100,"-")) -> -
A78: Dyrlæge | C78: =IF(OR('Tabel 1 ØJ'!C76<5,'Tabel 2 ØJ'!C78<0.5),"-",IFERROR('Tabel 2 ØJ'!C78/'Tabel 1 ØJ'!C76*100,"-")) -> - | D78: =IF(OR('Tabel 1 ØJ'!C76<5,'Tabel 2 ØJ'!D78<0.5),"-",IFERROR('Tabel 2 ØJ'!D78/'Tabel 1 ØJ'!C76*100,"-")) -> - | F78: =IF(OR('Tabel 1 ØJ'!E76<5,'Tabel 2 ØJ'!F78<0.5),"-",IFERROR('Tabel 2 ØJ'!F78/'Tabel 1 ØJ'!E76*100,"-")) -> - | G78: =IF(OR('Tabel 1 ØJ'!E76<5,'Tabel 2 ØJ'!G78<0.5),"-",IFERROR('Tabel 2 ØJ'!G78/'Tabel 1 ØJ'!E76*100,"-")) -> - | I78: =IF(OR('Tabel 1 ØJ'!G76<5,'Tabel 2 ØJ'!I78<0.5),"-",IFERROR('Tabel 2 ØJ'!I78/'Tabel 1 ØJ'!G76*100,"-")) -> - | J78: =IF(OR('Tabel 1 ØJ'!G76<5,'Tabel 2 ØJ'!J78<0.5),"-",IFERROR('Tabel 2 ØJ'!J78/'Tabel 1 ØJ'!G76*100,"-")) -> -
A79: Farmaceut | C79: =IF(OR('Tabel 1 ØJ'!C77<5,'Tabel 2 ØJ'!C79<0.5),"-",IFERROR('Tabel 2 ØJ'!C79/'Tabel 1 ØJ'!C77*100,"-")) -> 16.66666667 | D79: =IF(OR('Tabel 1 ØJ'!C77<5,'Tabel 2 ØJ'!D79<0.5),"-",IFERROR('Tabel 2 ØJ'!D79/'Tabel 1 ØJ'!C77*100,"-")) -> 15.89430134 | F79: =IF(OR('Tabel 1 ØJ'!E77<5,'Tabel 2 ØJ'!F79<0.5),"-",IFERROR('Tabel 2 ØJ'!F79/'Tabel 1 ØJ'!E77*100,"-")) -> 11.76470588 | G79: =IF(OR('Tabel 1 ØJ'!E77<5,'Tabel 2 ØJ'!G79<0.5),"-",IFERROR('Tabel 2 ØJ'!G79/'Tabel 1 ØJ'!E77*100,"-")) -> 11.76250454 | I79: =IF(OR('Tabel 1 ØJ'!G77<5,'Tabel 2 ØJ'!I79<0.5),"-",IFERROR('Tabel 2 ØJ'!I79/'Tabel 1 ØJ'!G77*100,"-")) -> 13.04347826 | J79: =IF(OR('Tabel 1 ØJ'!G77<5,'Tabel 2 ØJ'!J79<0.5),"-",IFERROR('Tabel 2 ØJ'!J79/'Tabel 1 ØJ'!G77*100,"-")) -> 12.84036457
A80: Læge | C80: =IF(OR('Tabel 1 ØJ'!C78<5,'Tabel 2 ØJ'!C80<0.5),"-",IFERROR('Tabel 2 ØJ'!C80/'Tabel 1 ØJ'!C78*100,"-")) -> - | D80: =IF(OR('Tabel 1 ØJ'!C78<5,'Tabel 2 ØJ'!D80<0.5),"-",IFERROR('Tabel 2 ØJ'!D80/'Tabel 1 ØJ'!C78*100,"-")) -> - | F80: =IF(OR('Tabel 1 ØJ'!E78<5,'Tabel 2 ØJ'!F80<0.5),"-",IFERROR('Tabel 2 ØJ'!F80/'Tabel 1 ØJ'!E78*100,"-")) -> 2.985074627 | G80: =IF(OR('Tabel 1 ØJ'!E78<5,'Tabel 2 ØJ'!G80<0.5),"-",IFERROR('Tabel 2 ØJ'!G80/'Tabel 1 ØJ'!E78*100,"-")) -> 2.793678337 | I80: =IF(OR('Tabel 1 ØJ'!G78<5,'Tabel 2 ØJ'!I80<0.5),"-",IFERROR('Tabel 2 ØJ'!I80/'Tabel 1 ØJ'!G78*100,"-")) -> 2.173913043 | J80: =IF(OR('Tabel 1 ØJ'!G78<5,'Tabel 2 ØJ'!J80<0.5),"-",IFERROR('Tabel 2 ØJ'!J80/'Tabel 1 ØJ'!G78*100,"-")) -> 2.034526615
A81: Tandlæge | C81: =IF(OR('Tabel 1 ØJ'!C79<5,'Tabel 2 ØJ'!C81<0.5),"-",IFERROR('Tabel 2 ØJ'!C81/'Tabel 1 ØJ'!C79*100,"-")) -> - | D81: =IF(OR('Tabel 1 ØJ'!C79<5,'Tabel 2 ØJ'!D81<0.5),"-",IFERROR('Tabel 2 ØJ'!D81/'Tabel 1 ØJ'!C79*100,"-")) -> - | F81: =IF(OR('Tabel 1 ØJ'!E79<5,'Tabel 2 ØJ'!F81<0.5),"-",IFERROR('Tabel 2 ØJ'!F81/'Tabel 1 ØJ'!E79*100,"-")) -> - | G81: =IF(OR('Tabel 1 ØJ'!E79<5,'Tabel 2 ØJ'!G81<0.5),"-",IFERROR('Tabel 2 ØJ'!G81/'Tabel 1 ØJ'!E79*100,"-")) -> - | I81: =IF(OR('Tabel 1 ØJ'!G79<5,'Tabel 2 ØJ'!I81<0.5),"-",IFERROR('Tabel 2 ØJ'!I81/'Tabel 1 ØJ'!G79*100,"-")) -> - | J81: =IF(OR('Tabel 1 ØJ'!G79<5,'Tabel 2 ØJ'!J81<0.5),"-",IFERROR('Tabel 2 ØJ'!J81/'Tabel 1 ØJ'!G79*100,"-")) -> -
A82: Arkitekt | C82: =IF(OR('Tabel 1 ØJ'!C80<5,'Tabel 2 ØJ'!C82<0.5),"-",IFERROR('Tabel 2 ØJ'!C82/'Tabel 1 ØJ'!C80*100,"-")) -> 2.941176471 | D82: =IF(OR('Tabel 1 ØJ'!C80<5,'Tabel 2 ØJ'!D82<0.5),"-",IFERROR('Tabel 2 ØJ'!D82/'Tabel 1 ØJ'!C80*100,"-")) -> 2.940626135 | F82: =IF(OR('Tabel 1 ØJ'!E80<5,'Tabel 2 ØJ'!F82<0.5),"-",IFERROR('Tabel 2 ØJ'!F82/'Tabel 1 ØJ'!E80*100,"-")) -> - | G82: =IF(OR('Tabel 1 ØJ'!E80<5,'Tabel 2 ØJ'!G82<0.5),"-",IFERROR('Tabel 2 ØJ'!G82/'Tabel 1 ØJ'!E80*100,"-")) -> - | I82: =IF(OR('Tabel 1 ØJ'!G80<5,'Tabel 2 ØJ'!I82<0.5),"-",IFERROR('Tabel 2 ØJ'!I82/'Tabel 1 ØJ'!G80*100,"-")) -> 1.470588235 | J82: =IF(OR('Tabel 1 ØJ'!G80<5,'Tabel 2 ØJ'!J82<0.5),"-",IFERROR('Tabel 2 ØJ'!J82/'Tabel 1 ØJ'!G80*100,"-")) -> 1.470313068
A83: Landinspek. | C83: =IF(OR('Tabel 1 ØJ'!C81<5,'Tabel 2 ØJ'!C83<0.5),"-",IFERROR('Tabel 2 ØJ'!C83/'Tabel 1 ØJ'!C81*100,"-")) -> - | D83: =IF(OR('Tabel 1 ØJ'!C81<5,'Tabel 2 ØJ'!D83<0.5),"-",IFERROR('Tabel 2 ØJ'!D83/'Tabel 1 ØJ'!C81*100,"-")) -> - | F83: =IF(OR('Tabel 1 ØJ'!E81<5,'Tabel 2 ØJ'!F83<0.5),"-",IFERROR('Tabel 2 ØJ'!F83/'Tabel 1 ØJ'!E81*100,"-")) -> - | G83: =IF(OR('Tabel 1 ØJ'!E81<5,'Tabel 2 ØJ'!G83<0.5),"-",IFERROR('Tabel 2 ØJ'!G83/'Tabel 1 ØJ'!E81*100,"-")) -> - | I83: =IF(OR('Tabel 1 ØJ'!G81<5,'Tabel 2 ØJ'!I83<0.5),"-",IFERROR('Tabel 2 ØJ'!I83/'Tabel 1 ØJ'!G81*100,"-")) -> - | J83: =IF(OR('Tabel 1 ØJ'!G81<5,'Tabel 2 ØJ'!J83<0.5),"-",IFERROR('Tabel 2 ØJ'!J83/'Tabel 1 ØJ'!G81*100,"-")) -> -
A84: Bibliotekar | C84: =IF(OR('Tabel 1 ØJ'!C82<5,'Tabel 2 ØJ'!C84<0.5),"-",IFERROR('Tabel 2 ØJ'!C84/'Tabel 1 ØJ'!C82*100,"-")) -> - | D84: =IF(OR('Tabel 1 ØJ'!C82<5,'Tabel 2 ØJ'!D84<0.5),"-",IFERROR('Tabel 2 ØJ'!D84/'Tabel 1 ØJ'!C82*100,"-")) -> - | F84: =IF(OR('Tabel 1 ØJ'!E82<5,'Tabel 2 ØJ'!F84<0.5),"-",IFERROR('Tabel 2 ØJ'!F84/'Tabel 1 ØJ'!E82*100,"-")) -> - | G84: =IF(OR('Tabel 1 ØJ'!E82<5,'Tabel 2 ØJ'!G84<0.5),"-",IFERROR('Tabel 2 ØJ'!G84/'Tabel 1 ØJ'!E82*100,"-")) -> - | I84: =IF(OR('Tabel 1 ØJ'!G82<5,'Tabel 2 ØJ'!I84<0.5),"-",IFERROR('Tabel 2 ØJ'!I84/'Tabel 1 ØJ'!G82*100,"-")) -> - | J84: =IF(OR('Tabel 1 ØJ'!G82<5,'Tabel 2 ØJ'!J84<0.5),"-",IFERROR('Tabel 2 ØJ'!J84/'Tabel 1 ØJ'!G82*100,"-")) -> -
A85: Musikudd. | C85: =IF(OR('Tabel 1 ØJ'!C83<5,'Tabel 2 ØJ'!C85<0.5),"-",IFERROR('Tabel 2 ØJ'!C85/'Tabel 1 ØJ'!C83*100,"-")) -> - | D85: =IF(OR('Tabel 1 ØJ'!C83<5,'Tabel 2 ØJ'!D85<0.5),"-",IFERROR('Tabel 2 ØJ'!D85/'Tabel 1 ØJ'!C83*100,"-")) -> - | F85: =IF(OR('Tabel 1 ØJ'!E83<5,'Tabel 2 ØJ'!F85<0.5),"-",IFERROR('Tabel 2 ØJ'!F85/'Tabel 1 ØJ'!E83*100,"-")) -> - | G85: =IF(OR('Tabel 1 ØJ'!E83<5,'Tabel 2 ØJ'!G85<0.5),"-",IFERROR('Tabel 2 ØJ'!G85/'Tabel 1 ØJ'!E83*100,"-")) -> - | I85: =IF(OR('Tabel 1 ØJ'!G83<5,'Tabel 2 ØJ'!I85<0.5),"-",IFERROR('Tabel 2 ØJ'!I85/'Tabel 1 ØJ'!G83*100,"-")) -> 12.5 | J85: =IF(OR('Tabel 1 ØJ'!G83<5,'Tabel 2 ØJ'!J85<0.5),"-",IFERROR('Tabel 2 ØJ'!J85/'Tabel 1 ØJ'!G83*100,"-")) -> 12.49766107
A86: Teolog | C86: =IF(OR('Tabel 1 ØJ'!C84<5,'Tabel 2 ØJ'!C86<0.5),"-",IFERROR('Tabel 2 ØJ'!C86/'Tabel 1 ØJ'!C84*100,"-")) -> - | D86: =IF(OR('Tabel 1 ØJ'!C84<5,'Tabel 2 ØJ'!D86<0.5),"-",IFERROR('Tabel 2 ØJ'!D86/'Tabel 1 ØJ'!C84*100,"-")) -> - | F86: =IF(OR('Tabel 1 ØJ'!E84<5,'Tabel 2 ØJ'!F86<0.5),"-",IFERROR('Tabel 2 ØJ'!F86/'Tabel 1 ØJ'!E84*100,"-")) -> - | G86: =IF(OR('Tabel 1 ØJ'!E84<5,'Tabel 2 ØJ'!G86<0.5),"-",IFERROR('Tabel 2 ØJ'!G86/'Tabel 1 ØJ'!E84*100,"-")) -> - | I86: =IF(OR('Tabel 1 ØJ'!G84<5,'Tabel 2 ØJ'!I86<0.5),"-",IFERROR('Tabel 2 ØJ'!I86/'Tabel 1 ØJ'!G84*100,"-")) -> - | J86: =IF(OR('Tabel 1 ØJ'!G84<5,'Tabel 2 ØJ'!J86<0.5),"-",IFERROR('Tabel 2 ØJ'!J86/'Tabel 1 ØJ'!G84*100,"-")) -> -
A87: Psykolog | C87: =IF(OR('Tabel 1 ØJ'!C85<5,'Tabel 2 ØJ'!C87<0.5),"-",IFERROR('Tabel 2 ØJ'!C87/'Tabel 1 ØJ'!C85*100,"-")) -> 6.25 | D87: =IF(OR('Tabel 1 ØJ'!C85<5,'Tabel 2 ØJ'!D87<0.5),"-",IFERROR('Tabel 2 ØJ'!D87/'Tabel 1 ØJ'!C85*100,"-")) -> 6.248830537 | F87: =IF(OR('Tabel 1 ØJ'!E85<5,'Tabel 2 ØJ'!F87<0.5),"-",IFERROR('Tabel 2 ØJ'!F87/'Tabel 1 ØJ'!E85*100,"-")) -> 7.894736842 | G87: =IF(OR('Tabel 1 ØJ'!E85<5,'Tabel 2 ØJ'!G87<0.5),"-",IFERROR('Tabel 2 ØJ'!G87/'Tabel 1 ØJ'!E85*100,"-")) -> 7.285959551 | I87: =IF(OR('Tabel 1 ØJ'!G85<5,'Tabel 2 ØJ'!I87<0.5),"-",IFERROR('Tabel 2 ØJ'!I87/'Tabel 1 ØJ'!G85*100,"-")) -> 7.608695652 | J87: =IF(OR('Tabel 1 ØJ'!G85<5,'Tabel 2 ØJ'!J87<0.5),"-",IFERROR('Tabel 2 ØJ'!J87/'Tabel 1 ØJ'!G85*100,"-")) -> 7.105589287
A88: Jurist | C88: =IF(OR('Tabel 1 ØJ'!C86<5,'Tabel 2 ØJ'!C88<0.5),"-",IFERROR('Tabel 2 ØJ'!C88/'Tabel 1 ØJ'!C86*100,"-")) -> 2.222222222 | D88: =IF(OR('Tabel 1 ØJ'!C86<5,'Tabel 2 ØJ'!D88<0.5),"-",IFERROR('Tabel 2 ØJ'!D88/'Tabel 1 ØJ'!C86*100,"-")) -> - | F88: =IF(OR('Tabel 1 ØJ'!E86<5,'Tabel 2 ØJ'!F88<0.5),"-",IFERROR('Tabel 2 ØJ'!F88/'Tabel 1 ØJ'!E86*100,"-")) -> - | G88: =IF(OR('Tabel 1 ØJ'!E86<5,'Tabel 2 ØJ'!G88<0.5),"-",IFERROR('Tabel 2 ØJ'!G88/'Tabel 1 ØJ'!E86*100,"-")) -> - | I88: =IF(OR('Tabel 1 ØJ'!G86<5,'Tabel 2 ØJ'!I88<0.5),"-",IFERROR('Tabel 2 ØJ'!I88/'Tabel 1 ØJ'!G86*100,"-")) -> 0.6802721088 | J88: =IF(OR('Tabel 1 ØJ'!G86<5,'Tabel 2 ØJ'!J88<0.5),"-",IFERROR('Tabel 2 ØJ'!J88/'Tabel 1 ØJ'!G86*100,"-")) -> -
A89: Økonom | C89: =IF(OR('Tabel 1 ØJ'!C87<5,'Tabel 2 ØJ'!C89<0.5),"-",IFERROR('Tabel 2 ØJ'!C89/'Tabel 1 ØJ'!C87*100,"-")) -> - | D89: =IF(OR('Tabel 1 ØJ'!C87<5,'Tabel 2 ØJ'!D89<0.5),"-",IFERROR('Tabel 2 ØJ'!D89/'Tabel 1 ØJ'!C87*100,"-")) -> - | F89: =IF(OR('Tabel 1 ØJ'!E87<5,'Tabel 2 ØJ'!F89<0.5),"-",IFERROR('Tabel 2 ØJ'!F89/'Tabel 1 ØJ'!E87*100,"-")) -> - | G89: =IF(OR('Tabel 1 ØJ'!E87<5,'Tabel 2 ØJ'!G89<0.5),"-",IFERROR('Tabel 2 ØJ'!G89/'Tabel 1 ØJ'!E87*100,"-")) -> - | I89: =IF(OR('Tabel 1 ØJ'!G87<5,'Tabel 2 ØJ'!I89<0.5),"-",IFERROR('Tabel 2 ØJ'!I89/'Tabel 1 ØJ'!G87*100,"-")) -> - | J89: =IF(OR('Tabel 1 ØJ'!G87<5,'Tabel 2 ØJ'!J89<0.5),"-",IFERROR('Tabel 2 ØJ'!J89/'Tabel 1 ØJ'!G87*100,"-")) -> -
A90: Samf. Adm. | C90: =IF(OR('Tabel 1 ØJ'!C88<5,'Tabel 2 ØJ'!C90<0.5),"-",IFERROR('Tabel 2 ØJ'!C90/'Tabel 1 ØJ'!C88*100,"-")) -> 5.194805195 | D90: =IF(OR('Tabel 1 ØJ'!C88<5,'Tabel 2 ØJ'!D90<0.5),"-",IFERROR('Tabel 2 ØJ'!D90/'Tabel 1 ØJ'!C88*100,"-")) -> 4.774244031 | F90: =IF(OR('Tabel 1 ØJ'!E88<5,'Tabel 2 ØJ'!F90<0.5),"-",IFERROR('Tabel 2 ØJ'!F90/'Tabel 1 ØJ'!E88*100,"-")) -> 11.2244898 | G90: =IF(OR('Tabel 1 ØJ'!E88<5,'Tabel 2 ØJ'!G90<0.5),"-",IFERROR('Tabel 2 ØJ'!G90/'Tabel 1 ØJ'!E88*100,"-")) -> 9.964779275 | I90: =IF(OR('Tabel 1 ØJ'!G88<5,'Tabel 2 ØJ'!I90<0.5),"-",IFERROR('Tabel 2 ØJ'!I90/'Tabel 1 ØJ'!G88*100,"-")) -> 8.571428571 | J90: =IF(OR('Tabel 1 ØJ'!G88<5,'Tabel 2 ØJ'!J90<0.5),"-",IFERROR('Tabel 2 ØJ'!J90/'Tabel 1 ØJ'!G88*100,"-")) -> 7.680943768
A91: Cand. Merc. | C91: =IF(OR('Tabel 1 ØJ'!C89<5,'Tabel 2 ØJ'!C91<0.5),"-",IFERROR('Tabel 2 ØJ'!C91/'Tabel 1 ØJ'!C89*100,"-")) -> 3.755868545 | D91: =IF(OR('Tabel 1 ØJ'!C89<5,'Tabel 2 ØJ'!D91<0.5),"-",IFERROR('Tabel 2 ØJ'!D91/'Tabel 1 ØJ'!C89*100,"-")) -> 3.711827923 | F91: =IF(OR('Tabel 1 ØJ'!E89<5,'Tabel 2 ØJ'!F91<0.5),"-",IFERROR('Tabel 2 ØJ'!F91/'Tabel 1 ØJ'!E89*100,"-")) -> 4.858299595 | G91: =IF(OR('Tabel 1 ØJ'!E89<5,'Tabel 2 ØJ'!G91<0.5),"-",IFERROR('Tabel 2 ØJ'!G91/'Tabel 1 ØJ'!E89*100,"-")) -> 4.603359821 | I91: =IF(OR('Tabel 1 ØJ'!G89<5,'Tabel 2 ØJ'!I91<0.5),"-",IFERROR('Tabel 2 ØJ'!I91/'Tabel 1 ØJ'!G89*100,"-")) -> 4.347826087 | J91: =IF(OR('Tabel 1 ØJ'!G89<5,'Tabel 2 ØJ'!J91<0.5),"-",IFERROR('Tabel 2 ØJ'!J91/'Tabel 1 ØJ'!G89*100,"-")) -> 4.19054179
A92: HA | C92: =IF(OR('Tabel 1 ØJ'!C90<5,'Tabel 2 ØJ'!C92<0.5),"-",IFERROR('Tabel 2 ØJ'!C92/'Tabel 1 ØJ'!C90*100,"-")) -> 11.53846154 | D92: =IF(OR('Tabel 1 ØJ'!C90<5,'Tabel 2 ØJ'!D92<0.5),"-",IFERROR('Tabel 2 ØJ'!D92/'Tabel 1 ØJ'!C90*100,"-")) -> 9.236958389 | F92: =IF(OR('Tabel 1 ØJ'!E90<5,'Tabel 2 ØJ'!F92<0.5),"-",IFERROR('Tabel 2 ØJ'!F92/'Tabel 1 ØJ'!E90*100,"-")) -> 15.2173913 | G92: =IF(OR('Tabel 1 ØJ'!E90<5,'Tabel 2 ØJ'!G92<0.5),"-",IFERROR('Tabel 2 ØJ'!G92/'Tabel 1 ØJ'!E90*100,"-")) -> 14.71286125 | I92: =IF(OR('Tabel 1 ØJ'!G90<5,'Tabel 2 ØJ'!I92<0.5),"-",IFERROR('Tabel 2 ØJ'!I92/'Tabel 1 ØJ'!G90*100,"-")) -> 13.26530612 | J92: =IF(OR('Tabel 1 ØJ'!G90<5,'Tabel 2 ØJ'!J92<0.5),"-",IFERROR('Tabel 2 ØJ'!J92/'Tabel 1 ØJ'!G90*100,"-")) -> 11.80728014
A93: HD | C93: =IF(OR('Tabel 1 ØJ'!C91<5,'Tabel 2 ØJ'!C93<0.5),"-",IFERROR('Tabel 2 ØJ'!C93/'Tabel 1 ØJ'!C91*100,"-")) -> 7.894736842 | D93: =IF(OR('Tabel 1 ØJ'!C91<5,'Tabel 2 ØJ'!D93<0.5),"-",IFERROR('Tabel 2 ØJ'!D93/'Tabel 1 ØJ'!C91*100,"-")) -> 7.893259626 | F93: =IF(OR('Tabel 1 ØJ'!E91<5,'Tabel 2 ØJ'!F93<0.5),"-",IFERROR('Tabel 2 ØJ'!F93/'Tabel 1 ØJ'!E91*100,"-")) -> 4 | G93: =IF(OR('Tabel 1 ØJ'!E91<5,'Tabel 2 ØJ'!G93<0.5),"-",IFERROR('Tabel 2 ØJ'!G93/'Tabel 1 ØJ'!E91*100,"-")) -> 3.999251544 | I93: =IF(OR('Tabel 1 ØJ'!G91<5,'Tabel 2 ØJ'!I93<0.5),"-",IFERROR('Tabel 2 ØJ'!I93/'Tabel 1 ØJ'!G91*100,"-")) -> 6.349206349 | J93: =IF(OR('Tabel 1 ØJ'!G91<5,'Tabel 2 ØJ'!J93<0.5),"-",IFERROR('Tabel 2 ØJ'!J93/'Tabel 1 ØJ'!G91*100,"-")) -> 6.348018323
A94: Komm. og Sprog | C94: =IF(OR('Tabel 1 ØJ'!C92<5,'Tabel 2 ØJ'!C94<0.5),"-",IFERROR('Tabel 2 ØJ'!C94/'Tabel 1 ØJ'!C92*100,"-")) -> 20 | D94: =IF(OR('Tabel 1 ØJ'!C92<5,'Tabel 2 ØJ'!D94<0.5),"-",IFERROR('Tabel 2 ØJ'!D94/'Tabel 1 ØJ'!C92*100,"-")) -> 19.99625772 | F94: =IF(OR('Tabel 1 ØJ'!E92<5,'Tabel 2 ØJ'!F94<0.5),"-",IFERROR('Tabel 2 ØJ'!F94/'Tabel 1 ØJ'!E92*100,"-")) -> 2.777777778 | G94: =IF(OR('Tabel 1 ØJ'!E92<5,'Tabel 2 ØJ'!G94<0.5),"-",IFERROR('Tabel 2 ØJ'!G94/'Tabel 1 ØJ'!E92*100,"-")) -> 2.456738532 | I94: =IF(OR('Tabel 1 ØJ'!G92<5,'Tabel 2 ØJ'!I94<0.5),"-",IFERROR('Tabel 2 ØJ'!I94/'Tabel 1 ØJ'!G92*100,"-")) -> 4.87804878 | J94: =IF(OR('Tabel 1 ØJ'!G92<5,'Tabel 2 ØJ'!J94<0.5),"-",IFERROR('Tabel 2 ØJ'!J94/'Tabel 1 ØJ'!G92*100,"-")) -> 4.595704287
A95: Bygningskonst. | C95: =IF(OR('Tabel 1 ØJ'!C94<5,'Tabel 2 ØJ'!C96<0.5),"-",IFERROR('Tabel 2 ØJ'!C96/'Tabel 1 ØJ'!C94*100,"-")) -> 10.52631579 | D95: =IF(OR('Tabel 1 ØJ'!C94<5,'Tabel 2 ØJ'!D96<0.5),"-",IFERROR('Tabel 2 ØJ'!D96/'Tabel 1 ØJ'!C94*100,"-")) -> 9.775889859 | F95: =IF(OR('Tabel 1 ØJ'!E94<5,'Tabel 2 ØJ'!F96<0.5),"-",IFERROR('Tabel 2 ØJ'!F96/'Tabel 1 ØJ'!E94*100,"-")) -> 15.78947368 | G95: =IF(OR('Tabel 1 ØJ'!E94<5,'Tabel 2 ØJ'!G96<0.5),"-",IFERROR('Tabel 2 ØJ'!G96/'Tabel 1 ØJ'!E94*100,"-")) -> 7.888335571 | I95: =IF(OR('Tabel 1 ØJ'!G94<5,'Tabel 2 ØJ'!I96<0.5),"-",IFERROR('Tabel 2 ØJ'!I96/'Tabel 1 ØJ'!G94*100,"-")) -> 13.15789474 | J95: =IF(OR('Tabel 1 ØJ'!G94<5,'Tabel 2 ØJ'!J96<0.5),"-",IFERROR('Tabel 2 ØJ'!J96/'Tabel 1 ØJ'!G94*100,"-")) -> 8.832112715
A96: Cand. IT. | C96: =IF(OR('Tabel 1 ØJ'!C94<5,'Tabel 2 ØJ'!C96<0.5),"-",IFERROR('Tabel 2 ØJ'!C96/'Tabel 1 ØJ'!C94*100,"-")) -> 10.52631579 | D96: =IF(OR('Tabel 1 ØJ'!C94<5,'Tabel 2 ØJ'!D96<0.5),"-",IFERROR('Tabel 2 ØJ'!D96/'Tabel 1 ØJ'!C94*100,"-")) -> 9.775889859 | F96: =IF(OR('Tabel 1 ØJ'!E94<5,'Tabel 2 ØJ'!F96<0.5),"-",IFERROR('Tabel 2 ØJ'!F96/'Tabel 1 ØJ'!E94*100,"-")) -> 15.78947368 | G96: =IF(OR('Tabel 1 ØJ'!E94<5,'Tabel 2 ØJ'!G96<0.5),"-",IFERROR('Tabel 2 ØJ'!G96/'Tabel 1 ØJ'!E94*100,"-")) -> 7.888335571 | I96: =IF(OR('Tabel 1 ØJ'!G94<5,'Tabel 2 ØJ'!I96<0.5),"-",IFERROR('Tabel 2 ØJ'!I96/'Tabel 1 ØJ'!G94*100,"-")) -> 13.15789474 | J96: =IF(OR('Tabel 1 ØJ'!G94<5,'Tabel 2 ØJ'!J96<0.5),"-",IFERROR('Tabel 2 ØJ'!J96/'Tabel 1 ØJ'!G94*100,"-")) -> 8.832112715
A97: Bac. Samf. | C97: =IF(OR('Tabel 1 ØJ'!C95<5,'Tabel 2 ØJ'!C97<0.5),"-",IFERROR('Tabel 2 ØJ'!C97/'Tabel 1 ØJ'!C95*100,"-")) -> 11.11111111 | D97: =IF(OR('Tabel 1 ØJ'!C95<5,'Tabel 2 ØJ'!D97<0.5),"-",IFERROR('Tabel 2 ØJ'!D97/'Tabel 1 ØJ'!C95*100,"-")) -> 11.10903207 | F97: =IF(OR('Tabel 1 ØJ'!E95<5,'Tabel 2 ØJ'!F97<0.5),"-",IFERROR('Tabel 2 ØJ'!F97/'Tabel 1 ØJ'!E95*100,"-")) -> 16.66666667 | G97: =IF(OR('Tabel 1 ØJ'!E95<5,'Tabel 2 ØJ'!G97<0.5),"-",IFERROR('Tabel 2 ØJ'!G97/'Tabel 1 ØJ'!E95*100,"-")) -> - | I97: =IF(OR('Tabel 1 ØJ'!G95<5,'Tabel 2 ØJ'!I97<0.5),"-",IFERROR('Tabel 2 ØJ'!I97/'Tabel 1 ØJ'!G95*100,"-")) -> 13.33333333 | J97: =IF(OR('Tabel 1 ØJ'!G95<5,'Tabel 2 ØJ'!J97<0.5),"-",IFERROR('Tabel 2 ØJ'!J97/'Tabel 1 ØJ'!G95*100,"-")) -> 9.023056612
A98: Bac. Hum. | C98: =IF(OR('Tabel 1 ØJ'!C96<5,'Tabel 2 ØJ'!C98<0.5),"-",IFERROR('Tabel 2 ØJ'!C98/'Tabel 1 ØJ'!C96*100,"-")) -> 8.333333333 | D98: =IF(OR('Tabel 1 ØJ'!C96<5,'Tabel 2 ØJ'!D98<0.5),"-",IFERROR('Tabel 2 ØJ'!D98/'Tabel 1 ØJ'!C96*100,"-")) -> 8.331774049 | F98: =IF(OR('Tabel 1 ØJ'!E96<5,'Tabel 2 ØJ'!F98<0.5),"-",IFERROR('Tabel 2 ØJ'!F98/'Tabel 1 ØJ'!E96*100,"-")) -> 21.42857143 | G98: =IF(OR('Tabel 1 ØJ'!E96<5,'Tabel 2 ØJ'!G98<0.5),"-",IFERROR('Tabel 2 ØJ'!G98/'Tabel 1 ØJ'!E96*100,"-")) -> 17.75356185 | I98: =IF(OR('Tabel 1 ØJ'!G96<5,'Tabel 2 ØJ'!I98<0.5),"-",IFERROR('Tabel 2 ØJ'!I98/'Tabel 1 ØJ'!G96*100,"-")) -> 17.5 | J98: =IF(OR('Tabel 1 ØJ'!G96<5,'Tabel 2 ØJ'!J98<0.5),"-",IFERROR('Tabel 2 ØJ'!J98/'Tabel 1 ØJ'!G96*100,"-")) -> 14.92702551
A99: Bac. Nat. | C99: =IF(OR('Tabel 1 ØJ'!C97<5,'Tabel 2 ØJ'!C99<0.5),"-",IFERROR('Tabel 2 ØJ'!C99/'Tabel 1 ØJ'!C97*100,"-")) -> 21.875 | D99: =IF(OR('Tabel 1 ØJ'!C97<5,'Tabel 2 ØJ'!D99<0.5),"-",IFERROR('Tabel 2 ØJ'!D99/'Tabel 1 ØJ'!C97*100,"-")) -> 19.95168818 | F99: =IF(OR('Tabel 1 ØJ'!E97<5,'Tabel 2 ØJ'!F99<0.5),"-",IFERROR('Tabel 2 ØJ'!F99/'Tabel 1 ØJ'!E97*100,"-")) -> 22.72727273 | G99: =IF(OR('Tabel 1 ØJ'!E97<5,'Tabel 2 ØJ'!G99<0.5),"-",IFERROR('Tabel 2 ØJ'!G99/'Tabel 1 ØJ'!E97*100,"-")) -> 22.72302013 | I99: =IF(OR('Tabel 1 ØJ'!G97<5,'Tabel 2 ØJ'!I99<0.5),"-",IFERROR('Tabel 2 ØJ'!I99/'Tabel 1 ØJ'!G97*100,"-")) -> 22.03389831 | J99: =IF(OR('Tabel 1 ØJ'!G97<5,'Tabel 2 ØJ'!J99<0.5),"-",IFERROR('Tabel 2 ØJ'!J99/'Tabel 1 ØJ'!G97*100,"-")) -> 20.46837719
A100: Andre | C100: =IF(OR('Tabel 1 ØJ'!C98<5,'Tabel 2 ØJ'!C100<0.5),"-",IFERROR('Tabel 2 ØJ'!C100/'Tabel 1 ØJ'!C98*100,"-")) -> 7.746478873 | D100: =IF(OR('Tabel 1 ØJ'!C98<5,'Tabel 2 ØJ'!D100<0.5),"-",IFERROR('Tabel 2 ØJ'!D100/'Tabel 1 ØJ'!C98*100,"-")) -> 6.208146402 | F100: =IF(OR('Tabel 1 ØJ'!E98<5,'Tabel 2 ØJ'!F100<0.5),"-",IFERROR('Tabel 2 ØJ'!F100/'Tabel 1 ØJ'!E98*100,"-")) -> 16.66666667 | G100: =IF(OR('Tabel 1 ØJ'!E98<5,'Tabel 2 ØJ'!G100<0.5),"-",IFERROR('Tabel 2 ØJ'!G100/'Tabel 1 ØJ'!E98*100,"-")) -> 15.15134838 | I100: =IF(OR('Tabel 1 ØJ'!G98<5,'Tabel 2 ØJ'!I100<0.5),"-",IFERROR('Tabel 2 ØJ'!I100/'Tabel 1 ØJ'!G98*100,"-")) -> 11.47540984 | J100: =IF(OR('Tabel 1 ØJ'!G98<5,'Tabel 2 ØJ'!J100<0.5),"-",IFERROR('Tabel 2 ØJ'!J100/'Tabel 1 ØJ'!G98*100,"-")) -> 9.94669805
A102: Total | C102: =IF(OR('Tabel 1 ØJ'!C100<5,'Tabel 2 ØJ'!C102<0.5),"-",IFERROR('Tabel 2 ØJ'!C102/'Tabel 1 ØJ'!C100*100,"-")) -> 4.805401112 | D102: =IF(OR('Tabel 1 ØJ'!C100<5,'Tabel 2 ØJ'!D102<0.5),"-",IFERROR('Tabel 2 ØJ'!D102/'Tabel 1 ØJ'!C100*100,"-")) -> 4.253595407 | F102: =IF(OR('Tabel 1 ØJ'!E100<5,'Tabel 2 ØJ'!F102<0.5),"-",IFERROR('Tabel 2 ØJ'!F102/'Tabel 1 ØJ'!E100*100,"-")) -> 7.260556128 | G102: =IF(OR('Tabel 1 ØJ'!E100<5,'Tabel 2 ØJ'!G102<0.5),"-",IFERROR('Tabel 2 ØJ'!G102/'Tabel 1 ØJ'!E100*100,"-")) -> 6.57003581 | I102: =IF(OR('Tabel 1 ØJ'!G100<5,'Tabel 2 ØJ'!I102<0.5),"-",IFERROR('Tabel 2 ØJ'!I102/'Tabel 1 ØJ'!G100*100,"-")) -> 5.874439462 | J102: =IF(OR('Tabel 1 ØJ'!G100<5,'Tabel 2 ØJ'!J102<0.5),"-",IFERROR('Tabel 2 ØJ'!J102/'Tabel 1 ØJ'!G100*100,"-")) -> 5.262233806
A104: Ingeniører i alt | C104: =IF(OR('Tabel 1 ØJ'!C102<5,'Tabel 2 ØJ'!C104<0.5),"-",IFERROR('Tabel 2 ØJ'!C104/'Tabel 1 ØJ'!C102*100,"-")) -> 2.129925453 | D104: =IF(OR('Tabel 1 ØJ'!C102<5,'Tabel 2 ØJ'!D104<0.5),"-",IFERROR('Tabel 2 ØJ'!D104/'Tabel 1 ØJ'!C102*100,"-")) -> 2.097975907 | F104: =IF(OR('Tabel 1 ØJ'!E102<5,'Tabel 2 ØJ'!F104<0.5),"-",IFERROR('Tabel 2 ØJ'!F104/'Tabel 1 ØJ'!E102*100,"-")) -> 6.666666667 | G104: =IF(OR('Tabel 1 ØJ'!E102<5,'Tabel 2 ØJ'!G104<0.5),"-",IFERROR('Tabel 2 ØJ'!G104/'Tabel 1 ØJ'!E102*100,"-")) -> 6.291785098 | I104: =IF(OR('Tabel 1 ØJ'!G102<5,'Tabel 2 ØJ'!I104<0.5),"-",IFERROR('Tabel 2 ØJ'!I104/'Tabel 1 ØJ'!G102*100,"-")) -> 3.26953748 | J104: =IF(OR('Tabel 1 ØJ'!G102<5,'Tabel 2 ØJ'!J104<0.5),"-",IFERROR('Tabel 2 ØJ'!J104/'Tabel 1 ØJ'!G102*100,"-")) -> 3.151444723
A105: Magistre i alt | C105: =IF(OR('Tabel 1 ØJ'!C103<5,'Tabel 2 ØJ'!C105<0.5),"-",IFERROR('Tabel 2 ØJ'!C105/'Tabel 1 ØJ'!C103*100,"-")) -> 7.009345794 | D105: =IF(OR('Tabel 1 ØJ'!C103<5,'Tabel 2 ØJ'!D105<0.5),"-",IFERROR('Tabel 2 ØJ'!D105/'Tabel 1 ØJ'!C103*100,"-")) -> 5.602347028 | F105: =IF(OR('Tabel 1 ØJ'!E103<5,'Tabel 2 ØJ'!F105<0.5),"-",IFERROR('Tabel 2 ØJ'!F105/'Tabel 1 ØJ'!E103*100,"-")) -> 7.197943445 | G105: =IF(OR('Tabel 1 ØJ'!E103<5,'Tabel 2 ØJ'!G105<0.5),"-",IFERROR('Tabel 2 ØJ'!G105/'Tabel 1 ØJ'!E103*100,"-")) -> 6.650807132 | I105: =IF(OR('Tabel 1 ØJ'!G103<5,'Tabel 2 ØJ'!I105<0.5),"-",IFERROR('Tabel 2 ØJ'!I105/'Tabel 1 ØJ'!G103*100,"-")) -> 7.131011609 | J105: =IF(OR('Tabel 1 ØJ'!G103<5,'Tabel 2 ØJ'!J105<0.5),"-",IFERROR('Tabel 2 ØJ'!J105/'Tabel 1 ØJ'!G103*100,"-")) -> 6.278716813
A106: DJØF'ere i alt | C106: =IF(OR('Tabel 1 ØJ'!C104<5,'Tabel 2 ØJ'!C106<0.5),"-",IFERROR('Tabel 2 ØJ'!C106/'Tabel 1 ØJ'!C104*100,"-")) -> 4.545454545 | D106: =IF(OR('Tabel 1 ØJ'!C104<5,'Tabel 2 ØJ'!D106<0.5),"-",IFERROR('Tabel 2 ØJ'!D106/'Tabel 1 ØJ'!C104*100,"-")) -> 3.942824862 | F106: =IF(OR('Tabel 1 ØJ'!E104<5,'Tabel 2 ØJ'!F106<0.5),"-",IFERROR('Tabel 2 ØJ'!F106/'Tabel 1 ØJ'!E104*100,"-")) -> 5.69259962 | G106: =IF(OR('Tabel 1 ØJ'!E104<5,'Tabel 2 ØJ'!G106<0.5),"-",IFERROR('Tabel 2 ØJ'!G106/'Tabel 1 ØJ'!E104*100,"-")) -> 5.294819473 | I106: =IF(OR('Tabel 1 ØJ'!G104<5,'Tabel 2 ØJ'!I106<0.5),"-",IFERROR('Tabel 2 ØJ'!I106/'Tabel 1 ØJ'!G104*100,"-")) -> 5.185185185 | J106: =IF(OR('Tabel 1 ØJ'!G104<5,'Tabel 2 ØJ'!J106<0.5),"-",IFERROR('Tabel 2 ØJ'!J106/'Tabel 1 ØJ'!G104*100,"-")) -> 4.696794343
A111: Syddjurs
C113: Mænd | F113: Kvinder | I113: I alt
C114: Ledigheds- berørte | D114: Gns. brutto- ledighed | F114: Ledigheds- berørte | G114: Gns. brutto- ledighed | I114: Ledigheds- berørte | J114: Gns. brutto- ledighed
A117: Civ. ing. | C117: =IF(OR('Tabel 1 ØJ'!C115<5,'Tabel 2 ØJ'!C117<0.5),"-",IFERROR('Tabel 2 ØJ'!C117/'Tabel 1 ØJ'!C115*100,"-")) -> 3.174603175 | D117: =IF(OR('Tabel 1 ØJ'!C115<5,'Tabel 2 ØJ'!D117<0.5),"-",IFERROR('Tabel 2 ØJ'!D117/'Tabel 1 ØJ'!C115*100,"-")) -> 3.174009162 | F117: =IF(OR('Tabel 1 ØJ'!E115<5,'Tabel 2 ØJ'!F117<0.5),"-",IFERROR('Tabel 2 ØJ'!F117/'Tabel 1 ØJ'!E115*100,"-")) -> 1.149425287 | G117: =IF(OR('Tabel 1 ØJ'!E115<5,'Tabel 2 ØJ'!G117<0.5),"-",IFERROR('Tabel 2 ØJ'!G117/'Tabel 1 ØJ'!E115*100,"-")) -> 0.9370042104 | I117: =IF(OR('Tabel 1 ØJ'!G115<5,'Tabel 2 ØJ'!I117<0.5),"-",IFERROR('Tabel 2 ØJ'!I117/'Tabel 1 ØJ'!G115*100,"-")) -> 2 | J117: =IF(OR('Tabel 1 ØJ'!G115<5,'Tabel 2 ØJ'!J117<0.5),"-",IFERROR('Tabel 2 ØJ'!J117/'Tabel 1 ØJ'!G115*100,"-")) -> 1.87654629
A118: Diplom ing. | C118: =IF(OR('Tabel 1 ØJ'!C116<5,'Tabel 2 ØJ'!C118<0.5),"-",IFERROR('Tabel 2 ØJ'!C118/'Tabel 1 ØJ'!C116*100,"-")) -> - | D118: =IF(OR('Tabel 1 ØJ'!C116<5,'Tabel 2 ØJ'!D118<0.5),"-",IFERROR('Tabel 2 ØJ'!D118/'Tabel 1 ØJ'!C116*100,"-")) -> - | F118: =IF(OR('Tabel 1 ØJ'!E116<5,'Tabel 2 ØJ'!F118<0.5),"-",IFERROR('Tabel 2 ØJ'!F118/'Tabel 1 ØJ'!E116*100,"-")) -> - | G118: =IF(OR('Tabel 1 ØJ'!E116<5,'Tabel 2 ØJ'!G118<0.5),"-",IFERROR('Tabel 2 ØJ'!G118/'Tabel 1 ØJ'!E116*100,"-")) -> - | I118: =IF(OR('Tabel 1 ØJ'!G116<5,'Tabel 2 ØJ'!I118<0.5),"-",IFERROR('Tabel 2 ØJ'!I118/'Tabel 1 ØJ'!G116*100,"-")) -> - | J118: =IF(OR('Tabel 1 ØJ'!G116<5,'Tabel 2 ØJ'!J118<0.5),"-",IFERROR('Tabel 2 ØJ'!J118/'Tabel 1 ØJ'!G116*100,"-")) -> -
A119: Cand. Scient. Tek. | C119: =IF(OR('Tabel 1 ØJ'!C117<5,'Tabel 2 ØJ'!C119<0.5),"-",IFERROR('Tabel 2 ØJ'!C119/'Tabel 1 ØJ'!C117*100,"-")) -> 0.9900990099 | D119: =IF(OR('Tabel 1 ØJ'!C117<5,'Tabel 2 ØJ'!D119<0.5),"-",IFERROR('Tabel 2 ØJ'!D119/'Tabel 1 ØJ'!C117*100,"-")) -> 0.9899137484 | F119: =IF(OR('Tabel 1 ØJ'!E117<5,'Tabel 2 ØJ'!F119<0.5),"-",IFERROR('Tabel 2 ØJ'!F119/'Tabel 1 ØJ'!E117*100,"-")) -> 1.731601732 | G119: =IF(OR('Tabel 1 ØJ'!E117<5,'Tabel 2 ØJ'!G119<0.5),"-",IFERROR('Tabel 2 ØJ'!G119/'Tabel 1 ØJ'!E117*100,"-")) -> 1.607345024 | I119: =IF(OR('Tabel 1 ØJ'!G117<5,'Tabel 2 ØJ'!I119<0.5),"-",IFERROR('Tabel 2 ØJ'!I119/'Tabel 1 ØJ'!G117*100,"-")) -> 1.385681293 | J119: =IF(OR('Tabel 1 ØJ'!G117<5,'Tabel 2 ØJ'!J119<0.5),"-",IFERROR('Tabel 2 ØJ'!J119/'Tabel 1 ØJ'!G117*100,"-")) -> 1.319305491
A120: MA. Hum. | C120: =IF(OR('Tabel 1 ØJ'!C118<5,'Tabel 2 ØJ'!C120<0.5),"-",IFERROR('Tabel 2 ØJ'!C120/'Tabel 1 ØJ'!C118*100,"-")) -> 23.52941176 | D120: =IF(OR('Tabel 1 ØJ'!C118<5,'Tabel 2 ØJ'!D120<0.5),"-",IFERROR('Tabel 2 ØJ'!D120/'Tabel 1 ØJ'!C118*100,"-")) -> 21.93820833 | F120: =IF(OR('Tabel 1 ØJ'!E118<5,'Tabel 2 ØJ'!F120<0.5),"-",IFERROR('Tabel 2 ØJ'!F120/'Tabel 1 ØJ'!E118*100,"-")) -> 26.76056338 | G120: =IF(OR('Tabel 1 ØJ'!E118<5,'Tabel 2 ØJ'!G120<0.5),"-",IFERROR('Tabel 2 ØJ'!G120/'Tabel 1 ØJ'!E118*100,"-")) -> 20.80480136 | I120: =IF(OR('Tabel 1 ØJ'!G118<5,'Tabel 2 ØJ'!I120<0.5),"-",IFERROR('Tabel 2 ØJ'!I120/'Tabel 1 ØJ'!G118*100,"-")) -> 25.71428571 | J120: =IF(OR('Tabel 1 ØJ'!G118<5,'Tabel 2 ØJ'!J120<0.5),"-",IFERROR('Tabel 2 ØJ'!J120/'Tabel 1 ØJ'!G118*100,"-")) -> 21.17180933
A121: MA. Nat. | C121: =IF(OR('Tabel 1 ØJ'!C119<5,'Tabel 2 ØJ'!C121<0.5),"-",IFERROR('Tabel 2 ØJ'!C121/'Tabel 1 ØJ'!C119*100,"-")) -> 4 | D121: =IF(OR('Tabel 1 ØJ'!C119<5,'Tabel 2 ØJ'!D121<0.5),"-",IFERROR('Tabel 2 ØJ'!D121/'Tabel 1 ØJ'!C119*100,"-")) -> 3.876172062 | F121: =IF(OR('Tabel 1 ØJ'!E119<5,'Tabel 2 ØJ'!F121<0.5),"-",IFERROR('Tabel 2 ØJ'!F121/'Tabel 1 ØJ'!E119*100,"-")) -> 1.181102362 | G121: =IF(OR('Tabel 1 ØJ'!E119<5,'Tabel 2 ØJ'!G121<0.5),"-",IFERROR('Tabel 2 ØJ'!G121/'Tabel 1 ØJ'!E119*100,"-")) -> 1.036003008 | I121: =IF(OR('Tabel 1 ØJ'!G119<5,'Tabel 2 ØJ'!I121<0.5),"-",IFERROR('Tabel 2 ØJ'!I121/'Tabel 1 ØJ'!G119*100,"-")) -> 1.823708207 | J121: =IF(OR('Tabel 1 ØJ'!G119<5,'Tabel 2 ØJ'!J121<0.5),"-",IFERROR('Tabel 2 ØJ'!J121/'Tabel 1 ØJ'!G119*100,"-")) -> 1.683457959
A122: MA. Ph.d. | C122: =IF(OR('Tabel 1 ØJ'!C120<5,'Tabel 2 ØJ'!C122<0.5),"-",IFERROR('Tabel 2 ØJ'!C122/'Tabel 1 ØJ'!C120*100,"-")) -> 1.408450704 | D122: =IF(OR('Tabel 1 ØJ'!C120<5,'Tabel 2 ØJ'!D122<0.5),"-",IFERROR('Tabel 2 ØJ'!D122/'Tabel 1 ØJ'!C120*100,"-")) -> 1.408187163 | F122: =IF(OR('Tabel 1 ØJ'!E120<5,'Tabel 2 ØJ'!F122<0.5),"-",IFERROR('Tabel 2 ØJ'!F122/'Tabel 1 ØJ'!E120*100,"-")) -> - | G122: =IF(OR('Tabel 1 ØJ'!E120<5,'Tabel 2 ØJ'!G122<0.5),"-",IFERROR('Tabel 2 ØJ'!G122/'Tabel 1 ØJ'!E120*100,"-")) -> - | I122: =IF(OR('Tabel 1 ØJ'!G120<5,'Tabel 2 ØJ'!I122<0.5),"-",IFERROR('Tabel 2 ØJ'!I122/'Tabel 1 ØJ'!G120*100,"-")) -> 0.5347593583 | J122: =IF(OR('Tabel 1 ØJ'!G120<5,'Tabel 2 ØJ'!J122<0.5),"-",IFERROR('Tabel 2 ØJ'!J122/'Tabel 1 ØJ'!G120*100,"-")) -> 0.5346592973
A123: MA. Samf. | C123: =IF(OR('Tabel 1 ØJ'!C121<5,'Tabel 2 ØJ'!C123<0.5),"-",IFERROR('Tabel 2 ØJ'!C123/'Tabel 1 ØJ'!C121*100,"-")) -> 8.333333333 | D123: =IF(OR('Tabel 1 ØJ'!C121<5,'Tabel 2 ØJ'!D123<0.5),"-",IFERROR('Tabel 2 ØJ'!D123/'Tabel 1 ØJ'!C121*100,"-")) -> 8.331774049 | F123: =IF(OR('Tabel 1 ØJ'!E121<5,'Tabel 2 ØJ'!F123<0.5),"-",IFERROR('Tabel 2 ØJ'!F123/'Tabel 1 ØJ'!E121*100,"-")) -> 17.39130435 | G123: =IF(OR('Tabel 1 ØJ'!E121<5,'Tabel 2 ØJ'!G123<0.5),"-",IFERROR('Tabel 2 ØJ'!G123/'Tabel 1 ØJ'!E121*100,"-")) -> 14.12033333 | I123: =IF(OR('Tabel 1 ØJ'!G121<5,'Tabel 2 ØJ'!I123<0.5),"-",IFERROR('Tabel 2 ØJ'!I123/'Tabel 1 ØJ'!G121*100,"-")) -> 14.28571429 | J123: =IF(OR('Tabel 1 ØJ'!G121<5,'Tabel 2 ØJ'!J123<0.5),"-",IFERROR('Tabel 2 ØJ'!J123/'Tabel 1 ØJ'!G121*100,"-")) -> 12.13568444
A124: Øvrige Mag. | C124: =IF(OR('Tabel 1 ØJ'!C122<5,'Tabel 2 ØJ'!C124<0.5),"-",IFERROR('Tabel 2 ØJ'!C124/'Tabel 1 ØJ'!C122*100,"-")) -> - | D124: =IF(OR('Tabel 1 ØJ'!C122<5,'Tabel 2 ØJ'!D124<0.5),"-",IFERROR('Tabel 2 ØJ'!D124/'Tabel 1 ØJ'!C122*100,"-")) -> - | F124: =IF(OR('Tabel 1 ØJ'!E122<5,'Tabel 2 ØJ'!F124<0.5),"-",IFERROR('Tabel 2 ØJ'!F124/'Tabel 1 ØJ'!E122*100,"-")) -> 13.63636364 | G124: =IF(OR('Tabel 1 ØJ'!E122<5,'Tabel 2 ØJ'!G124<0.5),"-",IFERROR('Tabel 2 ØJ'!G124/'Tabel 1 ØJ'!E122*100,"-")) -> 10.95751376 | I124: =IF(OR('Tabel 1 ØJ'!G122<5,'Tabel 2 ØJ'!I124<0.5),"-",IFERROR('Tabel 2 ØJ'!I124/'Tabel 1 ØJ'!G122*100,"-")) -> 16 | J124: =IF(OR('Tabel 1 ØJ'!G122<5,'Tabel 2 ØJ'!J124<0.5),"-",IFERROR('Tabel 2 ØJ'!J124/'Tabel 1 ØJ'!G122*100,"-")) -> 11.67092871
A125: Agronom | C125: =IF(OR('Tabel 1 ØJ'!C123<5,'Tabel 2 ØJ'!C125<0.5),"-",IFERROR('Tabel 2 ØJ'!C125/'Tabel 1 ØJ'!C123*100,"-")) -> - | D125: =IF(OR('Tabel 1 ØJ'!C123<5,'Tabel 2 ØJ'!D125<0.5),"-",IFERROR('Tabel 2 ØJ'!D125/'Tabel 1 ØJ'!C123*100,"-")) -> - | F125: =IF(OR('Tabel 1 ØJ'!E123<5,'Tabel 2 ØJ'!F125<0.5),"-",IFERROR('Tabel 2 ØJ'!F125/'Tabel 1 ØJ'!E123*100,"-")) -> - | G125: =IF(OR('Tabel 1 ØJ'!E123<5,'Tabel 2 ØJ'!G125<0.5),"-",IFERROR('Tabel 2 ØJ'!G125/'Tabel 1 ØJ'!E123*100,"-")) -> - | I125: =IF(OR('Tabel 1 ØJ'!G123<5,'Tabel 2 ØJ'!I125<0.5),"-",IFERROR('Tabel 2 ØJ'!I125/'Tabel 1 ØJ'!G123*100,"-")) -> - | J125: =IF(OR('Tabel 1 ØJ'!G123<5,'Tabel 2 ØJ'!J125<0.5),"-",IFERROR('Tabel 2 ØJ'!J125/'Tabel 1 ØJ'!G123*100,"-")) -> -
A126: Landsk. Arkt. | C126: =IF(OR('Tabel 1 ØJ'!C124<5,'Tabel 2 ØJ'!C126<0.5),"-",IFERROR('Tabel 2 ØJ'!C126/'Tabel 1 ØJ'!C124*100,"-")) -> - | D126: =IF(OR('Tabel 1 ØJ'!C124<5,'Tabel 2 ØJ'!D126<0.5),"-",IFERROR('Tabel 2 ØJ'!D126/'Tabel 1 ØJ'!C124*100,"-")) -> - | F126: =IF(OR('Tabel 1 ØJ'!E124<5,'Tabel 2 ØJ'!F126<0.5),"-",IFERROR('Tabel 2 ØJ'!F126/'Tabel 1 ØJ'!E124*100,"-")) -> - | G126: =IF(OR('Tabel 1 ØJ'!E124<5,'Tabel 2 ØJ'!G126<0.5),"-",IFERROR('Tabel 2 ØJ'!G126/'Tabel 1 ØJ'!E124*100,"-")) -> - | I126: =IF(OR('Tabel 1 ØJ'!G124<5,'Tabel 2 ØJ'!I126<0.5),"-",IFERROR('Tabel 2 ØJ'!I126/'Tabel 1 ØJ'!G124*100,"-")) -> - | J126: =IF(OR('Tabel 1 ØJ'!G124<5,'Tabel 2 ØJ'!J126<0.5),"-",IFERROR('Tabel 2 ØJ'!J126/'Tabel 1 ØJ'!G124*100,"-")) -> -
A127: Hortonom | C127: =IF(OR('Tabel 1 ØJ'!C125<5,'Tabel 2 ØJ'!C127<0.5),"-",IFERROR('Tabel 2 ØJ'!C127/'Tabel 1 ØJ'!C125*100,"-")) -> - | D127: =IF(OR('Tabel 1 ØJ'!C125<5,'Tabel 2 ØJ'!D127<0.5),"-",IFERROR('Tabel 2 ØJ'!D127/'Tabel 1 ØJ'!C125*100,"-")) -> - | F127: =IF(OR('Tabel 1 ØJ'!E125<5,'Tabel 2 ØJ'!F127<0.5),"-",IFERROR('Tabel 2 ØJ'!F127/'Tabel 1 ØJ'!E125*100,"-")) -> - | G127: =IF(OR('Tabel 1 ØJ'!E125<5,'Tabel 2 ØJ'!G127<0.5),"-",IFERROR('Tabel 2 ØJ'!G127/'Tabel 1 ØJ'!E125*100,"-")) -> - | I127: =IF(OR('Tabel 1 ØJ'!G125<5,'Tabel 2 ØJ'!I127<0.5),"-",IFERROR('Tabel 2 ØJ'!I127/'Tabel 1 ØJ'!G125*100,"-")) -> - | J127: =IF(OR('Tabel 1 ØJ'!G125<5,'Tabel 2 ØJ'!J127<0.5),"-",IFERROR('Tabel 2 ØJ'!J127/'Tabel 1 ØJ'!G125*100,"-")) -> -
A128: Forstkand. | C128: =IF(OR('Tabel 1 ØJ'!C126<5,'Tabel 2 ØJ'!C128<0.5),"-",IFERROR('Tabel 2 ØJ'!C128/'Tabel 1 ØJ'!C126*100,"-")) -> - | D128: =IF(OR('Tabel 1 ØJ'!C126<5,'Tabel 2 ØJ'!D128<0.5),"-",IFERROR('Tabel 2 ØJ'!D128/'Tabel 1 ØJ'!C126*100,"-")) -> - | F128: =IF(OR('Tabel 1 ØJ'!E126<5,'Tabel 2 ØJ'!F128<0.5),"-",IFERROR('Tabel 2 ØJ'!F128/'Tabel 1 ØJ'!E126*100,"-")) -> - | G128: =IF(OR('Tabel 1 ØJ'!E126<5,'Tabel 2 ØJ'!G128<0.5),"-",IFERROR('Tabel 2 ØJ'!G128/'Tabel 1 ØJ'!E126*100,"-")) -> - | I128: =IF(OR('Tabel 1 ØJ'!G126<5,'Tabel 2 ØJ'!I128<0.5),"-",IFERROR('Tabel 2 ØJ'!I128/'Tabel 1 ØJ'!G126*100,"-")) -> 16.66666667 | J128: =IF(OR('Tabel 1 ØJ'!G126<5,'Tabel 2 ØJ'!J128<0.5),"-",IFERROR('Tabel 2 ØJ'!J128/'Tabel 1 ØJ'!G126*100,"-")) -> 16.6635481
A129: Jordbrugsakad. | C129: =IF(OR('Tabel 1 ØJ'!C127<5,'Tabel 2 ØJ'!C129<0.5),"-",IFERROR('Tabel 2 ØJ'!C129/'Tabel 1 ØJ'!C127*100,"-")) -> 4.166666667 | D129: =IF(OR('Tabel 1 ØJ'!C127<5,'Tabel 2 ØJ'!D129<0.5),"-",IFERROR('Tabel 2 ØJ'!D129/'Tabel 1 ØJ'!C127*100,"-")) -> 4.165887025 | F129: =IF(OR('Tabel 1 ØJ'!E127<5,'Tabel 2 ØJ'!F129<0.5),"-",IFERROR('Tabel 2 ØJ'!F129/'Tabel 1 ØJ'!E127*100,"-")) -> - | G129: =IF(OR('Tabel 1 ØJ'!E127<5,'Tabel 2 ØJ'!G129<0.5),"-",IFERROR('Tabel 2 ØJ'!G129/'Tabel 1 ØJ'!E127*100,"-")) -> - | I129: =IF(OR('Tabel 1 ØJ'!G127<5,'Tabel 2 ØJ'!I129<0.5),"-",IFERROR('Tabel 2 ØJ'!I129/'Tabel 1 ØJ'!G127*100,"-")) -> 1.219512195 | J129: =IF(OR('Tabel 1 ØJ'!G127<5,'Tabel 2 ØJ'!J129<0.5),"-",IFERROR('Tabel 2 ØJ'!J129/'Tabel 1 ØJ'!G127*100,"-")) -> 1.219284007
A130: Mejeriing. | C130: =IF(OR('Tabel 1 ØJ'!C128<5,'Tabel 2 ØJ'!C130<0.5),"-",IFERROR('Tabel 2 ØJ'!C130/'Tabel 1 ØJ'!C128*100,"-")) -> - | D130: =IF(OR('Tabel 1 ØJ'!C128<5,'Tabel 2 ØJ'!D130<0.5),"-",IFERROR('Tabel 2 ØJ'!D130/'Tabel 1 ØJ'!C128*100,"-")) -> - | F130: =IF(OR('Tabel 1 ØJ'!E128<5,'Tabel 2 ØJ'!F130<0.5),"-",IFERROR('Tabel 2 ØJ'!F130/'Tabel 1 ØJ'!E128*100,"-")) -> - | G130: =IF(OR('Tabel 1 ØJ'!E128<5,'Tabel 2 ØJ'!G130<0.5),"-",IFERROR('Tabel 2 ØJ'!G130/'Tabel 1 ØJ'!E128*100,"-")) -> - | I130: =IF(OR('Tabel 1 ØJ'!G128<5,'Tabel 2 ØJ'!I130<0.5),"-",IFERROR('Tabel 2 ØJ'!I130/'Tabel 1 ØJ'!G128*100,"-")) -> - | J130: =IF(OR('Tabel 1 ØJ'!G128<5,'Tabel 2 ØJ'!J130<0.5),"-",IFERROR('Tabel 2 ØJ'!J130/'Tabel 1 ØJ'!G128*100,"-")) -> -
A131: Levn.m.kand. | C131: =IF(OR('Tabel 1 ØJ'!C129<5,'Tabel 2 ØJ'!C131<0.5),"-",IFERROR('Tabel 2 ØJ'!C131/'Tabel 1 ØJ'!C129*100,"-")) -> - | D131: =IF(OR('Tabel 1 ØJ'!C129<5,'Tabel 2 ØJ'!D131<0.5),"-",IFERROR('Tabel 2 ØJ'!D131/'Tabel 1 ØJ'!C129*100,"-")) -> - | F131: =IF(OR('Tabel 1 ØJ'!E129<5,'Tabel 2 ØJ'!F131<0.5),"-",IFERROR('Tabel 2 ØJ'!F131/'Tabel 1 ØJ'!E129*100,"-")) -> - | G131: =IF(OR('Tabel 1 ØJ'!E129<5,'Tabel 2 ØJ'!G131<0.5),"-",IFERROR('Tabel 2 ØJ'!G131/'Tabel 1 ØJ'!E129*100,"-")) -> - | I131: =IF(OR('Tabel 1 ØJ'!G129<5,'Tabel 2 ØJ'!I131<0.5),"-",IFERROR('Tabel 2 ØJ'!I131/'Tabel 1 ØJ'!G129*100,"-")) -> - | J131: =IF(OR('Tabel 1 ØJ'!G129<5,'Tabel 2 ØJ'!J131<0.5),"-",IFERROR('Tabel 2 ØJ'!J131/'Tabel 1 ØJ'!G129*100,"-")) -> -
A132: Dyrlæge | C132: =IF(OR('Tabel 1 ØJ'!C130<5,'Tabel 2 ØJ'!C132<0.5),"-",IFERROR('Tabel 2 ØJ'!C132/'Tabel 1 ØJ'!C130*100,"-")) -> - | D132: =IF(OR('Tabel 1 ØJ'!C130<5,'Tabel 2 ØJ'!D132<0.5),"-",IFERROR('Tabel 2 ØJ'!D132/'Tabel 1 ØJ'!C130*100,"-")) -> - | F132: =IF(OR('Tabel 1 ØJ'!E130<5,'Tabel 2 ØJ'!F132<0.5),"-",IFERROR('Tabel 2 ØJ'!F132/'Tabel 1 ØJ'!E130*100,"-")) -> - | G132: =IF(OR('Tabel 1 ØJ'!E130<5,'Tabel 2 ØJ'!G132<0.5),"-",IFERROR('Tabel 2 ØJ'!G132/'Tabel 1 ØJ'!E130*100,"-")) -> - | I132: =IF(OR('Tabel 1 ØJ'!G130<5,'Tabel 2 ØJ'!I132<0.5),"-",IFERROR('Tabel 2 ØJ'!I132/'Tabel 1 ØJ'!G130*100,"-")) -> - | J132: =IF(OR('Tabel 1 ØJ'!G130<5,'Tabel 2 ØJ'!J132<0.5),"-",IFERROR('Tabel 2 ØJ'!J132/'Tabel 1 ØJ'!G130*100,"-")) -> -
A133: Farmaceut | C133: =IF(OR('Tabel 1 ØJ'!C131<5,'Tabel 2 ØJ'!C133<0.5),"-",IFERROR('Tabel 2 ØJ'!C133/'Tabel 1 ØJ'!C131*100,"-")) -> - | D133: =IF(OR('Tabel 1 ØJ'!C131<5,'Tabel 2 ØJ'!D133<0.5),"-",IFERROR('Tabel 2 ØJ'!D133/'Tabel 1 ØJ'!C131*100,"-")) -> - | F133: =IF(OR('Tabel 1 ØJ'!E131<5,'Tabel 2 ØJ'!F133<0.5),"-",IFERROR('Tabel 2 ØJ'!F133/'Tabel 1 ØJ'!E131*100,"-")) -> - | G133: =IF(OR('Tabel 1 ØJ'!E131<5,'Tabel 2 ØJ'!G133<0.5),"-",IFERROR('Tabel 2 ØJ'!G133/'Tabel 1 ØJ'!E131*100,"-")) -> - | I133: =IF(OR('Tabel 1 ØJ'!G131<5,'Tabel 2 ØJ'!I133<0.5),"-",IFERROR('Tabel 2 ØJ'!I133/'Tabel 1 ØJ'!G131*100,"-")) -> - | J133: =IF(OR('Tabel 1 ØJ'!G131<5,'Tabel 2 ØJ'!J133<0.5),"-",IFERROR('Tabel 2 ØJ'!J133/'Tabel 1 ØJ'!G131*100,"-")) -> -
A134: Læge | C134: =IF(OR('Tabel 1 ØJ'!C132<5,'Tabel 2 ØJ'!C134<0.5),"-",IFERROR('Tabel 2 ØJ'!C134/'Tabel 1 ØJ'!C132*100,"-")) -> - | D134: =IF(OR('Tabel 1 ØJ'!C132<5,'Tabel 2 ØJ'!D134<0.5),"-",IFERROR('Tabel 2 ØJ'!D134/'Tabel 1 ØJ'!C132*100,"-")) -> - | F134: =IF(OR('Tabel 1 ØJ'!E132<5,'Tabel 2 ØJ'!F134<0.5),"-",IFERROR('Tabel 2 ØJ'!F134/'Tabel 1 ØJ'!E132*100,"-")) -> - | G134: =IF(OR('Tabel 1 ØJ'!E132<5,'Tabel 2 ØJ'!G134<0.5),"-",IFERROR('Tabel 2 ØJ'!G134/'Tabel 1 ØJ'!E132*100,"-")) -> - | I134: =IF(OR('Tabel 1 ØJ'!G132<5,'Tabel 2 ØJ'!I134<0.5),"-",IFERROR('Tabel 2 ØJ'!I134/'Tabel 1 ØJ'!G132*100,"-")) -> - | J134: =IF(OR('Tabel 1 ØJ'!G132<5,'Tabel 2 ØJ'!J134<0.5),"-",IFERROR('Tabel 2 ØJ'!J134/'Tabel 1 ØJ'!G132*100,"-")) -> -
A135: Tandlæge | C135: =IF(OR('Tabel 1 ØJ'!C133<5,'Tabel 2 ØJ'!C135<0.5),"-",IFERROR('Tabel 2 ØJ'!C135/'Tabel 1 ØJ'!C133*100,"-")) -> - | D135: =IF(OR('Tabel 1 ØJ'!C133<5,'Tabel 2 ØJ'!D135<0.5),"-",IFERROR('Tabel 2 ØJ'!D135/'Tabel 1 ØJ'!C133*100,"-")) -> - | F135: =IF(OR('Tabel 1 ØJ'!E133<5,'Tabel 2 ØJ'!F135<0.5),"-",IFERROR('Tabel 2 ØJ'!F135/'Tabel 1 ØJ'!E133*100,"-")) -> - | G135: =IF(OR('Tabel 1 ØJ'!E133<5,'Tabel 2 ØJ'!G135<0.5),"-",IFERROR('Tabel 2 ØJ'!G135/'Tabel 1 ØJ'!E133*100,"-")) -> - | I135: =IF(OR('Tabel 1 ØJ'!G133<5,'Tabel 2 ØJ'!I135<0.5),"-",IFERROR('Tabel 2 ØJ'!I135/'Tabel 1 ØJ'!G133*100,"-")) -> - | J135: =IF(OR('Tabel 1 ØJ'!G133<5,'Tabel 2 ØJ'!J135<0.5),"-",IFERROR('Tabel 2 ØJ'!J135/'Tabel 1 ØJ'!G133*100,"-")) -> -
A136: Arkitekt | C136: =IF(OR('Tabel 1 ØJ'!C134<5,'Tabel 2 ØJ'!C136<0.5),"-",IFERROR('Tabel 2 ØJ'!C136/'Tabel 1 ØJ'!C134*100,"-")) -> 3.703703704 | D136: =IF(OR('Tabel 1 ØJ'!C134<5,'Tabel 2 ØJ'!D136<0.5),"-",IFERROR('Tabel 2 ØJ'!D136/'Tabel 1 ØJ'!C134*100,"-")) -> 3.190179514 | F136: =IF(OR('Tabel 1 ØJ'!E134<5,'Tabel 2 ØJ'!F136<0.5),"-",IFERROR('Tabel 2 ØJ'!F136/'Tabel 1 ØJ'!E134*100,"-")) -> 6.666666667 | G136: =IF(OR('Tabel 1 ØJ'!E134<5,'Tabel 2 ØJ'!G136<0.5),"-",IFERROR('Tabel 2 ØJ'!G136/'Tabel 1 ØJ'!E134*100,"-")) -> 6.665419239 | I136: =IF(OR('Tabel 1 ØJ'!G134<5,'Tabel 2 ØJ'!I136<0.5),"-",IFERROR('Tabel 2 ØJ'!I136/'Tabel 1 ØJ'!G134*100,"-")) -> 5.882352941 | J136: =IF(OR('Tabel 1 ØJ'!G134<5,'Tabel 2 ØJ'!J136<0.5),"-",IFERROR('Tabel 2 ØJ'!J136/'Tabel 1 ØJ'!G134*100,"-")) -> 5.745502842
A137: Landinspek. | C137: =IF(OR('Tabel 1 ØJ'!C135<5,'Tabel 2 ØJ'!C137<0.5),"-",IFERROR('Tabel 2 ØJ'!C137/'Tabel 1 ØJ'!C135*100,"-")) -> - | D137: =IF(OR('Tabel 1 ØJ'!C135<5,'Tabel 2 ØJ'!D137<0.5),"-",IFERROR('Tabel 2 ØJ'!D137/'Tabel 1 ØJ'!C135*100,"-")) -> - | F137: =IF(OR('Tabel 1 ØJ'!E135<5,'Tabel 2 ØJ'!F137<0.5),"-",IFERROR('Tabel 2 ØJ'!F137/'Tabel 1 ØJ'!E135*100,"-")) -> - | G137: =IF(OR('Tabel 1 ØJ'!E135<5,'Tabel 2 ØJ'!G137<0.5),"-",IFERROR('Tabel 2 ØJ'!G137/'Tabel 1 ØJ'!E135*100,"-")) -> - | I137: =IF(OR('Tabel 1 ØJ'!G135<5,'Tabel 2 ØJ'!I137<0.5),"-",IFERROR('Tabel 2 ØJ'!I137/'Tabel 1 ØJ'!G135*100,"-")) -> - | J137: =IF(OR('Tabel 1 ØJ'!G135<5,'Tabel 2 ØJ'!J137<0.5),"-",IFERROR('Tabel 2 ØJ'!J137/'Tabel 1 ØJ'!G135*100,"-")) -> -
A138: Bibliotekar | C138: =IF(OR('Tabel 1 ØJ'!C136<5,'Tabel 2 ØJ'!C138<0.5),"-",IFERROR('Tabel 2 ØJ'!C138/'Tabel 1 ØJ'!C136*100,"-")) -> - | D138: =IF(OR('Tabel 1 ØJ'!C136<5,'Tabel 2 ØJ'!D138<0.5),"-",IFERROR('Tabel 2 ØJ'!D138/'Tabel 1 ØJ'!C136*100,"-")) -> - | F138: =IF(OR('Tabel 1 ØJ'!E136<5,'Tabel 2 ØJ'!F138<0.5),"-",IFERROR('Tabel 2 ØJ'!F138/'Tabel 1 ØJ'!E136*100,"-")) -> 7.142857143 | G138: =IF(OR('Tabel 1 ØJ'!E136<5,'Tabel 2 ØJ'!G138<0.5),"-",IFERROR('Tabel 2 ØJ'!G138/'Tabel 1 ØJ'!E136*100,"-")) -> 6.740561877 | I138: =IF(OR('Tabel 1 ØJ'!G136<5,'Tabel 2 ØJ'!I138<0.5),"-",IFERROR('Tabel 2 ØJ'!I138/'Tabel 1 ØJ'!G136*100,"-")) -> 6.25 | J138: =IF(OR('Tabel 1 ØJ'!G136<5,'Tabel 2 ØJ'!J138<0.5),"-",IFERROR('Tabel 2 ØJ'!J138/'Tabel 1 ØJ'!G136*100,"-")) -> 5.897991642
A139: Musikudd. | C139: =IF(OR('Tabel 1 ØJ'!C137<5,'Tabel 2 ØJ'!C139<0.5),"-",IFERROR('Tabel 2 ØJ'!C139/'Tabel 1 ØJ'!C137*100,"-")) -> - | D139: =IF(OR('Tabel 1 ØJ'!C137<5,'Tabel 2 ØJ'!D139<0.5),"-",IFERROR('Tabel 2 ØJ'!D139/'Tabel 1 ØJ'!C137*100,"-")) -> - | F139: =IF(OR('Tabel 1 ØJ'!E137<5,'Tabel 2 ØJ'!F139<0.5),"-",IFERROR('Tabel 2 ØJ'!F139/'Tabel 1 ØJ'!E137*100,"-")) -> - | G139: =IF(OR('Tabel 1 ØJ'!E137<5,'Tabel 2 ØJ'!G139<0.5),"-",IFERROR('Tabel 2 ØJ'!G139/'Tabel 1 ØJ'!E137*100,"-")) -> - | I139: =IF(OR('Tabel 1 ØJ'!G137<5,'Tabel 2 ØJ'!I139<0.5),"-",IFERROR('Tabel 2 ØJ'!I139/'Tabel 1 ØJ'!G137*100,"-")) -> - | J139: =IF(OR('Tabel 1 ØJ'!G137<5,'Tabel 2 ØJ'!J139<0.5),"-",IFERROR('Tabel 2 ØJ'!J139/'Tabel 1 ØJ'!G137*100,"-")) -> -
A140: Teolog | C140: =IF(OR('Tabel 1 ØJ'!C138<5,'Tabel 2 ØJ'!C140<0.5),"-",IFERROR('Tabel 2 ØJ'!C140/'Tabel 1 ØJ'!C138*100,"-")) -> - | D140: =IF(OR('Tabel 1 ØJ'!C138<5,'Tabel 2 ØJ'!D140<0.5),"-",IFERROR('Tabel 2 ØJ'!D140/'Tabel 1 ØJ'!C138*100,"-")) -> - | F140: =IF(OR('Tabel 1 ØJ'!E138<5,'Tabel 2 ØJ'!F140<0.5),"-",IFERROR('Tabel 2 ØJ'!F140/'Tabel 1 ØJ'!E138*100,"-")) -> 5 | G140: =IF(OR('Tabel 1 ØJ'!E138<5,'Tabel 2 ØJ'!G140<0.5),"-",IFERROR('Tabel 2 ØJ'!G140/'Tabel 1 ØJ'!E138*100,"-")) -> 4.99906443 | I140: =IF(OR('Tabel 1 ØJ'!G138<5,'Tabel 2 ØJ'!I140<0.5),"-",IFERROR('Tabel 2 ØJ'!I140/'Tabel 1 ØJ'!G138*100,"-")) -> 4.166666667 | J140: =IF(OR('Tabel 1 ØJ'!G138<5,'Tabel 2 ØJ'!J140<0.5),"-",IFERROR('Tabel 2 ØJ'!J140/'Tabel 1 ØJ'!G138*100,"-")) -> 4.165887025
A141: Psykolog | C141: =IF(OR('Tabel 1 ØJ'!C139<5,'Tabel 2 ØJ'!C141<0.5),"-",IFERROR('Tabel 2 ØJ'!C141/'Tabel 1 ØJ'!C139*100,"-")) -> 10 | D141: =IF(OR('Tabel 1 ØJ'!C139<5,'Tabel 2 ØJ'!D141<0.5),"-",IFERROR('Tabel 2 ØJ'!D141/'Tabel 1 ØJ'!C139*100,"-")) -> 9.998128859 | F141: =IF(OR('Tabel 1 ØJ'!E139<5,'Tabel 2 ØJ'!F141<0.5),"-",IFERROR('Tabel 2 ØJ'!F141/'Tabel 1 ØJ'!E139*100,"-")) -> 1.470588235 | G141: =IF(OR('Tabel 1 ØJ'!E139<5,'Tabel 2 ØJ'!G141<0.5),"-",IFERROR('Tabel 2 ØJ'!G141/'Tabel 1 ØJ'!E139*100,"-")) -> 1.130939496 | I141: =IF(OR('Tabel 1 ØJ'!G139<5,'Tabel 2 ØJ'!I141<0.5),"-",IFERROR('Tabel 2 ØJ'!I141/'Tabel 1 ØJ'!G139*100,"-")) -> 2.564102564 | J141: =IF(OR('Tabel 1 ØJ'!G139<5,'Tabel 2 ØJ'!J141<0.5),"-",IFERROR('Tabel 2 ØJ'!J141/'Tabel 1 ØJ'!G139*100,"-")) -> 2.267758645
A142: Jurist | C142: =IF(OR('Tabel 1 ØJ'!C140<5,'Tabel 2 ØJ'!C142<0.5),"-",IFERROR('Tabel 2 ØJ'!C142/'Tabel 1 ØJ'!C140*100,"-")) -> - | D142: =IF(OR('Tabel 1 ØJ'!C140<5,'Tabel 2 ØJ'!D142<0.5),"-",IFERROR('Tabel 2 ØJ'!D142/'Tabel 1 ØJ'!C140*100,"-")) -> - | F142: =IF(OR('Tabel 1 ØJ'!E140<5,'Tabel 2 ØJ'!F142<0.5),"-",IFERROR('Tabel 2 ØJ'!F142/'Tabel 1 ØJ'!E140*100,"-")) -> - | G142: =IF(OR('Tabel 1 ØJ'!E140<5,'Tabel 2 ØJ'!G142<0.5),"-",IFERROR('Tabel 2 ØJ'!G142/'Tabel 1 ØJ'!E140*100,"-")) -> - | I142: =IF(OR('Tabel 1 ØJ'!G140<5,'Tabel 2 ØJ'!I142<0.5),"-",IFERROR('Tabel 2 ØJ'!I142/'Tabel 1 ØJ'!G140*100,"-")) -> - | J142: =IF(OR('Tabel 1 ØJ'!G140<5,'Tabel 2 ØJ'!J142<0.5),"-",IFERROR('Tabel 2 ØJ'!J142/'Tabel 1 ØJ'!G140*100,"-")) -> -
A143: Økonom | C143: =IF(OR('Tabel 1 ØJ'!C141<5,'Tabel 2 ØJ'!C143<0.5),"-",IFERROR('Tabel 2 ØJ'!C143/'Tabel 1 ØJ'!C141*100,"-")) -> 11.76470588 | D143: =IF(OR('Tabel 1 ØJ'!C141<5,'Tabel 2 ØJ'!D143<0.5),"-",IFERROR('Tabel 2 ØJ'!D143/'Tabel 1 ØJ'!C141*100,"-")) -> 11.76250454 | F143: =IF(OR('Tabel 1 ØJ'!E141<5,'Tabel 2 ØJ'!F143<0.5),"-",IFERROR('Tabel 2 ØJ'!F143/'Tabel 1 ØJ'!E141*100,"-")) -> - | G143: =IF(OR('Tabel 1 ØJ'!E141<5,'Tabel 2 ØJ'!G143<0.5),"-",IFERROR('Tabel 2 ØJ'!G143/'Tabel 1 ØJ'!E141*100,"-")) -> - | I143: =IF(OR('Tabel 1 ØJ'!G141<5,'Tabel 2 ØJ'!I143<0.5),"-",IFERROR('Tabel 2 ØJ'!I143/'Tabel 1 ØJ'!G141*100,"-")) -> 4.545454545 | J143: =IF(OR('Tabel 1 ØJ'!G141<5,'Tabel 2 ØJ'!J143<0.5),"-",IFERROR('Tabel 2 ØJ'!J143/'Tabel 1 ØJ'!G141*100,"-")) -> 4.544604027
A144: Samf. Adm. | C144: =IF(OR('Tabel 1 ØJ'!C142<5,'Tabel 2 ØJ'!C144<0.5),"-",IFERROR('Tabel 2 ØJ'!C144/'Tabel 1 ØJ'!C142*100,"-")) -> 12.5 | D144: =IF(OR('Tabel 1 ØJ'!C142<5,'Tabel 2 ØJ'!D144<0.5),"-",IFERROR('Tabel 2 ØJ'!D144/'Tabel 1 ØJ'!C142*100,"-")) -> 8.781367596 | F144: =IF(OR('Tabel 1 ØJ'!E142<5,'Tabel 2 ØJ'!F144<0.5),"-",IFERROR('Tabel 2 ØJ'!F144/'Tabel 1 ØJ'!E142*100,"-")) -> 7.042253521 | G144: =IF(OR('Tabel 1 ØJ'!E142<5,'Tabel 2 ØJ'!G144<0.5),"-",IFERROR('Tabel 2 ØJ'!G144/'Tabel 1 ØJ'!E142*100,"-")) -> 5.777696178 | I144: =IF(OR('Tabel 1 ØJ'!G142<5,'Tabel 2 ØJ'!I144<0.5),"-",IFERROR('Tabel 2 ØJ'!I144/'Tabel 1 ØJ'!G142*100,"-")) -> 8.421052632 | J144: =IF(OR('Tabel 1 ØJ'!G142<5,'Tabel 2 ØJ'!J144<0.5),"-",IFERROR('Tabel 2 ØJ'!J144/'Tabel 1 ØJ'!G142*100,"-")) -> 6.536518431
A145: Cand. Merc. | C145: =IF(OR('Tabel 1 ØJ'!C143<5,'Tabel 2 ØJ'!C145<0.5),"-",IFERROR('Tabel 2 ØJ'!C145/'Tabel 1 ØJ'!C143*100,"-")) -> 7.936507937 | D145: =IF(OR('Tabel 1 ØJ'!C143<5,'Tabel 2 ØJ'!D145<0.5),"-",IFERROR('Tabel 2 ØJ'!D145/'Tabel 1 ØJ'!C143*100,"-")) -> 6.8242187 | F145: =IF(OR('Tabel 1 ØJ'!E143<5,'Tabel 2 ØJ'!F145<0.5),"-",IFERROR('Tabel 2 ØJ'!F145/'Tabel 1 ØJ'!E143*100,"-")) -> 1.6 | G145: =IF(OR('Tabel 1 ØJ'!E143<5,'Tabel 2 ØJ'!G145<0.5),"-",IFERROR('Tabel 2 ØJ'!G145/'Tabel 1 ØJ'!E143*100,"-")) -> 0.8881681532 | I145: =IF(OR('Tabel 1 ØJ'!G143<5,'Tabel 2 ØJ'!I145<0.5),"-",IFERROR('Tabel 2 ØJ'!I145/'Tabel 1 ØJ'!G143*100,"-")) -> 3.723404255 | J145: =IF(OR('Tabel 1 ØJ'!G143<5,'Tabel 2 ØJ'!J145<0.5),"-",IFERROR('Tabel 2 ØJ'!J145/'Tabel 1 ØJ'!G143*100,"-")) -> 2.877376581
A146: HA | C146: =IF(OR('Tabel 1 ØJ'!C144<5,'Tabel 2 ØJ'!C146<0.5),"-",IFERROR('Tabel 2 ØJ'!C146/'Tabel 1 ØJ'!C144*100,"-")) -> 7.142857143 | D146: =IF(OR('Tabel 1 ØJ'!C144<5,'Tabel 2 ØJ'!D146<0.5),"-",IFERROR('Tabel 2 ØJ'!D146/'Tabel 1 ØJ'!C144*100,"-")) -> 7.141520614 | F146: =IF(OR('Tabel 1 ØJ'!E144<5,'Tabel 2 ØJ'!F146<0.5),"-",IFERROR('Tabel 2 ØJ'!F146/'Tabel 1 ØJ'!E144*100,"-")) -> 5.263157895 | G146: =IF(OR('Tabel 1 ØJ'!E144<5,'Tabel 2 ØJ'!G146<0.5),"-",IFERROR('Tabel 2 ØJ'!G146/'Tabel 1 ØJ'!E144*100,"-")) -> 4.068910504 | I146: =IF(OR('Tabel 1 ØJ'!G144<5,'Tabel 2 ØJ'!I146<0.5),"-",IFERROR('Tabel 2 ØJ'!I146/'Tabel 1 ØJ'!G144*100,"-")) -> 5.769230769 | J146: =IF(OR('Tabel 1 ØJ'!G144<5,'Tabel 2 ØJ'!J146<0.5),"-",IFERROR('Tabel 2 ØJ'!J146/'Tabel 1 ØJ'!G144*100,"-")) -> 4.896151687
A147: HD | C147: =IF(OR('Tabel 1 ØJ'!C145<5,'Tabel 2 ØJ'!C147<0.5),"-",IFERROR('Tabel 2 ØJ'!C147/'Tabel 1 ØJ'!C145*100,"-")) -> 8.333333333 | D147: =IF(OR('Tabel 1 ØJ'!C145<5,'Tabel 2 ØJ'!D147<0.5),"-",IFERROR('Tabel 2 ØJ'!D147/'Tabel 1 ØJ'!C145*100,"-")) -> 8.331774049 | F147: =IF(OR('Tabel 1 ØJ'!E145<5,'Tabel 2 ØJ'!F147<0.5),"-",IFERROR('Tabel 2 ØJ'!F147/'Tabel 1 ØJ'!E145*100,"-")) -> - | G147: =IF(OR('Tabel 1 ØJ'!E145<5,'Tabel 2 ØJ'!G147<0.5),"-",IFERROR('Tabel 2 ØJ'!G147/'Tabel 1 ØJ'!E145*100,"-")) -> - | I147: =IF(OR('Tabel 1 ØJ'!G145<5,'Tabel 2 ØJ'!I147<0.5),"-",IFERROR('Tabel 2 ØJ'!I147/'Tabel 1 ØJ'!G145*100,"-")) -> 2.702702703 | J147: =IF(OR('Tabel 1 ØJ'!G145<5,'Tabel 2 ØJ'!J147<0.5),"-",IFERROR('Tabel 2 ØJ'!J147/'Tabel 1 ØJ'!G145*100,"-")) -> 2.702196989
A148: Komm. og Sprog | C148: =IF(OR('Tabel 1 ØJ'!C146<5,'Tabel 2 ØJ'!C148<0.5),"-",IFERROR('Tabel 2 ØJ'!C148/'Tabel 1 ØJ'!C146*100,"-")) -> - | D148: =IF(OR('Tabel 1 ØJ'!C146<5,'Tabel 2 ØJ'!D148<0.5),"-",IFERROR('Tabel 2 ØJ'!D148/'Tabel 1 ØJ'!C146*100,"-")) -> - | F148: =IF(OR('Tabel 1 ØJ'!E146<5,'Tabel 2 ØJ'!F148<0.5),"-",IFERROR('Tabel 2 ØJ'!F148/'Tabel 1 ØJ'!E146*100,"-")) -> 7.317073171 | G148: =IF(OR('Tabel 1 ØJ'!E146<5,'Tabel 2 ØJ'!G148<0.5),"-",IFERROR('Tabel 2 ØJ'!G148/'Tabel 1 ØJ'!E146*100,"-")) -> 5.176822803 | I148: =IF(OR('Tabel 1 ØJ'!G146<5,'Tabel 2 ØJ'!I148<0.5),"-",IFERROR('Tabel 2 ØJ'!I148/'Tabel 1 ØJ'!G146*100,"-")) -> 8.888888889 | J148: =IF(OR('Tabel 1 ØJ'!G146<5,'Tabel 2 ØJ'!J148<0.5),"-",IFERROR('Tabel 2 ØJ'!J148/'Tabel 1 ØJ'!G146*100,"-")) -> 6.938467189
A149: Bygningskonst. | C149: =IF(OR('Tabel 1 ØJ'!C147<5,'Tabel 2 ØJ'!C149<0.5),"-",IFERROR('Tabel 2 ØJ'!C149/'Tabel 1 ØJ'!C147*100,"-")) -> 1.639344262 | D149: =IF(OR('Tabel 1 ØJ'!C147<5,'Tabel 2 ØJ'!D149<0.5),"-",IFERROR('Tabel 2 ØJ'!D149/'Tabel 1 ØJ'!C147*100,"-")) -> 1.639344262 | F149: =IF(OR('Tabel 1 ØJ'!E147<5,'Tabel 2 ØJ'!F149<0.5),"-",IFERROR('Tabel 2 ØJ'!F149/'Tabel 1 ØJ'!E147*100,"-")) -> - | G149: =IF(OR('Tabel 1 ØJ'!E147<5,'Tabel 2 ØJ'!G149<0.5),"-",IFERROR('Tabel 2 ØJ'!G149/'Tabel 1 ØJ'!E147*100,"-")) -> - | I149: =IF(OR('Tabel 1 ØJ'!G147<5,'Tabel 2 ØJ'!I149<0.5),"-",IFERROR('Tabel 2 ØJ'!I149/'Tabel 1 ØJ'!G147*100,"-")) -> 0.7407407407 | J149: =IF(OR('Tabel 1 ØJ'!G147<5,'Tabel 2 ØJ'!J149<0.5),"-",IFERROR('Tabel 2 ØJ'!J149/'Tabel 1 ØJ'!G147*100,"-")) -> 0.7407407407
A150: Cand. IT. | C150: =IF(OR('Tabel 1 ØJ'!C148<5,'Tabel 2 ØJ'!C150<0.5),"-",IFERROR('Tabel 2 ØJ'!C150/'Tabel 1 ØJ'!C148*100,"-")) -> 14.28571429 | D150: =IF(OR('Tabel 1 ØJ'!C148<5,'Tabel 2 ØJ'!D150<0.5),"-",IFERROR('Tabel 2 ØJ'!D150/'Tabel 1 ØJ'!C148*100,"-")) -> 10.71896357 | F150: =IF(OR('Tabel 1 ØJ'!E148<5,'Tabel 2 ØJ'!F150<0.5),"-",IFERROR('Tabel 2 ØJ'!F150/'Tabel 1 ØJ'!E148*100,"-")) -> - | G150: =IF(OR('Tabel 1 ØJ'!E148<5,'Tabel 2 ØJ'!G150<0.5),"-",IFERROR('Tabel 2 ØJ'!G150/'Tabel 1 ØJ'!E148*100,"-")) -> - | I150: =IF(OR('Tabel 1 ØJ'!G148<5,'Tabel 2 ØJ'!I150<0.5),"-",IFERROR('Tabel 2 ØJ'!I150/'Tabel 1 ØJ'!G148*100,"-")) -> 5.555555556 | J150: =IF(OR('Tabel 1 ØJ'!G148<5,'Tabel 2 ØJ'!J150<0.5),"-",IFERROR('Tabel 2 ØJ'!J150/'Tabel 1 ØJ'!G148*100,"-")) -> 4.168485831
A151: Bac. Samf. | C151: =IF(OR('Tabel 1 ØJ'!C149<5,'Tabel 2 ØJ'!C151<0.5),"-",IFERROR('Tabel 2 ØJ'!C151/'Tabel 1 ØJ'!C149*100,"-")) -> - | D151: =IF(OR('Tabel 1 ØJ'!C149<5,'Tabel 2 ØJ'!D151<0.5),"-",IFERROR('Tabel 2 ØJ'!D151/'Tabel 1 ØJ'!C149*100,"-")) -> - | F151: =IF(OR('Tabel 1 ØJ'!E149<5,'Tabel 2 ØJ'!F151<0.5),"-",IFERROR('Tabel 2 ØJ'!F151/'Tabel 1 ØJ'!E149*100,"-")) -> - | G151: =IF(OR('Tabel 1 ØJ'!E149<5,'Tabel 2 ØJ'!G151<0.5),"-",IFERROR('Tabel 2 ØJ'!G151/'Tabel 1 ØJ'!E149*100,"-")) -> - | I151: =IF(OR('Tabel 1 ØJ'!G149<5,'Tabel 2 ØJ'!I151<0.5),"-",IFERROR('Tabel 2 ØJ'!I151/'Tabel 1 ØJ'!G149*100,"-")) -> - | J151: =IF(OR('Tabel 1 ØJ'!G149<5,'Tabel 2 ØJ'!J151<0.5),"-",IFERROR('Tabel 2 ØJ'!J151/'Tabel 1 ØJ'!G149*100,"-")) -> -
A152: Bac. Hum. | C152: =IF(OR('Tabel 1 ØJ'!C150<5,'Tabel 2 ØJ'!C152<0.5),"-",IFERROR('Tabel 2 ØJ'!C152/'Tabel 1 ØJ'!C150*100,"-")) -> 9.090909091 | D152: =IF(OR('Tabel 1 ØJ'!C150<5,'Tabel 2 ØJ'!D152<0.5),"-",IFERROR('Tabel 2 ØJ'!D152/'Tabel 1 ØJ'!C150*100,"-")) -> 9.089208054 | F152: =IF(OR('Tabel 1 ØJ'!E150<5,'Tabel 2 ØJ'!F152<0.5),"-",IFERROR('Tabel 2 ØJ'!F152/'Tabel 1 ØJ'!E150*100,"-")) -> 16.66666667 | G152: =IF(OR('Tabel 1 ØJ'!E150<5,'Tabel 2 ØJ'!G152<0.5),"-",IFERROR('Tabel 2 ØJ'!G152/'Tabel 1 ØJ'!E150*100,"-")) -> 16.15764708 | I152: =IF(OR('Tabel 1 ØJ'!G150<5,'Tabel 2 ØJ'!I152<0.5),"-",IFERROR('Tabel 2 ØJ'!I152/'Tabel 1 ØJ'!G150*100,"-")) -> 13.79310345 | J152: =IF(OR('Tabel 1 ØJ'!G150<5,'Tabel 2 ØJ'!J152<0.5),"-",IFERROR('Tabel 2 ØJ'!J152/'Tabel 1 ØJ'!G150*100,"-")) -> 13.47651503
A153: Bac. Nat. | C153: =IF(OR('Tabel 1 ØJ'!C151<5,'Tabel 2 ØJ'!C153<0.5),"-",IFERROR('Tabel 2 ØJ'!C153/'Tabel 1 ØJ'!C151*100,"-")) -> - | D153: =IF(OR('Tabel 1 ØJ'!C151<5,'Tabel 2 ØJ'!D153<0.5),"-",IFERROR('Tabel 2 ØJ'!D153/'Tabel 1 ØJ'!C151*100,"-")) -> - | F153: =IF(OR('Tabel 1 ØJ'!E151<5,'Tabel 2 ØJ'!F153<0.5),"-",IFERROR('Tabel 2 ØJ'!F153/'Tabel 1 ØJ'!E151*100,"-")) -> - | G153: =IF(OR('Tabel 1 ØJ'!E151<5,'Tabel 2 ØJ'!G153<0.5),"-",IFERROR('Tabel 2 ØJ'!G153/'Tabel 1 ØJ'!E151*100,"-")) -> - | I153: =IF(OR('Tabel 1 ØJ'!G151<5,'Tabel 2 ØJ'!I153<0.5),"-",IFERROR('Tabel 2 ØJ'!I153/'Tabel 1 ØJ'!G151*100,"-")) -> - | J153: =IF(OR('Tabel 1 ØJ'!G151<5,'Tabel 2 ØJ'!J153<0.5),"-",IFERROR('Tabel 2 ØJ'!J153/'Tabel 1 ØJ'!G151*100,"-")) -> -
A154: Andre | C154: =IF(OR('Tabel 1 ØJ'!C152<5,'Tabel 2 ØJ'!C154<0.5),"-",IFERROR('Tabel 2 ØJ'!C154/'Tabel 1 ØJ'!C152*100,"-")) -> 11.32075472 | D154: =IF(OR('Tabel 1 ØJ'!C152<5,'Tabel 2 ØJ'!D154<0.5),"-",IFERROR('Tabel 2 ØJ'!D154/'Tabel 1 ØJ'!C152*100,"-")) -> 10.23831743 | F154: =IF(OR('Tabel 1 ØJ'!E152<5,'Tabel 2 ØJ'!F154<0.5),"-",IFERROR('Tabel 2 ØJ'!F154/'Tabel 1 ØJ'!E152*100,"-")) -> 3.883495146 | G154: =IF(OR('Tabel 1 ØJ'!E152<5,'Tabel 2 ØJ'!G154<0.5),"-",IFERROR('Tabel 2 ØJ'!G154/'Tabel 1 ØJ'!E152*100,"-")) -> 2.563281194 | I154: =IF(OR('Tabel 1 ØJ'!G152<5,'Tabel 2 ØJ'!I154<0.5),"-",IFERROR('Tabel 2 ØJ'!I154/'Tabel 1 ØJ'!G152*100,"-")) -> 6.41025641 | J154: =IF(OR('Tabel 1 ØJ'!G152<5,'Tabel 2 ØJ'!J154<0.5),"-",IFERROR('Tabel 2 ØJ'!J154/'Tabel 1 ØJ'!G152*100,"-")) -> 5.170825557
A156: Total | C156: =IF(OR('Tabel 1 ØJ'!C154<5,'Tabel 2 ØJ'!C156<0.5),"-",IFERROR('Tabel 2 ØJ'!C156/'Tabel 1 ØJ'!C154*100,"-")) -> 5.614035088 | D156: =IF(OR('Tabel 1 ØJ'!C154<5,'Tabel 2 ØJ'!D156<0.5),"-",IFERROR('Tabel 2 ØJ'!D156/'Tabel 1 ØJ'!C154*100,"-")) -> 5.042691554 | F156: =IF(OR('Tabel 1 ØJ'!E154<5,'Tabel 2 ØJ'!F156<0.5),"-",IFERROR('Tabel 2 ØJ'!F156/'Tabel 1 ØJ'!E154*100,"-")) -> 3.536794067 | G156: =IF(OR('Tabel 1 ØJ'!E154<5,'Tabel 2 ØJ'!G156<0.5),"-",IFERROR('Tabel 2 ØJ'!G156/'Tabel 1 ØJ'!E154*100,"-")) -> 2.893917206 | I156: =IF(OR('Tabel 1 ØJ'!G154<5,'Tabel 2 ØJ'!I156<0.5),"-",IFERROR('Tabel 2 ØJ'!I156/'Tabel 1 ØJ'!G154*100,"-")) -> 4.217791411 | J156: =IF(OR('Tabel 1 ØJ'!G154<5,'Tabel 2 ØJ'!J156<0.5),"-",IFERROR('Tabel 2 ØJ'!J156/'Tabel 1 ØJ'!G154*100,"-")) -> 3.598365851
A158: Ingeniører i alt | C158: =IF(OR('Tabel 1 ØJ'!C156<5,'Tabel 2 ØJ'!C158<0.5),"-",IFERROR('Tabel 2 ØJ'!C158/'Tabel 1 ØJ'!C156*100,"-")) -> 9.523809524 | D158: =IF(OR('Tabel 1 ØJ'!C156<5,'Tabel 2 ØJ'!D158<0.5),"-",IFERROR('Tabel 2 ØJ'!D158/'Tabel 1 ØJ'!C156*100,"-")) -> 8.01422463 | F158: =IF(OR('Tabel 1 ØJ'!E156<5,'Tabel 2 ØJ'!F158<0.5),"-",IFERROR('Tabel 2 ØJ'!F158/'Tabel 1 ØJ'!E156*100,"-")) -> 2.298850575 | G158: =IF(OR('Tabel 1 ØJ'!E156<5,'Tabel 2 ØJ'!G158<0.5),"-",IFERROR('Tabel 2 ØJ'!G158/'Tabel 1 ØJ'!E156*100,"-")) -> 2.086214424 | I158: =IF(OR('Tabel 1 ØJ'!G156<5,'Tabel 2 ØJ'!I158<0.5),"-",IFERROR('Tabel 2 ØJ'!I158/'Tabel 1 ØJ'!G156*100,"-")) -> 5.333333333 | J158: =IF(OR('Tabel 1 ØJ'!G156<5,'Tabel 2 ØJ'!J158<0.5),"-",IFERROR('Tabel 2 ØJ'!J158/'Tabel 1 ØJ'!G156*100,"-")) -> 4.575978711
A159: Magistre i alt | C159: =IF(OR('Tabel 1 ØJ'!C157<5,'Tabel 2 ØJ'!C159<0.5),"-",IFERROR('Tabel 2 ØJ'!C159/'Tabel 1 ØJ'!C157*100,"-")) -> 7.179487179 | D159: =IF(OR('Tabel 1 ØJ'!C157<5,'Tabel 2 ØJ'!D159<0.5),"-",IFERROR('Tabel 2 ØJ'!D159/'Tabel 1 ØJ'!C157*100,"-")) -> 6.601448615 | F159: =IF(OR('Tabel 1 ØJ'!E157<5,'Tabel 2 ØJ'!F159<0.5),"-",IFERROR('Tabel 2 ØJ'!F159/'Tabel 1 ØJ'!E157*100,"-")) -> 5.967078189 | G159: =IF(OR('Tabel 1 ØJ'!E157<5,'Tabel 2 ØJ'!G159<0.5),"-",IFERROR('Tabel 2 ØJ'!G159/'Tabel 1 ØJ'!E157*100,"-")) -> 4.745100062 | I159: =IF(OR('Tabel 1 ØJ'!G157<5,'Tabel 2 ØJ'!I159<0.5),"-",IFERROR('Tabel 2 ØJ'!I159/'Tabel 1 ØJ'!G157*100,"-")) -> 6.314243759 | J159: =IF(OR('Tabel 1 ØJ'!G157<5,'Tabel 2 ØJ'!J159<0.5),"-",IFERROR('Tabel 2 ØJ'!J159/'Tabel 1 ØJ'!G157*100,"-")) -> 5.276653613
A160: DJØF'ere i alt | C160: =IF(OR('Tabel 1 ØJ'!C158<5,'Tabel 2 ØJ'!C160<0.5),"-",IFERROR('Tabel 2 ØJ'!C160/'Tabel 1 ØJ'!C158*100,"-")) -> 8.208955224 | D160: =IF(OR('Tabel 1 ØJ'!C158<5,'Tabel 2 ØJ'!D160<0.5),"-",IFERROR('Tabel 2 ØJ'!D160/'Tabel 1 ØJ'!C158*100,"-")) -> 7.019570643 | F160: =IF(OR('Tabel 1 ØJ'!E158<5,'Tabel 2 ØJ'!F160<0.5),"-",IFERROR('Tabel 2 ØJ'!F160/'Tabel 1 ØJ'!E158*100,"-")) -> 2.866242038 | G160: =IF(OR('Tabel 1 ØJ'!E158<5,'Tabel 2 ØJ'!G160<0.5),"-",IFERROR('Tabel 2 ØJ'!G160/'Tabel 1 ØJ'!E158*100,"-")) -> 2.152407793 | I160: =IF(OR('Tabel 1 ØJ'!G158<5,'Tabel 2 ØJ'!I160<0.5),"-",IFERROR('Tabel 2 ØJ'!I160/'Tabel 1 ØJ'!G158*100,"-")) -> 4.464285714 | J160: =IF(OR('Tabel 1 ØJ'!G158<5,'Tabel 2 ØJ'!J160<0.5),"-",IFERROR('Tabel 2 ØJ'!J160/'Tabel 1 ØJ'!G158*100,"-")) -> 3.608210967
A165: Norddjurs
C167: Mænd | F167: Kvinder | I167: I alt
C168: Ledigheds- berørte | D168: Gns. brutto- ledighed | F168: Ledigheds- berørte | G168: Gns. brutto- ledighed | I168: Ledigheds- berørte | J168: Gns. brutto- ledighed
A171: Civ. ing. | C171: =IF(OR('Tabel 1 ØJ'!C169<5,'Tabel 2 ØJ'!C171<0.5),"-",IFERROR('Tabel 2 ØJ'!C171/'Tabel 1 ØJ'!C169*100,"-")) -> - | D171: =IF(OR('Tabel 1 ØJ'!C169<5,'Tabel 2 ØJ'!D171<0.5),"-",IFERROR('Tabel 2 ØJ'!D171/'Tabel 1 ØJ'!C169*100,"-")) -> - | F171: =IF(OR('Tabel 1 ØJ'!E169<5,'Tabel 2 ØJ'!F171<0.5),"-",IFERROR('Tabel 2 ØJ'!F171/'Tabel 1 ØJ'!E169*100,"-")) -> - | G171: =IF(OR('Tabel 1 ØJ'!E169<5,'Tabel 2 ØJ'!G171<0.5),"-",IFERROR('Tabel 2 ØJ'!G171/'Tabel 1 ØJ'!E169*100,"-")) -> - | I171: =IF(OR('Tabel 1 ØJ'!G169<5,'Tabel 2 ØJ'!I171<0.5),"-",IFERROR('Tabel 2 ØJ'!I171/'Tabel 1 ØJ'!G169*100,"-")) -> - | J171: =IF(OR('Tabel 1 ØJ'!G169<5,'Tabel 2 ØJ'!J171<0.5),"-",IFERROR('Tabel 2 ØJ'!J171/'Tabel 1 ØJ'!G169*100,"-")) -> -
A172: Diplom ing. | C172: =IF(OR('Tabel 1 ØJ'!C170<5,'Tabel 2 ØJ'!C172<0.5),"-",IFERROR('Tabel 2 ØJ'!C172/'Tabel 1 ØJ'!C170*100,"-")) -> 1.351351351 | D172: =IF(OR('Tabel 1 ØJ'!C170<5,'Tabel 2 ØJ'!D172<0.5),"-",IFERROR('Tabel 2 ØJ'!D172/'Tabel 1 ØJ'!C170*100,"-")) -> 1.351098494 | F172: =IF(OR('Tabel 1 ØJ'!E170<5,'Tabel 2 ØJ'!F172<0.5),"-",IFERROR('Tabel 2 ØJ'!F172/'Tabel 1 ØJ'!E170*100,"-")) -> - | G172: =IF(OR('Tabel 1 ØJ'!E170<5,'Tabel 2 ØJ'!G172<0.5),"-",IFERROR('Tabel 2 ØJ'!G172/'Tabel 1 ØJ'!E170*100,"-")) -> - | I172: =IF(OR('Tabel 1 ØJ'!G170<5,'Tabel 2 ØJ'!I172<0.5),"-",IFERROR('Tabel 2 ØJ'!I172/'Tabel 1 ØJ'!G170*100,"-")) -> 0.5882352941 | J172: =IF(OR('Tabel 1 ØJ'!G170<5,'Tabel 2 ØJ'!J172<0.5),"-",IFERROR('Tabel 2 ØJ'!J172/'Tabel 1 ØJ'!G170*100,"-")) -> 0.588125227
A173: Cand. Scient. Tek. | C173: =IF(OR('Tabel 1 ØJ'!C171<5,'Tabel 2 ØJ'!C173<0.5),"-",IFERROR('Tabel 2 ØJ'!C173/'Tabel 1 ØJ'!C171*100,"-")) -> 8.333333333 | D173: =IF(OR('Tabel 1 ØJ'!C171<5,'Tabel 2 ØJ'!D173<0.5),"-",IFERROR('Tabel 2 ØJ'!D173/'Tabel 1 ØJ'!C171*100,"-")) -> - | F173: =IF(OR('Tabel 1 ØJ'!E171<5,'Tabel 2 ØJ'!F173<0.5),"-",IFERROR('Tabel 2 ØJ'!F173/'Tabel 1 ØJ'!E171*100,"-")) -> 5.555555556 | G173: =IF(OR('Tabel 1 ØJ'!E171<5,'Tabel 2 ØJ'!G173<0.5),"-",IFERROR('Tabel 2 ØJ'!G173/'Tabel 1 ØJ'!E171*100,"-")) -> 5.041684858 | I173: =IF(OR('Tabel 1 ØJ'!G171<5,'Tabel 2 ØJ'!I173<0.5),"-",IFERROR('Tabel 2 ØJ'!I173/'Tabel 1 ØJ'!G171*100,"-")) -> 6.666666667 | J173: =IF(OR('Tabel 1 ØJ'!G171<5,'Tabel 2 ØJ'!J173<0.5),"-",IFERROR('Tabel 2 ØJ'!J173/'Tabel 1 ØJ'!G171*100,"-")) -> 3.81504813
A174: MA. Hum. | C174: =IF(OR('Tabel 1 ØJ'!C172<5,'Tabel 2 ØJ'!C174<0.5),"-",IFERROR('Tabel 2 ØJ'!C174/'Tabel 1 ØJ'!C172*100,"-")) -> 8 | D174: =IF(OR('Tabel 1 ØJ'!C172<5,'Tabel 2 ØJ'!D174<0.5),"-",IFERROR('Tabel 2 ØJ'!D174/'Tabel 1 ØJ'!C172*100,"-")) -> 6.918231148 | F174: =IF(OR('Tabel 1 ØJ'!E172<5,'Tabel 2 ØJ'!F174<0.5),"-",IFERROR('Tabel 2 ØJ'!F174/'Tabel 1 ØJ'!E172*100,"-")) -> 2.597402597 | G174: =IF(OR('Tabel 1 ØJ'!E172<5,'Tabel 2 ØJ'!G174<0.5),"-",IFERROR('Tabel 2 ØJ'!G174/'Tabel 1 ØJ'!E172*100,"-")) -> 1.291978152 | I174: =IF(OR('Tabel 1 ØJ'!G172<5,'Tabel 2 ØJ'!I174<0.5),"-",IFERROR('Tabel 2 ØJ'!I174/'Tabel 1 ØJ'!G172*100,"-")) -> 3.921568627 | J174: =IF(OR('Tabel 1 ØJ'!G172<5,'Tabel 2 ØJ'!J174<0.5),"-",IFERROR('Tabel 2 ØJ'!J174/'Tabel 1 ØJ'!G172*100,"-")) -> 2.67096173
A175: MA. Nat. | C175: =IF(OR('Tabel 1 ØJ'!C173<5,'Tabel 2 ØJ'!C175<0.5),"-",IFERROR('Tabel 2 ØJ'!C175/'Tabel 1 ØJ'!C173*100,"-")) -> 5.555555556 | D175: =IF(OR('Tabel 1 ØJ'!C173<5,'Tabel 2 ØJ'!D175<0.5),"-",IFERROR('Tabel 2 ØJ'!D175/'Tabel 1 ØJ'!C173*100,"-")) -> 5.554516033 | F175: =IF(OR('Tabel 1 ØJ'!E173<5,'Tabel 2 ØJ'!F175<0.5),"-",IFERROR('Tabel 2 ØJ'!F175/'Tabel 1 ØJ'!E173*100,"-")) -> 6.451612903 | G175: =IF(OR('Tabel 1 ØJ'!E173<5,'Tabel 2 ØJ'!G175<0.5),"-",IFERROR('Tabel 2 ØJ'!G175/'Tabel 1 ØJ'!E173*100,"-")) -> 4.331791487 | I175: =IF(OR('Tabel 1 ØJ'!G173<5,'Tabel 2 ØJ'!I175<0.5),"-",IFERROR('Tabel 2 ØJ'!I175/'Tabel 1 ØJ'!G173*100,"-")) -> 6.12244898 | J175: =IF(OR('Tabel 1 ØJ'!G173<5,'Tabel 2 ØJ'!J175<0.5),"-",IFERROR('Tabel 2 ØJ'!J175/'Tabel 1 ØJ'!G173*100,"-")) -> 4.780955606
A176: MA. Ph.d. | C176: =IF(OR('Tabel 1 ØJ'!C174<5,'Tabel 2 ØJ'!C176<0.5),"-",IFERROR('Tabel 2 ØJ'!C176/'Tabel 1 ØJ'!C174*100,"-")) -> - | D176: =IF(OR('Tabel 1 ØJ'!C174<5,'Tabel 2 ØJ'!D176<0.5),"-",IFERROR('Tabel 2 ØJ'!D176/'Tabel 1 ØJ'!C174*100,"-")) -> - | F176: =IF(OR('Tabel 1 ØJ'!E174<5,'Tabel 2 ØJ'!F176<0.5),"-",IFERROR('Tabel 2 ØJ'!F176/'Tabel 1 ØJ'!E174*100,"-")) -> - | G176: =IF(OR('Tabel 1 ØJ'!E174<5,'Tabel 2 ØJ'!G176<0.5),"-",IFERROR('Tabel 2 ØJ'!G176/'Tabel 1 ØJ'!E174*100,"-")) -> - | I176: =IF(OR('Tabel 1 ØJ'!G174<5,'Tabel 2 ØJ'!I176<0.5),"-",IFERROR('Tabel 2 ØJ'!I176/'Tabel 1 ØJ'!G174*100,"-")) -> 9.090909091 | J176: =IF(OR('Tabel 1 ØJ'!G174<5,'Tabel 2 ØJ'!J176<0.5),"-",IFERROR('Tabel 2 ØJ'!J176/'Tabel 1 ØJ'!G174*100,"-")) -> 9.089208054
A177: MA. Samf. | C177: =IF(OR('Tabel 1 ØJ'!C175<5,'Tabel 2 ØJ'!C177<0.5),"-",IFERROR('Tabel 2 ØJ'!C177/'Tabel 1 ØJ'!C175*100,"-")) -> - | D177: =IF(OR('Tabel 1 ØJ'!C175<5,'Tabel 2 ØJ'!D177<0.5),"-",IFERROR('Tabel 2 ØJ'!D177/'Tabel 1 ØJ'!C175*100,"-")) -> - | F177: =IF(OR('Tabel 1 ØJ'!E175<5,'Tabel 2 ØJ'!F177<0.5),"-",IFERROR('Tabel 2 ØJ'!F177/'Tabel 1 ØJ'!E175*100,"-")) -> - | G177: =IF(OR('Tabel 1 ØJ'!E175<5,'Tabel 2 ØJ'!G177<0.5),"-",IFERROR('Tabel 2 ØJ'!G177/'Tabel 1 ØJ'!E175*100,"-")) -> - | I177: =IF(OR('Tabel 1 ØJ'!G175<5,'Tabel 2 ØJ'!I177<0.5),"-",IFERROR('Tabel 2 ØJ'!I177/'Tabel 1 ØJ'!G175*100,"-")) -> - | J177: =IF(OR('Tabel 1 ØJ'!G175<5,'Tabel 2 ØJ'!J177<0.5),"-",IFERROR('Tabel 2 ØJ'!J177/'Tabel 1 ØJ'!G175*100,"-")) -> -
A178: Øvrige Mag. | C178: =IF(OR('Tabel 1 ØJ'!C176<5,'Tabel 2 ØJ'!C178<0.5),"-",IFERROR('Tabel 2 ØJ'!C178/'Tabel 1 ØJ'!C176*100,"-")) -> - | D178: =IF(OR('Tabel 1 ØJ'!C176<5,'Tabel 2 ØJ'!D178<0.5),"-",IFERROR('Tabel 2 ØJ'!D178/'Tabel 1 ØJ'!C176*100,"-")) -> - | F178: =IF(OR('Tabel 1 ØJ'!E176<5,'Tabel 2 ØJ'!F178<0.5),"-",IFERROR('Tabel 2 ØJ'!F178/'Tabel 1 ØJ'!E176*100,"-")) -> 20 | G178: =IF(OR('Tabel 1 ØJ'!E176<5,'Tabel 2 ØJ'!G178<0.5),"-",IFERROR('Tabel 2 ØJ'!G178/'Tabel 1 ØJ'!E176*100,"-")) -> 19.99625772 | I178: =IF(OR('Tabel 1 ØJ'!G176<5,'Tabel 2 ØJ'!I178<0.5),"-",IFERROR('Tabel 2 ØJ'!I178/'Tabel 1 ØJ'!G176*100,"-")) -> 16.66666667 | J178: =IF(OR('Tabel 1 ØJ'!G176<5,'Tabel 2 ØJ'!J178<0.5),"-",IFERROR('Tabel 2 ØJ'!J178/'Tabel 1 ØJ'!G176*100,"-")) -> 16.6635481
A179: Agronom | C179: =IF(OR('Tabel 1 ØJ'!C177<5,'Tabel 2 ØJ'!C179<0.5),"-",IFERROR('Tabel 2 ØJ'!C179/'Tabel 1 ØJ'!C177*100,"-")) -> - | D179: =IF(OR('Tabel 1 ØJ'!C177<5,'Tabel 2 ØJ'!D179<0.5),"-",IFERROR('Tabel 2 ØJ'!D179/'Tabel 1 ØJ'!C177*100,"-")) -> - | F179: =IF(OR('Tabel 1 ØJ'!E177<5,'Tabel 2 ØJ'!F179<0.5),"-",IFERROR('Tabel 2 ØJ'!F179/'Tabel 1 ØJ'!E177*100,"-")) -> - | G179: =IF(OR('Tabel 1 ØJ'!E177<5,'Tabel 2 ØJ'!G179<0.5),"-",IFERROR('Tabel 2 ØJ'!G179/'Tabel 1 ØJ'!E177*100,"-")) -> - | I179: =IF(OR('Tabel 1 ØJ'!G177<5,'Tabel 2 ØJ'!I179<0.5),"-",IFERROR('Tabel 2 ØJ'!I179/'Tabel 1 ØJ'!G177*100,"-")) -> - | J179: =IF(OR('Tabel 1 ØJ'!G177<5,'Tabel 2 ØJ'!J179<0.5),"-",IFERROR('Tabel 2 ØJ'!J179/'Tabel 1 ØJ'!G177*100,"-")) -> -
A180: Landsk. Arkt. | C180: =IF(OR('Tabel 1 ØJ'!C178<5,'Tabel 2 ØJ'!C180<0.5),"-",IFERROR('Tabel 2 ØJ'!C180/'Tabel 1 ØJ'!C178*100,"-")) -> - | D180: =IF(OR('Tabel 1 ØJ'!C178<5,'Tabel 2 ØJ'!D180<0.5),"-",IFERROR('Tabel 2 ØJ'!D180/'Tabel 1 ØJ'!C178*100,"-")) -> - | F180: =IF(OR('Tabel 1 ØJ'!E178<5,'Tabel 2 ØJ'!F180<0.5),"-",IFERROR('Tabel 2 ØJ'!F180/'Tabel 1 ØJ'!E178*100,"-")) -> - | G180: =IF(OR('Tabel 1 ØJ'!E178<5,'Tabel 2 ØJ'!G180<0.5),"-",IFERROR('Tabel 2 ØJ'!G180/'Tabel 1 ØJ'!E178*100,"-")) -> - | I180: =IF(OR('Tabel 1 ØJ'!G178<5,'Tabel 2 ØJ'!I180<0.5),"-",IFERROR('Tabel 2 ØJ'!I180/'Tabel 1 ØJ'!G178*100,"-")) -> - | J180: =IF(OR('Tabel 1 ØJ'!G178<5,'Tabel 2 ØJ'!J180<0.5),"-",IFERROR('Tabel 2 ØJ'!J180/'Tabel 1 ØJ'!G178*100,"-")) -> -
A181: Hortonom | C181: =IF(OR('Tabel 1 ØJ'!C179<5,'Tabel 2 ØJ'!C181<0.5),"-",IFERROR('Tabel 2 ØJ'!C181/'Tabel 1 ØJ'!C179*100,"-")) -> - | D181: =IF(OR('Tabel 1 ØJ'!C179<5,'Tabel 2 ØJ'!D181<0.5),"-",IFERROR('Tabel 2 ØJ'!D181/'Tabel 1 ØJ'!C179*100,"-")) -> - | F181: =IF(OR('Tabel 1 ØJ'!E179<5,'Tabel 2 ØJ'!F181<0.5),"-",IFERROR('Tabel 2 ØJ'!F181/'Tabel 1 ØJ'!E179*100,"-")) -> - | G181: =IF(OR('Tabel 1 ØJ'!E179<5,'Tabel 2 ØJ'!G181<0.5),"-",IFERROR('Tabel 2 ØJ'!G181/'Tabel 1 ØJ'!E179*100,"-")) -> - | I181: =IF(OR('Tabel 1 ØJ'!G179<5,'Tabel 2 ØJ'!I181<0.5),"-",IFERROR('Tabel 2 ØJ'!I181/'Tabel 1 ØJ'!G179*100,"-")) -> - | J181: =IF(OR('Tabel 1 ØJ'!G179<5,'Tabel 2 ØJ'!J181<0.5),"-",IFERROR('Tabel 2 ØJ'!J181/'Tabel 1 ØJ'!G179*100,"-")) -> -
A182: Forstkand. | C182: =IF(OR('Tabel 1 ØJ'!C180<5,'Tabel 2 ØJ'!C182<0.5),"-",IFERROR('Tabel 2 ØJ'!C182/'Tabel 1 ØJ'!C180*100,"-")) -> - | D182: =IF(OR('Tabel 1 ØJ'!C180<5,'Tabel 2 ØJ'!D182<0.5),"-",IFERROR('Tabel 2 ØJ'!D182/'Tabel 1 ØJ'!C180*100,"-")) -> - | F182: =IF(OR('Tabel 1 ØJ'!E180<5,'Tabel 2 ØJ'!F182<0.5),"-",IFERROR('Tabel 2 ØJ'!F182/'Tabel 1 ØJ'!E180*100,"-")) -> - | G182: =IF(OR('Tabel 1 ØJ'!E180<5,'Tabel 2 ØJ'!G182<0.5),"-",IFERROR('Tabel 2 ØJ'!G182/'Tabel 1 ØJ'!E180*100,"-")) -> - | I182: =IF(OR('Tabel 1 ØJ'!G180<5,'Tabel 2 ØJ'!I182<0.5),"-",IFERROR('Tabel 2 ØJ'!I182/'Tabel 1 ØJ'!G180*100,"-")) -> - | J182: =IF(OR('Tabel 1 ØJ'!G180<5,'Tabel 2 ØJ'!J182<0.5),"-",IFERROR('Tabel 2 ØJ'!J182/'Tabel 1 ØJ'!G180*100,"-")) -> -
A183: Jordbrugsakad. | C183: =IF(OR('Tabel 1 ØJ'!C181<5,'Tabel 2 ØJ'!C183<0.5),"-",IFERROR('Tabel 2 ØJ'!C183/'Tabel 1 ØJ'!C181*100,"-")) -> - | D183: =IF(OR('Tabel 1 ØJ'!C181<5,'Tabel 2 ØJ'!D183<0.5),"-",IFERROR('Tabel 2 ØJ'!D183/'Tabel 1 ØJ'!C181*100,"-")) -> - | F183: =IF(OR('Tabel 1 ØJ'!E181<5,'Tabel 2 ØJ'!F183<0.5),"-",IFERROR('Tabel 2 ØJ'!F183/'Tabel 1 ØJ'!E181*100,"-")) -> - | G183: =IF(OR('Tabel 1 ØJ'!E181<5,'Tabel 2 ØJ'!G183<0.5),"-",IFERROR('Tabel 2 ØJ'!G183/'Tabel 1 ØJ'!E181*100,"-")) -> - | I183: =IF(OR('Tabel 1 ØJ'!G181<5,'Tabel 2 ØJ'!I183<0.5),"-",IFERROR('Tabel 2 ØJ'!I183/'Tabel 1 ØJ'!G181*100,"-")) -> - | J183: =IF(OR('Tabel 1 ØJ'!G181<5,'Tabel 2 ØJ'!J183<0.5),"-",IFERROR('Tabel 2 ØJ'!J183/'Tabel 1 ØJ'!G181*100,"-")) -> -
A184: Mejeriing. | C184: =IF(OR('Tabel 1 ØJ'!C182<5,'Tabel 2 ØJ'!C184<0.5),"-",IFERROR('Tabel 2 ØJ'!C184/'Tabel 1 ØJ'!C182*100,"-")) -> - | D184: =IF(OR('Tabel 1 ØJ'!C182<5,'Tabel 2 ØJ'!D184<0.5),"-",IFERROR('Tabel 2 ØJ'!D184/'Tabel 1 ØJ'!C182*100,"-")) -> - | F184: =IF(OR('Tabel 1 ØJ'!E182<5,'Tabel 2 ØJ'!F184<0.5),"-",IFERROR('Tabel 2 ØJ'!F184/'Tabel 1 ØJ'!E182*100,"-")) -> - | G184: =IF(OR('Tabel 1 ØJ'!E182<5,'Tabel 2 ØJ'!G184<0.5),"-",IFERROR('Tabel 2 ØJ'!G184/'Tabel 1 ØJ'!E182*100,"-")) -> - | I184: =IF(OR('Tabel 1 ØJ'!G182<5,'Tabel 2 ØJ'!I184<0.5),"-",IFERROR('Tabel 2 ØJ'!I184/'Tabel 1 ØJ'!G182*100,"-")) -> - | J184: =IF(OR('Tabel 1 ØJ'!G182<5,'Tabel 2 ØJ'!J184<0.5),"-",IFERROR('Tabel 2 ØJ'!J184/'Tabel 1 ØJ'!G182*100,"-")) -> -
A185: Levn.m.kand. | C185: =IF(OR('Tabel 1 ØJ'!C183<5,'Tabel 2 ØJ'!C185<0.5),"-",IFERROR('Tabel 2 ØJ'!C185/'Tabel 1 ØJ'!C183*100,"-")) -> - | D185: =IF(OR('Tabel 1 ØJ'!C183<5,'Tabel 2 ØJ'!D185<0.5),"-",IFERROR('Tabel 2 ØJ'!D185/'Tabel 1 ØJ'!C183*100,"-")) -> - | F185: =IF(OR('Tabel 1 ØJ'!E183<5,'Tabel 2 ØJ'!F185<0.5),"-",IFERROR('Tabel 2 ØJ'!F185/'Tabel 1 ØJ'!E183*100,"-")) -> - | G185: =IF(OR('Tabel 1 ØJ'!E183<5,'Tabel 2 ØJ'!G185<0.5),"-",IFERROR('Tabel 2 ØJ'!G185/'Tabel 1 ØJ'!E183*100,"-")) -> - | I185: =IF(OR('Tabel 1 ØJ'!G183<5,'Tabel 2 ØJ'!I185<0.5),"-",IFERROR('Tabel 2 ØJ'!I185/'Tabel 1 ØJ'!G183*100,"-")) -> - | J185: =IF(OR('Tabel 1 ØJ'!G183<5,'Tabel 2 ØJ'!J185<0.5),"-",IFERROR('Tabel 2 ØJ'!J185/'Tabel 1 ØJ'!G183*100,"-")) -> -
A186: Dyrlæge | C186: =IF(OR('Tabel 1 ØJ'!C184<5,'Tabel 2 ØJ'!C186<0.5),"-",IFERROR('Tabel 2 ØJ'!C186/'Tabel 1 ØJ'!C184*100,"-")) -> - | D186: =IF(OR('Tabel 1 ØJ'!C184<5,'Tabel 2 ØJ'!D186<0.5),"-",IFERROR('Tabel 2 ØJ'!D186/'Tabel 1 ØJ'!C184*100,"-")) -> - | F186: =IF(OR('Tabel 1 ØJ'!E184<5,'Tabel 2 ØJ'!F186<0.5),"-",IFERROR('Tabel 2 ØJ'!F186/'Tabel 1 ØJ'!E184*100,"-")) -> - | G186: =IF(OR('Tabel 1 ØJ'!E184<5,'Tabel 2 ØJ'!G186<0.5),"-",IFERROR('Tabel 2 ØJ'!G186/'Tabel 1 ØJ'!E184*100,"-")) -> - | I186: =IF(OR('Tabel 1 ØJ'!G184<5,'Tabel 2 ØJ'!I186<0.5),"-",IFERROR('Tabel 2 ØJ'!I186/'Tabel 1 ØJ'!G184*100,"-")) -> - | J186: =IF(OR('Tabel 1 ØJ'!G184<5,'Tabel 2 ØJ'!J186<0.5),"-",IFERROR('Tabel 2 ØJ'!J186/'Tabel 1 ØJ'!G184*100,"-")) -> -
A187: Farmaceut | C187: =IF(OR('Tabel 1 ØJ'!C185<5,'Tabel 2 ØJ'!C187<0.5),"-",IFERROR('Tabel 2 ØJ'!C187/'Tabel 1 ØJ'!C185*100,"-")) -> - | D187: =IF(OR('Tabel 1 ØJ'!C185<5,'Tabel 2 ØJ'!D187<0.5),"-",IFERROR('Tabel 2 ØJ'!D187/'Tabel 1 ØJ'!C185*100,"-")) -> - | F187: =IF(OR('Tabel 1 ØJ'!E185<5,'Tabel 2 ØJ'!F187<0.5),"-",IFERROR('Tabel 2 ØJ'!F187/'Tabel 1 ØJ'!E185*100,"-")) -> - | G187: =IF(OR('Tabel 1 ØJ'!E185<5,'Tabel 2 ØJ'!G187<0.5),"-",IFERROR('Tabel 2 ØJ'!G187/'Tabel 1 ØJ'!E185*100,"-")) -> - | I187: =IF(OR('Tabel 1 ØJ'!G185<5,'Tabel 2 ØJ'!I187<0.5),"-",IFERROR('Tabel 2 ØJ'!I187/'Tabel 1 ØJ'!G185*100,"-")) -> - | J187: =IF(OR('Tabel 1 ØJ'!G185<5,'Tabel 2 ØJ'!J187<0.5),"-",IFERROR('Tabel 2 ØJ'!J187/'Tabel 1 ØJ'!G185*100,"-")) -> -
A188: Læge | C188: =IF(OR('Tabel 1 ØJ'!C186<5,'Tabel 2 ØJ'!C188<0.5),"-",IFERROR('Tabel 2 ØJ'!C188/'Tabel 1 ØJ'!C186*100,"-")) -> - | D188: =IF(OR('Tabel 1 ØJ'!C186<5,'Tabel 2 ØJ'!D188<0.5),"-",IFERROR('Tabel 2 ØJ'!D188/'Tabel 1 ØJ'!C186*100,"-")) -> - | F188: =IF(OR('Tabel 1 ØJ'!E186<5,'Tabel 2 ØJ'!F188<0.5),"-",IFERROR('Tabel 2 ØJ'!F188/'Tabel 1 ØJ'!E186*100,"-")) -> - | G188: =IF(OR('Tabel 1 ØJ'!E186<5,'Tabel 2 ØJ'!G188<0.5),"-",IFERROR('Tabel 2 ØJ'!G188/'Tabel 1 ØJ'!E186*100,"-")) -> - | I188: =IF(OR('Tabel 1 ØJ'!G186<5,'Tabel 2 ØJ'!I188<0.5),"-",IFERROR('Tabel 2 ØJ'!I188/'Tabel 1 ØJ'!G186*100,"-")) -> - | J188: =IF(OR('Tabel 1 ØJ'!G186<5,'Tabel 2 ØJ'!J188<0.5),"-",IFERROR('Tabel 2 ØJ'!J188/'Tabel 1 ØJ'!G186*100,"-")) -> -
A189: Tandlæge | C189: =IF(OR('Tabel 1 ØJ'!C187<5,'Tabel 2 ØJ'!C189<0.5),"-",IFERROR('Tabel 2 ØJ'!C189/'Tabel 1 ØJ'!C187*100,"-")) -> - | D189: =IF(OR('Tabel 1 ØJ'!C187<5,'Tabel 2 ØJ'!D189<0.5),"-",IFERROR('Tabel 2 ØJ'!D189/'Tabel 1 ØJ'!C187*100,"-")) -> - | F189: =IF(OR('Tabel 1 ØJ'!E187<5,'Tabel 2 ØJ'!F189<0.5),"-",IFERROR('Tabel 2 ØJ'!F189/'Tabel 1 ØJ'!E187*100,"-")) -> - | G189: =IF(OR('Tabel 1 ØJ'!E187<5,'Tabel 2 ØJ'!G189<0.5),"-",IFERROR('Tabel 2 ØJ'!G189/'Tabel 1 ØJ'!E187*100,"-")) -> - | I189: =IF(OR('Tabel 1 ØJ'!G187<5,'Tabel 2 ØJ'!I189<0.5),"-",IFERROR('Tabel 2 ØJ'!I189/'Tabel 1 ØJ'!G187*100,"-")) -> - | J189: =IF(OR('Tabel 1 ØJ'!G187<5,'Tabel 2 ØJ'!J189<0.5),"-",IFERROR('Tabel 2 ØJ'!J189/'Tabel 1 ØJ'!G187*100,"-")) -> -
A190: Arkitekt | C190: =IF(OR('Tabel 1 ØJ'!C188<5,'Tabel 2 ØJ'!C190<0.5),"-",IFERROR('Tabel 2 ØJ'!C190/'Tabel 1 ØJ'!C188*100,"-")) -> - | D190: =IF(OR('Tabel 1 ØJ'!C188<5,'Tabel 2 ØJ'!D190<0.5),"-",IFERROR('Tabel 2 ØJ'!D190/'Tabel 1 ØJ'!C188*100,"-")) -> - | F190: =IF(OR('Tabel 1 ØJ'!E188<5,'Tabel 2 ØJ'!F190<0.5),"-",IFERROR('Tabel 2 ØJ'!F190/'Tabel 1 ØJ'!E188*100,"-")) -> 11.11111111 | G190: =IF(OR('Tabel 1 ØJ'!E188<5,'Tabel 2 ØJ'!G190<0.5),"-",IFERROR('Tabel 2 ØJ'!G190/'Tabel 1 ØJ'!E188*100,"-")) -> 10.0002079 | I190: =IF(OR('Tabel 1 ØJ'!G188<5,'Tabel 2 ØJ'!I190<0.5),"-",IFERROR('Tabel 2 ØJ'!I190/'Tabel 1 ØJ'!G188*100,"-")) -> 7.692307692 | J190: =IF(OR('Tabel 1 ØJ'!G188<5,'Tabel 2 ØJ'!J190<0.5),"-",IFERROR('Tabel 2 ØJ'!J190/'Tabel 1 ØJ'!G188*100,"-")) -> 6.923220857
A191: Landinspek. | C191: =IF(OR('Tabel 1 ØJ'!C189<5,'Tabel 2 ØJ'!C191<0.5),"-",IFERROR('Tabel 2 ØJ'!C191/'Tabel 1 ØJ'!C189*100,"-")) -> - | D191: =IF(OR('Tabel 1 ØJ'!C189<5,'Tabel 2 ØJ'!D191<0.5),"-",IFERROR('Tabel 2 ØJ'!D191/'Tabel 1 ØJ'!C189*100,"-")) -> - | F191: =IF(OR('Tabel 1 ØJ'!E189<5,'Tabel 2 ØJ'!F191<0.5),"-",IFERROR('Tabel 2 ØJ'!F191/'Tabel 1 ØJ'!E189*100,"-")) -> - | G191: =IF(OR('Tabel 1 ØJ'!E189<5,'Tabel 2 ØJ'!G191<0.5),"-",IFERROR('Tabel 2 ØJ'!G191/'Tabel 1 ØJ'!E189*100,"-")) -> - | I191: =IF(OR('Tabel 1 ØJ'!G189<5,'Tabel 2 ØJ'!I191<0.5),"-",IFERROR('Tabel 2 ØJ'!I191/'Tabel 1 ØJ'!G189*100,"-")) -> - | J191: =IF(OR('Tabel 1 ØJ'!G189<5,'Tabel 2 ØJ'!J191<0.5),"-",IFERROR('Tabel 2 ØJ'!J191/'Tabel 1 ØJ'!G189*100,"-")) -> -
A192: Bibliotekar | C192: =IF(OR('Tabel 1 ØJ'!C190<5,'Tabel 2 ØJ'!C192<0.5),"-",IFERROR('Tabel 2 ØJ'!C192/'Tabel 1 ØJ'!C190*100,"-")) -> - | D192: =IF(OR('Tabel 1 ØJ'!C190<5,'Tabel 2 ØJ'!D192<0.5),"-",IFERROR('Tabel 2 ØJ'!D192/'Tabel 1 ØJ'!C190*100,"-")) -> - | F192: =IF(OR('Tabel 1 ØJ'!E190<5,'Tabel 2 ØJ'!F192<0.5),"-",IFERROR('Tabel 2 ØJ'!F192/'Tabel 1 ØJ'!E190*100,"-")) -> - | G192: =IF(OR('Tabel 1 ØJ'!E190<5,'Tabel 2 ØJ'!G192<0.5),"-",IFERROR('Tabel 2 ØJ'!G192/'Tabel 1 ØJ'!E190*100,"-")) -> - | I192: =IF(OR('Tabel 1 ØJ'!G190<5,'Tabel 2 ØJ'!I192<0.5),"-",IFERROR('Tabel 2 ØJ'!I192/'Tabel 1 ØJ'!G190*100,"-")) -> - | J192: =IF(OR('Tabel 1 ØJ'!G190<5,'Tabel 2 ØJ'!J192<0.5),"-",IFERROR('Tabel 2 ØJ'!J192/'Tabel 1 ØJ'!G190*100,"-")) -> -
A193: Musikudd. | C193: =IF(OR('Tabel 1 ØJ'!C191<5,'Tabel 2 ØJ'!C193<0.5),"-",IFERROR('Tabel 2 ØJ'!C193/'Tabel 1 ØJ'!C191*100,"-")) -> - | D193: =IF(OR('Tabel 1 ØJ'!C191<5,'Tabel 2 ØJ'!D193<0.5),"-",IFERROR('Tabel 2 ØJ'!D193/'Tabel 1 ØJ'!C191*100,"-")) -> - | F193: =IF(OR('Tabel 1 ØJ'!E191<5,'Tabel 2 ØJ'!F193<0.5),"-",IFERROR('Tabel 2 ØJ'!F193/'Tabel 1 ØJ'!E191*100,"-")) -> - | G193: =IF(OR('Tabel 1 ØJ'!E191<5,'Tabel 2 ØJ'!G193<0.5),"-",IFERROR('Tabel 2 ØJ'!G193/'Tabel 1 ØJ'!E191*100,"-")) -> - | I193: =IF(OR('Tabel 1 ØJ'!G191<5,'Tabel 2 ØJ'!I193<0.5),"-",IFERROR('Tabel 2 ØJ'!I193/'Tabel 1 ØJ'!G191*100,"-")) -> - | J193: =IF(OR('Tabel 1 ØJ'!G191<5,'Tabel 2 ØJ'!J193<0.5),"-",IFERROR('Tabel 2 ØJ'!J193/'Tabel 1 ØJ'!G191*100,"-")) -> -
A194: Teolog | C194: =IF(OR('Tabel 1 ØJ'!C192<5,'Tabel 2 ØJ'!C194<0.5),"-",IFERROR('Tabel 2 ØJ'!C194/'Tabel 1 ØJ'!C192*100,"-")) -> - | D194: =IF(OR('Tabel 1 ØJ'!C192<5,'Tabel 2 ØJ'!D194<0.5),"-",IFERROR('Tabel 2 ØJ'!D194/'Tabel 1 ØJ'!C192*100,"-")) -> - | F194: =IF(OR('Tabel 1 ØJ'!E192<5,'Tabel 2 ØJ'!F194<0.5),"-",IFERROR('Tabel 2 ØJ'!F194/'Tabel 1 ØJ'!E192*100,"-")) -> 8.333333333 | G194: =IF(OR('Tabel 1 ØJ'!E192<5,'Tabel 2 ØJ'!G194<0.5),"-",IFERROR('Tabel 2 ØJ'!G194/'Tabel 1 ØJ'!E192*100,"-")) -> 7.562527287 | I194: =IF(OR('Tabel 1 ØJ'!G192<5,'Tabel 2 ØJ'!I194<0.5),"-",IFERROR('Tabel 2 ØJ'!I194/'Tabel 1 ØJ'!G192*100,"-")) -> 5.882352941 | J194: =IF(OR('Tabel 1 ØJ'!G192<5,'Tabel 2 ØJ'!J194<0.5),"-",IFERROR('Tabel 2 ØJ'!J194/'Tabel 1 ØJ'!G192*100,"-")) -> 5.338254556
A195: Psykolog | C195: =IF(OR('Tabel 1 ØJ'!C193<5,'Tabel 2 ØJ'!C195<0.5),"-",IFERROR('Tabel 2 ØJ'!C195/'Tabel 1 ØJ'!C193*100,"-")) -> - | D195: =IF(OR('Tabel 1 ØJ'!C193<5,'Tabel 2 ØJ'!D195<0.5),"-",IFERROR('Tabel 2 ØJ'!D195/'Tabel 1 ØJ'!C193*100,"-")) -> - | F195: =IF(OR('Tabel 1 ØJ'!E193<5,'Tabel 2 ØJ'!F195<0.5),"-",IFERROR('Tabel 2 ØJ'!F195/'Tabel 1 ØJ'!E193*100,"-")) -> 14.28571429 | G195: =IF(OR('Tabel 1 ØJ'!E193<5,'Tabel 2 ØJ'!G195<0.5),"-",IFERROR('Tabel 2 ØJ'!G195/'Tabel 1 ØJ'!E193*100,"-")) -> 14.28304123 | I195: =IF(OR('Tabel 1 ØJ'!G193<5,'Tabel 2 ØJ'!I195<0.5),"-",IFERROR('Tabel 2 ØJ'!I195/'Tabel 1 ØJ'!G193*100,"-")) -> 13.33333333 | J195: =IF(OR('Tabel 1 ØJ'!G193<5,'Tabel 2 ØJ'!J195<0.5),"-",IFERROR('Tabel 2 ØJ'!J195/'Tabel 1 ØJ'!G193*100,"-")) -> 13.33083848
A196: Jurist | C196: =IF(OR('Tabel 1 ØJ'!C194<5,'Tabel 2 ØJ'!C196<0.5),"-",IFERROR('Tabel 2 ØJ'!C196/'Tabel 1 ØJ'!C194*100,"-")) -> - | D196: =IF(OR('Tabel 1 ØJ'!C194<5,'Tabel 2 ØJ'!D196<0.5),"-",IFERROR('Tabel 2 ØJ'!D196/'Tabel 1 ØJ'!C194*100,"-")) -> - | F196: =IF(OR('Tabel 1 ØJ'!E194<5,'Tabel 2 ØJ'!F196<0.5),"-",IFERROR('Tabel 2 ØJ'!F196/'Tabel 1 ØJ'!E194*100,"-")) -> - | G196: =IF(OR('Tabel 1 ØJ'!E194<5,'Tabel 2 ØJ'!G196<0.5),"-",IFERROR('Tabel 2 ØJ'!G196/'Tabel 1 ØJ'!E194*100,"-")) -> - | I196: =IF(OR('Tabel 1 ØJ'!G194<5,'Tabel 2 ØJ'!I196<0.5),"-",IFERROR('Tabel 2 ØJ'!I196/'Tabel 1 ØJ'!G194*100,"-")) -> - | J196: =IF(OR('Tabel 1 ØJ'!G194<5,'Tabel 2 ØJ'!J196<0.5),"-",IFERROR('Tabel 2 ØJ'!J196/'Tabel 1 ØJ'!G194*100,"-")) -> -
A197: Økonom | C197: =IF(OR('Tabel 1 ØJ'!C195<5,'Tabel 2 ØJ'!C197<0.5),"-",IFERROR('Tabel 2 ØJ'!C197/'Tabel 1 ØJ'!C195*100,"-")) -> - | D197: =IF(OR('Tabel 1 ØJ'!C195<5,'Tabel 2 ØJ'!D197<0.5),"-",IFERROR('Tabel 2 ØJ'!D197/'Tabel 1 ØJ'!C195*100,"-")) -> - | F197: =IF(OR('Tabel 1 ØJ'!E195<5,'Tabel 2 ØJ'!F197<0.5),"-",IFERROR('Tabel 2 ØJ'!F197/'Tabel 1 ØJ'!E195*100,"-")) -> - | G197: =IF(OR('Tabel 1 ØJ'!E195<5,'Tabel 2 ØJ'!G197<0.5),"-",IFERROR('Tabel 2 ØJ'!G197/'Tabel 1 ØJ'!E195*100,"-")) -> - | I197: =IF(OR('Tabel 1 ØJ'!G195<5,'Tabel 2 ØJ'!I197<0.5),"-",IFERROR('Tabel 2 ØJ'!I197/'Tabel 1 ØJ'!G195*100,"-")) -> - | J197: =IF(OR('Tabel 1 ØJ'!G195<5,'Tabel 2 ØJ'!J197<0.5),"-",IFERROR('Tabel 2 ØJ'!J197/'Tabel 1 ØJ'!G195*100,"-")) -> -
A198: Samf. Adm. | C198: =IF(OR('Tabel 1 ØJ'!C196<5,'Tabel 2 ØJ'!C198<0.5),"-",IFERROR('Tabel 2 ØJ'!C198/'Tabel 1 ØJ'!C196*100,"-")) -> 7.692307692 | D198: =IF(OR('Tabel 1 ØJ'!C196<5,'Tabel 2 ØJ'!D198<0.5),"-",IFERROR('Tabel 2 ØJ'!D198/'Tabel 1 ØJ'!C196*100,"-")) -> - | F198: =IF(OR('Tabel 1 ØJ'!E196<5,'Tabel 2 ØJ'!F198<0.5),"-",IFERROR('Tabel 2 ØJ'!F198/'Tabel 1 ØJ'!E196*100,"-")) -> - | G198: =IF(OR('Tabel 1 ØJ'!E196<5,'Tabel 2 ØJ'!G198<0.5),"-",IFERROR('Tabel 2 ØJ'!G198/'Tabel 1 ØJ'!E196*100,"-")) -> - | I198: =IF(OR('Tabel 1 ØJ'!G196<5,'Tabel 2 ØJ'!I198<0.5),"-",IFERROR('Tabel 2 ØJ'!I198/'Tabel 1 ØJ'!G196*100,"-")) -> 3.03030303 | J198: =IF(OR('Tabel 1 ØJ'!G196<5,'Tabel 2 ØJ'!J198<0.5),"-",IFERROR('Tabel 2 ØJ'!J198/'Tabel 1 ØJ'!G196*100,"-")) -> -
A199: Cand. Merc. | C199: =IF(OR('Tabel 1 ØJ'!C197<5,'Tabel 2 ØJ'!C199<0.5),"-",IFERROR('Tabel 2 ØJ'!C199/'Tabel 1 ØJ'!C197*100,"-")) -> 5 | D199: =IF(OR('Tabel 1 ØJ'!C197<5,'Tabel 2 ØJ'!D199<0.5),"-",IFERROR('Tabel 2 ØJ'!D199/'Tabel 1 ØJ'!C197*100,"-")) -> 4.96787875 | F199: =IF(OR('Tabel 1 ØJ'!E197<5,'Tabel 2 ØJ'!F199<0.5),"-",IFERROR('Tabel 2 ØJ'!F199/'Tabel 1 ØJ'!E197*100,"-")) -> - | G199: =IF(OR('Tabel 1 ØJ'!E197<5,'Tabel 2 ØJ'!G199<0.5),"-",IFERROR('Tabel 2 ØJ'!G199/'Tabel 1 ØJ'!E197*100,"-")) -> - | I199: =IF(OR('Tabel 1 ØJ'!G197<5,'Tabel 2 ØJ'!I199<0.5),"-",IFERROR('Tabel 2 ØJ'!I199/'Tabel 1 ØJ'!G197*100,"-")) -> 1.666666667 | J199: =IF(OR('Tabel 1 ØJ'!G197<5,'Tabel 2 ØJ'!J199<0.5),"-",IFERROR('Tabel 2 ØJ'!J199/'Tabel 1 ØJ'!G197*100,"-")) -> 1.655959583
A200: HA | C200: =IF(OR('Tabel 1 ØJ'!C198<5,'Tabel 2 ØJ'!C200<0.5),"-",IFERROR('Tabel 2 ØJ'!C200/'Tabel 1 ØJ'!C198*100,"-")) -> - | D200: =IF(OR('Tabel 1 ØJ'!C198<5,'Tabel 2 ØJ'!D200<0.5),"-",IFERROR('Tabel 2 ØJ'!D200/'Tabel 1 ØJ'!C198*100,"-")) -> - | F200: =IF(OR('Tabel 1 ØJ'!E198<5,'Tabel 2 ØJ'!F200<0.5),"-",IFERROR('Tabel 2 ØJ'!F200/'Tabel 1 ØJ'!E198*100,"-")) -> - | G200: =IF(OR('Tabel 1 ØJ'!E198<5,'Tabel 2 ØJ'!G200<0.5),"-",IFERROR('Tabel 2 ØJ'!G200/'Tabel 1 ØJ'!E198*100,"-")) -> - | I200: =IF(OR('Tabel 1 ØJ'!G198<5,'Tabel 2 ØJ'!I200<0.5),"-",IFERROR('Tabel 2 ØJ'!I200/'Tabel 1 ØJ'!G198*100,"-")) -> - | J200: =IF(OR('Tabel 1 ØJ'!G198<5,'Tabel 2 ØJ'!J200<0.5),"-",IFERROR('Tabel 2 ØJ'!J200/'Tabel 1 ØJ'!G198*100,"-")) -> -
A201: HD | C201: =IF(OR('Tabel 1 ØJ'!C199<5,'Tabel 2 ØJ'!C201<0.5),"-",IFERROR('Tabel 2 ØJ'!C201/'Tabel 1 ØJ'!C199*100,"-")) -> - | D201: =IF(OR('Tabel 1 ØJ'!C199<5,'Tabel 2 ØJ'!D201<0.5),"-",IFERROR('Tabel 2 ØJ'!D201/'Tabel 1 ØJ'!C199*100,"-")) -> - | F201: =IF(OR('Tabel 1 ØJ'!E199<5,'Tabel 2 ØJ'!F201<0.5),"-",IFERROR('Tabel 2 ØJ'!F201/'Tabel 1 ØJ'!E199*100,"-")) -> - | G201: =IF(OR('Tabel 1 ØJ'!E199<5,'Tabel 2 ØJ'!G201<0.5),"-",IFERROR('Tabel 2 ØJ'!G201/'Tabel 1 ØJ'!E199*100,"-")) -> - | I201: =IF(OR('Tabel 1 ØJ'!G199<5,'Tabel 2 ØJ'!I201<0.5),"-",IFERROR('Tabel 2 ØJ'!I201/'Tabel 1 ØJ'!G199*100,"-")) -> - | J201: =IF(OR('Tabel 1 ØJ'!G199<5,'Tabel 2 ØJ'!J201<0.5),"-",IFERROR('Tabel 2 ØJ'!J201/'Tabel 1 ØJ'!G199*100,"-")) -> -
A202: Komm. og Sprog | C202: =IF(OR('Tabel 1 ØJ'!C200<5,'Tabel 2 ØJ'!C202<0.5),"-",IFERROR('Tabel 2 ØJ'!C202/'Tabel 1 ØJ'!C200*100,"-")) -> - | D202: =IF(OR('Tabel 1 ØJ'!C200<5,'Tabel 2 ØJ'!D202<0.5),"-",IFERROR('Tabel 2 ØJ'!D202/'Tabel 1 ØJ'!C200*100,"-")) -> - | F202: =IF(OR('Tabel 1 ØJ'!E200<5,'Tabel 2 ØJ'!F202<0.5),"-",IFERROR('Tabel 2 ØJ'!F202/'Tabel 1 ØJ'!E200*100,"-")) -> - | G202: =IF(OR('Tabel 1 ØJ'!E200<5,'Tabel 2 ØJ'!G202<0.5),"-",IFERROR('Tabel 2 ØJ'!G202/'Tabel 1 ØJ'!E200*100,"-")) -> - | I202: =IF(OR('Tabel 1 ØJ'!G200<5,'Tabel 2 ØJ'!I202<0.5),"-",IFERROR('Tabel 2 ØJ'!I202/'Tabel 1 ØJ'!G200*100,"-")) -> - | J202: =IF(OR('Tabel 1 ØJ'!G200<5,'Tabel 2 ØJ'!J202<0.5),"-",IFERROR('Tabel 2 ØJ'!J202/'Tabel 1 ØJ'!G200*100,"-")) -> -
A203: Bygningskonst. | C203: =IF(OR('Tabel 1 ØJ'!C201<5,'Tabel 2 ØJ'!C203<0.5),"-",IFERROR('Tabel 2 ØJ'!C203/'Tabel 1 ØJ'!C201*100,"-")) -> 6.666666667 | D203: =IF(OR('Tabel 1 ØJ'!C201<5,'Tabel 2 ØJ'!D203<0.5),"-",IFERROR('Tabel 2 ØJ'!D203/'Tabel 1 ØJ'!C201*100,"-")) -> 4.327740701 | F203: =IF(OR('Tabel 1 ØJ'!E201<5,'Tabel 2 ØJ'!F203<0.5),"-",IFERROR('Tabel 2 ØJ'!F203/'Tabel 1 ØJ'!E201*100,"-")) -> - | G203: =IF(OR('Tabel 1 ØJ'!E201<5,'Tabel 2 ØJ'!G203<0.5),"-",IFERROR('Tabel 2 ØJ'!G203/'Tabel 1 ØJ'!E201*100,"-")) -> - | I203: =IF(OR('Tabel 1 ØJ'!G201<5,'Tabel 2 ØJ'!I203<0.5),"-",IFERROR('Tabel 2 ØJ'!I203/'Tabel 1 ØJ'!G201*100,"-")) -> 3.174603175 | J203: =IF(OR('Tabel 1 ØJ'!G201<5,'Tabel 2 ØJ'!J203<0.5),"-",IFERROR('Tabel 2 ØJ'!J203/'Tabel 1 ØJ'!G201*100,"-")) -> 2.060828905
A204: Cand. IT. | C204: =IF(OR('Tabel 1 ØJ'!C202<5,'Tabel 2 ØJ'!C204<0.5),"-",IFERROR('Tabel 2 ØJ'!C204/'Tabel 1 ØJ'!C202*100,"-")) -> - | D204: =IF(OR('Tabel 1 ØJ'!C202<5,'Tabel 2 ØJ'!D204<0.5),"-",IFERROR('Tabel 2 ØJ'!D204/'Tabel 1 ØJ'!C202*100,"-")) -> - | F204: =IF(OR('Tabel 1 ØJ'!E202<5,'Tabel 2 ØJ'!F204<0.5),"-",IFERROR('Tabel 2 ØJ'!F204/'Tabel 1 ØJ'!E202*100,"-")) -> - | G204: =IF(OR('Tabel 1 ØJ'!E202<5,'Tabel 2 ØJ'!G204<0.5),"-",IFERROR('Tabel 2 ØJ'!G204/'Tabel 1 ØJ'!E202*100,"-")) -> - | I204: =IF(OR('Tabel 1 ØJ'!G202<5,'Tabel 2 ØJ'!I204<0.5),"-",IFERROR('Tabel 2 ØJ'!I204/'Tabel 1 ØJ'!G202*100,"-")) -> - | J204: =IF(OR('Tabel 1 ØJ'!G202<5,'Tabel 2 ØJ'!J204<0.5),"-",IFERROR('Tabel 2 ØJ'!J204/'Tabel 1 ØJ'!G202*100,"-")) -> -
A205: Bac. Samf. | C205: =IF(OR('Tabel 1 ØJ'!C203<5,'Tabel 2 ØJ'!C205<0.5),"-",IFERROR('Tabel 2 ØJ'!C205/'Tabel 1 ØJ'!C203*100,"-")) -> - | D205: =IF(OR('Tabel 1 ØJ'!C203<5,'Tabel 2 ØJ'!D205<0.5),"-",IFERROR('Tabel 2 ØJ'!D205/'Tabel 1 ØJ'!C203*100,"-")) -> - | F205: =IF(OR('Tabel 1 ØJ'!E203<5,'Tabel 2 ØJ'!F205<0.5),"-",IFERROR('Tabel 2 ØJ'!F205/'Tabel 1 ØJ'!E203*100,"-")) -> - | G205: =IF(OR('Tabel 1 ØJ'!E203<5,'Tabel 2 ØJ'!G205<0.5),"-",IFERROR('Tabel 2 ØJ'!G205/'Tabel 1 ØJ'!E203*100,"-")) -> - | I205: =IF(OR('Tabel 1 ØJ'!G203<5,'Tabel 2 ØJ'!I205<0.5),"-",IFERROR('Tabel 2 ØJ'!I205/'Tabel 1 ØJ'!G203*100,"-")) -> - | J205: =IF(OR('Tabel 1 ØJ'!G203<5,'Tabel 2 ØJ'!J205<0.5),"-",IFERROR('Tabel 2 ØJ'!J205/'Tabel 1 ØJ'!G203*100,"-")) -> -
A206: Bac. Hum. | C206: =IF(OR('Tabel 1 ØJ'!C204<5,'Tabel 2 ØJ'!C206<0.5),"-",IFERROR('Tabel 2 ØJ'!C206/'Tabel 1 ØJ'!C204*100,"-")) -> - | D206: =IF(OR('Tabel 1 ØJ'!C204<5,'Tabel 2 ØJ'!D206<0.5),"-",IFERROR('Tabel 2 ØJ'!D206/'Tabel 1 ØJ'!C204*100,"-")) -> - | F206: =IF(OR('Tabel 1 ØJ'!E204<5,'Tabel 2 ØJ'!F206<0.5),"-",IFERROR('Tabel 2 ØJ'!F206/'Tabel 1 ØJ'!E204*100,"-")) -> 20 | G206: =IF(OR('Tabel 1 ØJ'!E204<5,'Tabel 2 ØJ'!G206<0.5),"-",IFERROR('Tabel 2 ØJ'!G206/'Tabel 1 ØJ'!E204*100,"-")) -> 19.49728685 | I206: =IF(OR('Tabel 1 ØJ'!G204<5,'Tabel 2 ØJ'!I206<0.5),"-",IFERROR('Tabel 2 ØJ'!I206/'Tabel 1 ØJ'!G204*100,"-")) -> 23.07692308 | J206: =IF(OR('Tabel 1 ØJ'!G204<5,'Tabel 2 ØJ'!J206<0.5),"-",IFERROR('Tabel 2 ØJ'!J206/'Tabel 1 ØJ'!G204*100,"-")) -> 22.68878131
A207: Bac. Nat. | C207: =IF(OR('Tabel 1 ØJ'!C205<5,'Tabel 2 ØJ'!C207<0.5),"-",IFERROR('Tabel 2 ØJ'!C207/'Tabel 1 ØJ'!C205*100,"-")) -> - | D207: =IF(OR('Tabel 1 ØJ'!C205<5,'Tabel 2 ØJ'!D207<0.5),"-",IFERROR('Tabel 2 ØJ'!D207/'Tabel 1 ØJ'!C205*100,"-")) -> - | F207: =IF(OR('Tabel 1 ØJ'!E205<5,'Tabel 2 ØJ'!F207<0.5),"-",IFERROR('Tabel 2 ØJ'!F207/'Tabel 1 ØJ'!E205*100,"-")) -> - | G207: =IF(OR('Tabel 1 ØJ'!E205<5,'Tabel 2 ØJ'!G207<0.5),"-",IFERROR('Tabel 2 ØJ'!G207/'Tabel 1 ØJ'!E205*100,"-")) -> - | I207: =IF(OR('Tabel 1 ØJ'!G205<5,'Tabel 2 ØJ'!I207<0.5),"-",IFERROR('Tabel 2 ØJ'!I207/'Tabel 1 ØJ'!G205*100,"-")) -> - | J207: =IF(OR('Tabel 1 ØJ'!G205<5,'Tabel 2 ØJ'!J207<0.5),"-",IFERROR('Tabel 2 ØJ'!J207/'Tabel 1 ØJ'!G205*100,"-")) -> -
A208: Andre | C208: =IF(OR('Tabel 1 ØJ'!C206<5,'Tabel 2 ØJ'!C208<0.5),"-",IFERROR('Tabel 2 ØJ'!C208/'Tabel 1 ØJ'!C206*100,"-")) -> 8 | D208: =IF(OR('Tabel 1 ØJ'!C206<5,'Tabel 2 ØJ'!D208<0.5),"-",IFERROR('Tabel 2 ØJ'!D208/'Tabel 1 ØJ'!C206*100,"-")) -> 7.798914738 | F208: =IF(OR('Tabel 1 ØJ'!E206<5,'Tabel 2 ØJ'!F208<0.5),"-",IFERROR('Tabel 2 ØJ'!F208/'Tabel 1 ØJ'!E206*100,"-")) -> 5.263157895 | G208: =IF(OR('Tabel 1 ØJ'!E206<5,'Tabel 2 ØJ'!G208<0.5),"-",IFERROR('Tabel 2 ØJ'!G208/'Tabel 1 ØJ'!E206*100,"-")) -> 5.262173084 | I208: =IF(OR('Tabel 1 ØJ'!G206<5,'Tabel 2 ØJ'!I208<0.5),"-",IFERROR('Tabel 2 ØJ'!I208/'Tabel 1 ØJ'!G206*100,"-")) -> 6.349206349 | J208: =IF(OR('Tabel 1 ØJ'!G206<5,'Tabel 2 ØJ'!J208<0.5),"-",IFERROR('Tabel 2 ØJ'!J208/'Tabel 1 ØJ'!G206*100,"-")) -> 6.268816598
A210: Total | C210: =IF(OR('Tabel 1 ØJ'!C208<5,'Tabel 2 ØJ'!C210<0.5),"-",IFERROR('Tabel 2 ØJ'!C210/'Tabel 1 ØJ'!C208*100,"-")) -> 4.391891892 | D210: =IF(OR('Tabel 1 ØJ'!C208<5,'Tabel 2 ØJ'!D210<0.5),"-",IFERROR('Tabel 2 ØJ'!D210/'Tabel 1 ØJ'!C208*100,"-")) -> 3.52221179 | F210: =IF(OR('Tabel 1 ØJ'!E208<5,'Tabel 2 ØJ'!F210<0.5),"-",IFERROR('Tabel 2 ØJ'!F210/'Tabel 1 ØJ'!E208*100,"-")) -> 2.592592593 | G210: =IF(OR('Tabel 1 ØJ'!E208<5,'Tabel 2 ØJ'!G210<0.5),"-",IFERROR('Tabel 2 ØJ'!G210/'Tabel 1 ØJ'!E208*100,"-")) -> 2.222499428 | I210: =IF(OR('Tabel 1 ØJ'!G208<5,'Tabel 2 ØJ'!I210<0.5),"-",IFERROR('Tabel 2 ØJ'!I210/'Tabel 1 ØJ'!G208*100,"-")) -> 3.229665072 | J210: =IF(OR('Tabel 1 ØJ'!G208<5,'Tabel 2 ØJ'!J210<0.5),"-",IFERROR('Tabel 2 ØJ'!J210/'Tabel 1 ØJ'!G208*100,"-")) -> 2.682684666
A212: Ingeniører i alt | C212: =IF(OR('Tabel 1 ØJ'!C210<5,'Tabel 2 ØJ'!C212<0.5),"-",IFERROR('Tabel 2 ØJ'!C212/'Tabel 1 ØJ'!C210*100,"-")) -> 1.111111111 | D212: =IF(OR('Tabel 1 ØJ'!C210<5,'Tabel 2 ØJ'!D212<0.5),"-",IFERROR('Tabel 2 ØJ'!D212/'Tabel 1 ØJ'!C210*100,"-")) -> 1.110903207 | F212: =IF(OR('Tabel 1 ØJ'!E210<5,'Tabel 2 ØJ'!F212<0.5),"-",IFERROR('Tabel 2 ØJ'!F212/'Tabel 1 ØJ'!E210*100,"-")) -> - | G212: =IF(OR('Tabel 1 ØJ'!E210<5,'Tabel 2 ØJ'!G212<0.5),"-",IFERROR('Tabel 2 ØJ'!G212/'Tabel 1 ØJ'!E210*100,"-")) -> - | I212: =IF(OR('Tabel 1 ØJ'!G210<5,'Tabel 2 ØJ'!I212<0.5),"-",IFERROR('Tabel 2 ØJ'!I212/'Tabel 1 ØJ'!G210*100,"-")) -> 0.4739336493 | J212: =IF(OR('Tabel 1 ØJ'!G210<5,'Tabel 2 ØJ'!J212<0.5),"-",IFERROR('Tabel 2 ØJ'!J212/'Tabel 1 ØJ'!G210*100,"-")) -> 0.4738449696
A213: Magistre i alt | C213: =IF(OR('Tabel 1 ØJ'!C211<5,'Tabel 2 ØJ'!C213<0.5),"-",IFERROR('Tabel 2 ØJ'!C213/'Tabel 1 ØJ'!C211*100,"-")) -> 8.163265306 | D213: =IF(OR('Tabel 1 ØJ'!C211<5,'Tabel 2 ØJ'!D213<0.5),"-",IFERROR('Tabel 2 ØJ'!D213/'Tabel 1 ØJ'!C211*100,"-")) -> 7.610578692 | F213: =IF(OR('Tabel 1 ØJ'!E211<5,'Tabel 2 ØJ'!F213<0.5),"-",IFERROR('Tabel 2 ØJ'!F213/'Tabel 1 ØJ'!E211*100,"-")) -> 4.098360656 | G213: =IF(OR('Tabel 1 ØJ'!E211<5,'Tabel 2 ØJ'!G213<0.5),"-",IFERROR('Tabel 2 ØJ'!G213/'Tabel 1 ØJ'!E211*100,"-")) -> 2.735648708 | I213: =IF(OR('Tabel 1 ØJ'!G211<5,'Tabel 2 ØJ'!I213<0.5),"-",IFERROR('Tabel 2 ØJ'!I213/'Tabel 1 ØJ'!G211*100,"-")) -> 5.263157895 | J213: =IF(OR('Tabel 1 ØJ'!G211<5,'Tabel 2 ØJ'!J213<0.5),"-",IFERROR('Tabel 2 ØJ'!J213/'Tabel 1 ØJ'!G211*100,"-")) -> 4.13255847
A214: DJØF'ere i alt | C214: =IF(OR('Tabel 1 ØJ'!C212<5,'Tabel 2 ØJ'!C214<0.5),"-",IFERROR('Tabel 2 ØJ'!C214/'Tabel 1 ØJ'!C212*100,"-")) -> 4.081632653 | D214: =IF(OR('Tabel 1 ØJ'!C212<5,'Tabel 2 ØJ'!D214<0.5),"-",IFERROR('Tabel 2 ØJ'!D214/'Tabel 1 ØJ'!C212*100,"-")) -> 2.47321532 | F214: =IF(OR('Tabel 1 ØJ'!E212<5,'Tabel 2 ØJ'!F214<0.5),"-",IFERROR('Tabel 2 ØJ'!F214/'Tabel 1 ØJ'!E212*100,"-")) -> - | G214: =IF(OR('Tabel 1 ØJ'!E212<5,'Tabel 2 ØJ'!G214<0.5),"-",IFERROR('Tabel 2 ØJ'!G214/'Tabel 1 ØJ'!E212*100,"-")) -> - | I214: =IF(OR('Tabel 1 ØJ'!G212<5,'Tabel 2 ØJ'!I214<0.5),"-",IFERROR('Tabel 2 ØJ'!I214/'Tabel 1 ØJ'!G212*100,"-")) -> 1.438848921 | J214: =IF(OR('Tabel 1 ØJ'!G212<5,'Tabel 2 ØJ'!J214<0.5),"-",IFERROR('Tabel 2 ØJ'!J214/'Tabel 1 ØJ'!G212*100,"-")) -> 0.8718528826
A219: Favrskov
C221: Mænd | F221: Kvinder | I221: I alt
C222: Ledigheds- berørte | D222: Gns. brutto- ledighed | F222: Ledigheds- berørte | G222: Gns. brutto- ledighed | I222: Ledigheds- berørte | J222: Gns. brutto- ledighed
A225: Civ. ing. | C225: =IF(OR('Tabel 1 ØJ'!C223<5,'Tabel 2 ØJ'!C225<0.5),"-",IFERROR('Tabel 2 ØJ'!C225/'Tabel 1 ØJ'!C223*100,"-")) -> - | D225: =IF(OR('Tabel 1 ØJ'!C223<5,'Tabel 2 ØJ'!D225<0.5),"-",IFERROR('Tabel 2 ØJ'!D225/'Tabel 1 ØJ'!C223*100,"-")) -> - | F225: =IF(OR('Tabel 1 ØJ'!E223<5,'Tabel 2 ØJ'!F225<0.5),"-",IFERROR('Tabel 2 ØJ'!F225/'Tabel 1 ØJ'!E223*100,"-")) -> 4.545454545 | G225: =IF(OR('Tabel 1 ØJ'!E223<5,'Tabel 2 ØJ'!G225<0.5),"-",IFERROR('Tabel 2 ØJ'!G225/'Tabel 1 ØJ'!E223*100,"-")) -> 3.888759736 | I225: =IF(OR('Tabel 1 ØJ'!G223<5,'Tabel 2 ØJ'!I225<0.5),"-",IFERROR('Tabel 2 ØJ'!I225/'Tabel 1 ØJ'!G223*100,"-")) -> 1.067615658 | J225: =IF(OR('Tabel 1 ØJ'!G223<5,'Tabel 2 ØJ'!J225<0.5),"-",IFERROR('Tabel 2 ØJ'!J225/'Tabel 1 ØJ'!G223*100,"-")) -> 0.9133741729
A226: Diplom ing. | C226: =IF(OR('Tabel 1 ØJ'!C224<5,'Tabel 2 ØJ'!C226<0.5),"-",IFERROR('Tabel 2 ØJ'!C226/'Tabel 1 ØJ'!C224*100,"-")) -> 1.385041551 | D226: =IF(OR('Tabel 1 ØJ'!C224<5,'Tabel 2 ØJ'!D226<0.5),"-",IFERROR('Tabel 2 ØJ'!D226/'Tabel 1 ØJ'!C224*100,"-")) -> 1.142553456 | F226: =IF(OR('Tabel 1 ØJ'!E224<5,'Tabel 2 ØJ'!F226<0.5),"-",IFERROR('Tabel 2 ØJ'!F226/'Tabel 1 ØJ'!E224*100,"-")) -> 3.225806452 | G226: =IF(OR('Tabel 1 ØJ'!E224<5,'Tabel 2 ØJ'!G226<0.5),"-",IFERROR('Tabel 2 ØJ'!G226/'Tabel 1 ØJ'!E224*100,"-")) -> 2.923405959 | I226: =IF(OR('Tabel 1 ØJ'!G224<5,'Tabel 2 ØJ'!I226<0.5),"-",IFERROR('Tabel 2 ØJ'!I226/'Tabel 1 ØJ'!G224*100,"-")) -> 1.654846336 | J226: =IF(OR('Tabel 1 ØJ'!G224<5,'Tabel 2 ØJ'!J226<0.5),"-",IFERROR('Tabel 2 ØJ'!J226/'Tabel 1 ØJ'!G224*100,"-")) -> 1.403576754
A227: Cand. Scient. Tek. | C227: =IF(OR('Tabel 1 ØJ'!C225<5,'Tabel 2 ØJ'!C227<0.5),"-",IFERROR('Tabel 2 ØJ'!C227/'Tabel 1 ØJ'!C225*100,"-")) -> 4.347826087 | D227: =IF(OR('Tabel 1 ØJ'!C225<5,'Tabel 2 ØJ'!D227<0.5),"-",IFERROR('Tabel 2 ØJ'!D227/'Tabel 1 ØJ'!C225*100,"-")) -> 3.878775388 | F227: =IF(OR('Tabel 1 ØJ'!E225<5,'Tabel 2 ØJ'!F227<0.5),"-",IFERROR('Tabel 2 ØJ'!F227/'Tabel 1 ØJ'!E225*100,"-")) -> 4.615384615 | G227: =IF(OR('Tabel 1 ØJ'!E225<5,'Tabel 2 ØJ'!G227<0.5),"-",IFERROR('Tabel 2 ØJ'!G227/'Tabel 1 ØJ'!E225*100,"-")) -> 3.478402717 | I227: =IF(OR('Tabel 1 ØJ'!G225<5,'Tabel 2 ØJ'!I227<0.5),"-",IFERROR('Tabel 2 ØJ'!I227/'Tabel 1 ØJ'!G225*100,"-")) -> 4.47761194 | J227: =IF(OR('Tabel 1 ØJ'!G225<5,'Tabel 2 ØJ'!J227<0.5),"-",IFERROR('Tabel 2 ØJ'!J227/'Tabel 1 ØJ'!G225*100,"-")) -> 3.684564764
A228: MA. Hum. | C228: =IF(OR('Tabel 1 ØJ'!C226<5,'Tabel 2 ØJ'!C228<0.5),"-",IFERROR('Tabel 2 ØJ'!C228/'Tabel 1 ØJ'!C226*100,"-")) -> 5.681818182 | D228: =IF(OR('Tabel 1 ØJ'!C226<5,'Tabel 2 ØJ'!D228<0.5),"-",IFERROR('Tabel 2 ØJ'!D228/'Tabel 1 ØJ'!C226*100,"-")) -> 4.76503008 | F228: =IF(OR('Tabel 1 ØJ'!E226<5,'Tabel 2 ØJ'!F228<0.5),"-",IFERROR('Tabel 2 ØJ'!F228/'Tabel 1 ØJ'!E226*100,"-")) -> 8.835341365 | G228: =IF(OR('Tabel 1 ØJ'!E226<5,'Tabel 2 ØJ'!G228<0.5),"-",IFERROR('Tabel 2 ØJ'!G228/'Tabel 1 ØJ'!E226*100,"-")) -> 7.689712258 | I228: =IF(OR('Tabel 1 ØJ'!G226<5,'Tabel 2 ØJ'!I228<0.5),"-",IFERROR('Tabel 2 ØJ'!I228/'Tabel 1 ØJ'!G226*100,"-")) -> 8.011869436 | J228: =IF(OR('Tabel 1 ØJ'!G226<5,'Tabel 2 ØJ'!J228<0.5),"-",IFERROR('Tabel 2 ØJ'!J228/'Tabel 1 ØJ'!G226*100,"-")) -> 6.92599703
A229: MA. Nat. | C229: =IF(OR('Tabel 1 ØJ'!C227<5,'Tabel 2 ØJ'!C229<0.5),"-",IFERROR('Tabel 2 ØJ'!C229/'Tabel 1 ØJ'!C227*100,"-")) -> - | D229: =IF(OR('Tabel 1 ØJ'!C227<5,'Tabel 2 ØJ'!D229<0.5),"-",IFERROR('Tabel 2 ØJ'!D229/'Tabel 1 ØJ'!C227*100,"-")) -> - | F229: =IF(OR('Tabel 1 ØJ'!E227<5,'Tabel 2 ØJ'!F229<0.5),"-",IFERROR('Tabel 2 ØJ'!F229/'Tabel 1 ØJ'!E227*100,"-")) -> 2.53164557 | G229: =IF(OR('Tabel 1 ØJ'!E227<5,'Tabel 2 ØJ'!G229<0.5),"-",IFERROR('Tabel 2 ØJ'!G229/'Tabel 1 ØJ'!E227*100,"-")) -> 2.215367513 | I229: =IF(OR('Tabel 1 ØJ'!G227<5,'Tabel 2 ØJ'!I229<0.5),"-",IFERROR('Tabel 2 ØJ'!I229/'Tabel 1 ØJ'!G227*100,"-")) -> 1.136363636 | J229: =IF(OR('Tabel 1 ØJ'!G227<5,'Tabel 2 ØJ'!J229<0.5),"-",IFERROR('Tabel 2 ØJ'!J229/'Tabel 1 ØJ'!G227*100,"-")) -> 0.9943979179
A230: MA. Ph.d. | C230: =IF(OR('Tabel 1 ØJ'!C228<5,'Tabel 2 ØJ'!C230<0.5),"-",IFERROR('Tabel 2 ØJ'!C230/'Tabel 1 ØJ'!C228*100,"-")) -> 9.090909091 | D230: =IF(OR('Tabel 1 ØJ'!C228<5,'Tabel 2 ØJ'!D230<0.5),"-",IFERROR('Tabel 2 ØJ'!D230/'Tabel 1 ØJ'!C228*100,"-")) -> 9.089208054 | F230: =IF(OR('Tabel 1 ØJ'!E228<5,'Tabel 2 ØJ'!F230<0.5),"-",IFERROR('Tabel 2 ØJ'!F230/'Tabel 1 ØJ'!E228*100,"-")) -> 25 | G230: =IF(OR('Tabel 1 ØJ'!E228<5,'Tabel 2 ØJ'!G230<0.5),"-",IFERROR('Tabel 2 ØJ'!G230/'Tabel 1 ØJ'!E228*100,"-")) -> 24.99532215 | I230: =IF(OR('Tabel 1 ØJ'!G228<5,'Tabel 2 ØJ'!I230<0.5),"-",IFERROR('Tabel 2 ØJ'!I230/'Tabel 1 ØJ'!G228*100,"-")) -> 15.78947368 | J230: =IF(OR('Tabel 1 ØJ'!G228<5,'Tabel 2 ØJ'!J230<0.5),"-",IFERROR('Tabel 2 ØJ'!J230/'Tabel 1 ØJ'!G228*100,"-")) -> 15.78651925
A231: MA. Samf. | C231: =IF(OR('Tabel 1 ØJ'!C229<5,'Tabel 2 ØJ'!C231<0.5),"-",IFERROR('Tabel 2 ØJ'!C231/'Tabel 1 ØJ'!C229*100,"-")) -> 16.66666667 | D231: =IF(OR('Tabel 1 ØJ'!C229<5,'Tabel 2 ØJ'!D231<0.5),"-",IFERROR('Tabel 2 ØJ'!D231/'Tabel 1 ØJ'!C229*100,"-")) -> 16.6635481 | F231: =IF(OR('Tabel 1 ØJ'!E229<5,'Tabel 2 ØJ'!F231<0.5),"-",IFERROR('Tabel 2 ØJ'!F231/'Tabel 1 ØJ'!E229*100,"-")) -> 7.692307692 | G231: =IF(OR('Tabel 1 ØJ'!E229<5,'Tabel 2 ØJ'!G231<0.5),"-",IFERROR('Tabel 2 ØJ'!G231/'Tabel 1 ØJ'!E229*100,"-")) -> - | I231: =IF(OR('Tabel 1 ØJ'!G229<5,'Tabel 2 ØJ'!I231<0.5),"-",IFERROR('Tabel 2 ØJ'!I231/'Tabel 1 ØJ'!G229*100,"-")) -> 10.52631579 | J231: =IF(OR('Tabel 1 ØJ'!G229<5,'Tabel 2 ØJ'!J231<0.5),"-",IFERROR('Tabel 2 ØJ'!J231/'Tabel 1 ØJ'!G229*100,"-")) -> 6.394705656
A232: Øvrige Mag. | C232: =IF(OR('Tabel 1 ØJ'!C230<5,'Tabel 2 ØJ'!C232<0.5),"-",IFERROR('Tabel 2 ØJ'!C232/'Tabel 1 ØJ'!C230*100,"-")) -> - | D232: =IF(OR('Tabel 1 ØJ'!C230<5,'Tabel 2 ØJ'!D232<0.5),"-",IFERROR('Tabel 2 ØJ'!D232/'Tabel 1 ØJ'!C230*100,"-")) -> - | F232: =IF(OR('Tabel 1 ØJ'!E230<5,'Tabel 2 ØJ'!F232<0.5),"-",IFERROR('Tabel 2 ØJ'!F232/'Tabel 1 ØJ'!E230*100,"-")) -> 15.38461538 | G232: =IF(OR('Tabel 1 ØJ'!E230<5,'Tabel 2 ØJ'!G232<0.5),"-",IFERROR('Tabel 2 ØJ'!G232/'Tabel 1 ØJ'!E230*100,"-")) -> 14.23506326 | I232: =IF(OR('Tabel 1 ØJ'!G230<5,'Tabel 2 ØJ'!I232<0.5),"-",IFERROR('Tabel 2 ØJ'!I232/'Tabel 1 ØJ'!G230*100,"-")) -> 9.090909091 | J232: =IF(OR('Tabel 1 ØJ'!G230<5,'Tabel 2 ØJ'!J232<0.5),"-",IFERROR('Tabel 2 ØJ'!J232/'Tabel 1 ØJ'!G230*100,"-")) -> 8.411628289
A233: Agronom | C233: =IF(OR('Tabel 1 ØJ'!C231<5,'Tabel 2 ØJ'!C233<0.5),"-",IFERROR('Tabel 2 ØJ'!C233/'Tabel 1 ØJ'!C231*100,"-")) -> - | D233: =IF(OR('Tabel 1 ØJ'!C231<5,'Tabel 2 ØJ'!D233<0.5),"-",IFERROR('Tabel 2 ØJ'!D233/'Tabel 1 ØJ'!C231*100,"-")) -> - | F233: =IF(OR('Tabel 1 ØJ'!E231<5,'Tabel 2 ØJ'!F233<0.5),"-",IFERROR('Tabel 2 ØJ'!F233/'Tabel 1 ØJ'!E231*100,"-")) -> - | G233: =IF(OR('Tabel 1 ØJ'!E231<5,'Tabel 2 ØJ'!G233<0.5),"-",IFERROR('Tabel 2 ØJ'!G233/'Tabel 1 ØJ'!E231*100,"-")) -> - | I233: =IF(OR('Tabel 1 ØJ'!G231<5,'Tabel 2 ØJ'!I233<0.5),"-",IFERROR('Tabel 2 ØJ'!I233/'Tabel 1 ØJ'!G231*100,"-")) -> - | J233: =IF(OR('Tabel 1 ØJ'!G231<5,'Tabel 2 ØJ'!J233<0.5),"-",IFERROR('Tabel 2 ØJ'!J233/'Tabel 1 ØJ'!G231*100,"-")) -> -
A234: Landsk. Arkt. | C234: =IF(OR('Tabel 1 ØJ'!C232<5,'Tabel 2 ØJ'!C234<0.5),"-",IFERROR('Tabel 2 ØJ'!C234/'Tabel 1 ØJ'!C232*100,"-")) -> - | D234: =IF(OR('Tabel 1 ØJ'!C232<5,'Tabel 2 ØJ'!D234<0.5),"-",IFERROR('Tabel 2 ØJ'!D234/'Tabel 1 ØJ'!C232*100,"-")) -> - | F234: =IF(OR('Tabel 1 ØJ'!E232<5,'Tabel 2 ØJ'!F234<0.5),"-",IFERROR('Tabel 2 ØJ'!F234/'Tabel 1 ØJ'!E232*100,"-")) -> - | G234: =IF(OR('Tabel 1 ØJ'!E232<5,'Tabel 2 ØJ'!G234<0.5),"-",IFERROR('Tabel 2 ØJ'!G234/'Tabel 1 ØJ'!E232*100,"-")) -> - | I234: =IF(OR('Tabel 1 ØJ'!G232<5,'Tabel 2 ØJ'!I234<0.5),"-",IFERROR('Tabel 2 ØJ'!I234/'Tabel 1 ØJ'!G232*100,"-")) -> - | J234: =IF(OR('Tabel 1 ØJ'!G232<5,'Tabel 2 ØJ'!J234<0.5),"-",IFERROR('Tabel 2 ØJ'!J234/'Tabel 1 ØJ'!G232*100,"-")) -> -
A235: Hortonom | C235: =IF(OR('Tabel 1 ØJ'!C233<5,'Tabel 2 ØJ'!C235<0.5),"-",IFERROR('Tabel 2 ØJ'!C235/'Tabel 1 ØJ'!C233*100,"-")) -> - | D235: =IF(OR('Tabel 1 ØJ'!C233<5,'Tabel 2 ØJ'!D235<0.5),"-",IFERROR('Tabel 2 ØJ'!D235/'Tabel 1 ØJ'!C233*100,"-")) -> - | F235: =IF(OR('Tabel 1 ØJ'!E233<5,'Tabel 2 ØJ'!F235<0.5),"-",IFERROR('Tabel 2 ØJ'!F235/'Tabel 1 ØJ'!E233*100,"-")) -> - | G235: =IF(OR('Tabel 1 ØJ'!E233<5,'Tabel 2 ØJ'!G235<0.5),"-",IFERROR('Tabel 2 ØJ'!G235/'Tabel 1 ØJ'!E233*100,"-")) -> - | I235: =IF(OR('Tabel 1 ØJ'!G233<5,'Tabel 2 ØJ'!I235<0.5),"-",IFERROR('Tabel 2 ØJ'!I235/'Tabel 1 ØJ'!G233*100,"-")) -> - | J235: =IF(OR('Tabel 1 ØJ'!G233<5,'Tabel 2 ØJ'!J235<0.5),"-",IFERROR('Tabel 2 ØJ'!J235/'Tabel 1 ØJ'!G233*100,"-")) -> -
A236: Forstkand. | C236: =IF(OR('Tabel 1 ØJ'!C234<5,'Tabel 2 ØJ'!C236<0.5),"-",IFERROR('Tabel 2 ØJ'!C236/'Tabel 1 ØJ'!C234*100,"-")) -> - | D236: =IF(OR('Tabel 1 ØJ'!C234<5,'Tabel 2 ØJ'!D236<0.5),"-",IFERROR('Tabel 2 ØJ'!D236/'Tabel 1 ØJ'!C234*100,"-")) -> - | F236: =IF(OR('Tabel 1 ØJ'!E234<5,'Tabel 2 ØJ'!F236<0.5),"-",IFERROR('Tabel 2 ØJ'!F236/'Tabel 1 ØJ'!E234*100,"-")) -> - | G236: =IF(OR('Tabel 1 ØJ'!E234<5,'Tabel 2 ØJ'!G236<0.5),"-",IFERROR('Tabel 2 ØJ'!G236/'Tabel 1 ØJ'!E234*100,"-")) -> - | I236: =IF(OR('Tabel 1 ØJ'!G234<5,'Tabel 2 ØJ'!I236<0.5),"-",IFERROR('Tabel 2 ØJ'!I236/'Tabel 1 ØJ'!G234*100,"-")) -> - | J236: =IF(OR('Tabel 1 ØJ'!G234<5,'Tabel 2 ØJ'!J236<0.5),"-",IFERROR('Tabel 2 ØJ'!J236/'Tabel 1 ØJ'!G234*100,"-")) -> -
A237: Jordbrugsakad. | C237: =IF(OR('Tabel 1 ØJ'!C235<5,'Tabel 2 ØJ'!C237<0.5),"-",IFERROR('Tabel 2 ØJ'!C237/'Tabel 1 ØJ'!C235*100,"-")) -> - | D237: =IF(OR('Tabel 1 ØJ'!C235<5,'Tabel 2 ØJ'!D237<0.5),"-",IFERROR('Tabel 2 ØJ'!D237/'Tabel 1 ØJ'!C235*100,"-")) -> - | F237: =IF(OR('Tabel 1 ØJ'!E235<5,'Tabel 2 ØJ'!F237<0.5),"-",IFERROR('Tabel 2 ØJ'!F237/'Tabel 1 ØJ'!E235*100,"-")) -> - | G237: =IF(OR('Tabel 1 ØJ'!E235<5,'Tabel 2 ØJ'!G237<0.5),"-",IFERROR('Tabel 2 ØJ'!G237/'Tabel 1 ØJ'!E235*100,"-")) -> - | I237: =IF(OR('Tabel 1 ØJ'!G235<5,'Tabel 2 ØJ'!I237<0.5),"-",IFERROR('Tabel 2 ØJ'!I237/'Tabel 1 ØJ'!G235*100,"-")) -> - | J237: =IF(OR('Tabel 1 ØJ'!G235<5,'Tabel 2 ØJ'!J237<0.5),"-",IFERROR('Tabel 2 ØJ'!J237/'Tabel 1 ØJ'!G235*100,"-")) -> -
A238: Mejeriing. | C238: =IF(OR('Tabel 1 ØJ'!C236<5,'Tabel 2 ØJ'!C238<0.5),"-",IFERROR('Tabel 2 ØJ'!C238/'Tabel 1 ØJ'!C236*100,"-")) -> - | D238: =IF(OR('Tabel 1 ØJ'!C236<5,'Tabel 2 ØJ'!D238<0.5),"-",IFERROR('Tabel 2 ØJ'!D238/'Tabel 1 ØJ'!C236*100,"-")) -> - | F238: =IF(OR('Tabel 1 ØJ'!E236<5,'Tabel 2 ØJ'!F238<0.5),"-",IFERROR('Tabel 2 ØJ'!F238/'Tabel 1 ØJ'!E236*100,"-")) -> - | G238: =IF(OR('Tabel 1 ØJ'!E236<5,'Tabel 2 ØJ'!G238<0.5),"-",IFERROR('Tabel 2 ØJ'!G238/'Tabel 1 ØJ'!E236*100,"-")) -> - | I238: =IF(OR('Tabel 1 ØJ'!G236<5,'Tabel 2 ØJ'!I238<0.5),"-",IFERROR('Tabel 2 ØJ'!I238/'Tabel 1 ØJ'!G236*100,"-")) -> - | J238: =IF(OR('Tabel 1 ØJ'!G236<5,'Tabel 2 ØJ'!J238<0.5),"-",IFERROR('Tabel 2 ØJ'!J238/'Tabel 1 ØJ'!G236*100,"-")) -> -
A239: Levn.m.kand. | C239: =IF(OR('Tabel 1 ØJ'!C237<5,'Tabel 2 ØJ'!C239<0.5),"-",IFERROR('Tabel 2 ØJ'!C239/'Tabel 1 ØJ'!C237*100,"-")) -> - | D239: =IF(OR('Tabel 1 ØJ'!C237<5,'Tabel 2 ØJ'!D239<0.5),"-",IFERROR('Tabel 2 ØJ'!D239/'Tabel 1 ØJ'!C237*100,"-")) -> - | F239: =IF(OR('Tabel 1 ØJ'!E237<5,'Tabel 2 ØJ'!F239<0.5),"-",IFERROR('Tabel 2 ØJ'!F239/'Tabel 1 ØJ'!E237*100,"-")) -> - | G239: =IF(OR('Tabel 1 ØJ'!E237<5,'Tabel 2 ØJ'!G239<0.5),"-",IFERROR('Tabel 2 ØJ'!G239/'Tabel 1 ØJ'!E237*100,"-")) -> - | I239: =IF(OR('Tabel 1 ØJ'!G237<5,'Tabel 2 ØJ'!I239<0.5),"-",IFERROR('Tabel 2 ØJ'!I239/'Tabel 1 ØJ'!G237*100,"-")) -> - | J239: =IF(OR('Tabel 1 ØJ'!G237<5,'Tabel 2 ØJ'!J239<0.5),"-",IFERROR('Tabel 2 ØJ'!J239/'Tabel 1 ØJ'!G237*100,"-")) -> -
A240: Dyrlæge | C240: =IF(OR('Tabel 1 ØJ'!C238<5,'Tabel 2 ØJ'!C240<0.5),"-",IFERROR('Tabel 2 ØJ'!C240/'Tabel 1 ØJ'!C238*100,"-")) -> - | D240: =IF(OR('Tabel 1 ØJ'!C238<5,'Tabel 2 ØJ'!D240<0.5),"-",IFERROR('Tabel 2 ØJ'!D240/'Tabel 1 ØJ'!C238*100,"-")) -> - | F240: =IF(OR('Tabel 1 ØJ'!E238<5,'Tabel 2 ØJ'!F240<0.5),"-",IFERROR('Tabel 2 ØJ'!F240/'Tabel 1 ØJ'!E238*100,"-")) -> - | G240: =IF(OR('Tabel 1 ØJ'!E238<5,'Tabel 2 ØJ'!G240<0.5),"-",IFERROR('Tabel 2 ØJ'!G240/'Tabel 1 ØJ'!E238*100,"-")) -> - | I240: =IF(OR('Tabel 1 ØJ'!G238<5,'Tabel 2 ØJ'!I240<0.5),"-",IFERROR('Tabel 2 ØJ'!I240/'Tabel 1 ØJ'!G238*100,"-")) -> - | J240: =IF(OR('Tabel 1 ØJ'!G238<5,'Tabel 2 ØJ'!J240<0.5),"-",IFERROR('Tabel 2 ØJ'!J240/'Tabel 1 ØJ'!G238*100,"-")) -> -
... 341 more rows

Sheet Tabel 4F ØJ
A1: Tabel 4. Antal forsikrede - aldersfordelt
A3: Østjylland
C5: Under 30 år | D5: 30 - 39 år | E5: 40 - 49 år | F5: 50 - 59 år | G5: Over 60 år | I5: I alt
A7: Civ. ing. | C7: 806 | D7: 1651 | E7: 958 | F7: 634 | G7: 180 | I7: 4229
A8: Diplom ing. | C8: 934 | D8: 1446 | E8: 1754 | F8: 2126 | G8: 781 | I8: 7041
A9: Cand. Scient. Tek. | C9: 970 | D9: 1517 | E9: 382 | F9: 120 | G9: 22 | I9: 3011
A10: MA. Hum. | C10: 1263 | D10: 2848 | E10: 2596 | F10: 1095 | G10: 490 | I10: 8292
A11: MA. Nat. | C11: 257 | D11: 621 | E11: 898 | F11: 796 | G11: 338 | I11: 2910
A12: MA. Ph.d. | C12: 18 | D12: 206 | E12: 222 | F12: 114 | G12: 25 | I12: 585
A13: MA. Samf. | C13: 228 | D13: 442 | E13: 54 | F13: 20 | G13: 4 | I13: 748
A14: Øvrige Mag. | C14: 67 | D14: 129 | E14: 150 | F14: 157 | G14: 73 | I14: 576
A15: Agronom | C15: 20 | D15: 27 | E15: 88 | F15: 143 | G15: 64 | I15: 342
A16: Landsk. Arkt. | C16: 1 | D16: 11 | E16: 16 | F16: 11 | G16: 1 | I16: 40
A17: Hortonom | C17: 0 | D17: 2 | E17: 6 | F17: 12 | G17: 8 | I17: 28
A18: Forstkand. | C18: 2 | D18: 8 | E18: 27 | F18: 9 | G18: 8 | I18: 54
A19: Jordbrugsakad. | C19: 23 | D19: 48 | E19: 137 | F19: 175 | G19: 81 | I19: 464
A20: Mejeriing. | C20: 3 | D20: 9 | E20: 12 | F20: 38 | G20: 22 | I20: 84
A21: Levn.m.kand. | C21: 4 | D21: 13 | E21: 9 | F21: 2 | G21: 0 | I21: 28
A22: Dyrlæge | C22: 21 | D22: 95 | E22: 60 | F22: 47 | G22: 14 | I22: 237
A23: Farmaceut | C23: 102 | D23: 117 | E23: 47 | F23: 44 | G23: 17 | I23: 327
A24: Læge | C24: 460 | D24: 1206 | E24: 520 | F24: 301 | G24: 154 | I24: 2641
A25: Tandlæge | C25: 92 | D25: 153 | E25: 100 | F25: 75 | G25: 62 | I25: 482
A26: Arkitekt | C26: 150 | D26: 460 | E26: 523 | F26: 263 | G26: 176 | I26: 1572
A27: Landinspek. | C27: 9 | D27: 37 | E27: 39 | F27: 29 | G27: 22 | I27: 136
A28: Bibliotekar | C28: 4 | D28: 79 | E28: 118 | F28: 94 | G28: 59 | I28: 354
A29: Musikudd. | C29: 5 | D29: 16 | E29: 31 | F29: 56 | G29: 40 | I29: 148
A30: Teolog | C30: 18 | D30: 61 | E30: 122 | F30: 97 | G30: 33 | I30: 331
A31: Psykolog | C31: 333 | D31: 743 | E31: 468 | F31: 255 | G31: 123 | I31: 1922
A32: Jurist | C32: 562 | D32: 826 | E32: 513 | F32: 345 | G32: 101 | I32: 2347
A33: Økonom | C33: 286 | D33: 478 | E33: 326 | F33: 277 | G33: 78 | I33: 1445
A34: Samf. Adm. | C34: 667 | D34: 1316 | E34: 756 | F34: 414 | G34: 92 | I34: 3245
A35: Cand. Merc. | C35: 1558 | D35: 2900 | E35: 1347 | F35: 925 | G35: 140 | I35: 6870
A36: HA | C36: 290 | D36: 282 | E36: 158 | F36: 303 | G36: 71 | I36: 1104
A37: HD | C37: 141 | D37: 215 | E37: 145 | F37: 277 | G37: 86 | I37: 864
A38: Komm. og Sprog | C38: 194 | D38: 248 | E38: 388 | F38: 328 | G38: 137 | I38: 1295
A39: Bygningskonst. | C39: 492 | D39: 951 | E39: 494 | F39: 236 | G39: 64 | I39: 2237
A40: Cand. IT. | C40: 277 | D40: 504 | E40: 149 | F40: 18 | G40: 2 | I40: 950
A41: Bac. Samf. | C41: 62 | D41: 39 | E41: 51 | F41: 35 | G41: 11 | I41: 198
A42: Bac. Hum. | C42: 366 | D42: 168 | E42: 157 | F42: 108 | G42: 40 | I42: 839
A43: Bac. Nat. | C43: 319 | D43: 231 | E43: 82 | F43: 23 | G43: 2 | I43: 657
A44: Andre | C44: 495 | D44: 1143 | E44: 779 | F44: 465 | G44: 257 | I44: 3139
A46: Total | C46: 11476 | D46: 21198 | E46: 14545 | F46: 10292 | G46: 3797 | I46: 61308
A48: Ingeniører i alt | C48: 1740 | D48: 3097 | E48: 2712 | F48: 2760 | G48: 961 | I48: 11270
A49: Magistre i alt | C49: 1833 | D49: 4246 | E49: 3920 | F49: 2182 | G49: 930 | I49: 13111
A50: DJØF'ere i alt | C50: 3363 | D50: 5802 | E50: 3100 | F50: 2264 | G50: 482 | I50: 15011
A57: Horsens
C59: Under 30 år | D59: 30 - 39 år | E59: 40 - 49 år | F59: 50 - 59 år | G59: Over 60 år | I59: I alt
A61: Civ. ing. | C61: 47 | D61: 122 | E61: 85 | F61: 41 | G61: 7 | I61: 302
A62: Diplom ing. | C62: 104 | D62: 225 | E62: 304 | F62: 238 | G62: 81 | I62: 952
A63: Cand. Scient. Tek. | C63: 32 | D63: 79 | E63: 29 | F63: 1 | G63: 0 | I63: 141
A64: MA. Hum. | C64: 42 | D64: 136 | E64: 148 | F64: 49 | G64: 21 | I64: 396
A65: MA. Nat. | C65: 3 | D65: 28 | E65: 57 | F65: 42 | G65: 6 | I65: 136
A66: MA. Ph.d. | C66: 0 | D66: 3 | E66: 3 | F66: 4 | G66: 0 | I66: 10
A67: MA. Samf. | C67: 5 | D67: 21 | E67: 5 | F67: 1 | G67: 0 | I67: 32
A68: Øvrige Mag. | C68: 0 | D68: 9 | E68: 9 | F68: 6 | G68: 5 | I68: 29
A69: Agronom | C69: 2 | D69: 3 | E69: 10 | F69: 14 | G69: 8 | I69: 37
A70: Landsk. Arkt. | C70: 0 | D70: 1 | E70: 1 | F70: 0 | G70: 0 | I70: 2
A71: Hortonom | C71: 0 | D71: 0 | E71: 1 | F71: 0 | G71: 0 | I71: 1
A72: Forstkand. | C72: 0 | D72: 1 | E72: 3 | F72: 1 | G72: 1 | I72: 6
A73: Jordbrugsakad. | C73: 2 | D73: 5 | E73: 15 | F73: 15 | G73: 9 | I73: 46
A74: Mejeriing. | C74: 0 | D74: 2 | E74: 0 | F74: 4 | G74: 0 | I74: 6
A75: Levn.m.kand. | C75: 0 | D75: 1 | E75: 0 | F75: 0 | G75: 0 | I75: 1
A76: Dyrlæge | C76: 1 | D76: 9 | E76: 6 | F76: 5 | G76: 1 | I76: 22
A77: Farmaceut | C77: 8 | D77: 5 | E77: 7 | F77: 2 | G77: 1 | I77: 23
A78: Læge | C78: 16 | D78: 44 | E78: 19 | F78: 10 | G78: 3 | I78: 92
A79: Tandlæge | C79: 3 | D79: 11 | E79: 5 | F79: 2 | G79: 3 | I79: 24
A80: Arkitekt | C80: 8 | D80: 15 | E80: 27 | F80: 10 | G80: 8 | I80: 68
A81: Landinspek. | C81: 1 | D81: 7 | E81: 7 | F81: 2 | G81: 3 | I81: 20
A82: Bibliotekar | C82: 1 | D82: 6 | E82: 13 | F82: 10 | G82: 4 | I82: 34
A83: Musikudd. | C83: 0 | D83: 0 | E83: 1 | F83: 5 | G83: 2 | I83: 8
A84: Teolog | C84: 1 | D84: 3 | E84: 3 | F84: 6 | G84: 3 | I84: 16
A85: Psykolog | C85: 15 | D85: 34 | E85: 31 | F85: 7 | G85: 5 | I85: 92
A86: Jurist | C86: 26 | D86: 56 | E86: 42 | F86: 16 | G86: 7 | I86: 147
A87: Økonom | C87: 10 | D87: 22 | E87: 19 | F87: 11 | G87: 3 | I87: 65
A88: Samf. Adm. | C88: 22 | D88: 76 | E88: 58 | F88: 16 | G88: 3 | I88: 175
A89: Cand. Merc. | C89: 81 | D89: 202 | E89: 108 | F89: 64 | G89: 5 | I89: 460
A90: HA | C90: 29 | D90: 18 | E90: 21 | F90: 22 | G90: 8 | I90: 98
A91: HD | C91: 6 | D91: 14 | E91: 12 | F91: 24 | G91: 7 | I91: 63
A92: Komm. og Sprog | C92: 13 | D92: 13 | E92: 28 | F92: 20 | G92: 8 | I92: 82
A93: Bygningskonst. | C93: 88 | D93: 183 | E93: 129 | F93: 53 | G93: 12 | I93: 465
A94: Cand. IT. | C94: 8 | D94: 18 | E94: 12 | F94: 0 | G94: 0 | I94: 38
A95: Bac. Samf. | C95: 4 | D95: 2 | E95: 6 | F95: 1 | G95: 2 | I95: 15
A96: Bac. Hum. | C96: 8 | D96: 9 | E96: 13 | F96: 7 | G96: 3 | I96: 40
A97: Bac. Nat. | C97: 67 | D97: 37 | E97: 12 | F97: 2 | G97: 0 | I97: 118
A98: Andre | C98: 60 | D98: 94 | E98: 49 | F98: 30 | G98: 11 | I98: 244
A100: Total | C100: 711 | D100: 1509 | E100: 1283 | F100: 726 | G100: 231 | I100: 4460
A102: Ingeniører i alt | C102: 151 | D102: 347 | E102: 389 | F102: 279 | G102: 88 | I102: 1254
A103: Magistre i alt | C103: 50 | D103: 197 | E103: 222 | F103: 102 | G103: 32 | I103: 603
A104: DJØF'ere i alt | C104: 168 | D104: 374 | E104: 248 | F104: 129 | G104: 26 | I104: 945
A111: Syddjurs
C113: Under 30 år | D113: 30 - 39 år | E113: 40 - 49 år | F113: 50 - 59 år | G113: Over 60 år | I113: I alt
A115: Civ. ing. | C115: 3 | D115: 27 | E115: 23 | F115: 28 | G115: 6 | I115: 87
A116: Diplom ing. | C116: 12 | D116: 31 | E116: 66 | F116: 92 | G116: 30 | I116: 231
A117: Cand. Scient. Tek. | C117: 12 | D117: 39 | E117: 17 | F117: 3 | G117: 0 | I117: 71
A118: MA. Hum. | C118: 6 | D118: 91 | E118: 88 | F118: 50 | G118: 19 | I118: 254
A119: MA. Nat. | C119: 2 | D119: 21 | E119: 34 | F119: 39 | G119: 20 | I119: 116
A120: MA. Ph.d. | C120: 0 | D120: 6 | E120: 11 | F120: 6 | G120: 0 | I120: 23
A121: MA. Samf. | C121: 0 | D121: 22 | E121: 0 | F121: 0 | G121: 0 | I121: 22
A122: Øvrige Mag. | C122: 1 | D122: 7 | E122: 5 | F122: 6 | G122: 3 | I122: 22
A123: Agronom | C123: 1 | D123: 4 | E123: 4 | F123: 13 | G123: 6 | I123: 28
A124: Landsk. Arkt. | C124: 0 | D124: 1 | E124: 2 | F124: 1 | G124: 0 | I124: 4
A125: Hortonom | C125: 0 | D125: 0 | E125: 1 | F125: 2 | G125: 1 | I125: 4
A126: Forstkand. | C126: 0 | D126: 0 | E126: 2 | F126: 0 | G126: 2 | I126: 4
A127: Jordbrugsakad. | C127: 1 | D127: 5 | E127: 9 | F127: 16 | G127: 9 | I127: 40
A128: Mejeriing. | C128: 1 | D128: 0 | E128: 1 | F128: 0 | G128: 1 | I128: 3
A129: Levn.m.kand. | C129: 0 | D129: 0 | E129: 0 | F129: 0 | G129: 0 | I129: 0
A130: Dyrlæge | C130: 0 | D130: 6 | E130: 1 | F130: 3 | G130: 0 | I130: 10
A131: Farmaceut | C131: 2 | D131: 4 | E131: 3 | F131: 0 | G131: 0 | I131: 9
A132: Læge | C132: 4 | D132: 26 | E132: 8 | F132: 7 | G132: 5 | I132: 50
A133: Tandlæge | C133: 2 | D133: 4 | E133: 4 | F133: 5 | G133: 2 | I133: 17
A134: Arkitekt | C134: 2 | D134: 21 | E134: 23 | F134: 17 | G134: 12 | I134: 75
A135: Landinspek. | C135: 0 | D135: 2 | E135: 2 | F135: 0 | G135: 1 | I135: 5
A136: Bibliotekar | C136: 0 | D136: 3 | E136: 6 | F136: 3 | G136: 2 | I136: 14
A137: Musikudd. | C137: 0 | D137: 1 | E137: 0 | F137: 5 | G137: 1 | I137: 7
A138: Teolog | C138: 1 | D138: 3 | E138: 9 | F138: 4 | G138: 3 | I138: 20
A139: Psykolog | C139: 5 | D139: 22 | E139: 14 | F139: 18 | G139: 9 | I139: 68
A140: Jurist | C140: 3 | D140: 20 | E140: 14 | F140: 12 | G140: 4 | I140: 53
A141: Økonom | C141: 0 | D141: 6 | E141: 9 | F141: 11 | G141: 1 | I141: 27
A142: Samf. Adm. | C142: 3 | D142: 31 | E142: 18 | F142: 13 | G142: 6 | I142: 71
A143: Cand. Merc. | C143: 11 | D143: 58 | E143: 28 | F143: 26 | G143: 2 | I143: 125
A144: HA | C144: 3 | D144: 4 | E144: 16 | F144: 11 | G144: 4 | I144: 38
A145: HD | C145: 2 | D145: 5 | E145: 4 | F145: 10 | G145: 4 | I145: 25
A146: Komm. og Sprog | C146: 1 | D146: 8 | E146: 10 | F146: 10 | G146: 12 | I146: 41
A147: Bygningskonst. | C147: 7 | D147: 36 | E147: 20 | F147: 6 | G147: 5 | I147: 74
A148: Cand. IT. | C148: 2 | D148: 16 | E148: 4 | F148: 0 | G148: 0 | I148: 22
A149: Bac. Samf. | C149: 0 | D149: 0 | E149: 1 | F149: 0 | G149: 0 | I149: 1
A150: Bac. Hum. | C150: 1 | D150: 7 | E150: 6 | F150: 3 | G150: 1 | I150: 18
A151: Bac. Nat. | C151: 4 | D151: 7 | E151: 3 | F151: 1 | G151: 0 | I151: 15
A152: Andre | C152: 0 | D152: 36 | E152: 29 | F152: 25 | G152: 13 | I152: 103
A154: Total | C154: 91 | D154: 575 | E154: 486 | F154: 430 | G154: 175 | I154: 1757
A156: Ingeniører i alt | C156: 15 | D156: 58 | E156: 89 | F156: 120 | G156: 36 | I156: 318
A157: Magistre i alt | C157: 9 | D157: 147 | E157: 138 | F157: 101 | G157: 42 | I157: 437
A158: DJØF'ere i alt | C158: 20 | D158: 119 | E158: 85 | F158: 73 | G158: 17 | I158: 314
A165: Norddjurs
C167: Under 30 år | D167: 30 - 39 år | E167: 40 - 49 år | F167: 50 - 59 år | G167: Over 60 år | I167: I alt
A169: Civ. ing. | C169: 9 | D169: 9 | E169: 3 | F169: 2 | G169: 2 | I169: 25
A170: Diplom ing. | C170: 2 | D170: 15 | E170: 17 | F170: 48 | G170: 14 | I170: 96
A171: Cand. Scient. Tek. | C171: 2 | D171: 8 | E171: 6 | F171: 2 | G171: 0 | I171: 18
A172: MA. Hum. | C172: 6 | D172: 23 | E172: 27 | F172: 16 | G172: 5 | I172: 77
A173: MA. Nat. | C173: 2 | D173: 4 | E173: 13 | F173: 10 | G173: 2 | I173: 31
A174: MA. Ph.d. | C174: 0 | D174: 2 | E174: 4 | F174: 0 | G174: 1 | I174: 7
A175: MA. Samf. | C175: 1 | D175: 0 | E175: 1 | F175: 0 | G175: 0 | I175: 2
A176: Øvrige Mag. | C176: 0 | D176: 0 | E176: 3 | F176: 2 | G176: 0 | I176: 5
A177: Agronom | C177: 0 | D177: 4 | E177: 1 | F177: 1 | G177: 2 | I177: 8
A178: Landsk. Arkt. | C178: 0 | D178: 0 | E178: 0 | F178: 0 | G178: 0 | I178: 0
A179: Hortonom | C179: 0 | D179: 0 | E179: 1 | F179: 0 | G179: 0 | I179: 1
A180: Forstkand. | C180: 0 | D180: 0 | E180: 2 | F180: 0 | G180: 0 | I180: 2
A181: Jordbrugsakad. | C181: 0 | D181: 4 | E181: 4 | F181: 1 | G181: 2 | I181: 11
A182: Mejeriing. | C182: 0 | D182: 0 | E182: 0 | F182: 0 | G182: 0 | I182: 0
A183: Levn.m.kand. | C183: 1 | D183: 0 | E183: 1 | F183: 0 | G183: 0 | I183: 2
A184: Dyrlæge | C184: 2 | D184: 2 | E184: 1 | F184: 2 | G184: 0 | I184: 7
A185: Farmaceut | C185: 1 | D185: 0 | E185: 0 | F185: 2 | G185: 0 | I185: 3
A186: Læge | C186: 1 | D186: 0 | E186: 0 | F186: 2 | G186: 1 | I186: 4
A187: Tandlæge | C187: 0 | D187: 0 | E187: 1 | F187: 2 | G187: 1 | I187: 4
A188: Arkitekt | C188: 0 | D188: 3 | E188: 0 | F188: 3 | G188: 3 | I188: 9
A189: Landinspek. | C189: 1 | D189: 0 | E189: 0 | F189: 1 | G189: 0 | I189: 2
A190: Bibliotekar | C190: 0 | D190: 1 | E190: 2 | F190: 3 | G190: 0 | I190: 6
A191: Musikudd. | C191: 0 | D191: 1 | E191: 1 | F191: 1 | G191: 0 | I191: 3
A192: Teolog | C192: 0 | D192: 3 | E192: 3 | F192: 4 | G192: 2 | I192: 12
A193: Psykolog | C193: 0 | D193: 5 | E193: 5 | F193: 1 | G193: 3 | I193: 14
A194: Jurist | C194: 0 | D194: 2 | E194: 3 | F194: 3 | G194: 1 | I194: 9
A195: Økonom | C195: 0 | D195: 1 | E195: 2 | F195: 3 | G195: 0 | I195: 6
A196: Samf. Adm. | C196: 1 | D196: 4 | E196: 5 | F196: 8 | G196: 2 | I196: 20
A197: Cand. Merc. | C197: 4 | D197: 22 | E197: 6 | F197: 4 | G197: 4 | I197: 40
A198: HA | C198: 2 | D198: 2 | E198: 1 | F198: 9 | G198: 1 | I198: 15
A199: HD | C199: 0 | D199: 2 | E199: 4 | F199: 2 | G199: 3 | I199: 11
A200: Komm. og Sprog | C200: 1 | D200: 2 | E200: 3 | F200: 5 | G200: 1 | I200: 12
A201: Bygningskonst. | C201: 7 | D201: 16 | E201: 4 | F201: 4 | G201: 2 | I201: 33
A202: Cand. IT. | C202: 0 | D202: 1 | E202: 1 | F202: 0 | G202: 0 | I202: 2
A203: Bac. Samf. | C203: 1 | D203: 0 | E203: 0 | F203: 2 | G203: 0 | I203: 3
A204: Bac. Hum. | C204: 2 | D204: 1 | E204: 1 | F204: 3 | G204: 3 | I204: 10
A205: Bac. Nat. | C205: 1 | D205: 0 | E205: 2 | F205: 0 | G205: 0 | I205: 3
A206: Andre | C206: 4 | D206: 8 | E206: 10 | F206: 9 | G206: 7 | I206: 38
A208: Total | C208: 51 | D208: 141 | E208: 134 | F208: 154 | G208: 60 | I208: 540
A210: Ingeniører i alt | C210: 11 | D210: 24 | E210: 20 | F210: 50 | G210: 16 | I210: 121
A211: Magistre i alt | C211: 9 | D211: 29 | E211: 48 | F211: 28 | G211: 8 | I211: 122
A212: DJØF'ere i alt | C212: 7 | D212: 31 | E212: 17 | F212: 27 | G212: 8 | I212: 90
A219: Favrskov
C221: Under 30 år | D221: 30 - 39 år | E221: 40 - 49 år | F221: 50 - 59 år | G221: Over 60 år | I221: I alt
A223: Civ. ing. | C223: 20 | D223: 108 | E223: 98 | F223: 46 | G223: 9 | I223: 281
A224: Diplom ing. | C224: 17 | D224: 63 | E224: 148 | F224: 150 | G224: 45 | I224: 423
A225: Cand. Scient. Tek. | C225: 24 | D225: 71 | E225: 25 | F225: 14 | G225: 0 | I225: 134
A226: MA. Hum. | C226: 29 | D226: 115 | E226: 139 | F226: 40 | G226: 14 | I226: 337
A227: MA. Nat. | C227: 5 | D227: 36 | E227: 64 | F227: 55 | G227: 16 | I227: 176
A228: MA. Ph.d. | C228: 0 | D228: 9 | E228: 8 | F228: 1 | G228: 1 | I228: 19
A229: MA. Samf. | C229: 2 | D229: 14 | E229: 3 | F229: 0 | G229: 0 | I229: 19
A230: Øvrige Mag. | C230: 0 | D230: 3 | E230: 6 | F230: 12 | G230: 1 | I230: 22
A231: Agronom | C231: 3 | D231: 3 | E231: 13 | F231: 21 | G231: 10 | I231: 50
A232: Landsk. Arkt. | C232: 1 | D232: 0 | E232: 2 | F232: 0 | G232: 0 | I232: 3
A233: Hortonom | C233: 0 | D233: 0 | E233: 0 | F233: 1 | G233: 3 | I233: 4
A234: Forstkand. | C234: 0 | D234: 2 | E234: 2 | F234: 0 | G234: 2 | I234: 6
A235: Jordbrugsakad. | C235: 4 | D235: 5 | E235: 17 | F235: 22 | G235: 15 | I235: 63
A236: Mejeriing. | C236: 0 | D236: 0 | E236: 1 | F236: 1 | G236: 2 | I236: 4
A237: Levn.m.kand. | C237: 0 | D237: 1 | E237: 0 | F237: 0 | G237: 0 | I237: 1
A238: Dyrlæge | C238: 4 | D238: 7 | E238: 6 | F238: 3 | G238: 2 | I238: 22
A239: Farmaceut | C239: 0 | D239: 4 | E239: 1 | F239: 4 | G239: 1 | I239: 10
A240: Læge | C240: 6 | D240: 52 | E240: 41 | F240: 17 | G240: 5 | I240: 121
A241: Tandlæge | C241: 3 | D241: 5 | E241: 9 | F241: 2 | G241: 3 | I241: 22
A242: Arkitekt | C242: 2 | D242: 16 | E242: 12 | F242: 4 | G242: 1 | I242: 35
A243: Landinspek. | C243: 1 | D243: 1 | E243: 6 | F243: 3 | G243: 1 | I243: 12
... 329 more rows

Sheet Tabel 4 ØJ
A1: Tabel 4. Ledighedsberørte - aldersfordelt
A3: Østjylland
C5: Under 30 år | D5: 30 - 39 år | E5: 40 - 49 år | F5: 50 - 59 år | G5: Over 60 år | I5: I alt
A7: Civ. ing. | C7: 81 | D7: 35 | E7: 12 | F7: 10 | G7: 3 | I7: 141
A8: Diplom ing. | C8: 125 | D8: 45 | E8: 18 | F8: 35 | G8: 33 | I8: 256
A9: Cand. Scient. Tek | C9: 140 | D9: 89 | E9: 9 | F9: 5 | G9: 5 | I9: 248
A10: MA. Hum. | C10: 468 | D10: 435 | E10: 142 | F10: 70 | G10: 54 | I10: 1169
A11: MA. Nat. | C11: 37 | D11: 36 | E11: 17 | F11: 14 | G11: 14 | I11: 118
A12: MA. Ph.d. | C12: 5 | D12: 14 | E12: 12 | F12: 1 | G12: 1 | I12: 33
A13: MA. Samf. | C13: 71 | D13: 59 | E13: 5 | F13: 0 | G13: 0 | I13: 135
A14: Øvrige Mag. | C14: 22 | D14: 21 | E14: 19 | F14: 8 | G14: 4 | I14: 74
A15: Agronom | C15: 1 | D15: 2 | E15: 3 | F15: 2 | G15: 3 | I15: 11
A16: Landsk. Arkt. | C16: 0 | D16: 1 | E16: 0 | F16: 0 | G16: 0 | I16: 1
A17: Hortonom | C17: 0 | D17: 0 | E17: 0 | F17: 0 | G17: 0 | I17: 0
A18: Forstkand. | C18: 1 | D18: 0 | E18: 0 | F18: 0 | G18: 1 | I18: 2
A19: Jordbrugsakad. | C19: 2 | D19: 3 | E19: 3 | F19: 2 | G19: 4 | I19: 14
A20: Mejeriing. | C20: 1 | D20: 0 | E20: 0 | F20: 0 | G20: 2 | I20: 3
A21: Levn.m.kand. | C21: 1 | D21: 0 | E21: 0 | F21: 0 | G21: 0 | I21: 1
A22: Dyrlæge | C22: 0 | D22: 0 | E22: 0 | F22: 0 | G22: 0 | I22: 0
A23: Farmaceut | C23: 7 | D23: 6 | E23: 0 | F23: 1 | G23: 2 | I23: 16
A24: Læge | C24: 24 | D24: 26 | E24: 3 | F24: 0 | G24: 0 | I24: 53
A25: Tandlæge | C25: 5 | D25: 1 | E25: 1 | F25: 1 | G25: 1 | I25: 9
A26: Arkitekt | C26: 39 | D26: 49 | E26: 19 | F26: 9 | G26: 16 | I26: 132
A27: Landinspek. | C27: 1 | D27: 0 | E27: 0 | F27: 0 | G27: 0 | I27: 1
A28: Bibliotekar | C28: 1 | D28: 8 | E28: 5 | F28: 4 | G28: 1 | I28: 19
A29: Musikudd. | C29: 3 | D29: 2 | E29: 1 | F29: 2 | G29: 2 | I29: 10
A30: Teolog | C30: 10 | D30: 3 | E30: 5 | F30: 3 | G30: 3 | I30: 24
A31: Psykolog | C31: 52 | D31: 53 | E31: 11 | F31: 6 | G31: 5 | I31: 127
A32: Jurist | C32: 28 | D32: 17 | E32: 6 | F32: 6 | G32: 3 | I32: 60
A33: Økonom | C33: 12 | D33: 13 | E33: 1 | F33: 11 | G33: 2 | I33: 39
A34: Samf. Adm. | C34: 117 | D34: 96 | E34: 22 | F34: 10 | G34: 5 | I34: 250
A35: Cand. Merc. | C35: 135 | D35: 100 | E35: 24 | F35: 31 | G35: 6 | I35: 296
A36: HA | C36: 51 | D36: 16 | E36: 6 | F36: 17 | G36: 6 | I36: 96
A37: HD | C37: 25 | D37: 14 | E37: 0 | F37: 5 | G37: 3 | I37: 47
A38: Komm. og Sprog | C38: 39 | D38: 23 | E38: 24 | F38: 13 | G38: 13 | I38: 112
A39: Bygningskonst. | C39: 76 | D39: 39 | E39: 10 | F39: 8 | G39: 4 | I39: 137
A40: Cand. IT. | C40: 38 | D40: 29 | E40: 5 | F40: 0 | G40: 0 | I40: 72
A41: Bac. Samf. | C41: 14 | D41: 3 | E41: 4 | F41: 1 | G41: 1 | I41: 23
A42: Bac. Hum. | C42: 143 | D42: 32 | E42: 12 | F42: 6 | G42: 4 | I42: 197
A43: Bac. Nat. | C43: 73 | D43: 19 | E43: 8 | F43: 4 | G43: 0 | I43: 104
A44: Andre | C44: 91 | D44: 84 | E44: 54 | F44: 30 | G44: 25 | I44: 284
A46: Total | C46: 1937 | D46: 1370 | E46: 458 | F46: 313 | G46: 222 | I46: 4300
A48: Ingeniører i alt | C48: 206 | D48: 80 | E48: 30 | F48: 45 | G48: 36 | I48: 397
A49: Magistre i alt | C49: 603 | D49: 565 | E49: 195 | F49: 93 | G49: 73 | I49: 1529
A50: DJØF'ere i alt | C50: 343 | D50: 242 | E50: 59 | F50: 75 | G50: 22 | I50: 741
A57: Horsens
C59: Under 30 år | D59: 30 - 39 år | E59: 40 - 49 år | F59: 50 - 59 år | G59: Over 60 år | I59: I alt
A61: Civ. ing. | C61: 6 | D61: 4 | E61: 0 | F61: 0 | G61: 0 | I61: 10
A62: Diplom ing. | C62: 16 | D62: 10 | E62: 1 | F62: 2 | G62: 2 | I62: 31
A63: Cand. Scient. Tek | C63: 2 | D63: 2 | E63: 2 | F63: 0 | G63: 0 | I63: 6
A64: MA. Hum. | C64: 11 | D64: 18 | E64: 5 | F64: 2 | G64: 1 | I64: 37
A65: MA. Nat. | C65: 0 | D65: 1 | E65: 0 | F65: 0 | G65: 0 | I65: 1
A66: MA. Ph.d. | C66: 0 | D66: 0 | E66: 0 | F66: 0 | G66: 0 | I66: 0
A67: MA. Samf. | C67: 0 | D67: 2 | E67: 0 | F67: 0 | G67: 0 | I67: 2
A68: Øvrige Mag. | C68: 0 | D68: 1 | E68: 1 | F68: 0 | G68: 1 | I68: 3
A69: Agronom | C69: 0 | D69: 0 | E69: 0 | F69: 1 | G69: 2 | I69: 3
A70: Landsk. Arkt. | C70: 0 | D70: 0 | E70: 0 | F70: 0 | G70: 0 | I70: 0
A71: Hortonom | C71: 0 | D71: 0 | E71: 0 | F71: 0 | G71: 0 | I71: 0
A72: Forstkand. | C72: 0 | D72: 0 | E72: 0 | F72: 0 | G72: 0 | I72: 0
A73: Jordbrugsakad. | C73: 0 | D73: 0 | E73: 0 | F73: 1 | G73: 2 | I73: 3
A74: Mejeriing. | C74: 0 | D74: 0 | E74: 0 | F74: 0 | G74: 0 | I74: 0
A75: Levn.m.kand. | C75: 0 | D75: 0 | E75: 0 | F75: 0 | G75: 0 | I75: 0
A76: Dyrlæge | C76: 0 | D76: 0 | E76: 0 | F76: 0 | G76: 0 | I76: 0
A77: Farmaceut | C77: 1 | D77: 1 | E77: 0 | F77: 0 | G77: 1 | I77: 3
A78: Læge | C78: 1 | D78: 1 | E78: 0 | F78: 0 | G78: 0 | I78: 2
A79: Tandlæge | C79: 0 | D79: 0 | E79: 0 | F79: 0 | G79: 0 | I79: 0
A80: Arkitekt | C80: 0 | D80: 1 | E80: 0 | F80: 0 | G80: 0 | I80: 1
A81: Landinspek. | C81: 0 | D81: 0 | E81: 0 | F81: 0 | G81: 0 | I81: 0
A82: Bibliotekar | C82: 0 | D82: 0 | E82: 0 | F82: 0 | G82: 0 | I82: 0
A83: Musikudd. | C83: 0 | D83: 0 | E83: 0 | F83: 1 | G83: 0 | I83: 1
A84: Teolog | C84: 0 | D84: 0 | E84: 0 | F84: 0 | G84: 0 | I84: 0
A85: Psykolog | C85: 2 | D85: 3 | E85: 1 | F85: 1 | G85: 0 | I85: 7
A86: Jurist | C86: 0 | D86: 0 | E86: 0 | F86: 0 | G86: 1 | I86: 1
A87: Økonom | C87: 0 | D87: 0 | E87: 0 | F87: 0 | G87: 0 | I87: 0
A88: Samf. Adm. | C88: 5 | D88: 9 | E88: 1 | F88: 0 | G88: 0 | I88: 15
A89: Cand. Merc. | C89: 7 | D89: 7 | E89: 3 | F89: 3 | G89: 0 | I89: 20
A90: HA | C90: 7 | D90: 2 | E90: 2 | F90: 1 | G90: 1 | I90: 13
A91: HD | C91: 1 | D91: 1 | E91: 0 | F91: 1 | G91: 1 | I91: 4
A92: Komm. og Sprog | C92: 1 | D92: 0 | E92: 2 | F92: 1 | G92: 0 | I92: 4
A93: Bygningskonst. | C93: 18 | D93: 9 | E93: 3 | F93: 0 | G93: 0 | I93: 30
A94: Cand. IT. | C94: 2 | D94: 2 | E94: 1 | F94: 0 | G94: 0 | I94: 5
A95: Bac. Samf. | C95: 1 | D95: 0 | E95: 1 | F95: 0 | G95: 0 | I95: 2
A96: Bac. Hum. | C96: 3 | D96: 1 | E96: 2 | F96: 1 | G96: 0 | I96: 7
A97: Bac. Nat. | C97: 19 | D97: 5 | E97: 2 | F97: 0 | G97: 0 | I97: 26
A98: Andre | C98: 17 | D98: 5 | E98: 4 | F98: 2 | G98: 0 | I98: 28
A100: Total | C100: 120 | D100: 85 | E100: 31 | F100: 16 | G100: 10 | I100: 262
A102: Ingeniører i alt | C102: 22 | D102: 14 | E102: 1 | F102: 2 | G102: 2 | I102: 41
A103: Magistre i alt | C103: 11 | D103: 22 | E103: 6 | F103: 2 | G103: 2 | I103: 43
A104: DJØF'ere i alt | C104: 19 | D104: 18 | E104: 6 | F104: 4 | G104: 2 | I104: 49
A111: Syddjurs
C113: Under 30 år | D113: 30 - 39 år | E113: 40 - 49 år | F113: 50 - 59 år | G113: Over 60 år | I113: I alt
A115: Civ. ing. | C115: 1 | D115: 1 | E115: 0 | F115: 1 | G115: 0 | I115: 3
A116: Diplom ing. | C116: 2 | D116: 0 | E116: 1 | F116: 1 | G116: 1 | I116: 5
A117: Cand. Scient. Tek | C117: 2 | D117: 2 | E117: 1 | F117: 1 | G117: 0 | I117: 6
A118: MA. Hum. | C118: 4 | D118: 16 | E118: 3 | F118: 1 | G118: 3 | I118: 27
A119: MA. Nat. | C119: 0 | D119: 2 | E119: 1 | F119: 1 | G119: 2 | I119: 6
A120: MA. Ph.d. | C120: 0 | D120: 0 | E120: 1 | F120: 0 | G120: 0 | I120: 1
A121: MA. Samf. | C121: 0 | D121: 5 | E121: 0 | F121: 0 | G121: 0 | I121: 5
A122: Øvrige Mag. | C122: 1 | D122: 2 | E122: 1 | F122: 0 | G122: 0 | I122: 4
A123: Agronom | C123: 0 | D123: 0 | E123: 0 | F123: 0 | G123: 0 | I123: 0
A124: Landsk. Arkt. | C124: 0 | D124: 0 | E124: 0 | F124: 0 | G124: 0 | I124: 0
A125: Hortonom | C125: 0 | D125: 0 | E125: 0 | F125: 0 | G125: 0 | I125: 0
A126: Forstkand. | C126: 0 | D126: 0 | E126: 0 | F126: 0 | G126: 1 | I126: 1
A127: Jordbrugsakad. | C127: 0 | D127: 0 | E127: 0 | F127: 0 | G127: 1 | I127: 1
A128: Mejeriing. | C128: 0 | D128: 0 | E128: 0 | F128: 0 | G128: 0 | I128: 0
A129: Levn.m.kand. | C129: 0 | D129: 0 | E129: 0 | F129: 0 | G129: 0 | I129: 0
A130: Dyrlæge | C130: 0 | D130: 0 | E130: 0 | F130: 0 | G130: 0 | I130: 0
A131: Farmaceut | C131: 0 | D131: 0 | E131: 0 | F131: 0 | G131: 0 | I131: 0
A132: Læge | C132: 0 | D132: 0 | E132: 0 | F132: 0 | G132: 0 | I132: 0
A133: Tandlæge | C133: 0 | D133: 0 | E133: 0 | F133: 0 | G133: 0 | I133: 0
A134: Arkitekt | C134: 1 | D134: 4 | E134: 1 | F134: 0 | G134: 0 | I134: 6
A135: Landinspek. | C135: 0 | D135: 0 | E135: 0 | F135: 0 | G135: 0 | I135: 0
A136: Bibliotekar | C136: 0 | D136: 1 | E136: 0 | F136: 0 | G136: 0 | I136: 1
A137: Musikudd. | C137: 0 | D137: 0 | E137: 0 | F137: 0 | G137: 0 | I137: 0
A138: Teolog | C138: 1 | D138: 0 | E138: 0 | F138: 0 | G138: 0 | I138: 1
A139: Psykolog | C139: 0 | D139: 2 | E139: 0 | F139: 0 | G139: 0 | I139: 2
A140: Jurist | C140: 0 | D140: 0 | E140: 0 | F140: 0 | G140: 0 | I140: 0
A141: Økonom | C141: 0 | D141: 0 | E141: 0 | F141: 2 | G141: 0 | I141: 2
A142: Samf. Adm. | C142: 0 | D142: 4 | E142: 0 | F142: 3 | G142: 1 | I142: 8
A143: Cand. Merc. | C143: 2 | D143: 3 | E143: 1 | F143: 1 | G143: 0 | I143: 7
A144: HA | C144: 1 | D144: 0 | E144: 1 | F144: 1 | G144: 0 | I144: 3
A145: HD | C145: 0 | D145: 1 | E145: 0 | F145: 0 | G145: 0 | I145: 1
A146: Komm. og Sprog | C146: 0 | D146: 1 | E146: 0 | F146: 1 | G146: 2 | I146: 4
A147: Bygningskonst. | C147: 0 | D147: 0 | E147: 1 | F147: 0 | G147: 0 | I147: 1
A148: Cand. IT. | C148: 0 | D148: 1 | E148: 1 | F148: 0 | G148: 0 | I148: 2
A149: Bac. Samf. | C149: 0 | D149: 0 | E149: 0 | F149: 0 | G149: 0 | I149: 0
A150: Bac. Hum. | C150: 0 | D150: 2 | E150: 1 | F150: 1 | G150: 0 | I150: 4
A151: Bac. Nat. | C151: 0 | D151: 0 | E151: 0 | F151: 0 | G151: 0 | I151: 0
A152: Andre | C152: 0 | D152: 4 | E152: 3 | F152: 3 | G152: 0 | I152: 10
A154: Total | C154: 15 | D154: 51 | E154: 17 | F154: 17 | G154: 10 | I154: 110
A156: Ingeniører i alt | C156: 3 | D156: 1 | E156: 1 | F156: 2 | G156: 1 | I156: 8
A157: Magistre i alt | C157: 5 | D157: 25 | E157: 6 | F157: 2 | G157: 5 | I157: 43
A158: DJØF'ere i alt | C158: 3 | D158: 7 | E158: 2 | F158: 7 | G158: 1 | I158: 20
A165: Norddjurs
C167: Under 30 år | D167: 30 - 39 år | E167: 40 - 49 år | F167: 50 - 59 år | G167: Over 60 år | I167: I alt
A169: Civ. ing. | C169: 0 | D169: 0 | E169: 0 | F169: 0 | G169: 0 | I169: 0
A170: Diplom ing. | C170: 0 | D170: 0 | E170: 1 | F170: 0 | G170: 0 | I170: 1
A171: Cand. Scient. Tek | C171: 0 | D171: 1 | E171: 1 | F171: 0 | G171: 0 | I171: 2
A172: MA. Hum. | C172: 0 | D172: 1 | E172: 3 | F172: 0 | G172: 0 | I172: 4
A173: MA. Nat. | C173: 1 | D173: 0 | E173: 0 | F173: 1 | G173: 1 | I173: 3
A174: MA. Ph.d. | C174: 0 | D174: 0 | E174: 0 | F174: 0 | G174: 1 | I174: 1
A175: MA. Samf. | C175: 0 | D175: 0 | E175: 0 | F175: 0 | G175: 0 | I175: 0
A176: Øvrige Mag. | C176: 0 | D176: 0 | E176: 1 | F176: 0 | G176: 0 | I176: 1
A177: Agronom | C177: 0 | D177: 0 | E177: 0 | F177: 0 | G177: 0 | I177: 0
A178: Landsk. Arkt. | C178: 0 | D178: 0 | E178: 0 | F178: 0 | G178: 0 | I178: 0
A179: Hortonom | C179: 0 | D179: 0 | E179: 0 | F179: 0 | G179: 0 | I179: 0
A180: Forstkand. | C180: 0 | D180: 0 | E180: 0 | F180: 0 | G180: 0 | I180: 0
A181: Jordbrugsakad. | C181: 0 | D181: 0 | E181: 0 | F181: 0 | G181: 0 | I181: 0
A182: Mejeriing. | C182: 0 | D182: 0 | E182: 0 | F182: 0 | G182: 0 | I182: 0
A183: Levn.m.kand. | C183: 0 | D183: 0 | E183: 0 | F183: 0 | G183: 0 | I183: 0
A184: Dyrlæge | C184: 0 | D184: 0 | E184: 0 | F184: 0 | G184: 0 | I184: 0
A185: Farmaceut | C185: 0 | D185: 0 | E185: 0 | F185: 0 | G185: 0 | I185: 0
A186: Læge | C186: 0 | D186: 0 | E186: 0 | F186: 0 | G186: 0 | I186: 0
A187: Tandlæge | C187: 0 | D187: 0 | E187: 0 | F187: 0 | G187: 0 | I187: 0
A188: Arkitekt | C188: 0 | D188: 1 | E188: 0 | F188: 0 | G188: 0 | I188: 1
A189: Landinspek. | C189: 0 | D189: 0 | E189: 0 | F189: 0 | G189: 0 | I189: 0
A190: Bibliotekar | C190: 0 | D190: 0 | E190: 0 | F190: 0 | G190: 0 | I190: 0
A191: Musikudd. | C191: 0 | D191: 0 | E191: 0 | F191: 0 | G191: 0 | I191: 0
A192: Teolog | C192: 0 | D192: 0 | E192: 0 | F192: 1 | G192: 0 | I192: 1
A193: Psykolog | C193: 0 | D193: 2 | E193: 0 | F193: 0 | G193: 0 | I193: 2
A194: Jurist | C194: 0 | D194: 0 | E194: 0 | F194: 0 | G194: 0 | I194: 0
A195: Økonom | C195: 0 | D195: 0 | E195: 0 | F195: 0 | G195: 0 | I195: 0
A196: Samf. Adm. | C196: 0 | D196: 1 | E196: 0 | F196: 0 | G196: 0 | I196: 1
A197: Cand. Merc. | C197: 0 | D197: 1 | E197: 0 | F197: 0 | G197: 0 | I197: 1
A198: HA | C198: 0 | D198: 0 | E198: 0 | F198: 0 | G198: 0 | I198: 0
A199: HD | C199: 0 | D199: 0 | E199: 0 | F199: 0 | G199: 0 | I199: 0
A200: Komm. og Sprog | C200: 0 | D200: 0 | E200: 0 | F200: 0 | G200: 0 | I200: 0
A201: Bygningskonst. | C201: 1 | D201: 0 | E201: 0 | F201: 0 | G201: 1 | I201: 2
A202: Cand. IT. | C202: 0 | D202: 0 | E202: 0 | F202: 0 | G202: 0 | I202: 0
A203: Bac. Samf. | C203: 0 | D203: 0 | E203: 0 | F203: 0 | G203: 0 | I203: 0
A204: Bac. Hum. | C204: 1 | D204: 0 | E204: 0 | F204: 1 | G204: 1 | I204: 3
A205: Bac. Nat. | C205: 0 | D205: 0 | E205: 0 | F205: 0 | G205: 0 | I205: 0
A206: Andre | C206: 1 | D206: 1 | E206: 2 | F206: 0 | G206: 0 | I206: 4
A208: Total | C208: 4 | D208: 8 | E208: 8 | F208: 3 | G208: 4 | I208: 27
A210: Ingeniører i alt | C210: 0 | D210: 0 | E210: 1 | F210: 0 | G210: 0 | I210: 1
A211: Magistre i alt | C211: 1 | D211: 1 | E211: 4 | F211: 1 | G211: 2 | I211: 9
A212: DJØF'ere i alt | C212: 0 | D212: 2 | E212: 0 | F212: 0 | G212: 0 | I212: 2
A219: Favrskov
C221: Under 30 år | D221: 30 - 39 år | E221: 40 - 49 år | F221: 50 - 59 år | G221: Over 60 år | I221: I alt
A223: Civ. ing. | C223: 0 | D223: 2 | E223: 1 | F223: 0 | G223: 0 | I223: 3
A224: Diplom ing. | C224: 2 | D224: 1 | E224: 1 | F224: 1 | G224: 2 | I224: 7
A225: Cand. Scient. Tek | C225: 2 | D225: 3 | E225: 0 | F225: 1 | G225: 0 | I225: 6
A226: MA. Hum. | C226: 9 | D226: 13 | E226: 3 | F226: 1 | G226: 1 | I226: 27
A227: MA. Nat. | C227: 0 | D227: 1 | E227: 1 | F227: 0 | G227: 0 | I227: 2
A228: MA. Ph.d. | C228: 0 | D228: 2 | E228: 0 | F228: 1 | G228: 0 | I228: 3
A229: MA. Samf. | C229: 0 | D229: 2 | E229: 0 | F229: 0 | G229: 0 | I229: 2
A230: Øvrige Mag. | C230: 0 | D230: 1 | E230: 1 | F230: 0 | G230: 0 | I230: 2
A231: Agronom | C231: 0 | D231: 0 | E231: 0 | F231: 0 | G231: 0 | I231: 0
A232: Landsk. Arkt. | C232: 0 | D232: 0 | E232: 0 | F232: 0 | G232: 0 | I232: 0
A233: Hortonom | C233: 0 | D233: 0 | E233: 0 | F233: 0 | G233: 0 | I233: 0
A234: Forstkand. | C234: 0 | D234: 0 | E234: 0 | F234: 0 | G234: 0 | I234: 0
A235: Jordbrugsakad. | C235: 0 | D235: 0 | E235: 0 | F235: 0 | G235: 0 | I235: 0
A236: Mejeriing. | C236: 0 | D236: 0 | E236: 0 | F236: 0 | G236: 0 | I236: 0
A237: Levn.m.kand. | C237: 0 | D237: 0 | E237: 0 | F237: 0 | G237: 0 | I237: 0
A238: Dyrlæge | C238: 0 | D238: 0 | E238: 0 | F238: 0 | G238: 0 | I238: 0
A239: Farmaceut | C239: 0 | D239: 0 | E239: 0 | F239: 0 | G239: 0 | I239: 0
A240: Læge | C240: 0 | D240: 1 | E240: 0 | F240: 0 | G240: 0 | I240: 1
A241: Tandlæge | C241: 0 | D241: 0 | E241: 0 | F241: 0 | G241: 0 | I241: 0
A242: Arkitekt | C242: 0 | D242: 3 | E242: 1 | F242: 0 | G242: 0 | I242: 4
A243: Landinspek. | C243: 0 | D243: 0 | E243: 0 | F243: 0 | G243: 0 | I243: 0
... 329 more rows

Sheet Tabel 4(Br) ØJ
A1: Tabel 4. Ledighedsberørte - aldersfordelt
A3: Østjylland
C5: Under 30 år | D5: 30 - 39 år | E5: 40 - 49 år | F5: 50 - 59 år | G5: Over 60 år | I5: I alt
A7: Civ. ing. | C7: 68.80434105 | D7: 30.58629078 | E7: 11.53495915 | F7: 9.696251481 | G7: 2.999438658 | I7: 123.6212811
A8: Diplom ing. | C8: 113.6075594 | D8: 40.96426121 | E8: 16.02320215 | F8: 28.57169588 | G8: 29.33761617 | I8: 228.5043348
A9: Cand. Scient. Tek | C9: 121.8287282 | D9: 72.03268259 | E9: 8.906006362 | F9: 4.51443897 | G9: 4.7177696 | I9: 211.9996258
A10: MA. Hum. | C10: 403.5589097 | D10: 377.4109649 | E10: 123.5221106 | F10: 59.06131105 | G10: 48.11451382 | I10: 1011.66781
A11: MA. Nat. | C11: 32.38944677 | D11: 30.11102102 | E11: 15.19116822 | F11: 12.72749953 | G11: 11.84556851 | I11: 102.264704
A12: MA. Ph.d. | C12: 4.99906443 | D12: 12.44932327 | E12: 10.61123932 | F12: 0.9998128859 | G12: 0.9998128859 | I12: 30.05925279
A13: MA. Samf. | C13: 60.60500218 | D13: 51.71271752 | E13: 4.236262708 | F13: 0 | G13: 0 | I13: 116.5539824
A14: Øvrige Mag. | C14: 19.68252978 | D14: 18.35214869 | E14: 16.60200836 | F14: 6.091810641 | G14: 3.612549117 | I14: 64.34104659
A15: Agronom | C15: 0.9536580802 | D15: 1.307303686 | E15: 2.999438658 | F15: 1.768851743 | G15: 2.875943367 | I15: 9.905195534
A16: Landsk. Arkt. | C16: 0 | D16: 0.9998128859 | E16: 0 | F16: 0 | G16: 0 | I16: 0.9998128859
A17: Hortonom | C17: 0 | D17: 0 | E17: 0 | F17: 0 | G17: 0 | I17: 0
A18: Forstkand. | C18: 0.9998128859 | D18: 0 | E18: 0 | F18: 0 | G18: 0.9998128859 | I18: 1.999625772
A19: Jordbrugsakad. | C19: 1.953470966 | D19: 2.307116572 | E19: 2.999438658 | F19: 1.768851743 | G19: 3.875756253 | I19: 12.90463419
A20: Mejeriing. | C20: 0.3074908002 | D20: 0 | E20: 0 | F20: 0 | G20: 1.760743467 | I20: 2.068234267
A21: Levn.m.kand. | C21: 0.1228715774 | D21: 0 | E21: 0 | F21: 0 | G21: 0 | I21: 0.1228715774
A22: Dyrlæge | C22: 0 | D22: 0 | E22: 0 | F22: 0 | G22: 0 | I22: 0
A23: Farmaceut | C23: 6.403667436 | D23: 5.064554357 | E23: 0 | F23: 0.9998128859 | G23: 1.621655336 | I23: 14.08969001
A24: Læge | C24: 22.05451257 | D24: 23.24830038 | E24: 2.582797979 | F24: 0 | G24: 0 | I24: 47.88561093
A25: Tandlæge | C25: 1.763238321 | D25: 0.5756876442 | E25: 0.4409655086 | F25: 0.5887856296 | G25: 0.9998128859 | I25: 4.368489989
A26: Arkitekt | C26: 34.64354768 | D26: 44.07472089 | E26: 16.50159047 | F26: 8.037797044 | G26: 14.05975176 | I26: 117.3174078
A27: Landinspek. | C27: 0.1228715774 | D27: 0 | E27: 0 | F27: 0 | G27: 0 | I27: 0.1228715774
A28: Bibliotekar | C28: 0.9998128859 | D28: 7.371047215 | E28: 4.768290401 | F28: 3.214619847 | G28: 0.4883677415 | I28: 16.84213809
A29: Musikudd. | C29: 2.295889727 | D29: 1.26800973 | E29: 0.9998128859 | F29: 1.810640554 | G29: 1.418948419 | I29: 7.793301316
A30: Teolog | C30: 8.442587164 | D30: 2.966381837 | E30: 3.031248051 | F30: 2.765546061 | G30: 2.442462421 | I30: 19.64822553
A31: Psykolog | C31: 45.12567829 | D31: 42.78924718 | E31: 8.784382212 | F31: 4.924842512 | G31: 4.860600012 | I31: 106.4847502
A32: Jurist | C32: 25.640242 | D32: 16.93257656 | E32: 5.08077091 | F32: 4.639181688 | G32: 2.095053951 | I32: 54.38782511
A33: Økonom | C33: 11.38651531 | D33: 11.93725441 | E33: 0.9998128859 | F33: 10.11601073 | G33: 1.999625772 | I33: 36.43921911
A34: Samf. Adm. | C34: 101.0160294 | D34: 84.82068234 | E34: 18.52990707 | F34: 8.48188112 | G34: 4.090937442 | I34: 216.9394374
A35: Cand. Merc. | C35: 122.8715774 | D35: 92.38133849 | E35: 22.31647228 | F35: 28.69893345 | G35: 5.906567704 | I35: 272.1748893
A36: HA | C36: 46.65252916 | D36: 14.08220545 | E36: 4.760805838 | F36: 15.18617851 | G36: 4.985966444 | I36: 85.6676854
A37: HD | C37: 21.26800973 | D37: 13.90507079 | E37: 0 | F37: 4.437722198 | G37: 2.305245431 | I37: 41.91604815
A38: Komm. og Sprog | C38: 34.48761929 | D38: 17.96669369 | E38: 20.56882679 | F38: 10.86883303 | G38: 12.18237385 | I38: 96.07434666
A39: Bygningskonst. | C39: 65.69388137 | D39: 34.80471527 | E39: 6.659452379 | F39: 6.607247552 | G39: 3.72556602 | I39: 117.4908626
A40: Cand. IT. | C40: 32.79174203 | D40: 24.93669307 | E40: 3.645605938 | F40: 0 | G40: 0 | I40: 61.37404104
A41: Bac. Samf. | C41: 12.03143516 | D41: 2.999438658 | E41: 3.999251544 | F41: 0.9998128859 | G41: 0.9075032745 | I41: 20.93744153
A42: Bac. Hum. | C42: 120.172145 | D42: 29.05257906 | E42: 10.73910061 | F42: 5.012162415 | G42: 3.999251544 | I42: 168.9752386
A43: Bac. Nat. | C43: 66.3101104 | D43: 15.05519865 | E43: 7.97979168 | F43: 2.799850309 | G43: 0 | I43: 92.14495104
A44: Andre | C44: 80.68795609 | D44: 75.53545812 | E44: 47.87875008 | F44: 25.31154494 | G44: 22.7992266 | I44: 252.2129358
A46: Total | C46: 1690.721013 | D46: 1197.69438 | E46: 399.8940311 | F46: 268.9330755 | G46: 198.1526851 | I46: 3755.395185
A48: Ingeniører i alt | C48: 182.4119005 | D48: 71.55055199 | E48: 27.55816129 | F48: 38.26794736 | G48: 32.33705482 | I48: 352.1256159
A49: Magistre i alt | C49: 521.2349529 | D49: 490.0361754 | E49: 170.1627892 | F49: 78.8804341 | G49: 64.57244433 | I49: 1324.886796
A50: DJØF'ere i alt | C50: 307.5668933 | D50: 220.1540573 | E50: 51.68776898 | F50: 67.12218549 | G50: 19.07815131 | I50: 665.6090563
A57: Horsens
C59: Under 30 år | D59: 30 - 39 år | E59: 40 - 49 år | F59: 50 - 59 år | G59: Over 60 år | I59: I alt
A61: Civ. ing. | C61: 5.906567704 | D61: 3.630013098 | E61: 0 | F61: 0 | G61: 0 | I61: 9.536580802
A62: Diplom ing. | C62: 15.17058567 | D62: 9.998128859 | E62: 0.9998128859 | F62: 1.814382835 | G62: 1.999625772 | I62: 29.98253602
A63: Cand. Scient. Tek | C63: 1.999625772 | D63: 0.8775650221 | E63: 1.999625772 | F63: 0 | G63: 0 | I63: 4.876816566
A64: MA. Hum. | C64: 9.852179879 | D64: 15.40198341 | E64: 4.629825984 | F64: 1.863656209 | G64: 0.9998128859 | I64: 32.74745837
A65: MA. Nat. | C65: 0 | D65: 0.5008420133 | E65: 0 | F65: 0 | G65: 0 | I65: 0.5008420133
A66: MA. Ph.d. | C66: 0 | D66: 0 | E66: 0 | F66: 0 | G66: 0 | I66: 0
A67: MA. Samf. | C67: 0 | D67: 1.999625772 | E67: 0 | F67: 0 | G67: 0 | I67: 1.999625772
A68: Øvrige Mag. | C68: 0 | D68: 0.9998128859 | E68: 0.9998128859 | F68: 0 | G68: 0.6131104597 | I68: 2.612736232
A69: Agronom | C69: 0 | D69: 0 | E69: 0 | F69: 0.9998128859 | G69: 1.876130481 | I69: 2.875943367
A70: Landsk. Arkt. | C70: 0 | D70: 0 | E70: 0 | F70: 0 | G70: 0 | I70: 0
A71: Hortonom | C71: 0 | D71: 0 | E71: 0 | F71: 0 | G71: 0 | I71: 0
A72: Forstkand. | C72: 0 | D72: 0 | E72: 0 | F72: 0 | G72: 0 | I72: 0
A73: Jordbrugsakad. | C73: 0 | D73: 0 | E73: 0 | F73: 0.9998128859 | G73: 1.876130481 | I73: 2.875943367
A74: Mejeriing. | C74: 0 | D74: 0 | E74: 0 | F74: 0 | G74: 0 | I74: 0
A75: Levn.m.kand. | C75: 0 | D75: 0 | E75: 0 | F75: 0 | G75: 0 | I75: 0
A76: Dyrlæge | C76: 0 | D76: 0 | E76: 0 | F76: 0 | G76: 0 | I76: 0
A77: Farmaceut | C77: 0.9536580802 | D77: 0.9998128859 | E77: 0 | F77: 0 | G77: 0.9998128859 | I77: 2.953283852
A78: Læge | C78: 0.9998128859 | D78: 0.8719515998 | E78: 0 | F78: 0 | G78: 0 | I78: 1.871764486
A79: Tandlæge | C79: 0 | D79: 0 | E79: 0 | F79: 0 | G79: 0 | I79: 0
A80: Arkitekt | C80: 0 | D80: 0.9998128859 | E80: 0 | F80: 0 | G80: 0 | I80: 0.9998128859
A81: Landinspek. | C81: 0 | D81: 0 | E81: 0 | F81: 0 | G81: 0 | I81: 0
A82: Bibliotekar | C82: 0 | D82: 0 | E82: 0 | F82: 0 | G82: 0 | I82: 0
A83: Musikudd. | C83: 0 | D83: 0 | E83: 0 | F83: 0.9998128859 | G83: 0 | I83: 0.9998128859
A84: Teolog | C84: 0 | D84: 0 | E84: 0 | F84: 0 | G84: 0 | I84: 0
A85: Psykolog | C85: 1.999625772 | D85: 2.537890601 | E85: 0.9998128859 | F85: 0.9998128859 | G85: 0 | I85: 6.537142144
A86: Jurist | C86: 0 | D86: 0 | E86: 0 | F86: 0 | G86: 0.09542817938 | I86: 0.09542817938
A87: Økonom | C87: 0 | D87: 0 | E87: 0 | F87: 0 | G87: 0 | I87: 0
A88: Samf. Adm. | C88: 4.122123121 | D88: 8.65028379 | E88: 0.6692446828 | F88: 0 | G88: 0 | I88: 13.44165159
A89: Cand. Merc. | C89: 6.905133163 | D89: 6.372481756 | E89: 2.999438658 | F89: 2.999438658 | G89: 0 | I89: 19.27649223
A90: HA | C90: 6.167903699 | D90: 1.999625772 | E90: 1.999625772 | F90: 0.4041664068 | G90: 0.9998128859 | I90: 11.57113454
A91: HD | C91: 0.9998128859 | D91: 0.9998128859 | E91: 0 | F91: 0.9998128859 | G91: 0.9998128859 | I91: 3.999251544
A92: Komm. og Sprog | C92: 0.9998128859 | D92: 0 | E92: 1.999625772 | F92: 0.7690388574 | G92: 0 | I92: 3.768477515
A93: Bygningskonst. | C93: 15.77789559 | D93: 7.783259527 | E93: 1.3845818 | F93: 0 | G93: 0 | I93: 24.94573692
A94: Cand. IT. | C94: 1.353458492 | D94: 1.857419073 | E94: 0.1453252666 | F94: 0 | G94: 0 | I94: 3.356202832
A95: Bac. Samf. | C95: 0.3536456059 | D95: 0 | E95: 0.9998128859 | F95: 0 | G95: 0 | I95: 1.353458492
A96: Bac. Hum. | C96: 2.630200212 | D96: 0.9998128859 | E96: 1.34098422 | F96: 0.9998128859 | G96: 0 | I96: 5.970810204
A97: Bac. Nat. | C97: 17.93862658 | D97: 4.214432732 | E97: 1.999625772 | F97: 0 | G97: 0 | I97: 24.15268509
A98: Andre | C98: 15.10260089 | D98: 3.902575937 | E98: 3.999251544 | F98: 1.265514876 | G98: 0 | I98: 24.26994324
A100: Total | C100: 109.2332689 | D100: 75.59714339 | E100: 27.16640679 | F100: 14.11526227 | G100: 8.583546435 | I100: 234.6956278
A102: Ingeniører i alt | C102: 21.07715337 | D102: 13.62814196 | E102: 0.9998128859 | F102: 1.814382835 | G102: 1.999625772 | I102: 39.51911682
A103: Magistre i alt | C103: 9.852179879 | D103: 18.90226408 | E103: 5.62963887 | F103: 1.863656209 | G103: 1.612923346 | I103: 37.86066238
A104: DJØF'ere i alt | C104: 17.19515998 | D104: 17.02239132 | E104: 5.668309112 | F104: 3.403605065 | G104: 1.095241065 | I104: 44.38470654
A111: Syddjurs
C113: Under 30 år | D113: 30 - 39 år | E113: 40 - 49 år | F113: 50 - 59 år | G113: Over 60 år | I113: I alt
A115: Civ. ing. | C115: 0.9998128859 | D115: 0.8151936631 | E115: 0 | F115: 0.9998128859 | G115: 0 | I115: 2.814819435
A116: Diplom ing. | C116: 1.999625772 | D116: 0 | E116: 0.928085823 | F116: 0.3087382274 | G116: 0.8126988087 | I116: 4.049148631
A117: Cand. Scient. Tek | C117: 1.990270068 | D117: 1.999625772 | E117: 0.9998128859 | F117: 0.7228840516 | G117: 0 | I117: 5.712592777
A118: MA. Hum. | C118: 3.329383147 | D118: 13.4098422 | E118: 2.999438658 | F118: 0.3555167467 | G118: 2.136219048 | I118: 22.2303998
A119: MA. Nat. | C119: 0 | D119: 1.793800287 | E119: 0.8376473523 | F119: 0.9998128859 | G119: 1.90731616 | I119: 5.538576686
A120: MA. Ph.d. | C120: 0 | D120: 0 | E120: 0.9998128859 | F120: 0 | G120: 0 | I120: 0.9998128859
A121: MA. Samf. | C121: 0 | D121: 4.247489553 | E121: 0 | F121: 0 | G121: 0 | I121: 4.247489553
A122: Øvrige Mag. | C122: 0.9106218424 | D122: 1.506892035 | E122: 0.5002182998 | F122: 0 | G122: 0 | I122: 2.917732177
A123: Agronom | C123: 0 | D123: 0 | E123: 0 | F123: 0 | G123: 0 | I123: 0
A124: Landsk. Arkt. | C124: 0 | D124: 0 | E124: 0 | F124: 0 | G124: 0 | I124: 0
A125: Hortonom | C125: 0 | D125: 0 | E125: 0 | F125: 0 | G125: 0 | I125: 0
A126: Forstkand. | C126: 0 | D126: 0 | E126: 0 | F126: 0 | G126: 0.9998128859 | I126: 0.9998128859
A127: Jordbrugsakad. | C127: 0 | D127: 0 | E127: 0 | F127: 0 | G127: 0.9998128859 | I127: 0.9998128859
A128: Mejeriing. | C128: 0 | D128: 0 | E128: 0 | F128: 0 | G128: 0 | I128: 0
A129: Levn.m.kand. | C129: 0 | D129: 0 | E129: 0 | F129: 0 | G129: 0 | I129: 0
A130: Dyrlæge | C130: 0 | D130: 0 | E130: 0 | F130: 0 | G130: 0 | I130: 0
A131: Farmaceut | C131: 0 | D131: 0 | E131: 0 | F131: 0 | G131: 0 | I131: 0
A132: Læge | C132: 0 | D132: 0 | E132: 0 | F132: 0 | G132: 0 | I132: 0
A133: Tandlæge | C133: 0 | D133: 0 | E133: 0 | F133: 0 | G133: 0 | I133: 0
A134: Arkitekt | C134: 0.9998128859 | D134: 3.999251544 | E134: 0.8613484688 | F134: 0 | G134: 0 | I134: 5.860412898
A135: Landinspek. | C135: 0 | D135: 0 | E135: 0 | F135: 0 | G135: 0 | I135: 0
A136: Bibliotekar | C136: 0 | D136: 0.9436786628 | E136: 0 | F136: 0 | G136: 0 | I136: 0.9436786628
A137: Musikudd. | C137: 0 | D137: 0 | E137: 0 | F137: 0 | G137: 0 | I137: 0
A138: Teolog | C138: 0.9998128859 | D138: 0 | E138: 0 | F138: 0 | G138: 0 | I138: 0.9998128859
A139: Psykolog | C139: 0 | D139: 1.768851743 | E139: 0 | F139: 0 | G139: 0 | I139: 1.768851743
A140: Jurist | C140: 0 | D140: 0 | E140: 0 | F140: 0 | G140: 0 | I140: 0
A141: Økonom | C141: 0 | D141: 0 | E141: 0 | F141: 1.999625772 | G141: 0 | I141: 1.999625772
A142: Samf. Adm. | C142: 0 | D142: 3.768477515 | E142: 0 | F142: 1.964074097 | G142: 0.4771408969 | I142: 6.209692509
A143: Cand. Merc. | C143: 1.66406786 | D143: 2.445580989 | E143: 0.9998128859 | F143: 0.3000062371 | G143: 0 | I143: 5.409467972
A144: HA | C144: 0.9998128859 | D144: 0 | E144: 0.5463731055 | F144: 0.9998128859 | G144: 0 | I144: 2.545998877
A145: HD | C145: 0 | D145: 0.9998128859 | E145: 0 | F145: 0 | G145: 0 | I145: 0.9998128859
A146: Komm. og Sprog | C146: 0 | D146: 0.2151811888 | E146: 0 | F146: 0.9998128859 | G146: 1.90731616 | I146: 3.122310235
A147: Bygningskonst. | C147: 0 | D147: 0 | E147: 1 | F147: 0 | G147: 0 | I147: 1
A148: Cand. IT. | C148: 0 | D148: 0.9998128859 | E148: 0.5008420133 | F148: 0 | G148: 0 | I148: 1.500654899
A149: Bac. Samf. | C149: 0 | D149: 0 | E149: 0 | F149: 0 | G149: 0 | I149: 0
A150: Bac. Hum. | C150: 0 | D150: 1.908563588 | E150: 0.9998128859 | F150: 0.9998128859 | G150: 0 | I150: 3.908189359
A151: Bac. Nat. | C151: 0 | D151: 0 | E151: 0 | F151: 0 | G151: 0 | I151: 0
A152: Andre | C152: 0 | D152: 3.918168777 | E152: 2.256595771 | F152: 1.891723321 | G152: 0 | I152: 8.066487869
A154: Total | C154: 13.89322023 | D154: 44.74022329 | E154: 14.42980104 | F154: 12.54163288 | G154: 8.240503961 | I154: 93.8453814
A156: Ingeniører i alt | C156: 2.999438658 | D156: 0.8151936631 | E156: 0.928085823 | F156: 1.308551113 | G156: 0.8126988087 | I156: 6.863968066
A157: Magistre i alt | C157: 4.24000499 | D157: 20.95802408 | E157: 5.337117196 | F157: 1.355329633 | G157: 4.043535209 | I157: 35.9340111
A158: DJØF'ere i alt | C158: 2.663880746 | D158: 6.214058504 | E158: 1.546185991 | F158: 5.263518992 | G158: 0.4771408969 | I158: 16.16478513
A165: Norddjurs
C167: Under 30 år | D167: 30 - 39 år | E167: 40 - 49 år | F167: 50 - 59 år | G167: Over 60 år | I167: I alt
A169: Civ. ing. | C169: 0 | D169: 0 | E169: 0 | F169: 0 | G169: 0 | I169: 0
A170: Diplom ing. | C170: 0 | D170: 0 | E170: 0.9998128859 | F170: 0 | G170: 0 | I170: 0.9998128859
A171: Cand. Scient. Tek | C171: 0 | D171: 0.2370111645 | E171: 0.9075032745 | F171: 0 | G171: 0 | I171: 1.144514439
A172: MA. Hum. | C172: 0 | D172: 0.3068670866 | E172: 2.417513878 | F172: 0 | G172: 0 | I172: 2.724380964
A173: MA. Nat. | C173: 0.9998128859 | D173: 0 | E173: 0 | F173: 0.7690388574 | G173: 0.5738165035 | I173: 2.342668247
A174: MA. Ph.d. | C174: 0 | D174: 0 | E174: 0 | F174: 0 | G174: 0.9998128859 | I174: 0.9998128859
A175: MA. Samf. | C175: 0 | D175: 0 | E175: 0 | F175: 0 | G175: 0 | I175: 0
A176: Øvrige Mag. | C176: 0 | D176: 0 | E176: 0.9998128859 | F176: 0 | G176: 0 | I176: 0.9998128859
A177: Agronom | C177: 0 | D177: 0 | E177: 0 | F177: 0 | G177: 0 | I177: 0
A178: Landsk. Arkt. | C178: 0 | D178: 0 | E178: 0 | F178: 0 | G178: 0 | I178: 0
A179: Hortonom | C179: 0 | D179: 0 | E179: 0 | F179: 0 | G179: 0 | I179: 0
A180: Forstkand. | C180: 0 | D180: 0 | E180: 0 | F180: 0 | G180: 0 | I180: 0
A181: Jordbrugsakad. | C181: 0 | D181: 0 | E181: 0 | F181: 0 | G181: 0 | I181: 0
A182: Mejeriing. | C182: 0 | D182: 0 | E182: 0 | F182: 0 | G182: 0 | I182: 0
A183: Levn.m.kand. | C183: 0 | D183: 0 | E183: 0 | F183: 0 | G183: 0 | I183: 0
A184: Dyrlæge | C184: 0 | D184: 0 | E184: 0 | F184: 0 | G184: 0 | I184: 0
A185: Farmaceut | C185: 0 | D185: 0 | E185: 0 | F185: 0 | G185: 0 | I185: 0
A186: Læge | C186: 0 | D186: 0 | E186: 0 | F186: 0 | G186: 0 | I186: 0
A187: Tandlæge | C187: 0 | D187: 0 | E187: 0 | F187: 0 | G187: 0 | I187: 0
A188: Arkitekt | C188: 0 | D188: 0.9000187114 | E188: 0 | F188: 0 | G188: 0 | I188: 0.9000187114
A189: Landinspek. | C189: 0 | D189: 0 | E189: 0 | F189: 0 | G189: 0 | I189: 0
A190: Bibliotekar | C190: 0 | D190: 0 | E190: 0 | F190: 0 | G190: 0 | I190: 0
A191: Musikudd. | C191: 0 | D191: 0 | E191: 0 | F191: 0 | G191: 0 | I191: 0
A192: Teolog | C192: 0 | D192: 0 | E192: 0 | F192: 0.9075032745 | G192: 0 | I192: 0.9075032745
A193: Psykolog | C193: 0 | D193: 1.999625772 | E193: 0 | F193: 0 | G193: 0 | I193: 1.999625772
A194: Jurist | C194: 0 | D194: 0 | E194: 0 | F194: 0 | G194: 0 | I194: 0
A195: Økonom | C195: 0 | D195: 0 | E195: 0 | F195: 0 | G195: 0 | I195: 0
A196: Samf. Adm. | C196: 0 | D196: 0.2182997568 | E196: 0 | F196: 0 | G196: 0 | I196: 0.2182997568
A197: Cand. Merc. | C197: 0 | D197: 0.99357575 | E197: 0 | F197: 0 | G197: 0 | I197: 0.99357575
A198: HA | C198: 0 | D198: 0 | E198: 0 | F198: 0 | G198: 0 | I198: 0
A199: HD | C199: 0 | D199: 0 | E199: 0 | F199: 0 | G199: 0 | I199: 0
A200: Komm. og Sprog | C200: 0 | D200: 0 | E200: 0 | F200: 0 | G200: 0 | I200: 0
A201: Bygningskonst. | C201: 0.2983222104 | D201: 0 | E201: 0 | F201: 0 | G201: 1 | I201: 1.29832221
A202: Cand. IT. | C202: 0 | D202: 0 | E202: 0 | F202: 0 | G202: 0 | I202: 0
A203: Bac. Samf. | C203: 0 | D203: 0 | E203: 0 | F203: 0 | G203: 0 | I203: 0
A204: Bac. Hum. | C204: 0.9998128859 | D204: 0 | E204: 0 | F204: 0.9499157987 | G204: 0.9998128859 | I204: 2.949541571
A205: Bac. Nat. | C205: 0 | D205: 0 | E205: 0 | F205: 0 | G205: 0 | I205: 0
A206: Andre | C206: 0.9998128859 | D206: 0.9998128859 | E206: 1.949728685 | F206: 0 | G206: 0 | I206: 3.949354456
A208: Total | C208: 3.297760868 | D208: 5.655211127 | E208: 7.274371609 | F208: 2.626457931 | G208: 3.573442275 | I208: 22.42724381
A210: Ingeniører i alt | C210: 0 | D210: 0 | E210: 0.9998128859 | F210: 0 | G210: 0 | I210: 0.9998128859
A211: Magistre i alt | C211: 0.9998128859 | D211: 0.3068670866 | E211: 3.417326764 | F211: 0.7690388574 | G211: 1.573629389 | I211: 7.066674983
A212: DJØF'ere i alt | C212: 0 | D212: 1.211875507 | E212: 0 | F212: 0 | G212: 0 | I212: 1.211875507
A219: Favrskov
C221: Under 30 år | D221: 30 - 39 år | E221: 40 - 49 år | F221: 50 - 59 år | G221: Over 60 år | I221: I alt
A223: Civ. ing. | C223: 0 | D223: 1.56676854 | E223: 0.9998128859 | F223: 0 | G223: 0 | I223: 2.566581426
A224: Diplom ing. | C224: 1.999625772 | D224: 0.9998128859 | E224: 0.3998004117 | F224: 0.8126988087 | G224: 1.725191792 | I224: 5.93712967
A225: Cand. Scient. Tek | C225: 1.999625772 | D225: 2.030187738 | E225: 0 | F225: 0.9075032745 | G225: 0 | I225: 4.937316784
A226: MA. Hum. | C226: 7.170835152 | D226: 11.6197842 | E226: 2.999438658 | F226: 0.9998128859 | G226: 0.5507391006 | I226: 23.34060999
A227: MA. Nat. | C227: 0 | D227: 0.9998128859 | E227: 0.7503274496 | F227: 0 | G227: 0 | I227: 1.750140336
A228: MA. Ph.d. | C228: 0 | D228: 1.999625772 | E228: 0 | F228: 0.9998128859 | G228: 0 | I228: 2.999438658
A229: MA. Samf. | C229: 0 | D229: 1.214994075 | E229: 0 | F229: 0 | G229: 0 | I229: 1.214994075
A230: Øvrige Mag. | C230: 0 | D230: 0.9156115512 | E230: 0.9349466725 | F230: 0 | G230: 0 | I230: 1.850558224
A231: Agronom | C231: 0 | D231: 0 | E231: 0 | F231: 0 | G231: 0 | I231: 0
A232: Landsk. Arkt. | C232: 0 | D232: 0 | E232: 0 | F232: 0 | G232: 0 | I232: 0
A233: Hortonom | C233: 0 | D233: 0 | E233: 0 | F233: 0 | G233: 0 | I233: 0
A234: Forstkand. | C234: 0 | D234: 0 | E234: 0 | F234: 0 | G234: 0 | I234: 0
A235: Jordbrugsakad. | C235: 0 | D235: 0 | E235: 0 | F235: 0 | G235: 0 | I235: 0
A236: Mejeriing. | C236: 0 | D236: 0 | E236: 0 | F236: 0 | G236: 0 | I236: 0
A237: Levn.m.kand. | C237: 0 | D237: 0 | E237: 0 | F237: 0 | G237: 0 | I237: 0
A238: Dyrlæge | C238: 0 | D238: 0 | E238: 0 | F238: 0 | G238: 0 | I238: 0
A239: Farmaceut | C239: 0 | D239: 0 | E239: 0 | F239: 0 | G239: 0 | I239: 0
A240: Læge | C240: 0 | D240: 0.9998128859 | E240: 0 | F240: 0 | G240: 0 | I240: 0.9998128859
A241: Tandlæge | C241: 0 | D241: 0 | E241: 0 | F241: 0 | G241: 0 | I241: 0
A242: Arkitekt | C242: 0 | D242: 2.999438658 | E242: 0.9748643423 | F242: 0 | G242: 0 | I242: 3.974303
A243: Landinspek. | C243: 0 | D243: 0 | E243: 0 | F243: 0 | G243: 0 | I243: 0
... 329 more rows

Sheet Tabel 4P ØJ
A1: Tabel 4. Ledighedsberørte - aldersfordelt
A3: Østjylland
C5: Under 30 år | D5: 30 - 39 år | E5: 40 - 49 år | F5: 50 - 59 år | G5: Over 60 år | I5: I alt
A7: Civ. ing. | C7: =IF(OR('Tabel 4F ØJ'!C7<5,'Tabel 4 ØJ'!C7<0.5),"-",IFERROR('Tabel 4 ØJ'!C7/'Tabel 4F ØJ'!C7*100,"-")) -> 10.04962779 | D7: =IF(OR('Tabel 4F ØJ'!D7<5,'Tabel 4 ØJ'!D7<0.5),"-",IFERROR('Tabel 4 ØJ'!D7/'Tabel 4F ØJ'!D7*100,"-")) -> 2.119927317 | E7: =IF(OR('Tabel 4F ØJ'!E7<5,'Tabel 4 ØJ'!E7<0.5),"-",IFERROR('Tabel 4 ØJ'!E7/'Tabel 4F ØJ'!E7*100,"-")) -> 1.252609603 | F7: =IF(OR('Tabel 4F ØJ'!F7<5,'Tabel 4 ØJ'!F7<0.5),"-",IFERROR('Tabel 4 ØJ'!F7/'Tabel 4F ØJ'!F7*100,"-")) -> 1.577287066 | G7: =IF(OR('Tabel 4F ØJ'!G7<5,'Tabel 4 ØJ'!G7<0.5),"-",IFERROR('Tabel 4 ØJ'!G7/'Tabel 4F ØJ'!G7*100,"-")) -> 1.666666667 | I7: =IF(OR('Tabel 4F ØJ'!I7<5,'Tabel 4 ØJ'!I7<0.5),"-",IFERROR('Tabel 4 ØJ'!I7/'Tabel 4F ØJ'!I7*100,"-")) -> 3.334121542
A8: Diplom ing. | C8: =IF(OR('Tabel 4F ØJ'!C8<5,'Tabel 4 ØJ'!C8<0.5),"-",IFERROR('Tabel 4 ØJ'!C8/'Tabel 4F ØJ'!C8*100,"-")) -> 13.38329764 | D8: =IF(OR('Tabel 4F ØJ'!D8<5,'Tabel 4 ØJ'!D8<0.5),"-",IFERROR('Tabel 4 ØJ'!D8/'Tabel 4F ØJ'!D8*100,"-")) -> 3.112033195 | E8: =IF(OR('Tabel 4F ØJ'!E8<5,'Tabel 4 ØJ'!E8<0.5),"-",IFERROR('Tabel 4 ØJ'!E8/'Tabel 4F ØJ'!E8*100,"-")) -> 1.02622577 | F8: =IF(OR('Tabel 4F ØJ'!F8<5,'Tabel 4 ØJ'!F8<0.5),"-",IFERROR('Tabel 4 ØJ'!F8/'Tabel 4F ØJ'!F8*100,"-")) -> 1.646284102 | G8: =IF(OR('Tabel 4F ØJ'!G8<5,'Tabel 4 ØJ'!G8<0.5),"-",IFERROR('Tabel 4 ØJ'!G8/'Tabel 4F ØJ'!G8*100,"-")) -> 4.225352113 | I8: =IF(OR('Tabel 4F ØJ'!I8<5,'Tabel 4 ØJ'!I8<0.5),"-",IFERROR('Tabel 4 ØJ'!I8/'Tabel 4F ØJ'!I8*100,"-")) -> 3.635847181
A9: Cand. Scient. Tek | C9: =IF(OR('Tabel 4F ØJ'!C9<5,'Tabel 4 ØJ'!C9<0.5),"-",IFERROR('Tabel 4 ØJ'!C9/'Tabel 4F ØJ'!C9*100,"-")) -> 14.43298969 | D9: =IF(OR('Tabel 4F ØJ'!D9<5,'Tabel 4 ØJ'!D9<0.5),"-",IFERROR('Tabel 4 ØJ'!D9/'Tabel 4F ØJ'!D9*100,"-")) -> 5.866842452 | E9: =IF(OR('Tabel 4F ØJ'!E9<5,'Tabel 4 ØJ'!E9<0.5),"-",IFERROR('Tabel 4 ØJ'!E9/'Tabel 4F ØJ'!E9*100,"-")) -> 2.356020942 | F9: =IF(OR('Tabel 4F ØJ'!F9<5,'Tabel 4 ØJ'!F9<0.5),"-",IFERROR('Tabel 4 ØJ'!F9/'Tabel 4F ØJ'!F9*100,"-")) -> 4.166666667 | G9: =IF(OR('Tabel 4F ØJ'!G9<5,'Tabel 4 ØJ'!G9<0.5),"-",IFERROR('Tabel 4 ØJ'!G9/'Tabel 4F ØJ'!G9*100,"-")) -> 22.72727273 | I9: =IF(OR('Tabel 4F ØJ'!I9<5,'Tabel 4 ØJ'!I9<0.5),"-",IFERROR('Tabel 4 ØJ'!I9/'Tabel 4F ØJ'!I9*100,"-")) -> 8.23646629
A10: MA. Hum. | C10: =IF(OR('Tabel 4F ØJ'!C10<5,'Tabel 4 ØJ'!C10<0.5),"-",IFERROR('Tabel 4 ØJ'!C10/'Tabel 4F ØJ'!C10*100,"-")) -> 37.05463183 | D10: =IF(OR('Tabel 4F ØJ'!D10<5,'Tabel 4 ØJ'!D10<0.5),"-",IFERROR('Tabel 4 ØJ'!D10/'Tabel 4F ØJ'!D10*100,"-")) -> 15.2738764 | E10: =IF(OR('Tabel 4F ØJ'!E10<5,'Tabel 4 ØJ'!E10<0.5),"-",IFERROR('Tabel 4 ØJ'!E10/'Tabel 4F ØJ'!E10*100,"-")) -> 5.469953775 | F10: =IF(OR('Tabel 4F ØJ'!F10<5,'Tabel 4 ØJ'!F10<0.5),"-",IFERROR('Tabel 4 ØJ'!F10/'Tabel 4F ØJ'!F10*100,"-")) -> 6.392694064 | G10: =IF(OR('Tabel 4F ØJ'!G10<5,'Tabel 4 ØJ'!G10<0.5),"-",IFERROR('Tabel 4 ØJ'!G10/'Tabel 4F ØJ'!G10*100,"-")) -> 11.02040816 | I10: =IF(OR('Tabel 4F ØJ'!I10<5,'Tabel 4 ØJ'!I10<0.5),"-",IFERROR('Tabel 4 ØJ'!I10/'Tabel 4F ØJ'!I10*100,"-")) -> 14.09792571
A11: MA. Nat. | C11: =IF(OR('Tabel 4F ØJ'!C11<5,'Tabel 4 ØJ'!C11<0.5),"-",IFERROR('Tabel 4 ØJ'!C11/'Tabel 4F ØJ'!C11*100,"-")) -> 14.39688716 | D11: =IF(OR('Tabel 4F ØJ'!D11<5,'Tabel 4 ØJ'!D11<0.5),"-",IFERROR('Tabel 4 ØJ'!D11/'Tabel 4F ØJ'!D11*100,"-")) -> 5.797101449 | E11: =IF(OR('Tabel 4F ØJ'!E11<5,'Tabel 4 ØJ'!E11<0.5),"-",IFERROR('Tabel 4 ØJ'!E11/'Tabel 4F ØJ'!E11*100,"-")) -> 1.893095768 | F11: =IF(OR('Tabel 4F ØJ'!F11<5,'Tabel 4 ØJ'!F11<0.5),"-",IFERROR('Tabel 4 ØJ'!F11/'Tabel 4F ØJ'!F11*100,"-")) -> 1.75879397 | G11: =IF(OR('Tabel 4F ØJ'!G11<5,'Tabel 4 ØJ'!G11<0.5),"-",IFERROR('Tabel 4 ØJ'!G11/'Tabel 4F ØJ'!G11*100,"-")) -> 4.142011834 | I11: =IF(OR('Tabel 4F ØJ'!I11<5,'Tabel 4 ØJ'!I11<0.5),"-",IFERROR('Tabel 4 ØJ'!I11/'Tabel 4F ØJ'!I11*100,"-")) -> 4.054982818
A12: MA. Ph.d. | C12: =IF(OR('Tabel 4F ØJ'!C12<5,'Tabel 4 ØJ'!C12<0.5),"-",IFERROR('Tabel 4 ØJ'!C12/'Tabel 4F ØJ'!C12*100,"-")) -> 27.77777778 | D12: =IF(OR('Tabel 4F ØJ'!D12<5,'Tabel 4 ØJ'!D12<0.5),"-",IFERROR('Tabel 4 ØJ'!D12/'Tabel 4F ØJ'!D12*100,"-")) -> 6.796116505 | E12: =IF(OR('Tabel 4F ØJ'!E12<5,'Tabel 4 ØJ'!E12<0.5),"-",IFERROR('Tabel 4 ØJ'!E12/'Tabel 4F ØJ'!E12*100,"-")) -> 5.405405405 | F12: =IF(OR('Tabel 4F ØJ'!F12<5,'Tabel 4 ØJ'!F12<0.5),"-",IFERROR('Tabel 4 ØJ'!F12/'Tabel 4F ØJ'!F12*100,"-")) -> 0.8771929825 | G12: =IF(OR('Tabel 4F ØJ'!G12<5,'Tabel 4 ØJ'!G12<0.5),"-",IFERROR('Tabel 4 ØJ'!G12/'Tabel 4F ØJ'!G12*100,"-")) -> 4 | I12: =IF(OR('Tabel 4F ØJ'!I12<5,'Tabel 4 ØJ'!I12<0.5),"-",IFERROR('Tabel 4 ØJ'!I12/'Tabel 4F ØJ'!I12*100,"-")) -> 5.641025641
A13: MA. Samf. | C13: =IF(OR('Tabel 4F ØJ'!C13<5,'Tabel 4 ØJ'!C13<0.5),"-",IFERROR('Tabel 4 ØJ'!C13/'Tabel 4F ØJ'!C13*100,"-")) -> 31.14035088 | D13: =IF(OR('Tabel 4F ØJ'!D13<5,'Tabel 4 ØJ'!D13<0.5),"-",IFERROR('Tabel 4 ØJ'!D13/'Tabel 4F ØJ'!D13*100,"-")) -> 13.34841629 | E13: =IF(OR('Tabel 4F ØJ'!E13<5,'Tabel 4 ØJ'!E13<0.5),"-",IFERROR('Tabel 4 ØJ'!E13/'Tabel 4F ØJ'!E13*100,"-")) -> 9.259259259 | F13: =IF(OR('Tabel 4F ØJ'!F13<5,'Tabel 4 ØJ'!F13<0.5),"-",IFERROR('Tabel 4 ØJ'!F13/'Tabel 4F ØJ'!F13*100,"-")) -> - | G13: =IF(OR('Tabel 4F ØJ'!G13<5,'Tabel 4 ØJ'!G13<0.5),"-",IFERROR('Tabel 4 ØJ'!G13/'Tabel 4F ØJ'!G13*100,"-")) -> - | I13: =IF(OR('Tabel 4F ØJ'!I13<5,'Tabel 4 ØJ'!I13<0.5),"-",IFERROR('Tabel 4 ØJ'!I13/'Tabel 4F ØJ'!I13*100,"-")) -> 18.04812834
A14: Øvrige Mag. | C14: =IF(OR('Tabel 4F ØJ'!C14<5,'Tabel 4 ØJ'!C14<0.5),"-",IFERROR('Tabel 4 ØJ'!C14/'Tabel 4F ØJ'!C14*100,"-")) -> 32.8358209 | D14: =IF(OR('Tabel 4F ØJ'!D14<5,'Tabel 4 ØJ'!D14<0.5),"-",IFERROR('Tabel 4 ØJ'!D14/'Tabel 4F ØJ'!D14*100,"-")) -> 16.27906977 | E14: =IF(OR('Tabel 4F ØJ'!E14<5,'Tabel 4 ØJ'!E14<0.5),"-",IFERROR('Tabel 4 ØJ'!E14/'Tabel 4F ØJ'!E14*100,"-")) -> 12.66666667 | F14: =IF(OR('Tabel 4F ØJ'!F14<5,'Tabel 4 ØJ'!F14<0.5),"-",IFERROR('Tabel 4 ØJ'!F14/'Tabel 4F ØJ'!F14*100,"-")) -> 5.095541401 | G14: =IF(OR('Tabel 4F ØJ'!G14<5,'Tabel 4 ØJ'!G14<0.5),"-",IFERROR('Tabel 4 ØJ'!G14/'Tabel 4F ØJ'!G14*100,"-")) -> 5.479452055 | I14: =IF(OR('Tabel 4F ØJ'!I14<5,'Tabel 4 ØJ'!I14<0.5),"-",IFERROR('Tabel 4 ØJ'!I14/'Tabel 4F ØJ'!I14*100,"-")) -> 12.84722222
A15: Agronom | C15: =IF(OR('Tabel 4F ØJ'!C15<5,'Tabel 4 ØJ'!C15<0.5),"-",IFERROR('Tabel 4 ØJ'!C15/'Tabel 4F ØJ'!C15*100,"-")) -> 5 | D15: =IF(OR('Tabel 4F ØJ'!D15<5,'Tabel 4 ØJ'!D15<0.5),"-",IFERROR('Tabel 4 ØJ'!D15/'Tabel 4F ØJ'!D15*100,"-")) -> 7.407407407 | E15: =IF(OR('Tabel 4F ØJ'!E15<5,'Tabel 4 ØJ'!E15<0.5),"-",IFERROR('Tabel 4 ØJ'!E15/'Tabel 4F ØJ'!E15*100,"-")) -> 3.409090909 | F15: =IF(OR('Tabel 4F ØJ'!F15<5,'Tabel 4 ØJ'!F15<0.5),"-",IFERROR('Tabel 4 ØJ'!F15/'Tabel 4F ØJ'!F15*100,"-")) -> 1.398601399 | G15: =IF(OR('Tabel 4F ØJ'!G15<5,'Tabel 4 ØJ'!G15<0.5),"-",IFERROR('Tabel 4 ØJ'!G15/'Tabel 4F ØJ'!G15*100,"-")) -> 4.6875 | I15: =IF(OR('Tabel 4F ØJ'!I15<5,'Tabel 4 ØJ'!I15<0.5),"-",IFERROR('Tabel 4 ØJ'!I15/'Tabel 4F ØJ'!I15*100,"-")) -> 3.216374269
A16: Landsk. Arkt. | C16: =IF(OR('Tabel 4F ØJ'!C16<5,'Tabel 4 ØJ'!C16<0.5),"-",IFERROR('Tabel 4 ØJ'!C16/'Tabel 4F ØJ'!C16*100,"-")) -> - | D16: =IF(OR('Tabel 4F ØJ'!D16<5,'Tabel 4 ØJ'!D16<0.5),"-",IFERROR('Tabel 4 ØJ'!D16/'Tabel 4F ØJ'!D16*100,"-")) -> 9.090909091 | E16: =IF(OR('Tabel 4F ØJ'!E16<5,'Tabel 4 ØJ'!E16<0.5),"-",IFERROR('Tabel 4 ØJ'!E16/'Tabel 4F ØJ'!E16*100,"-")) -> - | F16: =IF(OR('Tabel 4F ØJ'!F16<5,'Tabel 4 ØJ'!F16<0.5),"-",IFERROR('Tabel 4 ØJ'!F16/'Tabel 4F ØJ'!F16*100,"-")) -> - | G16: =IF(OR('Tabel 4F ØJ'!G16<5,'Tabel 4 ØJ'!G16<0.5),"-",IFERROR('Tabel 4 ØJ'!G16/'Tabel 4F ØJ'!G16*100,"-")) -> - | I16: =IF(OR('Tabel 4F ØJ'!I16<5,'Tabel 4 ØJ'!I16<0.5),"-",IFERROR('Tabel 4 ØJ'!I16/'Tabel 4F ØJ'!I16*100,"-")) -> 2.5
A17: Hortonom | C17: =IF(OR('Tabel 4F ØJ'!C17<5,'Tabel 4 ØJ'!C17<0.5),"-",IFERROR('Tabel 4 ØJ'!C17/'Tabel 4F ØJ'!C17*100,"-")) -> - | D17: =IF(OR('Tabel 4F ØJ'!D17<5,'Tabel 4 ØJ'!D17<0.5),"-",IFERROR('Tabel 4 ØJ'!D17/'Tabel 4F ØJ'!D17*100,"-")) -> - | E17: =IF(OR('Tabel 4F ØJ'!E17<5,'Tabel 4 ØJ'!E17<0.5),"-",IFERROR('Tabel 4 ØJ'!E17/'Tabel 4F ØJ'!E17*100,"-")) -> - | F17: =IF(OR('Tabel 4F ØJ'!F17<5,'Tabel 4 ØJ'!F17<0.5),"-",IFERROR('Tabel 4 ØJ'!F17/'Tabel 4F ØJ'!F17*100,"-")) -> - | G17: =IF(OR('Tabel 4F ØJ'!G17<5,'Tabel 4 ØJ'!G17<0.5),"-",IFERROR('Tabel 4 ØJ'!G17/'Tabel 4F ØJ'!G17*100,"-")) -> - | I17: =IF(OR('Tabel 4F ØJ'!I17<5,'Tabel 4 ØJ'!I17<0.5),"-",IFERROR('Tabel 4 ØJ'!I17/'Tabel 4F ØJ'!I17*100,"-")) -> -
A18: Forstkand. | C18: =IF(OR('Tabel 4F ØJ'!C18<5,'Tabel 4 ØJ'!C18<0.5),"-",IFERROR('Tabel 4 ØJ'!C18/'Tabel 4F ØJ'!C18*100,"-")) -> - | D18: =IF(OR('Tabel 4F ØJ'!D18<5,'Tabel 4 ØJ'!D18<0.5),"-",IFERROR('Tabel 4 ØJ'!D18/'Tabel 4F ØJ'!D18*100,"-")) -> - | E18: =IF(OR('Tabel 4F ØJ'!E18<5,'Tabel 4 ØJ'!E18<0.5),"-",IFERROR('Tabel 4 ØJ'!E18/'Tabel 4F ØJ'!E18*100,"-")) -> - | F18: =IF(OR('Tabel 4F ØJ'!F18<5,'Tabel 4 ØJ'!F18<0.5),"-",IFERROR('Tabel 4 ØJ'!F18/'Tabel 4F ØJ'!F18*100,"-")) -> - | G18: =IF(OR('Tabel 4F ØJ'!G18<5,'Tabel 4 ØJ'!G18<0.5),"-",IFERROR('Tabel 4 ØJ'!G18/'Tabel 4F ØJ'!G18*100,"-")) -> 12.5 | I18: =IF(OR('Tabel 4F ØJ'!I18<5,'Tabel 4 ØJ'!I18<0.5),"-",IFERROR('Tabel 4 ØJ'!I18/'Tabel 4F ØJ'!I18*100,"-")) -> 3.703703704
A19: Jordbrugsakad. | C19: =IF(OR('Tabel 4F ØJ'!C19<5,'Tabel 4 ØJ'!C19<0.5),"-",IFERROR('Tabel 4 ØJ'!C19/'Tabel 4F ØJ'!C19*100,"-")) -> 8.695652174 | D19: =IF(OR('Tabel 4F ØJ'!D19<5,'Tabel 4 ØJ'!D19<0.5),"-",IFERROR('Tabel 4 ØJ'!D19/'Tabel 4F ØJ'!D19*100,"-")) -> 6.25 | E19: =IF(OR('Tabel 4F ØJ'!E19<5,'Tabel 4 ØJ'!E19<0.5),"-",IFERROR('Tabel 4 ØJ'!E19/'Tabel 4F ØJ'!E19*100,"-")) -> 2.189781022 | F19: =IF(OR('Tabel 4F ØJ'!F19<5,'Tabel 4 ØJ'!F19<0.5),"-",IFERROR('Tabel 4 ØJ'!F19/'Tabel 4F ØJ'!F19*100,"-")) -> 1.142857143 | G19: =IF(OR('Tabel 4F ØJ'!G19<5,'Tabel 4 ØJ'!G19<0.5),"-",IFERROR('Tabel 4 ØJ'!G19/'Tabel 4F ØJ'!G19*100,"-")) -> 4.938271605 | I19: =IF(OR('Tabel 4F ØJ'!I19<5,'Tabel 4 ØJ'!I19<0.5),"-",IFERROR('Tabel 4 ØJ'!I19/'Tabel 4F ØJ'!I19*100,"-")) -> 3.017241379
A20: Mejeriing. | C20: =IF(OR('Tabel 4F ØJ'!C20<5,'Tabel 4 ØJ'!C20<0.5),"-",IFERROR('Tabel 4 ØJ'!C20/'Tabel 4F ØJ'!C20*100,"-")) -> - | D20: =IF(OR('Tabel 4F ØJ'!D20<5,'Tabel 4 ØJ'!D20<0.5),"-",IFERROR('Tabel 4 ØJ'!D20/'Tabel 4F ØJ'!D20*100,"-")) -> - | E20: =IF(OR('Tabel 4F ØJ'!E20<5,'Tabel 4 ØJ'!E20<0.5),"-",IFERROR('Tabel 4 ØJ'!E20/'Tabel 4F ØJ'!E20*100,"-")) -> - | F20: =IF(OR('Tabel 4F ØJ'!F20<5,'Tabel 4 ØJ'!F20<0.5),"-",IFERROR('Tabel 4 ØJ'!F20/'Tabel 4F ØJ'!F20*100,"-")) -> - | G20: =IF(OR('Tabel 4F ØJ'!G20<5,'Tabel 4 ØJ'!G20<0.5),"-",IFERROR('Tabel 4 ØJ'!G20/'Tabel 4F ØJ'!G20*100,"-")) -> 9.090909091 | I20: =IF(OR('Tabel 4F ØJ'!I20<5,'Tabel 4 ØJ'!I20<0.5),"-",IFERROR('Tabel 4 ØJ'!I20/'Tabel 4F ØJ'!I20*100,"-")) -> 3.571428571
A21: Levn.m.kand. | C21: =IF(OR('Tabel 4F ØJ'!C21<5,'Tabel 4 ØJ'!C21<0.5),"-",IFERROR('Tabel 4 ØJ'!C21/'Tabel 4F ØJ'!C21*100,"-")) -> - | D21: =IF(OR('Tabel 4F ØJ'!D21<5,'Tabel 4 ØJ'!D21<0.5),"-",IFERROR('Tabel 4 ØJ'!D21/'Tabel 4F ØJ'!D21*100,"-")) -> - | E21: =IF(OR('Tabel 4F ØJ'!E21<5,'Tabel 4 ØJ'!E21<0.5),"-",IFERROR('Tabel 4 ØJ'!E21/'Tabel 4F ØJ'!E21*100,"-")) -> - | F21: =IF(OR('Tabel 4F ØJ'!F21<5,'Tabel 4 ØJ'!F21<0.5),"-",IFERROR('Tabel 4 ØJ'!F21/'Tabel 4F ØJ'!F21*100,"-")) -> - | G21: =IF(OR('Tabel 4F ØJ'!G21<5,'Tabel 4 ØJ'!G21<0.5),"-",IFERROR('Tabel 4 ØJ'!G21/'Tabel 4F ØJ'!G21*100,"-")) -> - | I21: =IF(OR('Tabel 4F ØJ'!I21<5,'Tabel 4 ØJ'!I21<0.5),"-",IFERROR('Tabel 4 ØJ'!I21/'Tabel 4F ØJ'!I21*100,"-")) -> 3.571428571
A22: Dyrlæge | C22: =IF(OR('Tabel 4F ØJ'!C22<5,'Tabel 4 ØJ'!C22<0.5),"-",IFERROR('Tabel 4 ØJ'!C22/'Tabel 4F ØJ'!C22*100,"-")) -> - | D22: =IF(OR('Tabel 4F ØJ'!D22<5,'Tabel 4 ØJ'!D22<0.5),"-",IFERROR('Tabel 4 ØJ'!D22/'Tabel 4F ØJ'!D22*100,"-")) -> - | E22: =IF(OR('Tabel 4F ØJ'!E22<5,'Tabel 4 ØJ'!E22<0.5),"-",IFERROR('Tabel 4 ØJ'!E22/'Tabel 4F ØJ'!E22*100,"-")) -> - | F22: =IF(OR('Tabel 4F ØJ'!F22<5,'Tabel 4 ØJ'!F22<0.5),"-",IFERROR('Tabel 4 ØJ'!F22/'Tabel 4F ØJ'!F22*100,"-")) -> - | G22: =IF(OR('Tabel 4F ØJ'!G22<5,'Tabel 4 ØJ'!G22<0.5),"-",IFERROR('Tabel 4 ØJ'!G22/'Tabel 4F ØJ'!G22*100,"-")) -> - | I22: =IF(OR('Tabel 4F ØJ'!I22<5,'Tabel 4 ØJ'!I22<0.5),"-",IFERROR('Tabel 4 ØJ'!I22/'Tabel 4F ØJ'!I22*100,"-")) -> -
A23: Farmaceut | C23: =IF(OR('Tabel 4F ØJ'!C23<5,'Tabel 4 ØJ'!C23<0.5),"-",IFERROR('Tabel 4 ØJ'!C23/'Tabel 4F ØJ'!C23*100,"-")) -> 6.862745098 | D23: =IF(OR('Tabel 4F ØJ'!D23<5,'Tabel 4 ØJ'!D23<0.5),"-",IFERROR('Tabel 4 ØJ'!D23/'Tabel 4F ØJ'!D23*100,"-")) -> 5.128205128 | E23: =IF(OR('Tabel 4F ØJ'!E23<5,'Tabel 4 ØJ'!E23<0.5),"-",IFERROR('Tabel 4 ØJ'!E23/'Tabel 4F ØJ'!E23*100,"-")) -> - | F23: =IF(OR('Tabel 4F ØJ'!F23<5,'Tabel 4 ØJ'!F23<0.5),"-",IFERROR('Tabel 4 ØJ'!F23/'Tabel 4F ØJ'!F23*100,"-")) -> 2.272727273 | G23: =IF(OR('Tabel 4F ØJ'!G23<5,'Tabel 4 ØJ'!G23<0.5),"-",IFERROR('Tabel 4 ØJ'!G23/'Tabel 4F ØJ'!G23*100,"-")) -> 11.76470588 | I23: =IF(OR('Tabel 4F ØJ'!I23<5,'Tabel 4 ØJ'!I23<0.5),"-",IFERROR('Tabel 4 ØJ'!I23/'Tabel 4F ØJ'!I23*100,"-")) -> 4.892966361
A24: Læge | C24: =IF(OR('Tabel 4F ØJ'!C24<5,'Tabel 4 ØJ'!C24<0.5),"-",IFERROR('Tabel 4 ØJ'!C24/'Tabel 4F ØJ'!C24*100,"-")) -> 5.217391304 | D24: =IF(OR('Tabel 4F ØJ'!D24<5,'Tabel 4 ØJ'!D24<0.5),"-",IFERROR('Tabel 4 ØJ'!D24/'Tabel 4F ØJ'!D24*100,"-")) -> 2.155887231 | E24: =IF(OR('Tabel 4F ØJ'!E24<5,'Tabel 4 ØJ'!E24<0.5),"-",IFERROR('Tabel 4 ØJ'!E24/'Tabel 4F ØJ'!E24*100,"-")) -> 0.5769230769 | F24: =IF(OR('Tabel 4F ØJ'!F24<5,'Tabel 4 ØJ'!F24<0.5),"-",IFERROR('Tabel 4 ØJ'!F24/'Tabel 4F ØJ'!F24*100,"-")) -> - | G24: =IF(OR('Tabel 4F ØJ'!G24<5,'Tabel 4 ØJ'!G24<0.5),"-",IFERROR('Tabel 4 ØJ'!G24/'Tabel 4F ØJ'!G24*100,"-")) -> - | I24: =IF(OR('Tabel 4F ØJ'!I24<5,'Tabel 4 ØJ'!I24<0.5),"-",IFERROR('Tabel 4 ØJ'!I24/'Tabel 4F ØJ'!I24*100,"-")) -> 2.0068156
A25: Tandlæge | C25: =IF(OR('Tabel 4F ØJ'!C25<5,'Tabel 4 ØJ'!C25<0.5),"-",IFERROR('Tabel 4 ØJ'!C25/'Tabel 4F ØJ'!C25*100,"-")) -> 5.434782609 | D25: =IF(OR('Tabel 4F ØJ'!D25<5,'Tabel 4 ØJ'!D25<0.5),"-",IFERROR('Tabel 4 ØJ'!D25/'Tabel 4F ØJ'!D25*100,"-")) -> 0.6535947712 | E25: =IF(OR('Tabel 4F ØJ'!E25<5,'Tabel 4 ØJ'!E25<0.5),"-",IFERROR('Tabel 4 ØJ'!E25/'Tabel 4F ØJ'!E25*100,"-")) -> 1 | F25: =IF(OR('Tabel 4F ØJ'!F25<5,'Tabel 4 ØJ'!F25<0.5),"-",IFERROR('Tabel 4 ØJ'!F25/'Tabel 4F ØJ'!F25*100,"-")) -> 1.333333333 | G25: =IF(OR('Tabel 4F ØJ'!G25<5,'Tabel 4 ØJ'!G25<0.5),"-",IFERROR('Tabel 4 ØJ'!G25/'Tabel 4F ØJ'!G25*100,"-")) -> 1.612903226 | I25: =IF(OR('Tabel 4F ØJ'!I25<5,'Tabel 4 ØJ'!I25<0.5),"-",IFERROR('Tabel 4 ØJ'!I25/'Tabel 4F ØJ'!I25*100,"-")) -> 1.867219917
A26: Arkitekt | C26: =IF(OR('Tabel 4F ØJ'!C26<5,'Tabel 4 ØJ'!C26<0.5),"-",IFERROR('Tabel 4 ØJ'!C26/'Tabel 4F ØJ'!C26*100,"-")) -> 26 | D26: =IF(OR('Tabel 4F ØJ'!D26<5,'Tabel 4 ØJ'!D26<0.5),"-",IFERROR('Tabel 4 ØJ'!D26/'Tabel 4F ØJ'!D26*100,"-")) -> 10.65217391 | E26: =IF(OR('Tabel 4F ØJ'!E26<5,'Tabel 4 ØJ'!E26<0.5),"-",IFERROR('Tabel 4 ØJ'!E26/'Tabel 4F ØJ'!E26*100,"-")) -> 3.632887189 | F26: =IF(OR('Tabel 4F ØJ'!F26<5,'Tabel 4 ØJ'!F26<0.5),"-",IFERROR('Tabel 4 ØJ'!F26/'Tabel 4F ØJ'!F26*100,"-")) -> 3.422053232 | G26: =IF(OR('Tabel 4F ØJ'!G26<5,'Tabel 4 ØJ'!G26<0.5),"-",IFERROR('Tabel 4 ØJ'!G26/'Tabel 4F ØJ'!G26*100,"-")) -> 9.090909091 | I26: =IF(OR('Tabel 4F ØJ'!I26<5,'Tabel 4 ØJ'!I26<0.5),"-",IFERROR('Tabel 4 ØJ'!I26/'Tabel 4F ØJ'!I26*100,"-")) -> 8.396946565
A27: Landinspek. | C27: =IF(OR('Tabel 4F ØJ'!C27<5,'Tabel 4 ØJ'!C27<0.5),"-",IFERROR('Tabel 4 ØJ'!C27/'Tabel 4F ØJ'!C27*100,"-")) -> 11.11111111 | D27: =IF(OR('Tabel 4F ØJ'!D27<5,'Tabel 4 ØJ'!D27<0.5),"-",IFERROR('Tabel 4 ØJ'!D27/'Tabel 4F ØJ'!D27*100,"-")) -> - | E27: =IF(OR('Tabel 4F ØJ'!E27<5,'Tabel 4 ØJ'!E27<0.5),"-",IFERROR('Tabel 4 ØJ'!E27/'Tabel 4F ØJ'!E27*100,"-")) -> - | F27: =IF(OR('Tabel 4F ØJ'!F27<5,'Tabel 4 ØJ'!F27<0.5),"-",IFERROR('Tabel 4 ØJ'!F27/'Tabel 4F ØJ'!F27*100,"-")) -> - | G27: =IF(OR('Tabel 4F ØJ'!G27<5,'Tabel 4 ØJ'!G27<0.5),"-",IFERROR('Tabel 4 ØJ'!G27/'Tabel 4F ØJ'!G27*100,"-")) -> - | I27: =IF(OR('Tabel 4F ØJ'!I27<5,'Tabel 4 ØJ'!I27<0.5),"-",IFERROR('Tabel 4 ØJ'!I27/'Tabel 4F ØJ'!I27*100,"-")) -> 0.7352941176
A28: Bibliotekar | C28: =IF(OR('Tabel 4F ØJ'!C28<5,'Tabel 4 ØJ'!C28<0.5),"-",IFERROR('Tabel 4 ØJ'!C28/'Tabel 4F ØJ'!C28*100,"-")) -> - | D28: =IF(OR('Tabel 4F ØJ'!D28<5,'Tabel 4 ØJ'!D28<0.5),"-",IFERROR('Tabel 4 ØJ'!D28/'Tabel 4F ØJ'!D28*100,"-")) -> 10.12658228 | E28: =IF(OR('Tabel 4F ØJ'!E28<5,'Tabel 4 ØJ'!E28<0.5),"-",IFERROR('Tabel 4 ØJ'!E28/'Tabel 4F ØJ'!E28*100,"-")) -> 4.237288136 | F28: =IF(OR('Tabel 4F ØJ'!F28<5,'Tabel 4 ØJ'!F28<0.5),"-",IFERROR('Tabel 4 ØJ'!F28/'Tabel 4F ØJ'!F28*100,"-")) -> 4.255319149 | G28: =IF(OR('Tabel 4F ØJ'!G28<5,'Tabel 4 ØJ'!G28<0.5),"-",IFERROR('Tabel 4 ØJ'!G28/'Tabel 4F ØJ'!G28*100,"-")) -> 1.694915254 | I28: =IF(OR('Tabel 4F ØJ'!I28<5,'Tabel 4 ØJ'!I28<0.5),"-",IFERROR('Tabel 4 ØJ'!I28/'Tabel 4F ØJ'!I28*100,"-")) -> 5.367231638
A29: Musikudd. | C29: =IF(OR('Tabel 4F ØJ'!C29<5,'Tabel 4 ØJ'!C29<0.5),"-",IFERROR('Tabel 4 ØJ'!C29/'Tabel 4F ØJ'!C29*100,"-")) -> 60 | D29: =IF(OR('Tabel 4F ØJ'!D29<5,'Tabel 4 ØJ'!D29<0.5),"-",IFERROR('Tabel 4 ØJ'!D29/'Tabel 4F ØJ'!D29*100,"-")) -> 12.5 | E29: =IF(OR('Tabel 4F ØJ'!E29<5,'Tabel 4 ØJ'!E29<0.5),"-",IFERROR('Tabel 4 ØJ'!E29/'Tabel 4F ØJ'!E29*100,"-")) -> 3.225806452 | F29: =IF(OR('Tabel 4F ØJ'!F29<5,'Tabel 4 ØJ'!F29<0.5),"-",IFERROR('Tabel 4 ØJ'!F29/'Tabel 4F ØJ'!F29*100,"-")) -> 3.571428571 | G29: =IF(OR('Tabel 4F ØJ'!G29<5,'Tabel 4 ØJ'!G29<0.5),"-",IFERROR('Tabel 4 ØJ'!G29/'Tabel 4F ØJ'!G29*100,"-")) -> 5 | I29: =IF(OR('Tabel 4F ØJ'!I29<5,'Tabel 4 ØJ'!I29<0.5),"-",IFERROR('Tabel 4 ØJ'!I29/'Tabel 4F ØJ'!I29*100,"-")) -> 6.756756757
A30: Teolog | C30: =IF(OR('Tabel 4F ØJ'!C30<5,'Tabel 4 ØJ'!C30<0.5),"-",IFERROR('Tabel 4 ØJ'!C30/'Tabel 4F ØJ'!C30*100,"-")) -> 55.55555556 | D30: =IF(OR('Tabel 4F ØJ'!D30<5,'Tabel 4 ØJ'!D30<0.5),"-",IFERROR('Tabel 4 ØJ'!D30/'Tabel 4F ØJ'!D30*100,"-")) -> 4.918032787 | E30: =IF(OR('Tabel 4F ØJ'!E30<5,'Tabel 4 ØJ'!E30<0.5),"-",IFERROR('Tabel 4 ØJ'!E30/'Tabel 4F ØJ'!E30*100,"-")) -> 4.098360656 | F30: =IF(OR('Tabel 4F ØJ'!F30<5,'Tabel 4 ØJ'!F30<0.5),"-",IFERROR('Tabel 4 ØJ'!F30/'Tabel 4F ØJ'!F30*100,"-")) -> 3.092783505 | G30: =IF(OR('Tabel 4F ØJ'!G30<5,'Tabel 4 ØJ'!G30<0.5),"-",IFERROR('Tabel 4 ØJ'!G30/'Tabel 4F ØJ'!G30*100,"-")) -> 9.090909091 | I30: =IF(OR('Tabel 4F ØJ'!I30<5,'Tabel 4 ØJ'!I30<0.5),"-",IFERROR('Tabel 4 ØJ'!I30/'Tabel 4F ØJ'!I30*100,"-")) -> 7.250755287
A31: Psykolog | C31: =IF(OR('Tabel 4F ØJ'!C31<5,'Tabel 4 ØJ'!C31<0.5),"-",IFERROR('Tabel 4 ØJ'!C31/'Tabel 4F ØJ'!C31*100,"-")) -> 15.61561562 | D31: =IF(OR('Tabel 4F ØJ'!D31<5,'Tabel 4 ØJ'!D31<0.5),"-",IFERROR('Tabel 4 ØJ'!D31/'Tabel 4F ØJ'!D31*100,"-")) -> 7.133243607 | E31: =IF(OR('Tabel 4F ØJ'!E31<5,'Tabel 4 ØJ'!E31<0.5),"-",IFERROR('Tabel 4 ØJ'!E31/'Tabel 4F ØJ'!E31*100,"-")) -> 2.35042735 | F31: =IF(OR('Tabel 4F ØJ'!F31<5,'Tabel 4 ØJ'!F31<0.5),"-",IFERROR('Tabel 4 ØJ'!F31/'Tabel 4F ØJ'!F31*100,"-")) -> 2.352941176 | G31: =IF(OR('Tabel 4F ØJ'!G31<5,'Tabel 4 ØJ'!G31<0.5),"-",IFERROR('Tabel 4 ØJ'!G31/'Tabel 4F ØJ'!G31*100,"-")) -> 4.06504065 | I31: =IF(OR('Tabel 4F ØJ'!I31<5,'Tabel 4 ØJ'!I31<0.5),"-",IFERROR('Tabel 4 ØJ'!I31/'Tabel 4F ØJ'!I31*100,"-")) -> 6.607700312
A32: Jurist | C32: =IF(OR('Tabel 4F ØJ'!C32<5,'Tabel 4 ØJ'!C32<0.5),"-",IFERROR('Tabel 4 ØJ'!C32/'Tabel 4F ØJ'!C32*100,"-")) -> 4.982206406 | D32: =IF(OR('Tabel 4F ØJ'!D32<5,'Tabel 4 ØJ'!D32<0.5),"-",IFERROR('Tabel 4 ØJ'!D32/'Tabel 4F ØJ'!D32*100,"-")) -> 2.05811138 | E32: =IF(OR('Tabel 4F ØJ'!E32<5,'Tabel 4 ØJ'!E32<0.5),"-",IFERROR('Tabel 4 ØJ'!E32/'Tabel 4F ØJ'!E32*100,"-")) -> 1.169590643 | F32: =IF(OR('Tabel 4F ØJ'!F32<5,'Tabel 4 ØJ'!F32<0.5),"-",IFERROR('Tabel 4 ØJ'!F32/'Tabel 4F ØJ'!F32*100,"-")) -> 1.739130435 | G32: =IF(OR('Tabel 4F ØJ'!G32<5,'Tabel 4 ØJ'!G32<0.5),"-",IFERROR('Tabel 4 ØJ'!G32/'Tabel 4F ØJ'!G32*100,"-")) -> 2.97029703 | I32: =IF(OR('Tabel 4F ØJ'!I32<5,'Tabel 4 ØJ'!I32<0.5),"-",IFERROR('Tabel 4 ØJ'!I32/'Tabel 4F ØJ'!I32*100,"-")) -> 2.556455049
A33: Økonom | C33: =IF(OR('Tabel 4F ØJ'!C33<5,'Tabel 4 ØJ'!C33<0.5),"-",IFERROR('Tabel 4 ØJ'!C33/'Tabel 4F ØJ'!C33*100,"-")) -> 4.195804196 | D33: =IF(OR('Tabel 4F ØJ'!D33<5,'Tabel 4 ØJ'!D33<0.5),"-",IFERROR('Tabel 4 ØJ'!D33/'Tabel 4F ØJ'!D33*100,"-")) -> 2.719665272 | E33: =IF(OR('Tabel 4F ØJ'!E33<5,'Tabel 4 ØJ'!E33<0.5),"-",IFERROR('Tabel 4 ØJ'!E33/'Tabel 4F ØJ'!E33*100,"-")) -> 0.3067484663 | F33: =IF(OR('Tabel 4F ØJ'!F33<5,'Tabel 4 ØJ'!F33<0.5),"-",IFERROR('Tabel 4 ØJ'!F33/'Tabel 4F ØJ'!F33*100,"-")) -> 3.971119134 | G33: =IF(OR('Tabel 4F ØJ'!G33<5,'Tabel 4 ØJ'!G33<0.5),"-",IFERROR('Tabel 4 ØJ'!G33/'Tabel 4F ØJ'!G33*100,"-")) -> 2.564102564 | I33: =IF(OR('Tabel 4F ØJ'!I33<5,'Tabel 4 ØJ'!I33<0.5),"-",IFERROR('Tabel 4 ØJ'!I33/'Tabel 4F ØJ'!I33*100,"-")) -> 2.698961938
A34: Samf. Adm. | C34: =IF(OR('Tabel 4F ØJ'!C34<5,'Tabel 4 ØJ'!C34<0.5),"-",IFERROR('Tabel 4 ØJ'!C34/'Tabel 4F ØJ'!C34*100,"-")) -> 17.54122939 | D34: =IF(OR('Tabel 4F ØJ'!D34<5,'Tabel 4 ØJ'!D34<0.5),"-",IFERROR('Tabel 4 ØJ'!D34/'Tabel 4F ØJ'!D34*100,"-")) -> 7.294832827 | E34: =IF(OR('Tabel 4F ØJ'!E34<5,'Tabel 4 ØJ'!E34<0.5),"-",IFERROR('Tabel 4 ØJ'!E34/'Tabel 4F ØJ'!E34*100,"-")) -> 2.91005291 | F34: =IF(OR('Tabel 4F ØJ'!F34<5,'Tabel 4 ØJ'!F34<0.5),"-",IFERROR('Tabel 4 ØJ'!F34/'Tabel 4F ØJ'!F34*100,"-")) -> 2.415458937 | G34: =IF(OR('Tabel 4F ØJ'!G34<5,'Tabel 4 ØJ'!G34<0.5),"-",IFERROR('Tabel 4 ØJ'!G34/'Tabel 4F ØJ'!G34*100,"-")) -> 5.434782609 | I34: =IF(OR('Tabel 4F ØJ'!I34<5,'Tabel 4 ØJ'!I34<0.5),"-",IFERROR('Tabel 4 ØJ'!I34/'Tabel 4F ØJ'!I34*100,"-")) -> 7.704160247
A35: Cand. Merc. | C35: =IF(OR('Tabel 4F ØJ'!C35<5,'Tabel 4 ØJ'!C35<0.5),"-",IFERROR('Tabel 4 ØJ'!C35/'Tabel 4F ØJ'!C35*100,"-")) -> 8.664955071 | D35: =IF(OR('Tabel 4F ØJ'!D35<5,'Tabel 4 ØJ'!D35<0.5),"-",IFERROR('Tabel 4 ØJ'!D35/'Tabel 4F ØJ'!D35*100,"-")) -> 3.448275862 | E35: =IF(OR('Tabel 4F ØJ'!E35<5,'Tabel 4 ØJ'!E35<0.5),"-",IFERROR('Tabel 4 ØJ'!E35/'Tabel 4F ØJ'!E35*100,"-")) -> 1.781737194 | F35: =IF(OR('Tabel 4F ØJ'!F35<5,'Tabel 4 ØJ'!F35<0.5),"-",IFERROR('Tabel 4 ØJ'!F35/'Tabel 4F ØJ'!F35*100,"-")) -> 3.351351351 | G35: =IF(OR('Tabel 4F ØJ'!G35<5,'Tabel 4 ØJ'!G35<0.5),"-",IFERROR('Tabel 4 ØJ'!G35/'Tabel 4F ØJ'!G35*100,"-")) -> 4.285714286 | I35: =IF(OR('Tabel 4F ØJ'!I35<5,'Tabel 4 ØJ'!I35<0.5),"-",IFERROR('Tabel 4 ØJ'!I35/'Tabel 4F ØJ'!I35*100,"-")) -> 4.308588064
A36: HA | C36: =IF(OR('Tabel 4F ØJ'!C36<5,'Tabel 4 ØJ'!C36<0.5),"-",IFERROR('Tabel 4 ØJ'!C36/'Tabel 4F ØJ'!C36*100,"-")) -> 17.5862069 | D36: =IF(OR('Tabel 4F ØJ'!D36<5,'Tabel 4 ØJ'!D36<0.5),"-",IFERROR('Tabel 4 ØJ'!D36/'Tabel 4F ØJ'!D36*100,"-")) -> 5.673758865 | E36: =IF(OR('Tabel 4F ØJ'!E36<5,'Tabel 4 ØJ'!E36<0.5),"-",IFERROR('Tabel 4 ØJ'!E36/'Tabel 4F ØJ'!E36*100,"-")) -> 3.797468354 | F36: =IF(OR('Tabel 4F ØJ'!F36<5,'Tabel 4 ØJ'!F36<0.5),"-",IFERROR('Tabel 4 ØJ'!F36/'Tabel 4F ØJ'!F36*100,"-")) -> 5.610561056 | G36: =IF(OR('Tabel 4F ØJ'!G36<5,'Tabel 4 ØJ'!G36<0.5),"-",IFERROR('Tabel 4 ØJ'!G36/'Tabel 4F ØJ'!G36*100,"-")) -> 8.450704225 | I36: =IF(OR('Tabel 4F ØJ'!I36<5,'Tabel 4 ØJ'!I36<0.5),"-",IFERROR('Tabel 4 ØJ'!I36/'Tabel 4F ØJ'!I36*100,"-")) -> 8.695652174
A37: HD | C37: =IF(OR('Tabel 4F ØJ'!C37<5,'Tabel 4 ØJ'!C37<0.5),"-",IFERROR('Tabel 4 ØJ'!C37/'Tabel 4F ØJ'!C37*100,"-")) -> 17.73049645 | D37: =IF(OR('Tabel 4F ØJ'!D37<5,'Tabel 4 ØJ'!D37<0.5),"-",IFERROR('Tabel 4 ØJ'!D37/'Tabel 4F ØJ'!D37*100,"-")) -> 6.511627907 | E37: =IF(OR('Tabel 4F ØJ'!E37<5,'Tabel 4 ØJ'!E37<0.5),"-",IFERROR('Tabel 4 ØJ'!E37/'Tabel 4F ØJ'!E37*100,"-")) -> - | F37: =IF(OR('Tabel 4F ØJ'!F37<5,'Tabel 4 ØJ'!F37<0.5),"-",IFERROR('Tabel 4 ØJ'!F37/'Tabel 4F ØJ'!F37*100,"-")) -> 1.805054152 | G37: =IF(OR('Tabel 4F ØJ'!G37<5,'Tabel 4 ØJ'!G37<0.5),"-",IFERROR('Tabel 4 ØJ'!G37/'Tabel 4F ØJ'!G37*100,"-")) -> 3.488372093 | I37: =IF(OR('Tabel 4F ØJ'!I37<5,'Tabel 4 ØJ'!I37<0.5),"-",IFERROR('Tabel 4 ØJ'!I37/'Tabel 4F ØJ'!I37*100,"-")) -> 5.439814815
A38: Komm. og Sprog | C38: =IF(OR('Tabel 4F ØJ'!C38<5,'Tabel 4 ØJ'!C38<0.5),"-",IFERROR('Tabel 4 ØJ'!C38/'Tabel 4F ØJ'!C38*100,"-")) -> 20.10309278 | D38: =IF(OR('Tabel 4F ØJ'!D38<5,'Tabel 4 ØJ'!D38<0.5),"-",IFERROR('Tabel 4 ØJ'!D38/'Tabel 4F ØJ'!D38*100,"-")) -> 9.274193548 | E38: =IF(OR('Tabel 4F ØJ'!E38<5,'Tabel 4 ØJ'!E38<0.5),"-",IFERROR('Tabel 4 ØJ'!E38/'Tabel 4F ØJ'!E38*100,"-")) -> 6.18556701 | F38: =IF(OR('Tabel 4F ØJ'!F38<5,'Tabel 4 ØJ'!F38<0.5),"-",IFERROR('Tabel 4 ØJ'!F38/'Tabel 4F ØJ'!F38*100,"-")) -> 3.963414634 | G38: =IF(OR('Tabel 4F ØJ'!G38<5,'Tabel 4 ØJ'!G38<0.5),"-",IFERROR('Tabel 4 ØJ'!G38/'Tabel 4F ØJ'!G38*100,"-")) -> 9.489051095 | I38: =IF(OR('Tabel 4F ØJ'!I38<5,'Tabel 4 ØJ'!I38<0.5),"-",IFERROR('Tabel 4 ØJ'!I38/'Tabel 4F ØJ'!I38*100,"-")) -> 8.648648649
A39: Bygningskonst. | C39: =IF(OR('Tabel 4F ØJ'!C39<5,'Tabel 4 ØJ'!C39<0.5),"-",IFERROR('Tabel 4 ØJ'!C39/'Tabel 4F ØJ'!C39*100,"-")) -> 15.44715447 | D39: =IF(OR('Tabel 4F ØJ'!D39<5,'Tabel 4 ØJ'!D39<0.5),"-",IFERROR('Tabel 4 ØJ'!D39/'Tabel 4F ØJ'!D39*100,"-")) -> 4.100946372 | E39: =IF(OR('Tabel 4F ØJ'!E39<5,'Tabel 4 ØJ'!E39<0.5),"-",IFERROR('Tabel 4 ØJ'!E39/'Tabel 4F ØJ'!E39*100,"-")) -> 2.024291498 | F39: =IF(OR('Tabel 4F ØJ'!F39<5,'Tabel 4 ØJ'!F39<0.5),"-",IFERROR('Tabel 4 ØJ'!F39/'Tabel 4F ØJ'!F39*100,"-")) -> 3.389830508 | G39: =IF(OR('Tabel 4F ØJ'!G39<5,'Tabel 4 ØJ'!G39<0.5),"-",IFERROR('Tabel 4 ØJ'!G39/'Tabel 4F ØJ'!G39*100,"-")) -> 6.25 | I39: =IF(OR('Tabel 4F ØJ'!I39<5,'Tabel 4 ØJ'!I39<0.5),"-",IFERROR('Tabel 4 ØJ'!I39/'Tabel 4F ØJ'!I39*100,"-")) -> 6.124273581
A40: Cand. IT. | C40: =IF(OR('Tabel 4F ØJ'!C40<5,'Tabel 4 ØJ'!C40<0.5),"-",IFERROR('Tabel 4 ØJ'!C40/'Tabel 4F ØJ'!C40*100,"-")) -> 13.71841155 | D40: =IF(OR('Tabel 4F ØJ'!D40<5,'Tabel 4 ØJ'!D40<0.5),"-",IFERROR('Tabel 4 ØJ'!D40/'Tabel 4F ØJ'!D40*100,"-")) -> 5.753968254 | E40: =IF(OR('Tabel 4F ØJ'!E40<5,'Tabel 4 ØJ'!E40<0.5),"-",IFERROR('Tabel 4 ØJ'!E40/'Tabel 4F ØJ'!E40*100,"-")) -> 3.355704698 | F40: =IF(OR('Tabel 4F ØJ'!F40<5,'Tabel 4 ØJ'!F40<0.5),"-",IFERROR('Tabel 4 ØJ'!F40/'Tabel 4F ØJ'!F40*100,"-")) -> - | G40: =IF(OR('Tabel 4F ØJ'!G40<5,'Tabel 4 ØJ'!G40<0.5),"-",IFERROR('Tabel 4 ØJ'!G40/'Tabel 4F ØJ'!G40*100,"-")) -> - | I40: =IF(OR('Tabel 4F ØJ'!I40<5,'Tabel 4 ØJ'!I40<0.5),"-",IFERROR('Tabel 4 ØJ'!I40/'Tabel 4F ØJ'!I40*100,"-")) -> 7.578947368
A41: Bac. Samf. | C41: =IF(OR('Tabel 4F ØJ'!C41<5,'Tabel 4 ØJ'!C41<0.5),"-",IFERROR('Tabel 4 ØJ'!C41/'Tabel 4F ØJ'!C41*100,"-")) -> 22.58064516 | D41: =IF(OR('Tabel 4F ØJ'!D41<5,'Tabel 4 ØJ'!D41<0.5),"-",IFERROR('Tabel 4 ØJ'!D41/'Tabel 4F ØJ'!D41*100,"-")) -> 7.692307692 | E41: =IF(OR('Tabel 4F ØJ'!E41<5,'Tabel 4 ØJ'!E41<0.5),"-",IFERROR('Tabel 4 ØJ'!E41/'Tabel 4F ØJ'!E41*100,"-")) -> 7.843137255 | F41: =IF(OR('Tabel 4F ØJ'!F41<5,'Tabel 4 ØJ'!F41<0.5),"-",IFERROR('Tabel 4 ØJ'!F41/'Tabel 4F ØJ'!F41*100,"-")) -> 2.857142857 | G41: =IF(OR('Tabel 4F ØJ'!G41<5,'Tabel 4 ØJ'!G41<0.5),"-",IFERROR('Tabel 4 ØJ'!G41/'Tabel 4F ØJ'!G41*100,"-")) -> 9.090909091 | I41: =IF(OR('Tabel 4F ØJ'!I41<5,'Tabel 4 ØJ'!I41<0.5),"-",IFERROR('Tabel 4 ØJ'!I41/'Tabel 4F ØJ'!I41*100,"-")) -> 11.61616162
A42: Bac. Hum. | C42: =IF(OR('Tabel 4F ØJ'!C42<5,'Tabel 4 ØJ'!C42<0.5),"-",IFERROR('Tabel 4 ØJ'!C42/'Tabel 4F ØJ'!C42*100,"-")) -> 39.07103825 | D42: =IF(OR('Tabel 4F ØJ'!D42<5,'Tabel 4 ØJ'!D42<0.5),"-",IFERROR('Tabel 4 ØJ'!D42/'Tabel 4F ØJ'!D42*100,"-")) -> 19.04761905 | E42: =IF(OR('Tabel 4F ØJ'!E42<5,'Tabel 4 ØJ'!E42<0.5),"-",IFERROR('Tabel 4 ØJ'!E42/'Tabel 4F ØJ'!E42*100,"-")) -> 7.643312102 | F42: =IF(OR('Tabel 4F ØJ'!F42<5,'Tabel 4 ØJ'!F42<0.5),"-",IFERROR('Tabel 4 ØJ'!F42/'Tabel 4F ØJ'!F42*100,"-")) -> 5.555555556 | G42: =IF(OR('Tabel 4F ØJ'!G42<5,'Tabel 4 ØJ'!G42<0.5),"-",IFERROR('Tabel 4 ØJ'!G42/'Tabel 4F ØJ'!G42*100,"-")) -> 10 | I42: =IF(OR('Tabel 4F ØJ'!I42<5,'Tabel 4 ØJ'!I42<0.5),"-",IFERROR('Tabel 4 ØJ'!I42/'Tabel 4F ØJ'!I42*100,"-")) -> 23.48033373
A43: Bac. Nat. | C43: =IF(OR('Tabel 4F ØJ'!C43<5,'Tabel 4 ØJ'!C43<0.5),"-",IFERROR('Tabel 4 ØJ'!C43/'Tabel 4F ØJ'!C43*100,"-")) -> 22.88401254 | D43: =IF(OR('Tabel 4F ØJ'!D43<5,'Tabel 4 ØJ'!D43<0.5),"-",IFERROR('Tabel 4 ØJ'!D43/'Tabel 4F ØJ'!D43*100,"-")) -> 8.225108225 | E43: =IF(OR('Tabel 4F ØJ'!E43<5,'Tabel 4 ØJ'!E43<0.5),"-",IFERROR('Tabel 4 ØJ'!E43/'Tabel 4F ØJ'!E43*100,"-")) -> 9.756097561 | F43: =IF(OR('Tabel 4F ØJ'!F43<5,'Tabel 4 ØJ'!F43<0.5),"-",IFERROR('Tabel 4 ØJ'!F43/'Tabel 4F ØJ'!F43*100,"-")) -> 17.39130435 | G43: =IF(OR('Tabel 4F ØJ'!G43<5,'Tabel 4 ØJ'!G43<0.5),"-",IFERROR('Tabel 4 ØJ'!G43/'Tabel 4F ØJ'!G43*100,"-")) -> - | I43: =IF(OR('Tabel 4F ØJ'!I43<5,'Tabel 4 ØJ'!I43<0.5),"-",IFERROR('Tabel 4 ØJ'!I43/'Tabel 4F ØJ'!I43*100,"-")) -> 15.82952816
A44: Andre | C44: =IF(OR('Tabel 4F ØJ'!C44<5,'Tabel 4 ØJ'!C44<0.5),"-",IFERROR('Tabel 4 ØJ'!C44/'Tabel 4F ØJ'!C44*100,"-")) -> 18.38383838 | D44: =IF(OR('Tabel 4F ØJ'!D44<5,'Tabel 4 ØJ'!D44<0.5),"-",IFERROR('Tabel 4 ØJ'!D44/'Tabel 4F ØJ'!D44*100,"-")) -> 7.349081365 | E44: =IF(OR('Tabel 4F ØJ'!E44<5,'Tabel 4 ØJ'!E44<0.5),"-",IFERROR('Tabel 4 ØJ'!E44/'Tabel 4F ØJ'!E44*100,"-")) -> 6.931964056 | F44: =IF(OR('Tabel 4F ØJ'!F44<5,'Tabel 4 ØJ'!F44<0.5),"-",IFERROR('Tabel 4 ØJ'!F44/'Tabel 4F ØJ'!F44*100,"-")) -> 6.451612903 | G44: =IF(OR('Tabel 4F ØJ'!G44<5,'Tabel 4 ØJ'!G44<0.5),"-",IFERROR('Tabel 4 ØJ'!G44/'Tabel 4F ØJ'!G44*100,"-")) -> 9.727626459 | I44: =IF(OR('Tabel 4F ØJ'!I44<5,'Tabel 4 ØJ'!I44<0.5),"-",IFERROR('Tabel 4 ØJ'!I44/'Tabel 4F ØJ'!I44*100,"-")) -> 9.047467346
A46: Total | C46: =IF(OR('Tabel 4F ØJ'!C46<5,'Tabel 4 ØJ'!C46<0.5),"-",IFERROR('Tabel 4 ØJ'!C46/'Tabel 4F ØJ'!C46*100,"-")) -> 16.87870338 | D46: =IF(OR('Tabel 4F ØJ'!D46<5,'Tabel 4 ØJ'!D46<0.5),"-",IFERROR('Tabel 4 ØJ'!D46/'Tabel 4F ØJ'!D46*100,"-")) -> 6.462873856 | E46: =IF(OR('Tabel 4F ØJ'!E46<5,'Tabel 4 ØJ'!E46<0.5),"-",IFERROR('Tabel 4 ØJ'!E46/'Tabel 4F ØJ'!E46*100,"-")) -> 3.148848402 | F46: =IF(OR('Tabel 4F ØJ'!F46<5,'Tabel 4 ØJ'!F46<0.5),"-",IFERROR('Tabel 4 ØJ'!F46/'Tabel 4F ØJ'!F46*100,"-")) -> 3.041197046 | G46: =IF(OR('Tabel 4F ØJ'!G46<5,'Tabel 4 ØJ'!G46<0.5),"-",IFERROR('Tabel 4 ØJ'!G46/'Tabel 4F ØJ'!G46*100,"-")) -> 5.846721096 | I46: =IF(OR('Tabel 4F ØJ'!I46<5,'Tabel 4 ØJ'!I46<0.5),"-",IFERROR('Tabel 4 ØJ'!I46/'Tabel 4F ØJ'!I46*100,"-")) -> 7.013766556
A48: Ingeniører i alt | C48: =IF(OR('Tabel 4F ØJ'!C48<5,'Tabel 4 ØJ'!C48<0.5),"-",IFERROR('Tabel 4 ØJ'!C48/'Tabel 4F ØJ'!C48*100,"-")) -> 11.83908046 | D48: =IF(OR('Tabel 4F ØJ'!D48<5,'Tabel 4 ØJ'!D48<0.5),"-",IFERROR('Tabel 4 ØJ'!D48/'Tabel 4F ØJ'!D48*100,"-")) -> 2.583144979 | E48: =IF(OR('Tabel 4F ØJ'!E48<5,'Tabel 4 ØJ'!E48<0.5),"-",IFERROR('Tabel 4 ØJ'!E48/'Tabel 4F ØJ'!E48*100,"-")) -> 1.10619469 | F48: =IF(OR('Tabel 4F ØJ'!F48<5,'Tabel 4 ØJ'!F48<0.5),"-",IFERROR('Tabel 4 ØJ'!F48/'Tabel 4F ØJ'!F48*100,"-")) -> 1.630434783 | G48: =IF(OR('Tabel 4F ØJ'!G48<5,'Tabel 4 ØJ'!G48<0.5),"-",IFERROR('Tabel 4 ØJ'!G48/'Tabel 4F ØJ'!G48*100,"-")) -> 3.746097815 | I48: =IF(OR('Tabel 4F ØJ'!I48<5,'Tabel 4 ØJ'!I48<0.5),"-",IFERROR('Tabel 4 ØJ'!I48/'Tabel 4F ØJ'!I48*100,"-")) -> 3.522626442
A49: Magistre i alt | C49: =IF(OR('Tabel 4F ØJ'!C49<5,'Tabel 4 ØJ'!C49<0.5),"-",IFERROR('Tabel 4 ØJ'!C49/'Tabel 4F ØJ'!C49*100,"-")) -> 32.89689034 | D49: =IF(OR('Tabel 4F ØJ'!D49<5,'Tabel 4 ØJ'!D49<0.5),"-",IFERROR('Tabel 4 ØJ'!D49/'Tabel 4F ØJ'!D49*100,"-")) -> 13.30664154 | E49: =IF(OR('Tabel 4F ØJ'!E49<5,'Tabel 4 ØJ'!E49<0.5),"-",IFERROR('Tabel 4 ØJ'!E49/'Tabel 4F ØJ'!E49*100,"-")) -> 4.974489796 | F49: =IF(OR('Tabel 4F ØJ'!F49<5,'Tabel 4 ØJ'!F49<0.5),"-",IFERROR('Tabel 4 ØJ'!F49/'Tabel 4F ØJ'!F49*100,"-")) -> 4.262144821 | G49: =IF(OR('Tabel 4F ØJ'!G49<5,'Tabel 4 ØJ'!G49<0.5),"-",IFERROR('Tabel 4 ØJ'!G49/'Tabel 4F ØJ'!G49*100,"-")) -> 7.849462366 | I49: =IF(OR('Tabel 4F ØJ'!I49<5,'Tabel 4 ØJ'!I49<0.5),"-",IFERROR('Tabel 4 ØJ'!I49/'Tabel 4F ØJ'!I49*100,"-")) -> 11.66196324
A50: DJØF'ere i alt | C50: =IF(OR('Tabel 4F ØJ'!C50<5,'Tabel 4 ØJ'!C50<0.5),"-",IFERROR('Tabel 4 ØJ'!C50/'Tabel 4F ØJ'!C50*100,"-")) -> 10.19922688 | D50: =IF(OR('Tabel 4F ØJ'!D50<5,'Tabel 4 ØJ'!D50<0.5),"-",IFERROR('Tabel 4 ØJ'!D50/'Tabel 4F ØJ'!D50*100,"-")) -> 4.170975526 | E50: =IF(OR('Tabel 4F ØJ'!E50<5,'Tabel 4 ØJ'!E50<0.5),"-",IFERROR('Tabel 4 ØJ'!E50/'Tabel 4F ØJ'!E50*100,"-")) -> 1.903225806 | F50: =IF(OR('Tabel 4F ØJ'!F50<5,'Tabel 4 ØJ'!F50<0.5),"-",IFERROR('Tabel 4 ØJ'!F50/'Tabel 4F ØJ'!F50*100,"-")) -> 3.312720848 | G50: =IF(OR('Tabel 4F ØJ'!G50<5,'Tabel 4 ØJ'!G50<0.5),"-",IFERROR('Tabel 4 ØJ'!G50/'Tabel 4F ØJ'!G50*100,"-")) -> 4.564315353 | I50: =IF(OR('Tabel 4F ØJ'!I50<5,'Tabel 4 ØJ'!I50<0.5),"-",IFERROR('Tabel 4 ØJ'!I50/'Tabel 4F ØJ'!I50*100,"-")) -> 4.936379988
A57: Horsens
C59: Under 30 år | D59: 30 - 39 år | E59: 40 - 49 år | F59: 50 - 59 år | G59: Over 60 år | I59: I alt
A61: Civ. ing. | C61: =IF(OR('Tabel 4F ØJ'!C61<5,'Tabel 4 ØJ'!C61<0.5),"-",IFERROR('Tabel 4 ØJ'!C61/'Tabel 4F ØJ'!C61*100,"-")) -> 12.76595745 | D61: =IF(OR('Tabel 4F ØJ'!D61<5,'Tabel 4 ØJ'!D61<0.5),"-",IFERROR('Tabel 4 ØJ'!D61/'Tabel 4F ØJ'!D61*100,"-")) -> 3.278688525 | E61: =IF(OR('Tabel 4F ØJ'!E61<5,'Tabel 4 ØJ'!E61<0.5),"-",IFERROR('Tabel 4 ØJ'!E61/'Tabel 4F ØJ'!E61*100,"-")) -> - | F61: =IF(OR('Tabel 4F ØJ'!F61<5,'Tabel 4 ØJ'!F61<0.5),"-",IFERROR('Tabel 4 ØJ'!F61/'Tabel 4F ØJ'!F61*100,"-")) -> - | G61: =IF(OR('Tabel 4F ØJ'!G61<5,'Tabel 4 ØJ'!G61<0.5),"-",IFERROR('Tabel 4 ØJ'!G61/'Tabel 4F ØJ'!G61*100,"-")) -> - | I61: =IF(OR('Tabel 4F ØJ'!I61<5,'Tabel 4 ØJ'!I61<0.5),"-",IFERROR('Tabel 4 ØJ'!I61/'Tabel 4F ØJ'!I61*100,"-")) -> 3.311258278
A62: Diplom ing. | C62: =IF(OR('Tabel 4F ØJ'!C62<5,'Tabel 4 ØJ'!C62<0.5),"-",IFERROR('Tabel 4 ØJ'!C62/'Tabel 4F ØJ'!C62*100,"-")) -> 15.38461538 | D62: =IF(OR('Tabel 4F ØJ'!D62<5,'Tabel 4 ØJ'!D62<0.5),"-",IFERROR('Tabel 4 ØJ'!D62/'Tabel 4F ØJ'!D62*100,"-")) -> 4.444444444 | E62: =IF(OR('Tabel 4F ØJ'!E62<5,'Tabel 4 ØJ'!E62<0.5),"-",IFERROR('Tabel 4 ØJ'!E62/'Tabel 4F ØJ'!E62*100,"-")) -> 0.3289473684 | F62: =IF(OR('Tabel 4F ØJ'!F62<5,'Tabel 4 ØJ'!F62<0.5),"-",IFERROR('Tabel 4 ØJ'!F62/'Tabel 4F ØJ'!F62*100,"-")) -> 0.8403361345 | G62: =IF(OR('Tabel 4F ØJ'!G62<5,'Tabel 4 ØJ'!G62<0.5),"-",IFERROR('Tabel 4 ØJ'!G62/'Tabel 4F ØJ'!G62*100,"-")) -> 2.469135802 | I62: =IF(OR('Tabel 4F ØJ'!I62<5,'Tabel 4 ØJ'!I62<0.5),"-",IFERROR('Tabel 4 ØJ'!I62/'Tabel 4F ØJ'!I62*100,"-")) -> 3.256302521
A63: Cand. Scient. Tek | C63: =IF(OR('Tabel 4F ØJ'!C63<5,'Tabel 4 ØJ'!C63<0.5),"-",IFERROR('Tabel 4 ØJ'!C63/'Tabel 4F ØJ'!C63*100,"-")) -> 6.25 | D63: =IF(OR('Tabel 4F ØJ'!D63<5,'Tabel 4 ØJ'!D63<0.5),"-",IFERROR('Tabel 4 ØJ'!D63/'Tabel 4F ØJ'!D63*100,"-")) -> 2.53164557 | E63: =IF(OR('Tabel 4F ØJ'!E63<5,'Tabel 4 ØJ'!E63<0.5),"-",IFERROR('Tabel 4 ØJ'!E63/'Tabel 4F ØJ'!E63*100,"-")) -> 6.896551724 | F63: =IF(OR('Tabel 4F ØJ'!F63<5,'Tabel 4 ØJ'!F63<0.5),"-",IFERROR('Tabel 4 ØJ'!F63/'Tabel 4F ØJ'!F63*100,"-")) -> - | G63: =IF(OR('Tabel 4F ØJ'!G63<5,'Tabel 4 ØJ'!G63<0.5),"-",IFERROR('Tabel 4 ØJ'!G63/'Tabel 4F ØJ'!G63*100,"-")) -> - | I63: =IF(OR('Tabel 4F ØJ'!I63<5,'Tabel 4 ØJ'!I63<0.5),"-",IFERROR('Tabel 4 ØJ'!I63/'Tabel 4F ØJ'!I63*100,"-")) -> 4.255319149
A64: MA. Hum. | C64: =IF(OR('Tabel 4F ØJ'!C64<5,'Tabel 4 ØJ'!C64<0.5),"-",IFERROR('Tabel 4 ØJ'!C64/'Tabel 4F ØJ'!C64*100,"-")) -> 26.19047619 | D64: =IF(OR('Tabel 4F ØJ'!D64<5,'Tabel 4 ØJ'!D64<0.5),"-",IFERROR('Tabel 4 ØJ'!D64/'Tabel 4F ØJ'!D64*100,"-")) -> 13.23529412 | E64: =IF(OR('Tabel 4F ØJ'!E64<5,'Tabel 4 ØJ'!E64<0.5),"-",IFERROR('Tabel 4 ØJ'!E64/'Tabel 4F ØJ'!E64*100,"-")) -> 3.378378378 | F64: =IF(OR('Tabel 4F ØJ'!F64<5,'Tabel 4 ØJ'!F64<0.5),"-",IFERROR('Tabel 4 ØJ'!F64/'Tabel 4F ØJ'!F64*100,"-")) -> 4.081632653 | G64: =IF(OR('Tabel 4F ØJ'!G64<5,'Tabel 4 ØJ'!G64<0.5),"-",IFERROR('Tabel 4 ØJ'!G64/'Tabel 4F ØJ'!G64*100,"-")) -> 4.761904762 | I64: =IF(OR('Tabel 4F ØJ'!I64<5,'Tabel 4 ØJ'!I64<0.5),"-",IFERROR('Tabel 4 ØJ'!I64/'Tabel 4F ØJ'!I64*100,"-")) -> 9.343434343
A65: MA. Nat. | C65: =IF(OR('Tabel 4F ØJ'!C65<5,'Tabel 4 ØJ'!C65<0.5),"-",IFERROR('Tabel 4 ØJ'!C65/'Tabel 4F ØJ'!C65*100,"-")) -> - | D65: =IF(OR('Tabel 4F ØJ'!D65<5,'Tabel 4 ØJ'!D65<0.5),"-",IFERROR('Tabel 4 ØJ'!D65/'Tabel 4F ØJ'!D65*100,"-")) -> 3.571428571 | E65: =IF(OR('Tabel 4F ØJ'!E65<5,'Tabel 4 ØJ'!E65<0.5),"-",IFERROR('Tabel 4 ØJ'!E65/'Tabel 4F ØJ'!E65*100,"-")) -> - | F65: =IF(OR('Tabel 4F ØJ'!F65<5,'Tabel 4 ØJ'!F65<0.5),"-",IFERROR('Tabel 4 ØJ'!F65/'Tabel 4F ØJ'!F65*100,"-")) -> - | G65: =IF(OR('Tabel 4F ØJ'!G65<5,'Tabel 4 ØJ'!G65<0.5),"-",IFERROR('Tabel 4 ØJ'!G65/'Tabel 4F ØJ'!G65*100,"-")) -> - | I65: =IF(OR('Tabel 4F ØJ'!I65<5,'Tabel 4 ØJ'!I65<0.5),"-",IFERROR('Tabel 4 ØJ'!I65/'Tabel 4F ØJ'!I65*100,"-")) -> 0.7352941176
A66: MA. Ph.d. | C66: =IF(OR('Tabel 4F ØJ'!C66<5,'Tabel 4 ØJ'!C66<0.5),"-",IFERROR('Tabel 4 ØJ'!C66/'Tabel 4F ØJ'!C66*100,"-")) -> - | D66: =IF(OR('Tabel 4F ØJ'!D66<5,'Tabel 4 ØJ'!D66<0.5),"-",IFERROR('Tabel 4 ØJ'!D66/'Tabel 4F ØJ'!D66*100,"-")) -> - | E66: =IF(OR('Tabel 4F ØJ'!E66<5,'Tabel 4 ØJ'!E66<0.5),"-",IFERROR('Tabel 4 ØJ'!E66/'Tabel 4F ØJ'!E66*100,"-")) -> - | F66: =IF(OR('Tabel 4F ØJ'!F66<5,'Tabel 4 ØJ'!F66<0.5),"-",IFERROR('Tabel 4 ØJ'!F66/'Tabel 4F ØJ'!F66*100,"-")) -> - | G66: =IF(OR('Tabel 4F ØJ'!G66<5,'Tabel 4 ØJ'!G66<0.5),"-",IFERROR('Tabel 4 ØJ'!G66/'Tabel 4F ØJ'!G66*100,"-")) -> - | I66: =IF(OR('Tabel 4F ØJ'!I66<5,'Tabel 4 ØJ'!I66<0.5),"-",IFERROR('Tabel 4 ØJ'!I66/'Tabel 4F ØJ'!I66*100,"-")) -> -
A67: MA. Samf. | C67: =IF(OR('Tabel 4F ØJ'!C67<5,'Tabel 4 ØJ'!C67<0.5),"-",IFERROR('Tabel 4 ØJ'!C67/'Tabel 4F ØJ'!C67*100,"-")) -> - | D67: =IF(OR('Tabel 4F ØJ'!D67<5,'Tabel 4 ØJ'!D67<0.5),"-",IFERROR('Tabel 4 ØJ'!D67/'Tabel 4F ØJ'!D67*100,"-")) -> 9.523809524 | E67: =IF(OR('Tabel 4F ØJ'!E67<5,'Tabel 4 ØJ'!E67<0.5),"-",IFERROR('Tabel 4 ØJ'!E67/'Tabel 4F ØJ'!E67*100,"-")) -> - | F67: =IF(OR('Tabel 4F ØJ'!F67<5,'Tabel 4 ØJ'!F67<0.5),"-",IFERROR('Tabel 4 ØJ'!F67/'Tabel 4F ØJ'!F67*100,"-")) -> - | G67: =IF(OR('Tabel 4F ØJ'!G67<5,'Tabel 4 ØJ'!G67<0.5),"-",IFERROR('Tabel 4 ØJ'!G67/'Tabel 4F ØJ'!G67*100,"-")) -> - | I67: =IF(OR('Tabel 4F ØJ'!I67<5,'Tabel 4 ØJ'!I67<0.5),"-",IFERROR('Tabel 4 ØJ'!I67/'Tabel 4F ØJ'!I67*100,"-")) -> 6.25
A68: Øvrige Mag. | C68: =IF(OR('Tabel 4F ØJ'!C68<5,'Tabel 4 ØJ'!C68<0.5),"-",IFERROR('Tabel 4 ØJ'!C68/'Tabel 4F ØJ'!C68*100,"-")) -> - | D68: =IF(OR('Tabel 4F ØJ'!D68<5,'Tabel 4 ØJ'!D68<0.5),"-",IFERROR('Tabel 4 ØJ'!D68/'Tabel 4F ØJ'!D68*100,"-")) -> 11.11111111 | E68: =IF(OR('Tabel 4F ØJ'!E68<5,'Tabel 4 ØJ'!E68<0.5),"-",IFERROR('Tabel 4 ØJ'!E68/'Tabel 4F ØJ'!E68*100,"-")) -> 11.11111111 | F68: =IF(OR('Tabel 4F ØJ'!F68<5,'Tabel 4 ØJ'!F68<0.5),"-",IFERROR('Tabel 4 ØJ'!F68/'Tabel 4F ØJ'!F68*100,"-")) -> - | G68: =IF(OR('Tabel 4F ØJ'!G68<5,'Tabel 4 ØJ'!G68<0.5),"-",IFERROR('Tabel 4 ØJ'!G68/'Tabel 4F ØJ'!G68*100,"-")) -> 20 | I68: =IF(OR('Tabel 4F ØJ'!I68<5,'Tabel 4 ØJ'!I68<0.5),"-",IFERROR('Tabel 4 ØJ'!I68/'Tabel 4F ØJ'!I68*100,"-")) -> 10.34482759
A69: Agronom | C69: =IF(OR('Tabel 4F ØJ'!C69<5,'Tabel 4 ØJ'!C69<0.5),"-",IFERROR('Tabel 4 ØJ'!C69/'Tabel 4F ØJ'!C69*100,"-")) -> - | D69: =IF(OR('Tabel 4F ØJ'!D69<5,'Tabel 4 ØJ'!D69<0.5),"-",IFERROR('Tabel 4 ØJ'!D69/'Tabel 4F ØJ'!D69*100,"-")) -> - | E69: =IF(OR('Tabel 4F ØJ'!E69<5,'Tabel 4 ØJ'!E69<0.5),"-",IFERROR('Tabel 4 ØJ'!E69/'Tabel 4F ØJ'!E69*100,"-")) -> - | F69: =IF(OR('Tabel 4F ØJ'!F69<5,'Tabel 4 ØJ'!F69<0.5),"-",IFERROR('Tabel 4 ØJ'!F69/'Tabel 4F ØJ'!F69*100,"-")) -> 7.142857143 | G69: =IF(OR('Tabel 4F ØJ'!G69<5,'Tabel 4 ØJ'!G69<0.5),"-",IFERROR('Tabel 4 ØJ'!G69/'Tabel 4F ØJ'!G69*100,"-")) -> 25 | I69: =IF(OR('Tabel 4F ØJ'!I69<5,'Tabel 4 ØJ'!I69<0.5),"-",IFERROR('Tabel 4 ØJ'!I69/'Tabel 4F ØJ'!I69*100,"-")) -> 8.108108108
A70: Landsk. Arkt. | C70: =IF(OR('Tabel 4F ØJ'!C70<5,'Tabel 4 ØJ'!C70<0.5),"-",IFERROR('Tabel 4 ØJ'!C70/'Tabel 4F ØJ'!C70*100,"-")) -> - | D70: =IF(OR('Tabel 4F ØJ'!D70<5,'Tabel 4 ØJ'!D70<0.5),"-",IFERROR('Tabel 4 ØJ'!D70/'Tabel 4F ØJ'!D70*100,"-")) -> - | E70: =IF(OR('Tabel 4F ØJ'!E70<5,'Tabel 4 ØJ'!E70<0.5),"-",IFERROR('Tabel 4 ØJ'!E70/'Tabel 4F ØJ'!E70*100,"-")) -> - | F70: =IF(OR('Tabel 4F ØJ'!F70<5,'Tabel 4 ØJ'!F70<0.5),"-",IFERROR('Tabel 4 ØJ'!F70/'Tabel 4F ØJ'!F70*100,"-")) -> - | G70: =IF(OR('Tabel 4F ØJ'!G70<5,'Tabel 4 ØJ'!G70<0.5),"-",IFERROR('Tabel 4 ØJ'!G70/'Tabel 4F ØJ'!G70*100,"-")) -> - | I70: =IF(OR('Tabel 4F ØJ'!I70<5,'Tabel 4 ØJ'!I70<0.5),"-",IFERROR('Tabel 4 ØJ'!I70/'Tabel 4F ØJ'!I70*100,"-")) -> -
A71: Hortonom | C71: =IF(OR('Tabel 4F ØJ'!C71<5,'Tabel 4 ØJ'!C71<0.5),"-",IFERROR('Tabel 4 ØJ'!C71/'Tabel 4F ØJ'!C71*100,"-")) -> - | D71: =IF(OR('Tabel 4F ØJ'!D71<5,'Tabel 4 ØJ'!D71<0.5),"-",IFERROR('Tabel 4 ØJ'!D71/'Tabel 4F ØJ'!D71*100,"-")) -> - | E71: =IF(OR('Tabel 4F ØJ'!E71<5,'Tabel 4 ØJ'!E71<0.5),"-",IFERROR('Tabel 4 ØJ'!E71/'Tabel 4F ØJ'!E71*100,"-")) -> - | F71: =IF(OR('Tabel 4F ØJ'!F71<5,'Tabel 4 ØJ'!F71<0.5),"-",IFERROR('Tabel 4 ØJ'!F71/'Tabel 4F ØJ'!F71*100,"-")) -> - | G71: =IF(OR('Tabel 4F ØJ'!G71<5,'Tabel 4 ØJ'!G71<0.5),"-",IFERROR('Tabel 4 ØJ'!G71/'Tabel 4F ØJ'!G71*100,"-")) -> - | I71: =IF(OR('Tabel 4F ØJ'!I71<5,'Tabel 4 ØJ'!I71<0.5),"-",IFERROR('Tabel 4 ØJ'!I71/'Tabel 4F ØJ'!I71*100,"-")) -> -
A72: Forstkand. | C72: =IF(OR('Tabel 4F ØJ'!C72<5,'Tabel 4 ØJ'!C72<0.5),"-",IFERROR('Tabel 4 ØJ'!C72/'Tabel 4F ØJ'!C72*100,"-")) -> - | D72: =IF(OR('Tabel 4F ØJ'!D72<5,'Tabel 4 ØJ'!D72<0.5),"-",IFERROR('Tabel 4 ØJ'!D72/'Tabel 4F ØJ'!D72*100,"-")) -> - | E72: =IF(OR('Tabel 4F ØJ'!E72<5,'Tabel 4 ØJ'!E72<0.5),"-",IFERROR('Tabel 4 ØJ'!E72/'Tabel 4F ØJ'!E72*100,"-")) -> - | F72: =IF(OR('Tabel 4F ØJ'!F72<5,'Tabel 4 ØJ'!F72<0.5),"-",IFERROR('Tabel 4 ØJ'!F72/'Tabel 4F ØJ'!F72*100,"-")) -> - | G72: =IF(OR('Tabel 4F ØJ'!G72<5,'Tabel 4 ØJ'!G72<0.5),"-",IFERROR('Tabel 4 ØJ'!G72/'Tabel 4F ØJ'!G72*100,"-")) -> - | I72: =IF(OR('Tabel 4F ØJ'!I72<5,'Tabel 4 ØJ'!I72<0.5),"-",IFERROR('Tabel 4 ØJ'!I72/'Tabel 4F ØJ'!I72*100,"-")) -> -
A73: Jordbrugsakad. | C73: =IF(OR('Tabel 4F ØJ'!C73<5,'Tabel 4 ØJ'!C73<0.5),"-",IFERROR('Tabel 4 ØJ'!C73/'Tabel 4F ØJ'!C73*100,"-")) -> - | D73: =IF(OR('Tabel 4F ØJ'!D73<5,'Tabel 4 ØJ'!D73<0.5),"-",IFERROR('Tabel 4 ØJ'!D73/'Tabel 4F ØJ'!D73*100,"-")) -> - | E73: =IF(OR('Tabel 4F ØJ'!E73<5,'Tabel 4 ØJ'!E73<0.5),"-",IFERROR('Tabel 4 ØJ'!E73/'Tabel 4F ØJ'!E73*100,"-")) -> - | F73: =IF(OR('Tabel 4F ØJ'!F73<5,'Tabel 4 ØJ'!F73<0.5),"-",IFERROR('Tabel 4 ØJ'!F73/'Tabel 4F ØJ'!F73*100,"-")) -> 6.666666667 | G73: =IF(OR('Tabel 4F ØJ'!G73<5,'Tabel 4 ØJ'!G73<0.5),"-",IFERROR('Tabel 4 ØJ'!G73/'Tabel 4F ØJ'!G73*100,"-")) -> 22.22222222 | I73: =IF(OR('Tabel 4F ØJ'!I73<5,'Tabel 4 ØJ'!I73<0.5),"-",IFERROR('Tabel 4 ØJ'!I73/'Tabel 4F ØJ'!I73*100,"-")) -> 6.52173913
A74: Mejeriing. | C74: =IF(OR('Tabel 4F ØJ'!C74<5,'Tabel 4 ØJ'!C74<0.5),"-",IFERROR('Tabel 4 ØJ'!C74/'Tabel 4F ØJ'!C74*100,"-")) -> - | D74: =IF(OR('Tabel 4F ØJ'!D74<5,'Tabel 4 ØJ'!D74<0.5),"-",IFERROR('Tabel 4 ØJ'!D74/'Tabel 4F ØJ'!D74*100,"-")) -> - | E74: =IF(OR('Tabel 4F ØJ'!E74<5,'Tabel 4 ØJ'!E74<0.5),"-",IFERROR('Tabel 4 ØJ'!E74/'Tabel 4F ØJ'!E74*100,"-")) -> - | F74: =IF(OR('Tabel 4F ØJ'!F74<5,'Tabel 4 ØJ'!F74<0.5),"-",IFERROR('Tabel 4 ØJ'!F74/'Tabel 4F ØJ'!F74*100,"-")) -> - | G74: =IF(OR('Tabel 4F ØJ'!G74<5,'Tabel 4 ØJ'!G74<0.5),"-",IFERROR('Tabel 4 ØJ'!G74/'Tabel 4F ØJ'!G74*100,"-")) -> - | I74: =IF(OR('Tabel 4F ØJ'!I74<5,'Tabel 4 ØJ'!I74<0.5),"-",IFERROR('Tabel 4 ØJ'!I74/'Tabel 4F ØJ'!I74*100,"-")) -> -
A75: Levn.m.kand. | C75: =IF(OR('Tabel 4F ØJ'!C75<5,'Tabel 4 ØJ'!C75<0.5),"-",IFERROR('Tabel 4 ØJ'!C75/'Tabel 4F ØJ'!C75*100,"-")) -> - | D75: =IF(OR('Tabel 4F ØJ'!D75<5,'Tabel 4 ØJ'!D75<0.5),"-",IFERROR('Tabel 4 ØJ'!D75/'Tabel 4F ØJ'!D75*100,"-")) -> - | E75: =IF(OR('Tabel 4F ØJ'!E75<5,'Tabel 4 ØJ'!E75<0.5),"-",IFERROR('Tabel 4 ØJ'!E75/'Tabel 4F ØJ'!E75*100,"-")) -> - | F75: =IF(OR('Tabel 4F ØJ'!F75<5,'Tabel 4 ØJ'!F75<0.5),"-",IFERROR('Tabel 4 ØJ'!F75/'Tabel 4F ØJ'!F75*100,"-")) -> - | G75: =IF(OR('Tabel 4F ØJ'!G75<5,'Tabel 4 ØJ'!G75<0.5),"-",IFERROR('Tabel 4 ØJ'!G75/'Tabel 4F ØJ'!G75*100,"-")) -> - | I75: =IF(OR('Tabel 4F ØJ'!I75<5,'Tabel 4 ØJ'!I75<0.5),"-",IFERROR('Tabel 4 ØJ'!I75/'Tabel 4F ØJ'!I75*100,"-")) -> -
A76: Dyrlæge | C76: =IF(OR('Tabel 4F ØJ'!C76<5,'Tabel 4 ØJ'!C76<0.5),"-",IFERROR('Tabel 4 ØJ'!C76/'Tabel 4F ØJ'!C76*100,"-")) -> - | D76: =IF(OR('Tabel 4F ØJ'!D76<5,'Tabel 4 ØJ'!D76<0.5),"-",IFERROR('Tabel 4 ØJ'!D76/'Tabel 4F ØJ'!D76*100,"-")) -> - | E76: =IF(OR('Tabel 4F ØJ'!E76<5,'Tabel 4 ØJ'!E76<0.5),"-",IFERROR('Tabel 4 ØJ'!E76/'Tabel 4F ØJ'!E76*100,"-")) -> - | F76: =IF(OR('Tabel 4F ØJ'!F76<5,'Tabel 4 ØJ'!F76<0.5),"-",IFERROR('Tabel 4 ØJ'!F76/'Tabel 4F ØJ'!F76*100,"-")) -> - | G76: =IF(OR('Tabel 4F ØJ'!G76<5,'Tabel 4 ØJ'!G76<0.5),"-",IFERROR('Tabel 4 ØJ'!G76/'Tabel 4F ØJ'!G76*100,"-")) -> - | I76: =IF(OR('Tabel 4F ØJ'!I76<5,'Tabel 4 ØJ'!I76<0.5),"-",IFERROR('Tabel 4 ØJ'!I76/'Tabel 4F ØJ'!I76*100,"-")) -> -
A77: Farmaceut | C77: =IF(OR('Tabel 4F ØJ'!C77<5,'Tabel 4 ØJ'!C77<0.5),"-",IFERROR('Tabel 4 ØJ'!C77/'Tabel 4F ØJ'!C77*100,"-")) -> 12.5 | D77: =IF(OR('Tabel 4F ØJ'!D77<5,'Tabel 4 ØJ'!D77<0.5),"-",IFERROR('Tabel 4 ØJ'!D77/'Tabel 4F ØJ'!D77*100,"-")) -> 20 | E77: =IF(OR('Tabel 4F ØJ'!E77<5,'Tabel 4 ØJ'!E77<0.5),"-",IFERROR('Tabel 4 ØJ'!E77/'Tabel 4F ØJ'!E77*100,"-")) -> - | F77: =IF(OR('Tabel 4F ØJ'!F77<5,'Tabel 4 ØJ'!F77<0.5),"-",IFERROR('Tabel 4 ØJ'!F77/'Tabel 4F ØJ'!F77*100,"-")) -> - | G77: =IF(OR('Tabel 4F ØJ'!G77<5,'Tabel 4 ØJ'!G77<0.5),"-",IFERROR('Tabel 4 ØJ'!G77/'Tabel 4F ØJ'!G77*100,"-")) -> - | I77: =IF(OR('Tabel 4F ØJ'!I77<5,'Tabel 4 ØJ'!I77<0.5),"-",IFERROR('Tabel 4 ØJ'!I77/'Tabel 4F ØJ'!I77*100,"-")) -> 13.04347826
A78: Læge | C78: =IF(OR('Tabel 4F ØJ'!C78<5,'Tabel 4 ØJ'!C78<0.5),"-",IFERROR('Tabel 4 ØJ'!C78/'Tabel 4F ØJ'!C78*100,"-")) -> 6.25 | D78: =IF(OR('Tabel 4F ØJ'!D78<5,'Tabel 4 ØJ'!D78<0.5),"-",IFERROR('Tabel 4 ØJ'!D78/'Tabel 4F ØJ'!D78*100,"-")) -> 2.272727273 | E78: =IF(OR('Tabel 4F ØJ'!E78<5,'Tabel 4 ØJ'!E78<0.5),"-",IFERROR('Tabel 4 ØJ'!E78/'Tabel 4F ØJ'!E78*100,"-")) -> - | F78: =IF(OR('Tabel 4F ØJ'!F78<5,'Tabel 4 ØJ'!F78<0.5),"-",IFERROR('Tabel 4 ØJ'!F78/'Tabel 4F ØJ'!F78*100,"-")) -> - | G78: =IF(OR('Tabel 4F ØJ'!G78<5,'Tabel 4 ØJ'!G78<0.5),"-",IFERROR('Tabel 4 ØJ'!G78/'Tabel 4F ØJ'!G78*100,"-")) -> - | I78: =IF(OR('Tabel 4F ØJ'!I78<5,'Tabel 4 ØJ'!I78<0.5),"-",IFERROR('Tabel 4 ØJ'!I78/'Tabel 4F ØJ'!I78*100,"-")) -> 2.173913043
A79: Tandlæge | C79: =IF(OR('Tabel 4F ØJ'!C79<5,'Tabel 4 ØJ'!C79<0.5),"-",IFERROR('Tabel 4 ØJ'!C79/'Tabel 4F ØJ'!C79*100,"-")) -> - | D79: =IF(OR('Tabel 4F ØJ'!D79<5,'Tabel 4 ØJ'!D79<0.5),"-",IFERROR('Tabel 4 ØJ'!D79/'Tabel 4F ØJ'!D79*100,"-")) -> - | E79: =IF(OR('Tabel 4F ØJ'!E79<5,'Tabel 4 ØJ'!E79<0.5),"-",IFERROR('Tabel 4 ØJ'!E79/'Tabel 4F ØJ'!E79*100,"-")) -> - | F79: =IF(OR('Tabel 4F ØJ'!F79<5,'Tabel 4 ØJ'!F79<0.5),"-",IFERROR('Tabel 4 ØJ'!F79/'Tabel 4F ØJ'!F79*100,"-")) -> - | G79: =IF(OR('Tabel 4F ØJ'!G79<5,'Tabel 4 ØJ'!G79<0.5),"-",IFERROR('Tabel 4 ØJ'!G79/'Tabel 4F ØJ'!G79*100,"-")) -> - | I79: =IF(OR('Tabel 4F ØJ'!I79<5,'Tabel 4 ØJ'!I79<0.5),"-",IFERROR('Tabel 4 ØJ'!I79/'Tabel 4F ØJ'!I79*100,"-")) -> -
A80: Arkitekt | C80: =IF(OR('Tabel 4F ØJ'!C80<5,'Tabel 4 ØJ'!C80<0.5),"-",IFERROR('Tabel 4 ØJ'!C80/'Tabel 4F ØJ'!C80*100,"-")) -> - | D80: =IF(OR('Tabel 4F ØJ'!D80<5,'Tabel 4 ØJ'!D80<0.5),"-",IFERROR('Tabel 4 ØJ'!D80/'Tabel 4F ØJ'!D80*100,"-")) -> 6.666666667 | E80: =IF(OR('Tabel 4F ØJ'!E80<5,'Tabel 4 ØJ'!E80<0.5),"-",IFERROR('Tabel 4 ØJ'!E80/'Tabel 4F ØJ'!E80*100,"-")) -> - | F80: =IF(OR('Tabel 4F ØJ'!F80<5,'Tabel 4 ØJ'!F80<0.5),"-",IFERROR('Tabel 4 ØJ'!F80/'Tabel 4F ØJ'!F80*100,"-")) -> - | G80: =IF(OR('Tabel 4F ØJ'!G80<5,'Tabel 4 ØJ'!G80<0.5),"-",IFERROR('Tabel 4 ØJ'!G80/'Tabel 4F ØJ'!G80*100,"-")) -> - | I80: =IF(OR('Tabel 4F ØJ'!I80<5,'Tabel 4 ØJ'!I80<0.5),"-",IFERROR('Tabel 4 ØJ'!I80/'Tabel 4F ØJ'!I80*100,"-")) -> 1.470588235
A81: Landinspek. | C81: =IF(OR('Tabel 4F ØJ'!C81<5,'Tabel 4 ØJ'!C81<0.5),"-",IFERROR('Tabel 4 ØJ'!C81/'Tabel 4F ØJ'!C81*100,"-")) -> - | D81: =IF(OR('Tabel 4F ØJ'!D81<5,'Tabel 4 ØJ'!D81<0.5),"-",IFERROR('Tabel 4 ØJ'!D81/'Tabel 4F ØJ'!D81*100,"-")) -> - | E81: =IF(OR('Tabel 4F ØJ'!E81<5,'Tabel 4 ØJ'!E81<0.5),"-",IFERROR('Tabel 4 ØJ'!E81/'Tabel 4F ØJ'!E81*100,"-")) -> - | F81: =IF(OR('Tabel 4F ØJ'!F81<5,'Tabel 4 ØJ'!F81<0.5),"-",IFERROR('Tabel 4 ØJ'!F81/'Tabel 4F ØJ'!F81*100,"-")) -> - | G81: =IF(OR('Tabel 4F ØJ'!G81<5,'Tabel 4 ØJ'!G81<0.5),"-",IFERROR('Tabel 4 ØJ'!G81/'Tabel 4F ØJ'!G81*100,"-")) -> - | I81: =IF(OR('Tabel 4F ØJ'!I81<5,'Tabel 4 ØJ'!I81<0.5),"-",IFERROR('Tabel 4 ØJ'!I81/'Tabel 4F ØJ'!I81*100,"-")) -> -
A82: Bibliotekar | C82: =IF(OR('Tabel 4F ØJ'!C82<5,'Tabel 4 ØJ'!C82<0.5),"-",IFERROR('Tabel 4 ØJ'!C82/'Tabel 4F ØJ'!C82*100,"-")) -> - | D82: =IF(OR('Tabel 4F ØJ'!D82<5,'Tabel 4 ØJ'!D82<0.5),"-",IFERROR('Tabel 4 ØJ'!D82/'Tabel 4F ØJ'!D82*100,"-")) -> - | E82: =IF(OR('Tabel 4F ØJ'!E82<5,'Tabel 4 ØJ'!E82<0.5),"-",IFERROR('Tabel 4 ØJ'!E82/'Tabel 4F ØJ'!E82*100,"-")) -> - | F82: =IF(OR('Tabel 4F ØJ'!F82<5,'Tabel 4 ØJ'!F82<0.5),"-",IFERROR('Tabel 4 ØJ'!F82/'Tabel 4F ØJ'!F82*100,"-")) -> - | G82: =IF(OR('Tabel 4F ØJ'!G82<5,'Tabel 4 ØJ'!G82<0.5),"-",IFERROR('Tabel 4 ØJ'!G82/'Tabel 4F ØJ'!G82*100,"-")) -> - | I82: =IF(OR('Tabel 4F ØJ'!I82<5,'Tabel 4 ØJ'!I82<0.5),"-",IFERROR('Tabel 4 ØJ'!I82/'Tabel 4F ØJ'!I82*100,"-")) -> -
A83: Musikudd. | C83: =IF(OR('Tabel 4F ØJ'!C83<5,'Tabel 4 ØJ'!C83<0.5),"-",IFERROR('Tabel 4 ØJ'!C83/'Tabel 4F ØJ'!C83*100,"-")) -> - | D83: =IF(OR('Tabel 4F ØJ'!D83<5,'Tabel 4 ØJ'!D83<0.5),"-",IFERROR('Tabel 4 ØJ'!D83/'Tabel 4F ØJ'!D83*100,"-")) -> - | E83: =IF(OR('Tabel 4F ØJ'!E83<5,'Tabel 4 ØJ'!E83<0.5),"-",IFERROR('Tabel 4 ØJ'!E83/'Tabel 4F ØJ'!E83*100,"-")) -> - | F83: =IF(OR('Tabel 4F ØJ'!F83<5,'Tabel 4 ØJ'!F83<0.5),"-",IFERROR('Tabel 4 ØJ'!F83/'Tabel 4F ØJ'!F83*100,"-")) -> 20 | G83: =IF(OR('Tabel 4F ØJ'!G83<5,'Tabel 4 ØJ'!G83<0.5),"-",IFERROR('Tabel 4 ØJ'!G83/'Tabel 4F ØJ'!G83*100,"-")) -> - | I83: =IF(OR('Tabel 4F ØJ'!I83<5,'Tabel 4 ØJ'!I83<0.5),"-",IFERROR('Tabel 4 ØJ'!I83/'Tabel 4F ØJ'!I83*100,"-")) -> 12.5
A84: Teolog | C84: =IF(OR('Tabel 4F ØJ'!C84<5,'Tabel 4 ØJ'!C84<0.5),"-",IFERROR('Tabel 4 ØJ'!C84/'Tabel 4F ØJ'!C84*100,"-")) -> - | D84: =IF(OR('Tabel 4F ØJ'!D84<5,'Tabel 4 ØJ'!D84<0.5),"-",IFERROR('Tabel 4 ØJ'!D84/'Tabel 4F ØJ'!D84*100,"-")) -> - | E84: =IF(OR('Tabel 4F ØJ'!E84<5,'Tabel 4 ØJ'!E84<0.5),"-",IFERROR('Tabel 4 ØJ'!E84/'Tabel 4F ØJ'!E84*100,"-")) -> - | F84: =IF(OR('Tabel 4F ØJ'!F84<5,'Tabel 4 ØJ'!F84<0.5),"-",IFERROR('Tabel 4 ØJ'!F84/'Tabel 4F ØJ'!F84*100,"-")) -> - | G84: =IF(OR('Tabel 4F ØJ'!G84<5,'Tabel 4 ØJ'!G84<0.5),"-",IFERROR('Tabel 4 ØJ'!G84/'Tabel 4F ØJ'!G84*100,"-")) -> - | I84: =IF(OR('Tabel 4F ØJ'!I84<5,'Tabel 4 ØJ'!I84<0.5),"-",IFERROR('Tabel 4 ØJ'!I84/'Tabel 4F ØJ'!I84*100,"-")) -> -
A85: Psykolog | C85: =IF(OR('Tabel 4F ØJ'!C85<5,'Tabel 4 ØJ'!C85<0.5),"-",IFERROR('Tabel 4 ØJ'!C85/'Tabel 4F ØJ'!C85*100,"-")) -> 13.33333333 | D85: =IF(OR('Tabel 4F ØJ'!D85<5,'Tabel 4 ØJ'!D85<0.5),"-",IFERROR('Tabel 4 ØJ'!D85/'Tabel 4F ØJ'!D85*100,"-")) -> 8.823529412 | E85: =IF(OR('Tabel 4F ØJ'!E85<5,'Tabel 4 ØJ'!E85<0.5),"-",IFERROR('Tabel 4 ØJ'!E85/'Tabel 4F ØJ'!E85*100,"-")) -> 3.225806452 | F85: =IF(OR('Tabel 4F ØJ'!F85<5,'Tabel 4 ØJ'!F85<0.5),"-",IFERROR('Tabel 4 ØJ'!F85/'Tabel 4F ØJ'!F85*100,"-")) -> 14.28571429 | G85: =IF(OR('Tabel 4F ØJ'!G85<5,'Tabel 4 ØJ'!G85<0.5),"-",IFERROR('Tabel 4 ØJ'!G85/'Tabel 4F ØJ'!G85*100,"-")) -> - | I85: =IF(OR('Tabel 4F ØJ'!I85<5,'Tabel 4 ØJ'!I85<0.5),"-",IFERROR('Tabel 4 ØJ'!I85/'Tabel 4F ØJ'!I85*100,"-")) -> 7.608695652
A86: Jurist | C86: =IF(OR('Tabel 4F ØJ'!C86<5,'Tabel 4 ØJ'!C86<0.5),"-",IFERROR('Tabel 4 ØJ'!C86/'Tabel 4F ØJ'!C86*100,"-")) -> - | D86: =IF(OR('Tabel 4F ØJ'!D86<5,'Tabel 4 ØJ'!D86<0.5),"-",IFERROR('Tabel 4 ØJ'!D86/'Tabel 4F ØJ'!D86*100,"-")) -> - | E86: =IF(OR('Tabel 4F ØJ'!E86<5,'Tabel 4 ØJ'!E86<0.5),"-",IFERROR('Tabel 4 ØJ'!E86/'Tabel 4F ØJ'!E86*100,"-")) -> - | F86: =IF(OR('Tabel 4F ØJ'!F86<5,'Tabel 4 ØJ'!F86<0.5),"-",IFERROR('Tabel 4 ØJ'!F86/'Tabel 4F ØJ'!F86*100,"-")) -> - | G86: =IF(OR('Tabel 4F ØJ'!G86<5,'Tabel 4 ØJ'!G86<0.5),"-",IFERROR('Tabel 4 ØJ'!G86/'Tabel 4F ØJ'!G86*100,"-")) -> 14.28571429 | I86: =IF(OR('Tabel 4F ØJ'!I86<5,'Tabel 4 ØJ'!I86<0.5),"-",IFERROR('Tabel 4 ØJ'!I86/'Tabel 4F ØJ'!I86*100,"-")) -> 0.6802721088
A87: Økonom | C87: =IF(OR('Tabel 4F ØJ'!C87<5,'Tabel 4 ØJ'!C87<0.5),"-",IFERROR('Tabel 4 ØJ'!C87/'Tabel 4F ØJ'!C87*100,"-")) -> - | D87: =IF(OR('Tabel 4F ØJ'!D87<5,'Tabel 4 ØJ'!D87<0.5),"-",IFERROR('Tabel 4 ØJ'!D87/'Tabel 4F ØJ'!D87*100,"-")) -> - | E87: =IF(OR('Tabel 4F ØJ'!E87<5,'Tabel 4 ØJ'!E87<0.5),"-",IFERROR('Tabel 4 ØJ'!E87/'Tabel 4F ØJ'!E87*100,"-")) -> - | F87: =IF(OR('Tabel 4F ØJ'!F87<5,'Tabel 4 ØJ'!F87<0.5),"-",IFERROR('Tabel 4 ØJ'!F87/'Tabel 4F ØJ'!F87*100,"-")) -> - | G87: =IF(OR('Tabel 4F ØJ'!G87<5,'Tabel 4 ØJ'!G87<0.5),"-",IFERROR('Tabel 4 ØJ'!G87/'Tabel 4F ØJ'!G87*100,"-")) -> - | I87: =IF(OR('Tabel 4F ØJ'!I87<5,'Tabel 4 ØJ'!I87<0.5),"-",IFERROR('Tabel 4 ØJ'!I87/'Tabel 4F ØJ'!I87*100,"-")) -> -
A88: Samf. Adm. | C88: =IF(OR('Tabel 4F ØJ'!C88<5,'Tabel 4 ØJ'!C88<0.5),"-",IFERROR('Tabel 4 ØJ'!C88/'Tabel 4F ØJ'!C88*100,"-")) -> 22.72727273 | D88: =IF(OR('Tabel 4F ØJ'!D88<5,'Tabel 4 ØJ'!D88<0.5),"-",IFERROR('Tabel 4 ØJ'!D88/'Tabel 4F ØJ'!D88*100,"-")) -> 11.84210526 | E88: =IF(OR('Tabel 4F ØJ'!E88<5,'Tabel 4 ØJ'!E88<0.5),"-",IFERROR('Tabel 4 ØJ'!E88/'Tabel 4F ØJ'!E88*100,"-")) -> 1.724137931 | F88: =IF(OR('Tabel 4F ØJ'!F88<5,'Tabel 4 ØJ'!F88<0.5),"-",IFERROR('Tabel 4 ØJ'!F88/'Tabel 4F ØJ'!F88*100,"-")) -> - | G88: =IF(OR('Tabel 4F ØJ'!G88<5,'Tabel 4 ØJ'!G88<0.5),"-",IFERROR('Tabel 4 ØJ'!G88/'Tabel 4F ØJ'!G88*100,"-")) -> - | I88: =IF(OR('Tabel 4F ØJ'!I88<5,'Tabel 4 ØJ'!I88<0.5),"-",IFERROR('Tabel 4 ØJ'!I88/'Tabel 4F ØJ'!I88*100,"-")) -> 8.571428571
A89: Cand. Merc. | C89: =IF(OR('Tabel 4F ØJ'!C89<5,'Tabel 4 ØJ'!C89<0.5),"-",IFERROR('Tabel 4 ØJ'!C89/'Tabel 4F ØJ'!C89*100,"-")) -> 8.641975309 | D89: =IF(OR('Tabel 4F ØJ'!D89<5,'Tabel 4 ØJ'!D89<0.5),"-",IFERROR('Tabel 4 ØJ'!D89/'Tabel 4F ØJ'!D89*100,"-")) -> 3.465346535 | E89: =IF(OR('Tabel 4F ØJ'!E89<5,'Tabel 4 ØJ'!E89<0.5),"-",IFERROR('Tabel 4 ØJ'!E89/'Tabel 4F ØJ'!E89*100,"-")) -> 2.777777778 | F89: =IF(OR('Tabel 4F ØJ'!F89<5,'Tabel 4 ØJ'!F89<0.5),"-",IFERROR('Tabel 4 ØJ'!F89/'Tabel 4F ØJ'!F89*100,"-")) -> 4.6875 | G89: =IF(OR('Tabel 4F ØJ'!G89<5,'Tabel 4 ØJ'!G89<0.5),"-",IFERROR('Tabel 4 ØJ'!G89/'Tabel 4F ØJ'!G89*100,"-")) -> - | I89: =IF(OR('Tabel 4F ØJ'!I89<5,'Tabel 4 ØJ'!I89<0.5),"-",IFERROR('Tabel 4 ØJ'!I89/'Tabel 4F ØJ'!I89*100,"-")) -> 4.347826087
A90: HA | C90: =IF(OR('Tabel 4F ØJ'!C90<5,'Tabel 4 ØJ'!C90<0.5),"-",IFERROR('Tabel 4 ØJ'!C90/'Tabel 4F ØJ'!C90*100,"-")) -> 24.13793103 | D90: =IF(OR('Tabel 4F ØJ'!D90<5,'Tabel 4 ØJ'!D90<0.5),"-",IFERROR('Tabel 4 ØJ'!D90/'Tabel 4F ØJ'!D90*100,"-")) -> 11.11111111 | E90: =IF(OR('Tabel 4F ØJ'!E90<5,'Tabel 4 ØJ'!E90<0.5),"-",IFERROR('Tabel 4 ØJ'!E90/'Tabel 4F ØJ'!E90*100,"-")) -> 9.523809524 | F90: =IF(OR('Tabel 4F ØJ'!F90<5,'Tabel 4 ØJ'!F90<0.5),"-",IFERROR('Tabel 4 ØJ'!F90/'Tabel 4F ØJ'!F90*100,"-")) -> 4.545454545 | G90: =IF(OR('Tabel 4F ØJ'!G90<5,'Tabel 4 ØJ'!G90<0.5),"-",IFERROR('Tabel 4 ØJ'!G90/'Tabel 4F ØJ'!G90*100,"-")) -> 12.5 | I90: =IF(OR('Tabel 4F ØJ'!I90<5,'Tabel 4 ØJ'!I90<0.5),"-",IFERROR('Tabel 4 ØJ'!I90/'Tabel 4F ØJ'!I90*100,"-")) -> 13.26530612
A91: HD | C91: =IF(OR('Tabel 4F ØJ'!C91<5,'Tabel 4 ØJ'!C91<0.5),"-",IFERROR('Tabel 4 ØJ'!C91/'Tabel 4F ØJ'!C91*100,"-")) -> 16.66666667 | D91: =IF(OR('Tabel 4F ØJ'!D91<5,'Tabel 4 ØJ'!D91<0.5),"-",IFERROR('Tabel 4 ØJ'!D91/'Tabel 4F ØJ'!D91*100,"-")) -> 7.142857143 | E91: =IF(OR('Tabel 4F ØJ'!E91<5,'Tabel 4 ØJ'!E91<0.5),"-",IFERROR('Tabel 4 ØJ'!E91/'Tabel 4F ØJ'!E91*100,"-")) -> - | F91: =IF(OR('Tabel 4F ØJ'!F91<5,'Tabel 4 ØJ'!F91<0.5),"-",IFERROR('Tabel 4 ØJ'!F91/'Tabel 4F ØJ'!F91*100,"-")) -> 4.166666667 | G91: =IF(OR('Tabel 4F ØJ'!G91<5,'Tabel 4 ØJ'!G91<0.5),"-",IFERROR('Tabel 4 ØJ'!G91/'Tabel 4F ØJ'!G91*100,"-")) -> 14.28571429 | I91: =IF(OR('Tabel 4F ØJ'!I91<5,'Tabel 4 ØJ'!I91<0.5),"-",IFERROR('Tabel 4 ØJ'!I91/'Tabel 4F ØJ'!I91*100,"-")) -> 6.349206349
A92: Komm. og Sprog | C92: =IF(OR('Tabel 4F ØJ'!C92<5,'Tabel 4 ØJ'!C92<0.5),"-",IFERROR('Tabel 4 ØJ'!C92/'Tabel 4F ØJ'!C92*100,"-")) -> 7.692307692 | D92: =IF(OR('Tabel 4F ØJ'!D92<5,'Tabel 4 ØJ'!D92<0.5),"-",IFERROR('Tabel 4 ØJ'!D92/'Tabel 4F ØJ'!D92*100,"-")) -> - | E92: =IF(OR('Tabel 4F ØJ'!E92<5,'Tabel 4 ØJ'!E92<0.5),"-",IFERROR('Tabel 4 ØJ'!E92/'Tabel 4F ØJ'!E92*100,"-")) -> 7.142857143 | F92: =IF(OR('Tabel 4F ØJ'!F92<5,'Tabel 4 ØJ'!F92<0.5),"-",IFERROR('Tabel 4 ØJ'!F92/'Tabel 4F ØJ'!F92*100,"-")) -> 5 | G92: =IF(OR('Tabel 4F ØJ'!G92<5,'Tabel 4 ØJ'!G92<0.5),"-",IFERROR('Tabel 4 ØJ'!G92/'Tabel 4F ØJ'!G92*100,"-")) -> - | I92: =IF(OR('Tabel 4F ØJ'!I92<5,'Tabel 4 ØJ'!I92<0.5),"-",IFERROR('Tabel 4 ØJ'!I92/'Tabel 4F ØJ'!I92*100,"-")) -> 4.87804878
A93: Bygningskonst. | C93: =IF(OR('Tabel 4F ØJ'!C93<5,'Tabel 4 ØJ'!C93<0.5),"-",IFERROR('Tabel 4 ØJ'!C93/'Tabel 4F ØJ'!C93*100,"-")) -> 20.45454545 | D93: =IF(OR('Tabel 4F ØJ'!D93<5,'Tabel 4 ØJ'!D93<0.5),"-",IFERROR('Tabel 4 ØJ'!D93/'Tabel 4F ØJ'!D93*100,"-")) -> 4.918032787 | E93: =IF(OR('Tabel 4F ØJ'!E93<5,'Tabel 4 ØJ'!E93<0.5),"-",IFERROR('Tabel 4 ØJ'!E93/'Tabel 4F ØJ'!E93*100,"-")) -> 2.325581395 | F93: =IF(OR('Tabel 4F ØJ'!F93<5,'Tabel 4 ØJ'!F93<0.5),"-",IFERROR('Tabel 4 ØJ'!F93/'Tabel 4F ØJ'!F93*100,"-")) -> - | G93: =IF(OR('Tabel 4F ØJ'!G93<5,'Tabel 4 ØJ'!G93<0.5),"-",IFERROR('Tabel 4 ØJ'!G93/'Tabel 4F ØJ'!G93*100,"-")) -> - | I93: =IF(OR('Tabel 4F ØJ'!I93<5,'Tabel 4 ØJ'!I93<0.5),"-",IFERROR('Tabel 4 ØJ'!I93/'Tabel 4F ØJ'!I93*100,"-")) -> 6.451612903
A94: Cand. IT. | C94: =IF(OR('Tabel 4F ØJ'!C94<5,'Tabel 4 ØJ'!C94<0.5),"-",IFERROR('Tabel 4 ØJ'!C94/'Tabel 4F ØJ'!C94*100,"-")) -> 25 | D94: =IF(OR('Tabel 4F ØJ'!D94<5,'Tabel 4 ØJ'!D94<0.5),"-",IFERROR('Tabel 4 ØJ'!D94/'Tabel 4F ØJ'!D94*100,"-")) -> 11.11111111 | E94: =IF(OR('Tabel 4F ØJ'!E94<5,'Tabel 4 ØJ'!E94<0.5),"-",IFERROR('Tabel 4 ØJ'!E94/'Tabel 4F ØJ'!E94*100,"-")) -> 8.333333333 | F94: =IF(OR('Tabel 4F ØJ'!F94<5,'Tabel 4 ØJ'!F94<0.5),"-",IFERROR('Tabel 4 ØJ'!F94/'Tabel 4F ØJ'!F94*100,"-")) -> - | G94: =IF(OR('Tabel 4F ØJ'!G94<5,'Tabel 4 ØJ'!G94<0.5),"-",IFERROR('Tabel 4 ØJ'!G94/'Tabel 4F ØJ'!G94*100,"-")) -> - | I94: =IF(OR('Tabel 4F ØJ'!I94<5,'Tabel 4 ØJ'!I94<0.5),"-",IFERROR('Tabel 4 ØJ'!I94/'Tabel 4F ØJ'!I94*100,"-")) -> 13.15789474
A95: Bac. Samf. | C95: =IF(OR('Tabel 4F ØJ'!C95<5,'Tabel 4 ØJ'!C95<0.5),"-",IFERROR('Tabel 4 ØJ'!C95/'Tabel 4F ØJ'!C95*100,"-")) -> - | D95: =IF(OR('Tabel 4F ØJ'!D95<5,'Tabel 4 ØJ'!D95<0.5),"-",IFERROR('Tabel 4 ØJ'!D95/'Tabel 4F ØJ'!D95*100,"-")) -> - | E95: =IF(OR('Tabel 4F ØJ'!E95<5,'Tabel 4 ØJ'!E95<0.5),"-",IFERROR('Tabel 4 ØJ'!E95/'Tabel 4F ØJ'!E95*100,"-")) -> 16.66666667 | F95: =IF(OR('Tabel 4F ØJ'!F95<5,'Tabel 4 ØJ'!F95<0.5),"-",IFERROR('Tabel 4 ØJ'!F95/'Tabel 4F ØJ'!F95*100,"-")) -> - | G95: =IF(OR('Tabel 4F ØJ'!G95<5,'Tabel 4 ØJ'!G95<0.5),"-",IFERROR('Tabel 4 ØJ'!G95/'Tabel 4F ØJ'!G95*100,"-")) -> - | I95: =IF(OR('Tabel 4F ØJ'!I95<5,'Tabel 4 ØJ'!I95<0.5),"-",IFERROR('Tabel 4 ØJ'!I95/'Tabel 4F ØJ'!I95*100,"-")) -> 13.33333333
A96: Bac. Hum. | C96: =IF(OR('Tabel 4F ØJ'!C96<5,'Tabel 4 ØJ'!C96<0.5),"-",IFERROR('Tabel 4 ØJ'!C96/'Tabel 4F ØJ'!C96*100,"-")) -> 37.5 | D96: =IF(OR('Tabel 4F ØJ'!D96<5,'Tabel 4 ØJ'!D96<0.5),"-",IFERROR('Tabel 4 ØJ'!D96/'Tabel 4F ØJ'!D96*100,"-")) -> 11.11111111 | E96: =IF(OR('Tabel 4F ØJ'!E96<5,'Tabel 4 ØJ'!E96<0.5),"-",IFERROR('Tabel 4 ØJ'!E96/'Tabel 4F ØJ'!E96*100,"-")) -> 15.38461538 | F96: =IF(OR('Tabel 4F ØJ'!F96<5,'Tabel 4 ØJ'!F96<0.5),"-",IFERROR('Tabel 4 ØJ'!F96/'Tabel 4F ØJ'!F96*100,"-")) -> 14.28571429 | G96: =IF(OR('Tabel 4F ØJ'!G96<5,'Tabel 4 ØJ'!G96<0.5),"-",IFERROR('Tabel 4 ØJ'!G96/'Tabel 4F ØJ'!G96*100,"-")) -> - | I96: =IF(OR('Tabel 4F ØJ'!I96<5,'Tabel 4 ØJ'!I96<0.5),"-",IFERROR('Tabel 4 ØJ'!I96/'Tabel 4F ØJ'!I96*100,"-")) -> 17.5
A97: Bac. Nat. | C97: =IF(OR('Tabel 4F ØJ'!C97<5,'Tabel 4 ØJ'!C97<0.5),"-",IFERROR('Tabel 4 ØJ'!C97/'Tabel 4F ØJ'!C97*100,"-")) -> 28.35820896 | D97: =IF(OR('Tabel 4F ØJ'!D97<5,'Tabel 4 ØJ'!D97<0.5),"-",IFERROR('Tabel 4 ØJ'!D97/'Tabel 4F ØJ'!D97*100,"-")) -> 13.51351351 | E97: =IF(OR('Tabel 4F ØJ'!E97<5,'Tabel 4 ØJ'!E97<0.5),"-",IFERROR('Tabel 4 ØJ'!E97/'Tabel 4F ØJ'!E97*100,"-")) -> 16.66666667 | F97: =IF(OR('Tabel 4F ØJ'!F97<5,'Tabel 4 ØJ'!F97<0.5),"-",IFERROR('Tabel 4 ØJ'!F97/'Tabel 4F ØJ'!F97*100,"-")) -> - | G97: =IF(OR('Tabel 4F ØJ'!G97<5,'Tabel 4 ØJ'!G97<0.5),"-",IFERROR('Tabel 4 ØJ'!G97/'Tabel 4F ØJ'!G97*100,"-")) -> - | I97: =IF(OR('Tabel 4F ØJ'!I97<5,'Tabel 4 ØJ'!I97<0.5),"-",IFERROR('Tabel 4 ØJ'!I97/'Tabel 4F ØJ'!I97*100,"-")) -> 22.03389831
A98: Andre | C98: =IF(OR('Tabel 4F ØJ'!C98<5,'Tabel 4 ØJ'!C98<0.5),"-",IFERROR('Tabel 4 ØJ'!C98/'Tabel 4F ØJ'!C98*100,"-")) -> 28.33333333 | D98: =IF(OR('Tabel 4F ØJ'!D98<5,'Tabel 4 ØJ'!D98<0.5),"-",IFERROR('Tabel 4 ØJ'!D98/'Tabel 4F ØJ'!D98*100,"-")) -> 5.319148936 | E98: =IF(OR('Tabel 4F ØJ'!E98<5,'Tabel 4 ØJ'!E98<0.5),"-",IFERROR('Tabel 4 ØJ'!E98/'Tabel 4F ØJ'!E98*100,"-")) -> 8.163265306 | F98: =IF(OR('Tabel 4F ØJ'!F98<5,'Tabel 4 ØJ'!F98<0.5),"-",IFERROR('Tabel 4 ØJ'!F98/'Tabel 4F ØJ'!F98*100,"-")) -> 6.666666667 | G98: =IF(OR('Tabel 4F ØJ'!G98<5,'Tabel 4 ØJ'!G98<0.5),"-",IFERROR('Tabel 4 ØJ'!G98/'Tabel 4F ØJ'!G98*100,"-")) -> - | I98: =IF(OR('Tabel 4F ØJ'!I98<5,'Tabel 4 ØJ'!I98<0.5),"-",IFERROR('Tabel 4 ØJ'!I98/'Tabel 4F ØJ'!I98*100,"-")) -> 11.47540984
A100: Total | C100: =IF(OR('Tabel 4F ØJ'!C100<5,'Tabel 4 ØJ'!C100<0.5),"-",IFERROR('Tabel 4 ØJ'!C100/'Tabel 4F ØJ'!C100*100,"-")) -> 16.87763713 | D100: =IF(OR('Tabel 4F ØJ'!D100<5,'Tabel 4 ØJ'!D100<0.5),"-",IFERROR('Tabel 4 ØJ'!D100/'Tabel 4F ØJ'!D100*100,"-")) -> 5.63286945 | E100: =IF(OR('Tabel 4F ØJ'!E100<5,'Tabel 4 ØJ'!E100<0.5),"-",IFERROR('Tabel 4 ØJ'!E100/'Tabel 4F ØJ'!E100*100,"-")) -> 2.416212003 | F100: =IF(OR('Tabel 4F ØJ'!F100<5,'Tabel 4 ØJ'!F100<0.5),"-",IFERROR('Tabel 4 ØJ'!F100/'Tabel 4F ØJ'!F100*100,"-")) -> 2.203856749 | G100: =IF(OR('Tabel 4F ØJ'!G100<5,'Tabel 4 ØJ'!G100<0.5),"-",IFERROR('Tabel 4 ØJ'!G100/'Tabel 4F ØJ'!G100*100,"-")) -> 4.329004329 | I100: =IF(OR('Tabel 4F ØJ'!I100<5,'Tabel 4 ØJ'!I100<0.5),"-",IFERROR('Tabel 4 ØJ'!I100/'Tabel 4F ØJ'!I100*100,"-")) -> 5.874439462
A102: Ingeniører i alt | C102: =IF(OR('Tabel 4F ØJ'!C102<5,'Tabel 4 ØJ'!C102<0.5),"-",IFERROR('Tabel 4 ØJ'!C102/'Tabel 4F ØJ'!C102*100,"-")) -> 14.56953642 | D102: =IF(OR('Tabel 4F ØJ'!D102<5,'Tabel 4 ØJ'!D102<0.5),"-",IFERROR('Tabel 4 ØJ'!D102/'Tabel 4F ØJ'!D102*100,"-")) -> 4.034582133 | E102: =IF(OR('Tabel 4F ØJ'!E102<5,'Tabel 4 ØJ'!E102<0.5),"-",IFERROR('Tabel 4 ØJ'!E102/'Tabel 4F ØJ'!E102*100,"-")) -> 0.2570694087 | F102: =IF(OR('Tabel 4F ØJ'!F102<5,'Tabel 4 ØJ'!F102<0.5),"-",IFERROR('Tabel 4 ØJ'!F102/'Tabel 4F ØJ'!F102*100,"-")) -> 0.7168458781 | G102: =IF(OR('Tabel 4F ØJ'!G102<5,'Tabel 4 ØJ'!G102<0.5),"-",IFERROR('Tabel 4 ØJ'!G102/'Tabel 4F ØJ'!G102*100,"-")) -> 2.272727273 | I102: =IF(OR('Tabel 4F ØJ'!I102<5,'Tabel 4 ØJ'!I102<0.5),"-",IFERROR('Tabel 4 ØJ'!I102/'Tabel 4F ØJ'!I102*100,"-")) -> 3.26953748
A103: Magistre i alt | C103: =IF(OR('Tabel 4F ØJ'!C103<5,'Tabel 4 ØJ'!C103<0.5),"-",IFERROR('Tabel 4 ØJ'!C103/'Tabel 4F ØJ'!C103*100,"-")) -> 22 | D103: =IF(OR('Tabel 4F ØJ'!D103<5,'Tabel 4 ØJ'!D103<0.5),"-",IFERROR('Tabel 4 ØJ'!D103/'Tabel 4F ØJ'!D103*100,"-")) -> 11.16751269 | E103: =IF(OR('Tabel 4F ØJ'!E103<5,'Tabel 4 ØJ'!E103<0.5),"-",IFERROR('Tabel 4 ØJ'!E103/'Tabel 4F ØJ'!E103*100,"-")) -> 2.702702703 | F103: =IF(OR('Tabel 4F ØJ'!F103<5,'Tabel 4 ØJ'!F103<0.5),"-",IFERROR('Tabel 4 ØJ'!F103/'Tabel 4F ØJ'!F103*100,"-")) -> 1.960784314 | G103: =IF(OR('Tabel 4F ØJ'!G103<5,'Tabel 4 ØJ'!G103<0.5),"-",IFERROR('Tabel 4 ØJ'!G103/'Tabel 4F ØJ'!G103*100,"-")) -> 6.25 | I103: =IF(OR('Tabel 4F ØJ'!I103<5,'Tabel 4 ØJ'!I103<0.5),"-",IFERROR('Tabel 4 ØJ'!I103/'Tabel 4F ØJ'!I103*100,"-")) -> 7.131011609
A104: DJØF'ere i alt | C104: =IF(OR('Tabel 4F ØJ'!C104<5,'Tabel 4 ØJ'!C104<0.5),"-",IFERROR('Tabel 4 ØJ'!C104/'Tabel 4F ØJ'!C104*100,"-")) -> 11.30952381 | D104: =IF(OR('Tabel 4F ØJ'!D104<5,'Tabel 4 ØJ'!D104<0.5),"-",IFERROR('Tabel 4 ØJ'!D104/'Tabel 4F ØJ'!D104*100,"-")) -> 4.812834225 | E104: =IF(OR('Tabel 4F ØJ'!E104<5,'Tabel 4 ØJ'!E104<0.5),"-",IFERROR('Tabel 4 ØJ'!E104/'Tabel 4F ØJ'!E104*100,"-")) -> 2.419354839 | F104: =IF(OR('Tabel 4F ØJ'!F104<5,'Tabel 4 ØJ'!F104<0.5),"-",IFERROR('Tabel 4 ØJ'!F104/'Tabel 4F ØJ'!F104*100,"-")) -> 3.100775194 | G104: =IF(OR('Tabel 4F ØJ'!G104<5,'Tabel 4 ØJ'!G104<0.5),"-",IFERROR('Tabel 4 ØJ'!G104/'Tabel 4F ØJ'!G104*100,"-")) -> 7.692307692 | I104: =IF(OR('Tabel 4F ØJ'!I104<5,'Tabel 4 ØJ'!I104<0.5),"-",IFERROR('Tabel 4 ØJ'!I104/'Tabel 4F ØJ'!I104*100,"-")) -> 5.185185185
A111: Syddjurs
C113: Under 30 år | D113: 30 - 39 år | E113: 40 - 49 år | F113: 50 - 59 år | G113: Over 60 år | I113: I alt
A115: Civ. ing. | C115: =IF(OR('Tabel 4F ØJ'!C115<5,'Tabel 4 ØJ'!C115<0.5),"-",IFERROR('Tabel 4 ØJ'!C115/'Tabel 4F ØJ'!C115*100,"-")) -> - | D115: =IF(OR('Tabel 4F ØJ'!D115<5,'Tabel 4 ØJ'!D115<0.5),"-",IFERROR('Tabel 4 ØJ'!D115/'Tabel 4F ØJ'!D115*100,"-")) -> 3.703703704 | E115: =IF(OR('Tabel 4F ØJ'!E115<5,'Tabel 4 ØJ'!E115<0.5),"-",IFERROR('Tabel 4 ØJ'!E115/'Tabel 4F ØJ'!E115*100,"-")) -> - | F115: =IF(OR('Tabel 4F ØJ'!F115<5,'Tabel 4 ØJ'!F115<0.5),"-",IFERROR('Tabel 4 ØJ'!F115/'Tabel 4F ØJ'!F115*100,"-")) -> 3.571428571 | G115: =IF(OR('Tabel 4F ØJ'!G115<5,'Tabel 4 ØJ'!G115<0.5),"-",IFERROR('Tabel 4 ØJ'!G115/'Tabel 4F ØJ'!G115*100,"-")) -> - | I115: =IF(OR('Tabel 4F ØJ'!I115<5,'Tabel 4 ØJ'!I115<0.5),"-",IFERROR('Tabel 4 ØJ'!I115/'Tabel 4F ØJ'!I115*100,"-")) -> 3.448275862
A116: Diplom ing. | C116: =IF(OR('Tabel 4F ØJ'!C116<5,'Tabel 4 ØJ'!C116<0.5),"-",IFERROR('Tabel 4 ØJ'!C116/'Tabel 4F ØJ'!C116*100,"-")) -> 16.66666667 | D116: =IF(OR('Tabel 4F ØJ'!D116<5,'Tabel 4 ØJ'!D116<0.5),"-",IFERROR('Tabel 4 ØJ'!D116/'Tabel 4F ØJ'!D116*100,"-")) -> - | E116: =IF(OR('Tabel 4F ØJ'!E116<5,'Tabel 4 ØJ'!E116<0.5),"-",IFERROR('Tabel 4 ØJ'!E116/'Tabel 4F ØJ'!E116*100,"-")) -> 1.515151515 | F116: =IF(OR('Tabel 4F ØJ'!F116<5,'Tabel 4 ØJ'!F116<0.5),"-",IFERROR('Tabel 4 ØJ'!F116/'Tabel 4F ØJ'!F116*100,"-")) -> 1.086956522 | G116: =IF(OR('Tabel 4F ØJ'!G116<5,'Tabel 4 ØJ'!G116<0.5),"-",IFERROR('Tabel 4 ØJ'!G116/'Tabel 4F ØJ'!G116*100,"-")) -> 3.333333333 | I116: =IF(OR('Tabel 4F ØJ'!I116<5,'Tabel 4 ØJ'!I116<0.5),"-",IFERROR('Tabel 4 ØJ'!I116/'Tabel 4F ØJ'!I116*100,"-")) -> 2.164502165
A117: Cand. Scient. Tek | C117: =IF(OR('Tabel 4F ØJ'!C117<5,'Tabel 4 ØJ'!C117<0.5),"-",IFERROR('Tabel 4 ØJ'!C117/'Tabel 4F ØJ'!C117*100,"-")) -> 16.66666667 | D117: =IF(OR('Tabel 4F ØJ'!D117<5,'Tabel 4 ØJ'!D117<0.5),"-",IFERROR('Tabel 4 ØJ'!D117/'Tabel 4F ØJ'!D117*100,"-")) -> 5.128205128 | E117: =IF(OR('Tabel 4F ØJ'!E117<5,'Tabel 4 ØJ'!E117<0.5),"-",IFERROR('Tabel 4 ØJ'!E117/'Tabel 4F ØJ'!E117*100,"-")) -> 5.882352941 | F117: =IF(OR('Tabel 4F ØJ'!F117<5,'Tabel 4 ØJ'!F117<0.5),"-",IFERROR('Tabel 4 ØJ'!F117/'Tabel 4F ØJ'!F117*100,"-")) -> - | G117: =IF(OR('Tabel 4F ØJ'!G117<5,'Tabel 4 ØJ'!G117<0.5),"-",IFERROR('Tabel 4 ØJ'!G117/'Tabel 4F ØJ'!G117*100,"-")) -> - | I117: =IF(OR('Tabel 4F ØJ'!I117<5,'Tabel 4 ØJ'!I117<0.5),"-",IFERROR('Tabel 4 ØJ'!I117/'Tabel 4F ØJ'!I117*100,"-")) -> 8.450704225
A118: MA. Hum. | C118: =IF(OR('Tabel 4F ØJ'!C118<5,'Tabel 4 ØJ'!C118<0.5),"-",IFERROR('Tabel 4 ØJ'!C118/'Tabel 4F ØJ'!C118*100,"-")) -> 66.66666667 | D118: =IF(OR('Tabel 4F ØJ'!D118<5,'Tabel 4 ØJ'!D118<0.5),"-",IFERROR('Tabel 4 ØJ'!D118/'Tabel 4F ØJ'!D118*100,"-")) -> 17.58241758 | E118: =IF(OR('Tabel 4F ØJ'!E118<5,'Tabel 4 ØJ'!E118<0.5),"-",IFERROR('Tabel 4 ØJ'!E118/'Tabel 4F ØJ'!E118*100,"-")) -> 3.409090909 | F118: =IF(OR('Tabel 4F ØJ'!F118<5,'Tabel 4 ØJ'!F118<0.5),"-",IFERROR('Tabel 4 ØJ'!F118/'Tabel 4F ØJ'!F118*100,"-")) -> 2 | G118: =IF(OR('Tabel 4F ØJ'!G118<5,'Tabel 4 ØJ'!G118<0.5),"-",IFERROR('Tabel 4 ØJ'!G118/'Tabel 4F ØJ'!G118*100,"-")) -> 15.78947368 | I118: =IF(OR('Tabel 4F ØJ'!I118<5,'Tabel 4 ØJ'!I118<0.5),"-",IFERROR('Tabel 4 ØJ'!I118/'Tabel 4F ØJ'!I118*100,"-")) -> 10.62992126
A119: MA. Nat. | C119: =IF(OR('Tabel 4F ØJ'!C119<5,'Tabel 4 ØJ'!C119<0.5),"-",IFERROR('Tabel 4 ØJ'!C119/'Tabel 4F ØJ'!C119*100,"-")) -> - | D119: =IF(OR('Tabel 4F ØJ'!D119<5,'Tabel 4 ØJ'!D119<0.5),"-",IFERROR('Tabel 4 ØJ'!D119/'Tabel 4F ØJ'!D119*100,"-")) -> 9.523809524 | E119: =IF(OR('Tabel 4F ØJ'!E119<5,'Tabel 4 ØJ'!E119<0.5),"-",IFERROR('Tabel 4 ØJ'!E119/'Tabel 4F ØJ'!E119*100,"-")) -> 2.941176471 | F119: =IF(OR('Tabel 4F ØJ'!F119<5,'Tabel 4 ØJ'!F119<0.5),"-",IFERROR('Tabel 4 ØJ'!F119/'Tabel 4F ØJ'!F119*100,"-")) -> 2.564102564 | G119: =IF(OR('Tabel 4F ØJ'!G119<5,'Tabel 4 ØJ'!G119<0.5),"-",IFERROR('Tabel 4 ØJ'!G119/'Tabel 4F ØJ'!G119*100,"-")) -> 10 | I119: =IF(OR('Tabel 4F ØJ'!I119<5,'Tabel 4 ØJ'!I119<0.5),"-",IFERROR('Tabel 4 ØJ'!I119/'Tabel 4F ØJ'!I119*100,"-")) -> 5.172413793
A120: MA. Ph.d. | C120: =IF(OR('Tabel 4F ØJ'!C120<5,'Tabel 4 ØJ'!C120<0.5),"-",IFERROR('Tabel 4 ØJ'!C120/'Tabel 4F ØJ'!C120*100,"-")) -> - | D120: =IF(OR('Tabel 4F ØJ'!D120<5,'Tabel 4 ØJ'!D120<0.5),"-",IFERROR('Tabel 4 ØJ'!D120/'Tabel 4F ØJ'!D120*100,"-")) -> - | E120: =IF(OR('Tabel 4F ØJ'!E120<5,'Tabel 4 ØJ'!E120<0.5),"-",IFERROR('Tabel 4 ØJ'!E120/'Tabel 4F ØJ'!E120*100,"-")) -> 9.090909091 | F120: =IF(OR('Tabel 4F ØJ'!F120<5,'Tabel 4 ØJ'!F120<0.5),"-",IFERROR('Tabel 4 ØJ'!F120/'Tabel 4F ØJ'!F120*100,"-")) -> - | G120: =IF(OR('Tabel 4F ØJ'!G120<5,'Tabel 4 ØJ'!G120<0.5),"-",IFERROR('Tabel 4 ØJ'!G120/'Tabel 4F ØJ'!G120*100,"-")) -> - | I120: =IF(OR('Tabel 4F ØJ'!I120<5,'Tabel 4 ØJ'!I120<0.5),"-",IFERROR('Tabel 4 ØJ'!I120/'Tabel 4F ØJ'!I120*100,"-")) -> 4.347826087
A121: MA. Samf. | C121: =IF(OR('Tabel 4F ØJ'!C121<5,'Tabel 4 ØJ'!C121<0.5),"-",IFERROR('Tabel 4 ØJ'!C121/'Tabel 4F ØJ'!C121*100,"-")) -> - | D121: =IF(OR('Tabel 4F ØJ'!D121<5,'Tabel 4 ØJ'!D121<0.5),"-",IFERROR('Tabel 4 ØJ'!D121/'Tabel 4F ØJ'!D121*100,"-")) -> 22.72727273 | E121: =IF(OR('Tabel 4F ØJ'!E121<5,'Tabel 4 ØJ'!E121<0.5),"-",IFERROR('Tabel 4 ØJ'!E121/'Tabel 4F ØJ'!E121*100,"-")) -> - | F121: =IF(OR('Tabel 4F ØJ'!F121<5,'Tabel 4 ØJ'!F121<0.5),"-",IFERROR('Tabel 4 ØJ'!F121/'Tabel 4F ØJ'!F121*100,"-")) -> - | G121: =IF(OR('Tabel 4F ØJ'!G121<5,'Tabel 4 ØJ'!G121<0.5),"-",IFERROR('Tabel 4 ØJ'!G121/'Tabel 4F ØJ'!G121*100,"-")) -> - | I121: =IF(OR('Tabel 4F ØJ'!I121<5,'Tabel 4 ØJ'!I121<0.5),"-",IFERROR('Tabel 4 ØJ'!I121/'Tabel 4F ØJ'!I121*100,"-")) -> 22.72727273
A122: Øvrige Mag. | C122: =IF(OR('Tabel 4F ØJ'!C122<5,'Tabel 4 ØJ'!C122<0.5),"-",IFERROR('Tabel 4 ØJ'!C122/'Tabel 4F ØJ'!C122*100,"-")) -> - | D122: =IF(OR('Tabel 4F ØJ'!D122<5,'Tabel 4 ØJ'!D122<0.5),"-",IFERROR('Tabel 4 ØJ'!D122/'Tabel 4F ØJ'!D122*100,"-")) -> 28.57142857 | E122: =IF(OR('Tabel 4F ØJ'!E122<5,'Tabel 4 ØJ'!E122<0.5),"-",IFERROR('Tabel 4 ØJ'!E122/'Tabel 4F ØJ'!E122*100,"-")) -> 20 | F122: =IF(OR('Tabel 4F ØJ'!F122<5,'Tabel 4 ØJ'!F122<0.5),"-",IFERROR('Tabel 4 ØJ'!F122/'Tabel 4F ØJ'!F122*100,"-")) -> - | G122: =IF(OR('Tabel 4F ØJ'!G122<5,'Tabel 4 ØJ'!G122<0.5),"-",IFERROR('Tabel 4 ØJ'!G122/'Tabel 4F ØJ'!G122*100,"-")) -> - | I122: =IF(OR('Tabel 4F ØJ'!I122<5,'Tabel 4 ØJ'!I122<0.5),"-",IFERROR('Tabel 4 ØJ'!I122/'Tabel 4F ØJ'!I122*100,"-")) -> 18.18181818
A123: Agronom | C123: =IF(OR('Tabel 4F ØJ'!C123<5,'Tabel 4 ØJ'!C123<0.5),"-",IFERROR('Tabel 4 ØJ'!C123/'Tabel 4F ØJ'!C123*100,"-")) -> - | D123: =IF(OR('Tabel 4F ØJ'!D123<5,'Tabel 4 ØJ'!D123<0.5),"-",IFERROR('Tabel 4 ØJ'!D123/'Tabel 4F ØJ'!D123*100,"-")) -> - | E123: =IF(OR('Tabel 4F ØJ'!E123<5,'Tabel 4 ØJ'!E123<0.5),"-",IFERROR('Tabel 4 ØJ'!E123/'Tabel 4F ØJ'!E123*100,"-")) -> - | F123: =IF(OR('Tabel 4F ØJ'!F123<5,'Tabel 4 ØJ'!F123<0.5),"-",IFERROR('Tabel 4 ØJ'!F123/'Tabel 4F ØJ'!F123*100,"-")) -> - | G123: =IF(OR('Tabel 4F ØJ'!G123<5,'Tabel 4 ØJ'!G123<0.5),"-",IFERROR('Tabel 4 ØJ'!G123/'Tabel 4F ØJ'!G123*100,"-")) -> - | I123: =IF(OR('Tabel 4F ØJ'!I123<5,'Tabel 4 ØJ'!I123<0.5),"-",IFERROR('Tabel 4 ØJ'!I123/'Tabel 4F ØJ'!I123*100,"-")) -> -
A124: Landsk. Arkt. | C124: =IF(OR('Tabel 4F ØJ'!C124<5,'Tabel 4 ØJ'!C124<0.5),"-",IFERROR('Tabel 4 ØJ'!C124/'Tabel 4F ØJ'!C124*100,"-")) -> - | D124: =IF(OR('Tabel 4F ØJ'!D124<5,'Tabel 4 ØJ'!D124<0.5),"-",IFERROR('Tabel 4 ØJ'!D124/'Tabel 4F ØJ'!D124*100,"-")) -> - | E124: =IF(OR('Tabel 4F ØJ'!E124<5,'Tabel 4 ØJ'!E124<0.5),"-",IFERROR('Tabel 4 ØJ'!E124/'Tabel 4F ØJ'!E124*100,"-")) -> - | F124: =IF(OR('Tabel 4F ØJ'!F124<5,'Tabel 4 ØJ'!F124<0.5),"-",IFERROR('Tabel 4 ØJ'!F124/'Tabel 4F ØJ'!F124*100,"-")) -> - | G124: =IF(OR('Tabel 4F ØJ'!G124<5,'Tabel 4 ØJ'!G124<0.5),"-",IFERROR('Tabel 4 ØJ'!G124/'Tabel 4F ØJ'!G124*100,"-")) -> - | I124: =IF(OR('Tabel 4F ØJ'!I124<5,'Tabel 4 ØJ'!I124<0.5),"-",IFERROR('Tabel 4 ØJ'!I124/'Tabel 4F ØJ'!I124*100,"-")) -> -
A125: Hortonom | C125: =IF(OR('Tabel 4F ØJ'!C125<5,'Tabel 4 ØJ'!C125<0.5),"-",IFERROR('Tabel 4 ØJ'!C125/'Tabel 4F ØJ'!C125*100,"-")) -> - | D125: =IF(OR('Tabel 4F ØJ'!D125<5,'Tabel 4 ØJ'!D125<0.5),"-",IFERROR('Tabel 4 ØJ'!D125/'Tabel 4F ØJ'!D125*100,"-")) -> - | E125: =IF(OR('Tabel 4F ØJ'!E125<5,'Tabel 4 ØJ'!E125<0.5),"-",IFERROR('Tabel 4 ØJ'!E125/'Tabel 4F ØJ'!E125*100,"-")) -> - | F125: =IF(OR('Tabel 4F ØJ'!F125<5,'Tabel 4 ØJ'!F125<0.5),"-",IFERROR('Tabel 4 ØJ'!F125/'Tabel 4F ØJ'!F125*100,"-")) -> - | G125: =IF(OR('Tabel 4F ØJ'!G125<5,'Tabel 4 ØJ'!G125<0.5),"-",IFERROR('Tabel 4 ØJ'!G125/'Tabel 4F ØJ'!G125*100,"-")) -> - | I125: =IF(OR('Tabel 4F ØJ'!I125<5,'Tabel 4 ØJ'!I125<0.5),"-",IFERROR('Tabel 4 ØJ'!I125/'Tabel 4F ØJ'!I125*100,"-")) -> -
A126: Forstkand. | C126: =IF(OR('Tabel 4F ØJ'!C126<5,'Tabel 4 ØJ'!C126<0.5),"-",IFERROR('Tabel 4 ØJ'!C126/'Tabel 4F ØJ'!C126*100,"-")) -> - | D126: =IF(OR('Tabel 4F ØJ'!D126<5,'Tabel 4 ØJ'!D126<0.5),"-",IFERROR('Tabel 4 ØJ'!D126/'Tabel 4F ØJ'!D126*100,"-")) -> - | E126: =IF(OR('Tabel 4F ØJ'!E126<5,'Tabel 4 ØJ'!E126<0.5),"-",IFERROR('Tabel 4 ØJ'!E126/'Tabel 4F ØJ'!E126*100,"-")) -> - | F126: =IF(OR('Tabel 4F ØJ'!F126<5,'Tabel 4 ØJ'!F126<0.5),"-",IFERROR('Tabel 4 ØJ'!F126/'Tabel 4F ØJ'!F126*100,"-")) -> - | G126: =IF(OR('Tabel 4F ØJ'!G126<5,'Tabel 4 ØJ'!G126<0.5),"-",IFERROR('Tabel 4 ØJ'!G126/'Tabel 4F ØJ'!G126*100,"-")) -> - | I126: =IF(OR('Tabel 4F ØJ'!I126<5,'Tabel 4 ØJ'!I126<0.5),"-",IFERROR('Tabel 4 ØJ'!I126/'Tabel 4F ØJ'!I126*100,"-")) -> -
A127: Jordbrugsakad. | C127: =IF(OR('Tabel 4F ØJ'!C127<5,'Tabel 4 ØJ'!C127<0.5),"-",IFERROR('Tabel 4 ØJ'!C127/'Tabel 4F ØJ'!C127*100,"-")) -> - | D127: =IF(OR('Tabel 4F ØJ'!D127<5,'Tabel 4 ØJ'!D127<0.5),"-",IFERROR('Tabel 4 ØJ'!D127/'Tabel 4F ØJ'!D127*100,"-")) -> - | E127: =IF(OR('Tabel 4F ØJ'!E127<5,'Tabel 4 ØJ'!E127<0.5),"-",IFERROR('Tabel 4 ØJ'!E127/'Tabel 4F ØJ'!E127*100,"-")) -> - | F127: =IF(OR('Tabel 4F ØJ'!F127<5,'Tabel 4 ØJ'!F127<0.5),"-",IFERROR('Tabel 4 ØJ'!F127/'Tabel 4F ØJ'!F127*100,"-")) -> - | G127: =IF(OR('Tabel 4F ØJ'!G127<5,'Tabel 4 ØJ'!G127<0.5),"-",IFERROR('Tabel 4 ØJ'!G127/'Tabel 4F ØJ'!G127*100,"-")) -> 11.11111111 | I127: =IF(OR('Tabel 4F ØJ'!I127<5,'Tabel 4 ØJ'!I127<0.5),"-",IFERROR('Tabel 4 ØJ'!I127/'Tabel 4F ØJ'!I127*100,"-")) -> 2.5
A128: Mejeriing. | C128: =IF(OR('Tabel 4F ØJ'!C128<5,'Tabel 4 ØJ'!C128<0.5),"-",IFERROR('Tabel 4 ØJ'!C128/'Tabel 4F ØJ'!C128*100,"-")) -> - | D128: =IF(OR('Tabel 4F ØJ'!D128<5,'Tabel 4 ØJ'!D128<0.5),"-",IFERROR('Tabel 4 ØJ'!D128/'Tabel 4F ØJ'!D128*100,"-")) -> - | E128: =IF(OR('Tabel 4F ØJ'!E128<5,'Tabel 4 ØJ'!E128<0.5),"-",IFERROR('Tabel 4 ØJ'!E128/'Tabel 4F ØJ'!E128*100,"-")) -> - | F128: =IF(OR('Tabel 4F ØJ'!F128<5,'Tabel 4 ØJ'!F128<0.5),"-",IFERROR('Tabel 4 ØJ'!F128/'Tabel 4F ØJ'!F128*100,"-")) -> - | G128: =IF(OR('Tabel 4F ØJ'!G128<5,'Tabel 4 ØJ'!G128<0.5),"-",IFERROR('Tabel 4 ØJ'!G128/'Tabel 4F ØJ'!G128*100,"-")) -> - | I128: =IF(OR('Tabel 4F ØJ'!I128<5,'Tabel 4 ØJ'!I128<0.5),"-",IFERROR('Tabel 4 ØJ'!I128/'Tabel 4F ØJ'!I128*100,"-")) -> -
A129: Levn.m.kand. | C129: =IF(OR('Tabel 4F ØJ'!C129<5,'Tabel 4 ØJ'!C129<0.5),"-",IFERROR('Tabel 4 ØJ'!C129/'Tabel 4F ØJ'!C129*100,"-")) -> - | D129: =IF(OR('Tabel 4F ØJ'!D129<5,'Tabel 4 ØJ'!D129<0.5),"-",IFERROR('Tabel 4 ØJ'!D129/'Tabel 4F ØJ'!D129*100,"-")) -> - | E129: =IF(OR('Tabel 4F ØJ'!E129<5,'Tabel 4 ØJ'!E129<0.5),"-",IFERROR('Tabel 4 ØJ'!E129/'Tabel 4F ØJ'!E129*100,"-")) -> - | F129: =IF(OR('Tabel 4F ØJ'!F129<5,'Tabel 4 ØJ'!F129<0.5),"-",IFERROR('Tabel 4 ØJ'!F129/'Tabel 4F ØJ'!F129*100,"-")) -> - | G129: =IF(OR('Tabel 4F ØJ'!G129<5,'Tabel 4 ØJ'!G129<0.5),"-",IFERROR('Tabel 4 ØJ'!G129/'Tabel 4F ØJ'!G129*100,"-")) -> - | I129: =IF(OR('Tabel 4F ØJ'!I129<5,'Tabel 4 ØJ'!I129<0.5),"-",IFERROR('Tabel 4 ØJ'!I129/'Tabel 4F ØJ'!I129*100,"-")) -> -
A130: Dyrlæge | C130: =IF(OR('Tabel 4F ØJ'!C130<5,'Tabel 4 ØJ'!C130<0.5),"-",IFERROR('Tabel 4 ØJ'!C130/'Tabel 4F ØJ'!C130*100,"-")) -> - | D130: =IF(OR('Tabel 4F ØJ'!D130<5,'Tabel 4 ØJ'!D130<0.5),"-",IFERROR('Tabel 4 ØJ'!D130/'Tabel 4F ØJ'!D130*100,"-")) -> - | E130: =IF(OR('Tabel 4F ØJ'!E130<5,'Tabel 4 ØJ'!E130<0.5),"-",IFERROR('Tabel 4 ØJ'!E130/'Tabel 4F ØJ'!E130*100,"-")) -> - | F130: =IF(OR('Tabel 4F ØJ'!F130<5,'Tabel 4 ØJ'!F130<0.5),"-",IFERROR('Tabel 4 ØJ'!F130/'Tabel 4F ØJ'!F130*100,"-")) -> - | G130: =IF(OR('Tabel 4F ØJ'!G130<5,'Tabel 4 ØJ'!G130<0.5),"-",IFERROR('Tabel 4 ØJ'!G130/'Tabel 4F ØJ'!G130*100,"-")) -> - | I130: =IF(OR('Tabel 4F ØJ'!I130<5,'Tabel 4 ØJ'!I130<0.5),"-",IFERROR('Tabel 4 ØJ'!I130/'Tabel 4F ØJ'!I130*100,"-")) -> -
A131: Farmaceut | C131: =IF(OR('Tabel 4F ØJ'!C131<5,'Tabel 4 ØJ'!C131<0.5),"-",IFERROR('Tabel 4 ØJ'!C131/'Tabel 4F ØJ'!C131*100,"-")) -> - | D131: =IF(OR('Tabel 4F ØJ'!D131<5,'Tabel 4 ØJ'!D131<0.5),"-",IFERROR('Tabel 4 ØJ'!D131/'Tabel 4F ØJ'!D131*100,"-")) -> - | E131: =IF(OR('Tabel 4F ØJ'!E131<5,'Tabel 4 ØJ'!E131<0.5),"-",IFERROR('Tabel 4 ØJ'!E131/'Tabel 4F ØJ'!E131*100,"-")) -> - | F131: =IF(OR('Tabel 4F ØJ'!F131<5,'Tabel 4 ØJ'!F131<0.5),"-",IFERROR('Tabel 4 ØJ'!F131/'Tabel 4F ØJ'!F131*100,"-")) -> - | G131: =IF(OR('Tabel 4F ØJ'!G131<5,'Tabel 4 ØJ'!G131<0.5),"-",IFERROR('Tabel 4 ØJ'!G131/'Tabel 4F ØJ'!G131*100,"-")) -> - | I131: =IF(OR('Tabel 4F ØJ'!I131<5,'Tabel 4 ØJ'!I131<0.5),"-",IFERROR('Tabel 4 ØJ'!I131/'Tabel 4F ØJ'!I131*100,"-")) -> -
A132: Læge | C132: =IF(OR('Tabel 4F ØJ'!C132<5,'Tabel 4 ØJ'!C132<0.5),"-",IFERROR('Tabel 4 ØJ'!C132/'Tabel 4F ØJ'!C132*100,"-")) -> - | D132: =IF(OR('Tabel 4F ØJ'!D132<5,'Tabel 4 ØJ'!D132<0.5),"-",IFERROR('Tabel 4 ØJ'!D132/'Tabel 4F ØJ'!D132*100,"-")) -> - | E132: =IF(OR('Tabel 4F ØJ'!E132<5,'Tabel 4 ØJ'!E132<0.5),"-",IFERROR('Tabel 4 ØJ'!E132/'Tabel 4F ØJ'!E132*100,"-")) -> - | F132: =IF(OR('Tabel 4F ØJ'!F132<5,'Tabel 4 ØJ'!F132<0.5),"-",IFERROR('Tabel 4 ØJ'!F132/'Tabel 4F ØJ'!F132*100,"-")) -> - | G132: =IF(OR('Tabel 4F ØJ'!G132<5,'Tabel 4 ØJ'!G132<0.5),"-",IFERROR('Tabel 4 ØJ'!G132/'Tabel 4F ØJ'!G132*100,"-")) -> - | I132: =IF(OR('Tabel 4F ØJ'!I132<5,'Tabel 4 ØJ'!I132<0.5),"-",IFERROR('Tabel 4 ØJ'!I132/'Tabel 4F ØJ'!I132*100,"-")) -> -
A133: Tandlæge | C133: =IF(OR('Tabel 4F ØJ'!C133<5,'Tabel 4 ØJ'!C133<0.5),"-",IFERROR('Tabel 4 ØJ'!C133/'Tabel 4F ØJ'!C133*100,"-")) -> - | D133: =IF(OR('Tabel 4F ØJ'!D133<5,'Tabel 4 ØJ'!D133<0.5),"-",IFERROR('Tabel 4 ØJ'!D133/'Tabel 4F ØJ'!D133*100,"-")) -> - | E133: =IF(OR('Tabel 4F ØJ'!E133<5,'Tabel 4 ØJ'!E133<0.5),"-",IFERROR('Tabel 4 ØJ'!E133/'Tabel 4F ØJ'!E133*100,"-")) -> - | F133: =IF(OR('Tabel 4F ØJ'!F133<5,'Tabel 4 ØJ'!F133<0.5),"-",IFERROR('Tabel 4 ØJ'!F133/'Tabel 4F ØJ'!F133*100,"-")) -> - | G133: =IF(OR('Tabel 4F ØJ'!G133<5,'Tabel 4 ØJ'!G133<0.5),"-",IFERROR('Tabel 4 ØJ'!G133/'Tabel 4F ØJ'!G133*100,"-")) -> - | I133: =IF(OR('Tabel 4F ØJ'!I133<5,'Tabel 4 ØJ'!I133<0.5),"-",IFERROR('Tabel 4 ØJ'!I133/'Tabel 4F ØJ'!I133*100,"-")) -> -
A134: Arkitekt | C134: =IF(OR('Tabel 4F ØJ'!C134<5,'Tabel 4 ØJ'!C134<0.5),"-",IFERROR('Tabel 4 ØJ'!C134/'Tabel 4F ØJ'!C134*100,"-")) -> - | D134: =IF(OR('Tabel 4F ØJ'!D134<5,'Tabel 4 ØJ'!D134<0.5),"-",IFERROR('Tabel 4 ØJ'!D134/'Tabel 4F ØJ'!D134*100,"-")) -> 19.04761905 | E134: =IF(OR('Tabel 4F ØJ'!E134<5,'Tabel 4 ØJ'!E134<0.5),"-",IFERROR('Tabel 4 ØJ'!E134/'Tabel 4F ØJ'!E134*100,"-")) -> 4.347826087 | F134: =IF(OR('Tabel 4F ØJ'!F134<5,'Tabel 4 ØJ'!F134<0.5),"-",IFERROR('Tabel 4 ØJ'!F134/'Tabel 4F ØJ'!F134*100,"-")) -> - | G134: =IF(OR('Tabel 4F ØJ'!G134<5,'Tabel 4 ØJ'!G134<0.5),"-",IFERROR('Tabel 4 ØJ'!G134/'Tabel 4F ØJ'!G134*100,"-")) -> - | I134: =IF(OR('Tabel 4F ØJ'!I134<5,'Tabel 4 ØJ'!I134<0.5),"-",IFERROR('Tabel 4 ØJ'!I134/'Tabel 4F ØJ'!I134*100,"-")) -> 8
A135: Landinspek. | C135: =IF(OR('Tabel 4F ØJ'!C135<5,'Tabel 4 ØJ'!C135<0.5),"-",IFERROR('Tabel 4 ØJ'!C135/'Tabel 4F ØJ'!C135*100,"-")) -> - | D135: =IF(OR('Tabel 4F ØJ'!D135<5,'Tabel 4 ØJ'!D135<0.5),"-",IFERROR('Tabel 4 ØJ'!D135/'Tabel 4F ØJ'!D135*100,"-")) -> - | E135: =IF(OR('Tabel 4F ØJ'!E135<5,'Tabel 4 ØJ'!E135<0.5),"-",IFERROR('Tabel 4 ØJ'!E135/'Tabel 4F ØJ'!E135*100,"-")) -> - | F135: =IF(OR('Tabel 4F ØJ'!F135<5,'Tabel 4 ØJ'!F135<0.5),"-",IFERROR('Tabel 4 ØJ'!F135/'Tabel 4F ØJ'!F135*100,"-")) -> - | G135: =IF(OR('Tabel 4F ØJ'!G135<5,'Tabel 4 ØJ'!G135<0.5),"-",IFERROR('Tabel 4 ØJ'!G135/'Tabel 4F ØJ'!G135*100,"-")) -> - | I135: =IF(OR('Tabel 4F ØJ'!I135<5,'Tabel 4 ØJ'!I135<0.5),"-",IFERROR('Tabel 4 ØJ'!I135/'Tabel 4F ØJ'!I135*100,"-")) -> -
